Workbook

Sheet Select School
B3: =VLOOKUP(C3,SchList!$I$1:$J$240,2,FALSE) -> 9999 | C3: 1
L5: =B3 -> 9999

Sheet Note

Sheet ELA RPT
A2: Click here to return to the school and sheet selection interface | U2: =A3 -> 9999
A3: ='Select School'!B3 -> 9999
A4: =TEXT(A3,"0000")&"-"&VLOOKUP(A3,SchList!$A$2:$B$500,2,FALSE) -> 9999-District | W4: ELA MYA
W5: Grade | X5: Group | Y5: All | Z5: MC | AA5: Multi & TEI | AB5: Key Ideas & Details | AC5: Craft & Structure | AD5: Integration of Knw & Ideas | AE5: Lang & Editing | AF5: Text-Based Wrtg
W6: 9 | X6: District | Y6: =IFERROR(IF(VLOOKUP(9999,'1617ELAG9'!$B$3:$AW$300,3,FALSE)<10,"NA",VLOOKUP(9999,'1617ELAG9'!$B$3:$AW$300,5,FALSE)),#N/A) -> 49.79267492 | Z6: =IFERROR(IF(VLOOKUP(9999,'1617ELAG9'!$B$3:$AW$300,3,FALSE)<10,"NA",VLOOKUP(9999,'1617ELAG9'!$B$3:$AW$300,8,FALSE)*100),#N/A) -> 51.36166024 | AA6: =IFERROR(IF(VLOOKUP(9999,'1617ELAG9'!$B$3:$AW$300,3,FALSE)<10,"NA",VLOOKUP(9999,'1617ELAG9'!$B$3:$AW$300,11,FALSE)*100),#N/A) -> 44.38839217 | AB6: =IFERROR(IF(VLOOKUP(9999,'1617ELAG9'!$B$3:$AW$300,3,FALSE)<10,"NA",VLOOKUP(9999,'1617ELAG9'!$B$3:$AW$300,21,FALSE)*100),#N/A) -> 56.15084899 | AC6: =IFERROR(IF(VLOOKUP(9999,'1617ELAG9'!$B$3:$AW$300,3,FALSE)<10,"NA",VLOOKUP(9999,'1617ELAG9'!$B$3:$AW$300,26,FALSE)*100),#N/A) -> 50.42742304 | AD6: =IFERROR(IF(VLOOKUP(9999,'1617ELAG9'!$B$3:$AW$300,3,FALSE)<10,"NA",VLOOKUP(9999,'1617ELAG9'!$B$3:$AW$300,31,FALSE)*100),#N/A) -> 49.72520712 | AE6: =IFERROR(IF(VLOOKUP(9999,'1617ELAG9'!$B$3:$AW$300,3,FALSE)<10,"NA",VLOOKUP(9999,'1617ELAG9'!$B$3:$AW$300,36,FALSE)*100),#N/A) -> 39.58411943 | AF6: =IFERROR(IF(VLOOKUP(9999,'1617ELAG9'!$B$3:$AW$300,3,FALSE)<10,"NA",VLOOKUP(9999,'1617ELAG9'!$B$3:$AW$300,41,FALSE)*100),#N/A) -> 42.8307768
W7: 9 | X7: School | Y7: =IFERROR(E18,#N/A) -> 49.79267492 | Z7: =IFERROR(G18*100,#N/A) -> 51.36166024 | AA7: =IFERROR(I18*100,#N/A) -> 44.38839217 | AB7: =IFERROR(K18*100,#N/A) -> 56.15084899 | AC7: =IFERROR(M18*100,#N/A) -> 50.42742304 | AD7: =IFERROR(O18*100,#N/A) -> 49.72520712 | AE7: =IFERROR(Q18*100,#N/A) -> 39.58411943 | AF7: =IFERROR(S18*100,#N/A) -> 42.8307768
W8: 10 | X8: District | Y8: =IFERROR(IF(VLOOKUP(9999,'1617ELAG10'!$B$3:$AW$300,3,FALSE)<10,"NA",VLOOKUP(9999,'1617ELAG10'!$B$3:$AW$300,5,FALSE)),#N/A) -> 54.70063107 | Z8: =IFERROR(IF(VLOOKUP(9999,'1617ELAG10'!$B$3:$AW$300,3,FALSE)<10,"NA",VLOOKUP(9999,'1617ELAG10'!$B$3:$AW$300,8,FALSE)*100),#N/A) -> 57.50510164 | AA8: =IFERROR(IF(VLOOKUP(9999,'1617ELAG10'!$B$3:$AW$300,3,FALSE)<10,"NA",VLOOKUP(9999,'1617ELAG10'!$B$3:$AW$300,11,FALSE)*100),#N/A) -> 50.24521685 | AB8: =IFERROR(IF(VLOOKUP(9999,'1617ELAG10'!$B$3:$AW$300,3,FALSE)<10,"NA",VLOOKUP(9999,'1617ELAG10'!$B$3:$AW$300,21,FALSE)*100),#N/A) -> 53.43207034 | AC8: =IFERROR(IF(VLOOKUP(9999,'1617ELAG10'!$B$3:$AW$300,3,FALSE)<10,"NA",VLOOKUP(9999,'1617ELAG10'!$B$3:$AW$300,26,FALSE)*100),#N/A) -> 56.97172403 | AD8: =IFERROR(IF(VLOOKUP(9999,'1617ELAG10'!$B$3:$AW$300,3,FALSE)<10,"NA",VLOOKUP(9999,'1617ELAG10'!$B$3:$AW$300,31,FALSE)*100),#N/A) -> 55.46518016 | AE8: =IFERROR(IF(VLOOKUP(9999,'1617ELAG10'!$B$3:$AW$300,3,FALSE)<10,"NA",VLOOKUP(9999,'1617ELAG10'!$B$3:$AW$300,36,FALSE)*100),#N/A) -> 62.89384392 | AF8: =IFERROR(IF(VLOOKUP(9999,'1617ELAG10'!$B$3:$AW$300,3,FALSE)<10,"NA",VLOOKUP(9999,'1617ELAG10'!$B$3:$AW$300,41,FALSE)*100),#N/A) -> 36.97499596
W9: 10 | X9: School | Y9: =IFERROR(E24,#N/A) -> 54.70063107 | Z9: =IFERROR(G24*100,#N/A) -> 57.50510164 | AA9: =IFERROR(I24*100,#N/A) -> 50.24521685 | AB9: =IFERROR(K24*100,#N/A) -> 53.43207034 | AC9: =IFERROR(M24*100,#N/A) -> 56.97172403 | AD9: =IFERROR(O24*100,#N/A) -> 55.46518016 | AE9: =IFERROR(Q24*100,#N/A) -> 62.89384392 | AF9: =IFERROR(S24*100,#N/A) -> 36.97499596
A16: Grade | B16: Group | C16: Enrollment minus Paper Based Accom. & Retake in G10 | D16: % Tested | E16: Average % Correct* | K16: Key Ideas and Details* | M16: Craft and Structure* | O16: Integration of Knowledge and Ideas* | Q16: Language and Editing* | S16: Text-Based Writing* | V16: Number Tested
E17: ALL | F17: Pts. Max | G17: MC | H17: Pts. Max | I17: Multi & TEI | J17: Pts. Max | K17: Avg.% Correct | L17: Pts. Max | M17: Avg.% Correct | N17: Pts. Max | O17: Avg.% Correct | P17: Pts. Max | Q17: Avg.% Correct | R17: Pts. Max | S17: Avg.% Correct | T17: Pts. Max
A18: 9 | B18: All ELA MYA Tested | C18: =IFERROR(VLOOKUP(TEXT($A$3,"0000"),'Mem12-07-2016'!$A$3:$J$500,9,FALSE),"NA") -> 26476 | D18: =IF(OR(V18="NT",V18<10),#N/A,IF(V18>C18,1,V18/C18)) -> 0.9209095029 | E18: =IFERROR(IF($V18<10,"NA",VLOOKUP($A$3,'1617ELAG9'!$B$3:$AW$300,5,FALSE)),#N/A) -> 49.79267492 | F18: =SUM(H18,J18) -> 40 | G18: =IFERROR(IF($V18<10,"NA",VLOOKUP($A$3,'1617ELAG9'!$B$3:$AW$300,8,FALSE)),#N/A) -> 0.5136166024 | H18: =IFERROR(IF($V18<10,"NA",VLOOKUP($A$3,'1617ELAG9'!$B$3:$AW$300,7,FALSE)),#N/A) -> 31 | I18: =IFERROR(IF($V18<10,"NA",VLOOKUP($A$3,'1617ELAG9'!$B$3:$AW$300,11,FALSE)),#N/A) -> 0.4438839217 | J18: =IFERROR(IF($V18<10,"NA",VLOOKUP($A$3,'1617ELAG9'!$B$3:$AW$300,10,FALSE)),#N/A) -> 9 | K18: =IFERROR(IF($V18<10,"NA",VLOOKUP($A$3,'1617ELAG9'!$B$3:$AW$300,21,FALSE)),#N/A) -> 0.5615084899 | L18: =IFERROR(IF($V18<10,"NA",VLOOKUP($A$3,'1617ELAG9'!$B$3:$AW$300,20,FALSE)),#N/A) -> 10 | M18: =IFERROR(IF($V18<10,"NA",VLOOKUP($A$3,'1617ELAG9'!$B$3:$AW$300,26,FALSE)),#N/A) -> 0.5042742304 | N18: =IFERROR(IF($V18<10,"NA",VLOOKUP($A$3,'1617ELAG9'!$B$3:$AW$300,25,FALSE)),#N/A) -> 14 | O18: =IFERROR(IF($V18<10,"NA",VLOOKUP($A$3,'1617ELAG9'!$B$3:$AW$300,31,FALSE)),#N/A) -> 0.4972520712 | P18: =IFERROR(IF($V18<10,"NA",VLOOKUP($A$3,'1617ELAG9'!$B$3:$AW$300,30,FALSE)),#N/A) -> 8 | Q18: =IFERROR(IF($V18<10,"NA",VLOOKUP($A$3,'1617ELAG9'!$B$3:$AW$300,36,FALSE)),#N/A) -> 0.3958411943 | R18: =IFERROR(IF($V18<10,"NA",VLOOKUP($A$3,'1617ELAG9'!$B$3:$AW$300,35,FALSE)),#N/A) -> 5 | S18: =IFERROR(IF($V18<10,"NA",VLOOKUP($A$3,'1617ELAG9'!$B$3:$AW$300,41,FALSE)),#N/A) -> 0.428307768 | T18: =IFERROR(IF($V18<10,"NA",VLOOKUP($A$3,'1617ELAG9'!$B$3:$AW$300,40,FALSE)),#N/A) -> 3 | V18: =IFERROR(VLOOKUP($A$3,'1617ELAG9'!$B$3:$AW$300,3,FALSE),"NT") -> 24382
A19: 9 | B19: 2016 FSA ELA Level 1 | C19: =IFERROR(VLOOKUP(TEXT($A$3,"0000"),'Mem12-07-2016'!$A$3:$J$500,3,FALSE),"NA") -> 5469 | D19: =IF(OR(V19="NT",V19<10),#N/A,IF(V19>C19,1,V19/C19)) -> 0.8818796855 | E19: =IFERROR(IF($V19<10,"NA",VLOOKUP($A$3,'1617ELAG9L1'!$B$3:$AW$300,5,FALSE)),#N/A) -> 30.35299606 | F19: =SUM(H19,J19) -> 40 | G19: =IFERROR(IF($V19<10,"NA",VLOOKUP($A$3,'1617ELAG9L1'!$B$3:$AW$300,8,FALSE)),#N/A) -> 0.3305398193 | H19: =H$18 -> 31 | I19: =IFERROR(IF($V19<10,"NA",VLOOKUP($A$3,'1617ELAG9L1'!$B$3:$AW$300,11,FALSE)),#N/A) -> 0.2104960029 | J19: =J$18 -> 9 | K19: =IFERROR(IF($V19<10,"NA",VLOOKUP($A$3,'1617ELAG9L1'!$B$3:$AW$300,21,FALSE)),#N/A) -> 0.3601700187 | L19: =L$18 -> 10 | M19: =IFERROR(IF($V19<10,"NA",VLOOKUP($A$3,'1617ELAG9L1'!$B$3:$AW$300,26,FALSE)),#N/A) -> 0.3088622967 | N19: =N$18 -> 14 | O19: =IFERROR(IF($V19<10,"NA",VLOOKUP($A$3,'1617ELAG9L1'!$B$3:$AW$300,31,FALSE)),#N/A) -> 0.3075886378 | P19: =P$18 -> 8 | Q19: =IFERROR(IF($V19<10,"NA",VLOOKUP($A$3,'1617ELAG9L1'!$B$3:$AW$300,36,FALSE)),#N/A) -> 0.2374041053 | R19: =R$18 -> 5 | S19: =IFERROR(IF($V19<10,"NA",VLOOKUP($A$3,'1617ELAG9L1'!$B$3:$AW$300,41,FALSE)),#N/A) -> 0.1892321515 | T19: =T$18 -> 3 | V19: =IFERROR(VLOOKUP($A$3,'1617ELAG9L1'!$B$3:$AW$300,3,FALSE),"NT") -> 4823
A20: 9 | B20: 2016 FSA ELA Level 2 | C20: =IFERROR(VLOOKUP(TEXT($A$3,"0000"),'Mem12-07-2016'!$A$3:$J$500,4,FALSE),"NA") -> 4899 | D20: 0.9261073689 | E20: =IFERROR(IF($V20<10,"NA",VLOOKUP($A$3,'1617ELAG9L2'!$B$3:$AW$300,5,FALSE)),#N/A) -> 41.86907648 | F20: 40 | G20: =IFERROR(IF($V20<10,"NA",VLOOKUP($A$3,'1617ELAG9L2'!$B$3:$AW$300,8,FALSE)),#N/A) -> 0.4389499954 | H20: =H$18 -> 31 | I20: =IFERROR(IF($V20<10,"NA",VLOOKUP($A$3,'1617ELAG9L2'!$B$3:$AW$300,11,FALSE)),#N/A) -> 0.3489089707 | J20: 9 | K20: =IFERROR(IF($V20<10,"NA",VLOOKUP($A$3,'1617ELAG9L2'!$B$3:$AW$300,21,FALSE)),#N/A) -> 0.4977518184 | L20: 10 | M20: =IFERROR(IF($V20<10,"NA",VLOOKUP($A$3,'1617ELAG9L2'!$B$3:$AW$300,26,FALSE)),#N/A) -> 0.4331055764 | N20: 14 | O20: =IFERROR(IF($V20<10,"NA",VLOOKUP($A$3,'1617ELAG9L2'!$B$3:$AW$300,31,FALSE)),#N/A) -> 0.3997685695 | P20: 8 | Q20: =IFERROR(IF($V20<10,"NA",VLOOKUP($A$3,'1617ELAG9L2'!$B$3:$AW$300,36,FALSE)),#N/A) -> 0.2979501873 | R20: 5 | S20: =IFERROR(IF($V20<10,"NA",VLOOKUP($A$3,'1617ELAG9L2'!$B$3:$AW$300,41,FALSE)),#N/A) -> 0.3395782823 | T20: 3 | V20: =IFERROR(VLOOKUP($A$3,'1617ELAG9L2'!$B$3:$AW$300,3,FALSE),"NT") -> 4537
A21: 9 | B21: 2016 FSA ELA Level 3 | C21: =IFERROR(VLOOKUP(TEXT($A$3,"0000"),'Mem12-07-2016'!$A$3:$J$500,5,FALSE),"NA") -> 5880 | D21: 0.9549319728 | E21: =IFERROR(IF($V21<10,"NA",VLOOKUP($A$3,'1617ELAG9L3'!$B$3:$AW$300,5,FALSE)),#N/A) -> 52.90917186 | F21: 40 | G21: =IFERROR(IF($V21<10,"NA",VLOOKUP($A$3,'1617ELAG9L3'!$B$3:$AW$300,8,FALSE)),#N/A) -> 0.5413667308 | H21: 31 | I21: =IFERROR(IF($V21<10,"NA",VLOOKUP($A$3,'1617ELAG9L3'!$B$3:$AW$300,11,FALSE)),#N/A) -> 0.486811121 | J21: 9 | K21: =IFERROR(IF($V21<10,"NA",VLOOKUP($A$3,'1617ELAG9L3'!$B$3:$AW$300,21,FALSE)),#N/A) -> 0.6028495102 | L21: 10 | M21: =IFERROR(IF($V21<10,"NA",VLOOKUP($A$3,'1617ELAG9L3'!$B$3:$AW$300,26,FALSE)),#N/A) -> 0.5391426027 | N21: 14 | O21: =IFERROR(IF($V21<10,"NA",VLOOKUP($A$3,'1617ELAG9L3'!$B$3:$AW$300,31,FALSE)),#N/A) -> 0.5228628673 | P21: 8 | Q21: =IFERROR(IF($V21<10,"NA",VLOOKUP($A$3,'1617ELAG9L3'!$B$3:$AW$300,36,FALSE)),#N/A) -> 0.3941941229 | R21: 5 | S21: =IFERROR(IF($V21<10,"NA",VLOOKUP($A$3,'1617ELAG9L3'!$B$3:$AW$300,41,FALSE)),#N/A) -> 0.4777678836 | T21: 3 | V21: =IFERROR(VLOOKUP($A$3,'1617ELAG9L3'!$B$3:$AW$300,3,FALSE),"NT") -> 5615
A22: 9 | B22: 2016 FSA ELA Level 4 | C22: =IFERROR(VLOOKUP(TEXT($A$3,"0000"),'Mem12-07-2016'!$A$3:$J$500,6,FALSE),"NA") -> 4416 | D22: 0.9653532609 | E22: =IFERROR(IF($V22<10,"NA",VLOOKUP($A$3,'1617ELAG9L4'!$B$3:$AW$300,5,FALSE)),#N/A) -> 64.25463289 | F22: 40 | G22: =IFERROR(IF($V22<10,"NA",VLOOKUP($A$3,'1617ELAG9L4'!$B$3:$AW$300,8,FALSE)),#N/A) -> 0.6497468843 | H22: 31 | I22: =IFERROR(IF($V22<10,"NA",VLOOKUP($A$3,'1617ELAG9L4'!$B$3:$AW$300,11,FALSE)),#N/A) -> 0.6177444158 | J22: 9 | K22: =IFERROR(IF($V22<10,"NA",VLOOKUP($A$3,'1617ELAG9L4'!$B$3:$AW$300,21,FALSE)),#N/A) -> 0.7004456955 | L22: 10 | M22: =IFERROR(IF($V22<10,"NA",VLOOKUP($A$3,'1617ELAG9L4'!$B$3:$AW$300,26,FALSE)),#N/A) -> 0.6439965149 | N22: 14 | O22: =IFERROR(IF($V22<10,"NA",VLOOKUP($A$3,'1617ELAG9L4'!$B$3:$AW$300,31,FALSE)),#N/A) -> 0.6533251232 | P22: 8 | Q22: =IFERROR(IF($V22<10,"NA",VLOOKUP($A$3,'1617ELAG9L4'!$B$3:$AW$300,36,FALSE)),#N/A) -> 0.5249354914 | R22: 5 | S22: =IFERROR(IF($V22<10,"NA",VLOOKUP($A$3,'1617ELAG9L4'!$B$3:$AW$300,41,FALSE)),#N/A) -> 0.6100555165 | T22: 3 | V22: =IFERROR(VLOOKUP($A$3,'1617ELAG9L4'!$B$3:$AW$300,3,FALSE),"NT") -> 4263
A23: 9 | B23: 2016 FSA ELA Level 5 | C23: =IFERROR(VLOOKUP(TEXT($A$3,"0000"),'Mem12-07-2016'!$A$3:$J$500,7,FALSE),"NA") -> 2889 | D23: 0.9730010384 | E23: =IFERROR(IF($V23<10,"NA",VLOOKUP($A$3,'1617ELAG9L5'!$B$3:$AW$300,5,FALSE)),#N/A) -> 74.78388474 | F23: 40 | G23: =IFERROR(IF($V23<10,"NA",VLOOKUP($A$3,'1617ELAG9L5'!$B$3:$AW$300,8,FALSE)),#N/A) -> 0.7498192584 | H23: 31 | I23: =IFERROR(IF($V23<10,"NA",VLOOKUP($A$3,'1617ELAG9L5'!$B$3:$AW$300,11,FALSE)),#N/A) -> 0.7410174315 | J23: 9 | K23: =IFERROR(IF($V23<10,"NA",VLOOKUP($A$3,'1617ELAG9L5'!$B$3:$AW$300,21,FALSE)),#N/A) -> 0.7930985414 | L23: 10 | M23: =IFERROR(IF($V23<10,"NA",VLOOKUP($A$3,'1617ELAG9L5'!$B$3:$AW$300,26,FALSE)),#N/A) -> 0.7430248513 | N23: 14 | O23: =IFERROR(IF($V23<10,"NA",VLOOKUP($A$3,'1617ELAG9L5'!$B$3:$AW$300,31,FALSE)),#N/A) -> 0.7590715048 | P23: 8 | Q23: =IFERROR(IF($V23<10,"NA",VLOOKUP($A$3,'1617ELAG9L5'!$B$3:$AW$300,36,FALSE)),#N/A) -> 0.6702952686 | R23: 5 | S23: =IFERROR(IF($V23<10,"NA",VLOOKUP($A$3,'1617ELAG9L5'!$B$3:$AW$300,41,FALSE)),#N/A) -> 0.7187240602 | T23: 3 | V23: =IFERROR(VLOOKUP($A$3,'1617ELAG9L5'!$B$3:$AW$300,3,FALSE),"NT") -> 2811
A24: 10 | B24: All ELA MYA Tested | C24: =IFERROR(VLOOKUP(TEXT($A$3,"0000"),'Mem12-07-2016'!$K$3:$S$500,9,FALSE),"NA") -> 27079 | D24: =IF(OR(V24="NT",V24<10),#N/A,IF(V24>C24,1,V24/C24)) -> 0.9142139665 | E24: =IFERROR(IF($V24<10,"NA",VLOOKUP($A$3,'1617ELAG10'!$B$3:$AW$300,5,FALSE)),#N/A) -> 54.70063107 | F24: =SUM(H24,J24) -> 44 | G24: =IFERROR(IF($V24<10,"NA",VLOOKUP($A$3,'1617ELAG10'!$B$3:$AW$300,8,FALSE)),#N/A) -> 0.5750510164 | H24: =IFERROR(IF($V18<10,"NA",VLOOKUP($A$3,'1617ELAG10'!$B$3:$AW$300,7,FALSE)),#N/A) -> 27 | I24: =IFERROR(IF($V24<10,"NA",VLOOKUP($A$3,'1617ELAG10'!$B$3:$AW$300,11,FALSE)),#N/A) -> 0.5024521685 | J24: =IFERROR(IF($V18<10,"NA",VLOOKUP($A$3,'1617ELAG10'!$B$3:$AW$300,10,FALSE)),#N/A) -> 17 | K24: =IFERROR(IF($V24<10,"NA",VLOOKUP($A$3,'1617ELAG10'!$B$3:$AW$300,21,FALSE)),#N/A) -> 0.5343207034 | L24: =IFERROR(IF($V18<10,"NA",VLOOKUP($A$3,'1617ELAG10'!$B$3:$AW$300,20,FALSE)),#N/A) -> 15 | M24: =IFERROR(IF($V24<10,"NA",VLOOKUP($A$3,'1617ELAG10'!$B$3:$AW$300,26,FALSE)),#N/A) -> 0.5697172403 | N24: =IFERROR(IF($V18<10,"NA",VLOOKUP($A$3,'1617ELAG10'!$B$3:$AW$300,25,FALSE)),#N/A) -> 15 | O24: =IFERROR(IF($V24<10,"NA",VLOOKUP($A$3,'1617ELAG10'!$B$3:$AW$300,31,FALSE)),#N/A) -> 0.5546518016 | P24: =IFERROR(IF($V18<10,"NA",VLOOKUP($A$3,'1617ELAG10'!$B$3:$AW$300,30,FALSE)),#N/A) -> 7 | Q24: =IFERROR(IF($V24<10,"NA",VLOOKUP($A$3,'1617ELAG10'!$B$3:$AW$300,36,FALSE)),#N/A) -> 0.6289384392 | R24: =IFERROR(IF($V18<10,"NA",VLOOKUP($A$3,'1617ELAG10'!$B$3:$AW$300,35,FALSE)),#N/A) -> 4 | S24: =IFERROR(IF($V24<10,"NA",VLOOKUP($A$3,'1617ELAG10'!$B$3:$AW$300,41,FALSE)),#N/A) -> 0.3697499596 | T24: =IFERROR(IF($V18<10,"NA",VLOOKUP($A$3,'1617ELAG10'!$B$3:$AW$300,40,FALSE)),#N/A) -> 3 | V24: =IFERROR(VLOOKUP($A$3,'1617ELAG10'!$B$3:$AW$300,3,FALSE),"NT") -> 24756
A25: 10 | B25: 2016 FSA ELA Level 1 | C25: =IFERROR(VLOOKUP(TEXT($A$3,"0000"),'Mem12-07-2016'!$K$3:$S$500,3,FALSE),"NA") -> 6224 | D25: =IF(OR(V25="NT",V25<10),#N/A,IF(V25>C25,1,V25/C25)) -> 0.8846401028 | E25: =IFERROR(IF($V25<10,"NA",VLOOKUP($A$3,'1617ELAG10L1'!$B$3:$AW$300,5,FALSE)),#N/A) -> 35.68182091 | F25: =SUM(H25,J25) -> 44 | G25: =IFERROR(IF($V25<10,"NA",VLOOKUP($A$3,'1617ELAG10L1'!$B$3:$AW$300,8,FALSE)),#N/A) -> 0.3739960447 | H25: =H$24 -> 27 | I25: =IFERROR(IF($V25<10,"NA",VLOOKUP($A$3,'1617ELAG10L1'!$B$3:$AW$300,11,FALSE)),#N/A) -> 0.329533557 | J25: =J$24 -> 17 | K25: =IFERROR(IF($V25<10,"NA",VLOOKUP($A$3,'1617ELAG10L1'!$B$3:$AW$300,21,FALSE)),#N/A) -> 0.3345859063 | L25: =L$24 -> 15 | M25: =IFERROR(IF($V25<10,"NA",VLOOKUP($A$3,'1617ELAG10L1'!$B$3:$AW$300,26,FALSE)),#N/A) -> 0.3967381039 | N25: =N$24 -> 15 | O25: =IFERROR(IF($V25<10,"NA",VLOOKUP($A$3,'1617ELAG10L1'!$B$3:$AW$300,31,FALSE)),#N/A) -> 0.3499400654 | P25: =P$24 -> 7 | Q25: =IFERROR(IF($V25<10,"NA",VLOOKUP($A$3,'1617ELAG10L1'!$B$3:$AW$300,36,FALSE)),#N/A) -> 0.4496004359 | R25: =R$24 -> 4 | S25: =IFERROR(IF($V25<10,"NA",VLOOKUP($A$3,'1617ELAG10L1'!$B$3:$AW$300,41,FALSE)),#N/A) -> 0.1611641845 | T25: =T$24 -> 3 | V25: =IFERROR(VLOOKUP($A$3,'1617ELAG10L1'!$B$3:$AW$300,3,FALSE),"NT") -> 5506
A26: 10 | B26: 2016 FSA ELA Level 2 | C26: =IFERROR(VLOOKUP(TEXT($A$3,"0000"),'Mem12-07-2016'!$K$3:$S$500,4,FALSE),"NA") -> 5313 | D26: 0.9288537549 | E26: =IFERROR(IF($V26<10,"NA",VLOOKUP($A$3,'1617ELAG10L2'!$B$3:$AW$300,5,FALSE)),#N/A) -> 49.54272235 | F26: 44 | G26: =IFERROR(IF($V26<10,"NA",VLOOKUP($A$3,'1617ELAG10L2'!$B$3:$AW$300,8,FALSE)),#N/A) -> 0.5162219971 | H26: =H$24 -> 27 | I26: =IFERROR(IF($V26<10,"NA",VLOOKUP($A$3,'1617ELAG10L2'!$B$3:$AW$300,11,FALSE)),#N/A) -> 0.4623755885 | J26: 17 | K26: =IFERROR(IF($V26<10,"NA",VLOOKUP($A$3,'1617ELAG10L2'!$B$3:$AW$300,21,FALSE)),#N/A) -> 0.469883823 | L26: 15 | M26: =IFERROR(IF($V26<10,"NA",VLOOKUP($A$3,'1617ELAG10L2'!$B$3:$AW$300,26,FALSE)),#N/A) -> 0.5363201621 | N26: 15 | O26: =IFERROR(IF($V26<10,"NA",VLOOKUP($A$3,'1617ELAG10L2'!$B$3:$AW$300,31,FALSE)),#N/A) -> 0.483118541 | P26: 7 | Q26: =IFERROR(IF($V26<10,"NA",VLOOKUP($A$3,'1617ELAG10L2'!$B$3:$AW$300,36,FALSE)),#N/A) -> 0.6030395137 | R26: 4 | S26: =IFERROR(IF($V26<10,"NA",VLOOKUP($A$3,'1617ELAG10L2'!$B$3:$AW$300,41,FALSE)),#N/A) -> 0.3037899358 | T26: 3 | V26: =IFERROR(VLOOKUP($A$3,'1617ELAG10L2'!$B$3:$AW$300,3,FALSE),"NT") -> 4935
A27: 10 | B27: 2016 FSA ELA Level 3 | C27: =IFERROR(VLOOKUP(TEXT($A$3,"0000"),'Mem12-07-2016'!$K$3:$S$500,5,FALSE),"NA") -> 5332 | D27: 0.9463615904 | E27: =IFERROR(IF($V27<10,"NA",VLOOKUP($A$3,'1617ELAG10L3'!$B$3:$AW$300,5,FALSE)),#N/A) -> 59.28770051 | F27: 44 | G27: =IFERROR(IF($V27<10,"NA",VLOOKUP($A$3,'1617ELAG10L3'!$B$3:$AW$300,8,FALSE)),#N/A) -> 0.6218860557 | H27: 27 | I27: =IFERROR(IF($V27<10,"NA",VLOOKUP($A$3,'1617ELAG10L3'!$B$3:$AW$300,11,FALSE)),#N/A) -> 0.5467930335 | J27: 17 | K27: =IFERROR(IF($V27<10,"NA",VLOOKUP($A$3,'1617ELAG10L3'!$B$3:$AW$300,21,FALSE)),#N/A) -> 0.5755965121 | L27: 15 | M27: =IFERROR(IF($V27<10,"NA",VLOOKUP($A$3,'1617ELAG10L3'!$B$3:$AW$300,26,FALSE)),#N/A) -> 0.6191220769 | N27: 15 | O27: =IFERROR(IF($V27<10,"NA",VLOOKUP($A$3,'1617ELAG10L3'!$B$3:$AW$300,31,FALSE)),#N/A) -> 0.6033115339 | P27: 7 | Q27: =IFERROR(IF($V27<10,"NA",VLOOKUP($A$3,'1617ELAG10L3'!$B$3:$AW$300,36,FALSE)),#N/A) -> 0.6743955608 | R27: 4 | S27: =IFERROR(IF($V27<10,"NA",VLOOKUP($A$3,'1617ELAG10L3'!$B$3:$AW$300,41,FALSE)),#N/A) -> 0.4137244022 | T27: 3 | V27: =IFERROR(VLOOKUP($A$3,'1617ELAG10L3'!$B$3:$AW$300,3,FALSE),"NT") -> 5046
A28: 10 | B28: 2016 FSA ELA Level 4 | C28: =IFERROR(VLOOKUP(TEXT($A$3,"0000"),'Mem12-07-2016'!$K$3:$S$500,6,FALSE),"NA") -> 5241 | D28: 0.9572600649 | E28: =IFERROR(IF($V28<10,"NA",VLOOKUP($A$3,'1617ELAG10L4'!$B$3:$AW$300,5,FALSE)),#N/A) -> 68.70548777 | F28: 44 | G28: =IFERROR(IF($V28<10,"NA",VLOOKUP($A$3,'1617ELAG10L4'!$B$3:$AW$300,8,FALSE)),#N/A) -> 0.7256513041 | H28: 27 | I28: =IFERROR(IF($V28<10,"NA",VLOOKUP($A$3,'1617ELAG10L4'!$B$3:$AW$300,11,FALSE)),#N/A) -> 0.6257430618 | J28: 17 | K28: =IFERROR(IF($V28<10,"NA",VLOOKUP($A$3,'1617ELAG10L4'!$B$3:$AW$300,21,FALSE)),#N/A) -> 0.6883163909 | L28: 15 | M28: =IFERROR(IF($V28<10,"NA",VLOOKUP($A$3,'1617ELAG10L4'!$B$3:$AW$300,26,FALSE)),#N/A) -> 0.6884791708 | N28: 15 | O28: =IFERROR(IF($V28<10,"NA",VLOOKUP($A$3,'1617ELAG10L4'!$B$3:$AW$300,31,FALSE)),#N/A) -> 0.7120450468 | P28: 7 | Q28: =IFERROR(IF($V28<10,"NA",VLOOKUP($A$3,'1617ELAG10L4'!$B$3:$AW$300,36,FALSE)),#N/A) -> 0.7505979669 | R28: 4 | S28: =IFERROR(IF($V28<10,"NA",VLOOKUP($A$3,'1617ELAG10L4'!$B$3:$AW$300,41,FALSE)),#N/A) -> 0.5304132616 | T28: 3 | V28: =IFERROR(VLOOKUP($A$3,'1617ELAG10L4'!$B$3:$AW$300,3,FALSE),"NT") -> 5017
A29: 10 | B29: 2016 FSA ELA Level 5 | C29: =IFERROR(VLOOKUP(TEXT($A$3,"0000"),'Mem12-07-2016'!$K$3:$S$500,7,FALSE),"NA") -> 2560 | D29: 0.955859375 | E29: =IFERROR(IF($V29<10,"NA",VLOOKUP($A$3,'1617ELAG10L5'!$B$3:$AW$300,5,FALSE)),#N/A) -> 77.93041908 | F29: 44 | G29: =IFERROR(IF($V29<10,"NA",VLOOKUP($A$3,'1617ELAG10L5'!$B$3:$AW$300,8,FALSE)),#N/A) -> 0.8248043712 | H29: 27 | I29: =IFERROR(IF($V29<10,"NA",VLOOKUP($A$3,'1617ELAG10L5'!$B$3:$AW$300,11,FALSE)),#N/A) -> 0.7070362268 | J29: 17 | K29: =IFERROR(IF($V29<10,"NA",VLOOKUP($A$3,'1617ELAG10L5'!$B$3:$AW$300,21,FALSE)),#N/A) -> 0.8003964038 | L29: 15 | M29: =IFERROR(IF($V29<10,"NA",VLOOKUP($A$3,'1617ELAG10L5'!$B$3:$AW$300,26,FALSE)),#N/A) -> 0.7558970168 | N29: 15 | O29: =IFERROR(IF($V29<10,"NA",VLOOKUP($A$3,'1617ELAG10L5'!$B$3:$AW$300,31,FALSE)),#N/A) -> 0.8091540662 | P29: 7 | Q29: =IFERROR(IF($V29<10,"NA",VLOOKUP($A$3,'1617ELAG10L5'!$B$3:$AW$300,36,FALSE)),#N/A) -> 0.8295872497 | R29: 4 | S29: =IFERROR(IF($V29<10,"NA",VLOOKUP($A$3,'1617ELAG10L5'!$B$3:$AW$300,41,FALSE)),#N/A) -> 0.6555986923 | T29: 3 | V29: =IFERROR(VLOOKUP($A$3,'1617ELAG10L5'!$B$3:$AW$300,3,FALSE),"NT") -> 2447

Sheet ALG1 EOC
A2: Click here to return to the school and sheet selection interface | O2: =A3 -> 9999
A3: ='Select School'!B3 -> 9999
A4: =TEXT(A3,"0000")&"-"&VLOOKUP(A3,SchList!$A$2:$B$500,2,FALSE) -> 9999-District | Q4: ALGEBRA I EOC, 1617 MYA
Q5: Grade | R5: Group | S5: All | T5: MC | U5: Multi Selection | V5: =J19 -> Algebra and Modeling | W5: =L19 -> Functions and Modeling
Q6: ALG1 | R6: District | S6: =IFERROR(IF(VLOOKUP(9999,'1617ALGAVG'!$B$3:$AW$300,3,FALSE)<10,"NA",VLOOKUP(9999,'1617ALGAVG'!$B$3:$AW$300,5,FALSE)),#N/A) -> 29.9298596 | T6: =IFERROR(IF(VLOOKUP(9999,'1617ALGAVG'!$B$3:$AW$300,3,FALSE)<10,"NA",VLOOKUP(9999,'1617ALGAVG'!$B$3:$AW$300,8,FALSE)*100),#N/A) -> 34.94295579 | U6: =IFERROR(IF(VLOOKUP(9999,'1617ALGAVG'!$B$3:$AW$300,3,FALSE)<10,"NA",VLOOKUP(9999,'1617ALGAVG'!$B$3:$AW$300,11,FALSE)*100),#N/A) -> 15.45179657 | V6: =IFERROR(IF(VLOOKUP(9999,'1617ALGAVG'!$B$3:$AW$300,3,FALSE)<10,"NA",VLOOKUP(9999,'1617ALGAVG'!$B$3:$AW$300,21,FALSE)*100),#N/A) -> 28.42212715 | W6: =IFERROR(IF(VLOOKUP(9999,'1617ALGAVG'!$B$3:$AW$300,3,FALSE)<10,"NA",VLOOKUP(9999,'1617ALGAVG'!$B$3:$AW$300,26,FALSE)*100),#N/A) -> 31.14235688
Q7: ALG1 | R7: School | S7: =IFERROR(D21,#N/A) -> 29.9298596 | T7: =IFERROR(F21*100,#N/A) -> 34.94295579 | U7: =IFERROR(H21*100,#N/A) -> 15.45179657 | V7: =IFERROR(J21*100,#N/A) -> 28.42212715 | W7: =IFERROR(L21*100,#N/A) -> 31.14235688
A19: Group | B19: Enrollment | C19: % Tested | D19: Average % Correct* | J19: Algebra and Modeling | L19: Functions and Modeling | O19: Number Tested
D20: ALL | E20: Pts. Max | F20: MC | G20: Pts. Max | H20: Multi Selection | I20: Pts. Max | J20: Avg.% Correct | K20: Pts. Max | L20: Avg.% Correct | M20: Pts. Max
A21: All Algebra 1 MYA Tested | B21: =IFERROR(VLOOKUP(TEXT($A$3,"0000"),'Mem12-07-2016'!$U$3:$AC$500,9,FALSE),"NA") -> 29257 | C21: =IF(OR(O21="NT",O21<10),#N/A,IF(O21>B21,1,O21/B21)) -> 0.9107564002 | D21: =IFERROR(IF($O21<10,"NA",VLOOKUP($A$3,'1617ALGAVG'!$B$3:$AW$300,5,FALSE)),#N/A) -> 29.9298596 | E21: =SUM(G21,I21) -> 54 | F21: =IFERROR(IF($O21<10,"NA",VLOOKUP($A$3,'1617ALGAVG'!$B$3:$AW$300,8,FALSE)),#N/A) -> 0.3494295579 | G21: =IFERROR(IF($O21<10,"NA",VLOOKUP($A$3,'1617ALGAVG'!$B$3:$AW$300,7,FALSE)),#N/A) -> 40 | H21: =IFERROR(IF($O21<10,"NA",VLOOKUP($A$3,'1617ALGAVG'!$B$3:$AW$300,11,FALSE)),#N/A) -> 0.1545179657 | I21: =IFERROR(IF($O21<10,"NA",VLOOKUP($A$3,'1617ALGAVG'!$B$3:$AW$300,10,FALSE)),#N/A) -> 14 | J21: =IFERROR(IF($O21<10,"NA",VLOOKUP($A$3,'1617ALGAVG'!$B$3:$AW$300,21,FALSE)),#N/A) -> 0.2842212715 | K21: =IFERROR(IF($O21<10,"NA",VLOOKUP($A$3,'1617ALGAVG'!$B$3:$AW$300,20,FALSE)),#N/A) -> 25 | L21: =IFERROR(IF($O21<10,"NA",VLOOKUP($A$3,'1617ALGAVG'!$B$3:$AW$300,26,FALSE)),#N/A) -> 0.3114235688 | M21: =IFERROR(IF($O21<10,"NA",VLOOKUP($A$3,'1617ALGAVG'!$B$3:$AW$300,25,FALSE)),#N/A) -> 29 | O21: =IFERROR(VLOOKUP($A$3,'1617ALGAVG'!$B$3:$AW$300,3,FALSE),"NT") -> 26646
A22: 2016 Math/EOC FSA Level 1 | B22: =IFERROR(VLOOKUP(TEXT($A$3,"0000"),'Mem12-07-2016'!$U$3:$AC$500,3,FALSE),"NA") -> 5668 | C22: 0.880733945 | D22: =IFERROR(IF($O22<10,"NA",VLOOKUP($A$3,'1617ALGAVGL1'!$B$3:$AW$300,5,FALSE)),#N/A) -> 22.32717875 | E22: =SUM(G22,I22) -> 54 | F22: =IFERROR(IF($O22<10,"NA",VLOOKUP($A$3,'1617ALGAVGL1'!$B$3:$AW$300,8,FALSE)),#N/A) -> 0.2785957532 | G22: =G$21 -> 40 | H22: =IFERROR(IF($O22<10,"NA",VLOOKUP($A$3,'1617ALGAVGL1'!$B$3:$AW$300,11,FALSE)),#N/A) -> 0.06340144231 | I22: =I$21 -> 14 | J22: =IFERROR(IF($O22<10,"NA",VLOOKUP($A$3,'1617ALGAVGL1'!$B$3:$AW$300,21,FALSE)),#N/A) -> 0.2226522436 | K22: =K$21 -> 25 | L22: =IFERROR(IF($O22<10,"NA",VLOOKUP($A$3,'1617ALGAVGL1'!$B$3:$AW$300,26,FALSE)),#N/A) -> 0.2230115771 | M22: =M$21 -> 29 | O22: =IFERROR(VLOOKUP($A$3,'1617ALGAVGL1'!$B$3:$AW$300,3,FALSE),"NT") -> 4992
A23: 2016 Math/EOC FSA Level 2 | B23: =IFERROR(VLOOKUP(TEXT($A$3,"0000"),'Mem12-07-2016'!$U$3:$AC$500,4,FALSE),"NA") -> 4428 | C23: 0.9227642276 | D23: =IFERROR(IF($O23<10,"NA",VLOOKUP($A$3,'1617ALGAVGL2'!$B$3:$AW$300,5,FALSE)),#N/A) -> 25.47288951 | E23: 54 | F23: =IFERROR(IF($O23<10,"NA",VLOOKUP($A$3,'1617ALGAVGL2'!$B$3:$AW$300,8,FALSE)),#N/A) -> 0.3063754283 | G23: =G$21 -> 40 | H23: =IFERROR(IF($O23<10,"NA",VLOOKUP($A$3,'1617ALGAVGL2'!$B$3:$AW$300,11,FALSE)),#N/A) -> 0.1055870219 | I23: =I$21 -> 14 | J23: =IFERROR(IF($O23<10,"NA",VLOOKUP($A$3,'1617ALGAVGL2'!$B$3:$AW$300,21,FALSE)),#N/A) -> 0.2484777288 | K23: =K$21 -> 25 | L23: =IFERROR(IF($O23<10,"NA",VLOOKUP($A$3,'1617ALGAVGL2'!$B$3:$AW$300,26,FALSE)),#N/A) -> 0.2594059615 | M23: =M$21 -> 29 | O23: =IFERROR(VLOOKUP($A$3,'1617ALGAVGL2'!$B$3:$AW$300,3,FALSE),"NT") -> 4086
A24: 2016 Math/EOC FSA Level 3 | B24: =IFERROR(VLOOKUP(TEXT($A$3,"0000"),'Mem12-07-2016'!$U$3:$AC$500,5,FALSE),"NA") -> 7159 | C24: 0.9437072217 | D24: =IFERROR(IF($O24<10,"NA",VLOOKUP($A$3,'1617ALGAVGL3'!$B$3:$AW$300,5,FALSE)),#N/A) -> 29.22079202 | E24: 54 | F24: =IFERROR(IF($O24<10,"NA",VLOOKUP($A$3,'1617ALGAVGL3'!$B$3:$AW$300,8,FALSE)),#N/A) -> 0.3421218176 | G24: =G$21 -> 40 | H24: =IFERROR(IF($O24<10,"NA",VLOOKUP($A$3,'1617ALGAVGL3'!$B$3:$AW$300,11,FALSE)),#N/A) -> 0.1482386027 | I24: =I$21 -> 14 | J24: =IFERROR(IF($O24<10,"NA",VLOOKUP($A$3,'1617ALGAVGL3'!$B$3:$AW$300,21,FALSE)),#N/A) -> 0.2747483718 | K24: =K$21 -> 25 | L24: =IFERROR(IF($O24<10,"NA",VLOOKUP($A$3,'1617ALGAVGL3'!$B$3:$AW$300,26,FALSE)),#N/A) -> 0.3063614463 | M24: =M$21 -> 29 | O24: =IFERROR(VLOOKUP($A$3,'1617ALGAVGL3'!$B$3:$AW$300,3,FALSE),"NT") -> 6756
A25: 2016 Math/EOC FSA Level 4 | B25: =IFERROR(VLOOKUP(TEXT($A$3,"0000"),'Mem12-07-2016'!$U$3:$AC$500,6,FALSE),"NA") -> 5322 | C25: 0.9409996242 | D25: =IFERROR(IF($O25<10,"NA",VLOOKUP($A$3,'1617ALGAVGL4'!$B$3:$AW$300,5,FALSE)),#N/A) -> 34.97130744 | E25: 54 | F25: =IFERROR(IF($O25<10,"NA",VLOOKUP($A$3,'1617ALGAVGL4'!$B$3:$AW$300,8,FALSE)),#N/A) -> 0.3957318291 | G25: =G$21 -> 40 | H25: =IFERROR(IF($O25<10,"NA",VLOOKUP($A$3,'1617ALGAVGL4'!$B$3:$AW$300,11,FALSE)),#N/A) -> 0.2168245094 | I25: =I$21 -> 14 | J25: =IFERROR(IF($O25<10,"NA",VLOOKUP($A$3,'1617ALGAVGL4'!$B$3:$AW$300,21,FALSE)),#N/A) -> 0.3218690096 | K25: =K$21 -> 25 | L25: =IFERROR(IF($O25<10,"NA",VLOOKUP($A$3,'1617ALGAVGL4'!$B$3:$AW$300,26,FALSE)),#N/A) -> 0.3726556131 | M25: =M$21 -> 29 | O25: =IFERROR(VLOOKUP($A$3,'1617ALGAVGL4'!$B$3:$AW$300,3,FALSE),"NT") -> 5008
A26: 2016 Math/EOC FSA Level 5 | B26: =IFERROR(VLOOKUP(TEXT($A$3,"0000"),'Mem12-07-2016'!$U$3:$AC$500,7,FALSE),"NA") -> 3516 | C26: 0.9166666667 | D26: =IFERROR(IF($O26<10,"NA",VLOOKUP($A$3,'1617ALGAVGL5'!$B$3:$AW$300,5,FALSE)),#N/A) -> 44.36081157 | E26: 54 | F26: =IFERROR(IF($O26<10,"NA",VLOOKUP($A$3,'1617ALGAVGL5'!$B$3:$AW$300,8,FALSE)),#N/A) -> 0.4854483401 | G26: =G$21 -> 40 | H26: =IFERROR(IF($O26<10,"NA",VLOOKUP($A$3,'1617ALGAVGL5'!$B$3:$AW$300,11,FALSE)),#N/A) -> 0.3228358672 | I26: =I$21 -> 14 | J26: =IFERROR(IF($O26<10,"NA",VLOOKUP($A$3,'1617ALGAVGL5'!$B$3:$AW$300,21,FALSE)),#N/A) -> 0.4137015203 | K26: =K$21 -> 25 | L26: =IFERROR(IF($O26<10,"NA",VLOOKUP($A$3,'1617ALGAVGL5'!$B$3:$AW$300,26,FALSE)),#N/A) -> 0.4686676581 | M26: =M$21 -> 29 | O26: =IFERROR(VLOOKUP($A$3,'1617ALGAVGL5'!$B$3:$AW$300,3,FALSE),"NT") -> 3223

Sheet GEO EOC
A2: Click here to return to the school and sheet selection interface | O2: =A3 -> 9999
A3: ='Select School'!B3 -> 9999
A4: =TEXT(A3,"0000")&"-"&VLOOKUP(A3,SchList!$A$2:$B$500,2,FALSE) -> 9999-District | Q4: 2016-17 Geometry MYA
Q5: Group | R5: All | S5: MC | T5: Multi Selection | U5: =J19 -> Congruence; Similarity; Right Triangles; and Trigonometry | V5: =L19 -> Circles; Geometric Measurement; and Geometric Properties with Equations
Q6: District | R6: =IFERROR(IF(VLOOKUP(9999,'1617GEOAVG'!$B$3:$AW$300,3,FALSE)<10,"NA",VLOOKUP(9999,'1617GEOAVG'!$B$3:$AW$300,5,FALSE)),#N/A) -> 37.82318295 | S6: =IFERROR(IF(VLOOKUP(9999,'1617GEOAVG'!$B$3:$AW$300,3,FALSE)<10,"NA",VLOOKUP(9999,'1617GEOAVG'!$B$3:$AW$300,8,FALSE)*100),#N/A) -> 40.26092602 | T6: =IFERROR(IF(VLOOKUP(9999,'1617GEOAVG'!$B$3:$AW$300,3,FALSE)<10,"NA",VLOOKUP(9999,'1617GEOAVG'!$B$3:$AW$300,11,FALSE)*100),#N/A) -> 17.30876922 | U6: =IFERROR(IF(VLOOKUP(9999,'1617GEOAVG'!$B$3:$AW$300,3,FALSE)<10,"NA",VLOOKUP(9999,'1617GEOAVG'!$B$3:$AW$300,21,FALSE)*100),#N/A) -> 38.90989575 | V6: =IFERROR(IF(VLOOKUP(9999,'1617GEOAVG'!$B$3:$AW$300,3,FALSE)<10,"NA",VLOOKUP(9999,'1617GEOAVG'!$B$3:$AW$300,26,FALSE)*100),#N/A) -> 30.42251349
Q7: School | R7: =IFERROR(D21,#N/A) -> 37.82318295 | S7: =IFERROR(F21*100,#N/A) -> 40.26092602 | T7: =IFERROR(H21*100,#N/A) -> 17.30876922 | U7: =IFERROR(J21*100,#N/A) -> 38.90989575 | V7: =IFERROR(L21*100,#N/A) -> 30.42251349
A19: Group | B19: Enrollment | C19: % Tested | D19: Average % Correct* | J19: Congruence; Similarity; Right Triangles; and Trigonometry | L19: Circles; Geometric Measurement; and Geometric Properties with Equations | O19: Number Tested
D20: ALL | E20: Pts. Max | F20: MC | G20: Pts. Max | H20: Multi Selection | I20: Pts. Max | J20: Avg.% Correct | K20: Pts. Max | L20: Avg.% Correct | M20: Pts. Max
A21: All Geometry MYA Tested | B21: =IFERROR(VLOOKUP(TEXT($A$3,"0000"),'Mem12-07-2016'!$AE$3:$AM$500,9,FALSE),"NA") -> 27149 | C21: =IF(OR(O21="NT",O21<10),#N/A,IF(O21>B21,1,O21/B21)) -> 0.9076945744 | D21: =IFERROR(IF($O21<10,"NA",VLOOKUP($A$3,'1617GEOAVG'!$B$3:$AW$300,5,FALSE)),#N/A) -> 37.82318295 | E21: =SUM(G21,I21) -> 47 | F21: =IFERROR(IF($O21<10,"NA",VLOOKUP($A$3,'1617GEOAVG'!$B$3:$AW$300,8,FALSE)),#N/A) -> 0.4026092602 | G21: =IFERROR(IF($O21<10,"NA",VLOOKUP($A$3,'1617GEOAVG'!$B$3:$AW$300,7,FALSE)),#N/A) -> 42 | H21: =IFERROR(IF($O21<10,"NA",VLOOKUP($A$3,'1617GEOAVG'!$B$3:$AW$300,11,FALSE)),#N/A) -> 0.1730876922 | I21: =IFERROR(IF($O21<10,"NA",VLOOKUP($A$3,'1617GEOAVG'!$B$3:$AW$300,10,FALSE)),#N/A) -> 5 | J21: =IFERROR(IF($O21<10,"NA",VLOOKUP($A$3,'1617GEOAVG'!$B$3:$AW$300,21,FALSE)),#N/A) -> 0.3890989575 | K21: =IFERROR(IF($O21<10,"NA",VLOOKUP($A$3,'1617GEOAVG'!$B$3:$AW$300,20,FALSE)),#N/A) -> 41 | L21: =IFERROR(IF($O21<10,"NA",VLOOKUP($A$3,'1617GEOAVG'!$B$3:$AW$300,26,FALSE)),#N/A) -> 0.3042251349 | M21: =IFERROR(IF($O21<10,"NA",VLOOKUP($A$3,'1617GEOAVG'!$B$3:$AW$300,25,FALSE)),#N/A) -> 6 | O21: =IFERROR(VLOOKUP($A$3,'1617GEOAVG'!$B$3:$AW$300,3,FALSE),"NT") -> 24643
A22: 2016 Math EOC FSA Level 1 | B22: =IFERROR(VLOOKUP(TEXT($A$3,"0000"),'Mem12-07-2016'!$AE$3:$AM$500,3,FALSE),"NA") -> 8360 | C22: 0.8827751196 | D22: =IFERROR(IF($O22<10,"NA",VLOOKUP($A$3,'1617GEOAVGL1'!$B$3:$AW$300,5,FALSE)),#N/A) -> 28.43695472 | E22: =SUM(G22,I22) -> 47 | F22: =IFERROR(IF($O22<10,"NA",VLOOKUP($A$3,'1617GEOAVGL1'!$B$3:$AW$300,8,FALSE)),#N/A) -> 0.3083397858 | G22: =G$21 -> 42 | H22: =IFERROR(IF($O22<10,"NA",VLOOKUP($A$3,'1617GEOAVGL1'!$B$3:$AW$300,11,FALSE)),#N/A) -> 0.08273712737 | I22: =I$21 -> 5 | J22: =IFERROR(IF($O22<10,"NA",VLOOKUP($A$3,'1617GEOAVGL1'!$B$3:$AW$300,21,FALSE)),#N/A) -> 0.2905370811 | K22: =K$21 -> 41 | L22: =IFERROR(IF($O22<10,"NA",VLOOKUP($A$3,'1617GEOAVGL1'!$B$3:$AW$300,26,FALSE)),#N/A) -> 0.243695122 | M22: =M$21 -> 6 | O22: =IFERROR(VLOOKUP($A$3,'1617GEOAVGL1'!$B$3:$AW$300,3,FALSE),"NT") -> 7380
A23: 2016 Math EOC FSA Level 2 | B23: =IFERROR(VLOOKUP(TEXT($A$3,"0000"),'Mem12-07-2016'!$AE$3:$AM$500,4,FALSE),"NA") -> 3160 | C23: 0.9148734177 | D23: =IFERROR(IF($O23<10,"NA",VLOOKUP($A$3,'1617GEOAVGL2'!$B$3:$AW$300,5,FALSE)),#N/A) -> 32.50476435 | E23: 47 | F23: =IFERROR(IF($O23<10,"NA",VLOOKUP($A$3,'1617GEOAVGL2'!$B$3:$AW$300,8,FALSE)),#N/A) -> 0.3477541138 | G23: =G$21 -> 42 | H23: =IFERROR(IF($O23<10,"NA",VLOOKUP($A$3,'1617GEOAVGL2'!$B$3:$AW$300,11,FALSE)),#N/A) -> 0.1341404358 | I23: =I$21 -> 5 | J23: =IFERROR(IF($O23<10,"NA",VLOOKUP($A$3,'1617GEOAVGL2'!$B$3:$AW$300,21,FALSE)),#N/A) -> 0.3351581443 | K23: =K$21 -> 41 | L23: =IFERROR(IF($O23<10,"NA",VLOOKUP($A$3,'1617GEOAVGL2'!$B$3:$AW$300,26,FALSE)),#N/A) -> 0.2566343826 | M23: =M$21 -> 6 | O23: =IFERROR(VLOOKUP($A$3,'1617GEOAVGL2'!$B$3:$AW$300,3,FALSE),"NT") -> 2891
A24: 2016 Math EOC FSA Level 3 | B24: =IFERROR(VLOOKUP(TEXT($A$3,"0000"),'Mem12-07-2016'!$AE$3:$AM$500,5,FALSE),"NA") -> 6939 | C24: 0.943651823 | D24: =IFERROR(IF($O24<10,"NA",VLOOKUP($A$3,'1617GEOAVGL3'!$B$3:$AW$300,5,FALSE)),#N/A) -> 38.30906451 | E24: 47 | F24: =IFERROR(IF($O24<10,"NA",VLOOKUP($A$3,'1617GEOAVGL3'!$B$3:$AW$300,8,FALSE)),#N/A) -> 0.405772755 | G24: =G$21 -> 42 | H24: =IFERROR(IF($O24<10,"NA",VLOOKUP($A$3,'1617GEOAVGL3'!$B$3:$AW$300,11,FALSE)),#N/A) -> 0.1923029933 | I24: =I$21 -> 5 | J24: =IFERROR(IF($O24<10,"NA",VLOOKUP($A$3,'1617GEOAVGL3'!$B$3:$AW$300,21,FALSE)),#N/A) -> 0.39776573 | K24: =K$21 -> 41 | L24: =IFERROR(IF($O24<10,"NA",VLOOKUP($A$3,'1617GEOAVGL3'!$B$3:$AW$300,26,FALSE)),#N/A) -> 0.2824236408 | M24: =M$21 -> 6 | O24: =IFERROR(VLOOKUP($A$3,'1617GEOAVGL3'!$B$3:$AW$300,3,FALSE),"NT") -> 6548
A25: 2016 Math EOC FSA Level 4 | B25: =IFERROR(VLOOKUP(TEXT($A$3,"0000"),'Mem12-07-2016'!$AE$3:$AM$500,6,FALSE),"NA") -> 3084 | C25: 0.9416342412 | D25: =IFERROR(IF($O25<10,"NA",VLOOKUP($A$3,'1617GEOAVGL4'!$B$3:$AW$300,5,FALSE)),#N/A) -> 48.00423774 | E25: 47 | F25: =IFERROR(IF($O25<10,"NA",VLOOKUP($A$3,'1617GEOAVGL4'!$B$3:$AW$300,8,FALSE)),#N/A) -> 0.5054194543 | G25: =G$21 -> 42 | H25: =IFERROR(IF($O25<10,"NA",VLOOKUP($A$3,'1617GEOAVGL4'!$B$3:$AW$300,11,FALSE)),#N/A) -> 0.266322314 | I25: =I$21 -> 5 | J25: =IFERROR(IF($O25<10,"NA",VLOOKUP($A$3,'1617GEOAVGL4'!$B$3:$AW$300,21,FALSE)),#N/A) -> 0.4968836088 | K25: =K$21 -> 41 | L25: =IFERROR(IF($O25<10,"NA",VLOOKUP($A$3,'1617GEOAVGL4'!$B$3:$AW$300,26,FALSE)),#N/A) -> 0.3643285124 | M25: =M$21 -> 6 | O25: =IFERROR(VLOOKUP($A$3,'1617GEOAVGL4'!$B$3:$AW$300,3,FALSE),"NT") -> 2904
A26: 2016 Math EOC FSA Level 5 | B26: =IFERROR(VLOOKUP(TEXT($A$3,"0000"),'Mem12-07-2016'!$AE$3:$AM$500,7,FALSE),"NA") -> 2593 | C26: 0.9255688392 | D26: =IFERROR(IF($O26<10,"NA",VLOOKUP($A$3,'1617GEOAVGL5'!$B$3:$AW$300,5,FALSE)),#N/A) -> 61.46196408 | E26: 47 | F26: =IFERROR(IF($O26<10,"NA",VLOOKUP($A$3,'1617GEOAVGL5'!$B$3:$AW$300,8,FALSE)),#N/A) -> 0.6451587302 | G26: =G$21 -> 42 | H26: =IFERROR(IF($O26<10,"NA",VLOOKUP($A$3,'1617GEOAVGL5'!$B$3:$AW$300,11,FALSE)),#N/A) -> 0.3575833333 | I26: =I$21 -> 5 | J26: =IFERROR(IF($O26<10,"NA",VLOOKUP($A$3,'1617GEOAVGL5'!$B$3:$AW$300,21,FALSE)),#N/A) -> 0.624816565 | K26: =K$21 -> 41 | L26: =IFERROR(IF($O26<10,"NA",VLOOKUP($A$3,'1617GEOAVGL5'!$B$3:$AW$300,26,FALSE)),#N/A) -> 0.544 | M26: =M$21 -> 6 | O26: =IFERROR(VLOOKUP($A$3,'1617GEOAVGL5'!$B$3:$AW$300,3,FALSE),"NT") -> 2400

Sheet ALG2 EOC
A2: Click here to return to the school and sheet selection interface | O2: =A3 -> 9999
A3: ='Select School'!B3 -> 9999
A4: =TEXT(A3,"0000")&"-"&VLOOKUP(A3,SchList!$A$2:$B$500,2,FALSE) -> 9999-District | Q4: 2016-17 Geometry MYA
Q5: Group | R5: All | S5: MC | T5: Multi Selection | U5: =J19 -> Functions and Modeling | V5: =L19 -> Statistics, Probability, and the Number System
Q6: District | R6: =IFERROR(IF(VLOOKUP(9999,'1617ALG2AVG'!$B$3:$AW$300,3,FALSE)<10,"NA",VLOOKUP(9999,'1617ALG2AVG'!$B$3:$AW$300,5,FALSE)),#N/A) -> 37.61088572 | S6: =IFERROR(IF(VLOOKUP(9999,'1617ALG2AVG'!$B$3:$AW$300,3,FALSE)<10,"NA",VLOOKUP(9999,'1617ALG2AVG'!$B$3:$AW$300,8,FALSE)*100),#N/A) -> 38.25911424 | T6: =IFERROR(IF(VLOOKUP(9999,'1617ALG2AVG'!$B$3:$AW$300,3,FALSE)<10,"NA",VLOOKUP(9999,'1617ALG2AVG'!$B$3:$AW$300,11,FALSE)*100),#N/A) -> 27.25283771 | U6: =IFERROR(IF(VLOOKUP(9999,'1617ALG2AVG'!$B$3:$AW$300,3,FALSE)<10,"NA",VLOOKUP(9999,'1617ALG2AVG'!$B$3:$AW$300,26,FALSE)*100),#N/A) -> 40.57620529 | V6: =IFERROR(IF(VLOOKUP(9999,'1617ALG2AVG'!$B$3:$AW$300,3,FALSE)<10,"NA",VLOOKUP(9999,'1617ALG2AVG'!$B$3:$AW$300,31,FALSE)*100),#N/A) -> 36.07616324
Q7: School | R7: =IFERROR(D21,#N/A) -> 37.61088572 | S7: =IFERROR(F21*100,#N/A) -> 38.25911424 | T7: =IFERROR(H21*100,#N/A) -> 27.25283771 | U7: =IFERROR(J21*100,#N/A) -> 40.57620529 | V7: =IFERROR(L21*100,#N/A) -> 36.07616324
A19: Group | B19: Enrollment | C19: % Tested | D19: Average % Correct* | J19: Functions and Modeling | L19: Statistics, Probability, and the Number System | O19: Number Tested
D20: ALL | E20: Pts. Max | F20: MC | G20: Pts. Max | H20: Multi Selection | I20: Pts. Max | J20: Avg.% Correct | K20: Pts. Max | L20: Avg.% Correct | M20: Pts. Max
A21: All Algebra II MYA Tested | B21: =IFERROR(VLOOKUP(TEXT($A$3,"0000"),'Mem12-07-2016'!$AO$3:$AW$500,9,FALSE),"NA") -> 16542 | C21: =IF(OR(O21="NT",O21<10),#N/A,IF(O21>B21,1,O21/B21)) -> 0.9302381816 | D21: =IFERROR(IF($O21<10,"NA",VLOOKUP($A$3,'1617ALG2AVG'!$B$3:$AW$300,5,FALSE)),#N/A) -> 37.61088572 | E21: =SUM(G21,I21) -> 51 | F21: =IFERROR(IF($O21<10,"NA",VLOOKUP($A$3,'1617ALG2AVG'!$B$3:$AW$300,8,FALSE)),#N/A) -> 0.3825911424 | G21: =IFERROR(IF($O21<10,"NA",VLOOKUP($A$3,'1617ALG2AVG'!$B$3:$AW$300,7,FALSE)),#N/A) -> 48 | H21: =IFERROR(IF($O21<10,"NA",VLOOKUP($A$3,'1617ALG2AVG'!$B$3:$AW$300,11,FALSE)),#N/A) -> 0.2725283771 | I21: =IFERROR(IF($O21<10,"NA",VLOOKUP($A$3,'1617ALG2AVG'!$B$3:$AW$300,10,FALSE)),#N/A) -> 3 | J21: =IFERROR(IF($O21<10,"NA",VLOOKUP($A$3,'1617ALG2AVG'!$B$3:$AW$300,26,FALSE)),#N/A) -> 0.4057620529 | K21: =IFERROR(IF($O21<10,"NA",VLOOKUP($A$3,'1617ALG2AVG'!$B$3:$AW$300,25,FALSE)),#N/A) -> 17 | L21: =IFERROR(IF($O21<10,"NA",VLOOKUP($A$3,'1617ALG2AVG'!$B$3:$AW$300,31,FALSE)),#N/A) -> 0.3607616324 | M21: =IFERROR(IF($O21<10,"NA",VLOOKUP($A$3,'1617ALG2AVG'!$B$3:$AW$300,30,FALSE)),#N/A) -> 34 | O21: =IFERROR(VLOOKUP($A$3,'1617ALG2AVG'!$B$3:$AW$300,3,FALSE),"NT") -> 15388
A22: 2016 Math EOC FSA Level 1 | B22: =IFERROR(VLOOKUP(TEXT($A$3,"0000"),'Mem12-07-2016'!$AO$3:$AW$500,3,FALSE),"NA") -> 2240 | C22: 0.8558035714 | D22: =IFERROR(IF($O22<10,"NA",VLOOKUP($A$3,'1617ALG2AVGL1'!$B$3:$AW$300,5,FALSE)),#N/A) -> 26.77999947 | E22: =SUM(G22,I22) -> 51 | F22: =IFERROR(IF($O22<10,"NA",VLOOKUP($A$3,'1617ALG2AVGL1'!$B$3:$AW$300,8,FALSE)),#N/A) -> 0.2775386889 | G22: =G$21 -> 48 | H22: =IFERROR(IF($O22<10,"NA",VLOOKUP($A$3,'1617ALG2AVGL1'!$B$3:$AW$300,11,FALSE)),#N/A) -> 0.1119805251 | I22: =I$21 -> 3 | J22: =IFERROR(IF($O22<10,"NA",VLOOKUP($A$3,'1617ALG2AVGL1'!$B$3:$AW$300,26,FALSE)),#N/A) -> 0.2784194053 | K22: =K$21 -> 17 | L22: =IFERROR(IF($O22<10,"NA",VLOOKUP($A$3,'1617ALG2AVGL1'!$B$3:$AW$300,31,FALSE)),#N/A) -> 0.2627490871 | M22: =M$21 -> 34 | O22: =IFERROR(VLOOKUP($A$3,'1617ALG2AVGL1'!$B$3:$AW$300,3,FALSE),"NT") -> 1917
A23: 2016 Math EOC FSA Level 2 | B23: =IFERROR(VLOOKUP(TEXT($A$3,"0000"),'Mem12-07-2016'!$AO$3:$AW$500,4,FALSE),"NA") -> 2515 | C23: 0.9137176938 | D23: =IFERROR(IF($O23<10,"NA",VLOOKUP($A$3,'1617ALG2AVGL2'!$B$3:$AW$300,5,FALSE)),#N/A) -> 29.48254707 | E23: 51 | F23: =IFERROR(IF($O23<10,"NA",VLOOKUP($A$3,'1617ALG2AVGL2'!$B$3:$AW$300,8,FALSE)),#N/A) -> 0.3031893676 | G23: =G$21 -> 48 | H23: =IFERROR(IF($O23<10,"NA",VLOOKUP($A$3,'1617ALG2AVGL2'!$B$3:$AW$300,11,FALSE)),#N/A) -> 0.1610095735 | I23: =I$21 -> 3 | J23: =IFERROR(IF($O23<10,"NA",VLOOKUP($A$3,'1617ALG2AVGL2'!$B$3:$AW$300,26,FALSE)),#N/A) -> 0.3223498695 | K23: =K$21 -> 17 | L23: =IFERROR(IF($O23<10,"NA",VLOOKUP($A$3,'1617ALG2AVGL2'!$B$3:$AW$300,31,FALSE)),#N/A) -> 0.2807832898 | M23: =M$21 -> 34 | O23: =IFERROR(VLOOKUP($A$3,'1617ALG2AVGL2'!$B$3:$AW$300,3,FALSE),"NT") -> 2298
A24: 2016 Math EOC FSA Level 3 | B24: =IFERROR(VLOOKUP(TEXT($A$3,"0000"),'Mem12-07-2016'!$AO$3:$AW$500,5,FALSE),"NA") -> 5774 | C24: 0.9412885348 | D24: =IFERROR(IF($O24<10,"NA",VLOOKUP($A$3,'1617ALG2AVGL3'!$B$3:$AW$300,5,FALSE)),#N/A) -> 35.51878351 | E24: 51 | F24: =IFERROR(IF($O24<10,"NA",VLOOKUP($A$3,'1617ALG2AVGL3'!$B$3:$AW$300,8,FALSE)),#N/A) -> 0.3622623428 | G24: =G$21 -> 48 | H24: =IFERROR(IF($O24<10,"NA",VLOOKUP($A$3,'1617ALG2AVGL3'!$B$3:$AW$300,11,FALSE)),#N/A) -> 0.2420116529 | I24: =I$21 -> 3 | J24: =IFERROR(IF($O24<10,"NA",VLOOKUP($A$3,'1617ALG2AVGL3'!$B$3:$AW$300,26,FALSE)),#N/A) -> 0.3901471941 | K24: =K$21 -> 17 | L24: =IFERROR(IF($O24<10,"NA",VLOOKUP($A$3,'1617ALG2AVGL3'!$B$3:$AW$300,31,FALSE)),#N/A) -> 0.3365354186 | M24: =M$21 -> 34 | O24: =IFERROR(VLOOKUP($A$3,'1617ALG2AVGL3'!$B$3:$AW$300,3,FALSE),"NT") -> 5435
A25: 2016 Math EOC FSA Level 4 | B25: =IFERROR(VLOOKUP(TEXT($A$3,"0000"),'Mem12-07-2016'!$AO$3:$AW$500,6,FALSE),"NA") -> 2455 | C25: 0.9584521385 | D25: =IFERROR(IF($O25<10,"NA",VLOOKUP($A$3,'1617ALG2AVGL4'!$B$3:$AW$300,5,FALSE)),#N/A) -> 44.52555414 | E25: 51 | F25: =IFERROR(IF($O25<10,"NA",VLOOKUP($A$3,'1617ALG2AVGL4'!$B$3:$AW$300,8,FALSE)),#N/A) -> 0.4500814563 | G25: =G$21 -> 48 | H25: =IFERROR(IF($O25<10,"NA",VLOOKUP($A$3,'1617ALG2AVGL4'!$B$3:$AW$300,11,FALSE)),#N/A) -> 0.368040799 | I25: =I$21 -> 3 | J25: =IFERROR(IF($O25<10,"NA",VLOOKUP($A$3,'1617ALG2AVGL4'!$B$3:$AW$300,26,FALSE)),#N/A) -> 0.4809732257 | K25: =K$21 -> 17 | L25: =IFERROR(IF($O25<10,"NA",VLOOKUP($A$3,'1617ALG2AVGL4'!$B$3:$AW$300,31,FALSE)),#N/A) -> 0.426561836 | M25: =M$21 -> 34 | O25: =IFERROR(VLOOKUP($A$3,'1617ALG2AVGL4'!$B$3:$AW$300,3,FALSE),"NT") -> 2353
A26: 2016 Math EOC FSA Level 5 | B26: =IFERROR(VLOOKUP(TEXT($A$3,"0000"),'Mem12-07-2016'!$AO$3:$AW$500,7,FALSE),"NA") -> 2263 | C26: 0.9606716748 | D26: =IFERROR(IF($O26<10,"NA",VLOOKUP($A$3,'1617ALG2AVGL5'!$B$3:$AW$300,5,FALSE)),#N/A) -> 56.28279535 | E26: 51 | F26: =IFERROR(IF($O26<10,"NA",VLOOKUP($A$3,'1617ALG2AVGL5'!$B$3:$AW$300,8,FALSE)),#N/A) -> 0.5635445416 | G26: =G$21 -> 48 | H26: =IFERROR(IF($O26<10,"NA",VLOOKUP($A$3,'1617ALG2AVGL5'!$B$3:$AW$300,11,FALSE)),#N/A) -> 0.5513646121 | I26: =I$21 -> 3 | J26: =IFERROR(IF($O26<10,"NA",VLOOKUP($A$3,'1617ALG2AVGL5'!$B$3:$AW$300,26,FALSE)),#N/A) -> 0.5959061638 | K26: =K$21 -> 17 | L26: =IFERROR(IF($O26<10,"NA",VLOOKUP($A$3,'1617ALG2AVGL5'!$B$3:$AW$300,31,FALSE)),#N/A) -> 0.546550138 | M26: =M$21 -> 34 | O26: =IFERROR(VLOOKUP($A$3,'1617ALG2AVGL5'!$B$3:$AW$300,3,FALSE),"NT") -> 2174

Sheet Mem12-07-2016 (hidden)
A1: =COLUMN() -> 1 | B1: =COLUMN() -> 2 | C1: =COLUMN() -> 3 | D1: =COLUMN() -> 4 | E1: =COLUMN() -> 5 | F1: =COLUMN() -> 6 | G1: =COLUMN() -> 7 | H1: =COLUMN() -> 8 | I1: =COLUMN() -> 9 | J1: =COLUMN() -> 10 | K1: =COLUMN()-10 -> 1 | L1: =COLUMN()-10 -> 2 | M1: 3 | N1: 4 | O1: 5 | P1: 6 | Q1: 7 | R1: 8 | S1: 9 | U1: 1 | V1: 2 | W1: 3 | X1: 4 | Y1: 5 | Z1: 6 | AA1: 7 | AB1: 8 | AC1: 9 | AE1: 1 | AF1: 2 | AG1: 3 | AH1: 4 | AI1: 5 | AJ1: 6 | AK1: 7 | AL1: 8 | AM1: 9 | AO1: 1 | AP1: 2 | AQ1: 3 | AR1: 4 | AS1: 5 | AT1: 6 | AU1: 7 | AV1: 8 | AW1: 9
A2: STUDENT_GRADE | B2: Grade 9 enrollment Minus paper tested with 2016 FSA ELA Level | C2: 2015-16 FSA ELA | K2: STUDENT_GRADE | L2: Grade 10 enrollment minus Retake and paper tested with 2016 FSA ELA Level | U2: Algebra I Enrollment | AE2: Geometry Enrollment | AO2: Algebra II Enrollment
A4: Count of STUDENT_ID | C4: FSA_ELA_ACHEIVEMENT_LEVEL | K4: Count of STUDENT_ID | M4: FSA_ELA_ACHEIVEMENT_LEVEL | U4: Count of STUDENT_ID | W4: FSA_MATH_ACHEIVEMENT_LEVEL | AE4: Count of STUDENT_ID | AG4: FSA_MATH_ACHEIVEMENT_LEVEL | AO4: Count of STUDENT_ID | AQ4: FSA_MATH_ACHEIVEMENT_LEVEL
A5: SCHOOL_NUMBER | B5: S_SCHL_NAME | C5: 1 | D5: 2 | E5: 3 | F5: 4 | G5: 5 | H5: (blank) | I5: Grand Total | K5: SCHOOL_NUMBER | L5: S_SCHL_NAME | M5: 1 | N5: 2 | O5: 3 | P5: 4 | Q5: 5 | R5: (blank) | S5: Grand Total | U5: CLASS_SCHOOL | V5: S_SCHL_NAME | W5: 1 | X5: 2 | Y5: 3 | Z5: 4 | AA5: 5 | AB5: (blank) | AC5: Grand Total | AE5: CLASS_SCHOOL | AF5: S_SCHL_NAME | AG5: 1 | AH5: 2 | AI5: 3 | AJ5: 4 | AK5: 5 | AL5: (blank) | AM5: Grand Total | AO5: CLASS_SCHOOL | AP5: S_SCHL_NAME | AQ5: 1 | AR5: 2 | AS5: 3 | AT5: 4 | AU5: 5 | AV5: (blank) | AW5: Grand Total
A6: 1070 | B6: SOUTH FLORIDA AUTISM CHARTER | H6: 1 | I6: 1 | K6: 5007 | L6: LINCOLN-MARTI CHARTER HIALEAH | M6: 7 | N6: 3 | P6: 1 | R6: 6 | S6: 17 | U6: 0041 | V6: AIR BASE K-8 CTR INT'L EDUC | Y6: 4 | Z6: 32 | AA6: 29 | AB6: 1 | AC6: 66 | AE6: 0041 | AF6: AIR BASE K-8 CTR INT'L EDUC | AI6: 4 | AJ6: 5 | AK6: 10 | AM6: 19 | AO6: 0041 | AP6: AIR BASE K-8 CTR INT'L EDUC | AU6: 1 | AW6: 1
A7: 5007 | B7: LINCOLN-MARTI CHARTER HIALEAH | C7: 5 | D7: 4 | E7: 2 | F7: 2 | G7: 1 | H7: 3 | I7: 17 | K7: 6016 | L7: SOMERSET VIRTUAL ACADEMY | N7: 1 | O7: 1 | P7: 2 | S7: 4 | U7: 0070 | V7: CORAL REEF MONTESSORI ACAD CH | Y7: 10 | Z7: 9 | AA7: 3 | AB7: 1 | AC7: 23 | AE7: 0070 | AF7: CORAL REEF MONTESSORI ACAD CH | AI7: 2 | AJ7: 2 | AL7: 3 | AM7: 7 | AO7: 0071 | AP7: EUGENIA B. THOMAS K-8 CENTER | AU7: 1 | AW7: 1
A8: 5047 | B8: MATER ACADEMY MIAMI BEACH | C8: 4 | D8: 6 | E8: 4 | G8: 2 | H8: 1 | I8: 17 | K8: 6040 | L8: DOCTORS CHARTER/MIAMI SHORES | M8: 5 | N8: 13 | O8: 21 | P8: 28 | Q8: 16 | R8: 2 | S8: 85 | U8: 0071 | V8: EUGENIA B. THOMAS K-8 CENTER | Y8: 14 | Z8: 33 | AA8: 21 | AB8: 2 | AC8: 70 | AE8: 0071 | AF8: EUGENIA B. THOMAS K-8 CENTER | AI8: 6 | AJ8: 6 | AK8: 5 | AM8: 17 | AO8: 3029 | AP8: DORAL ACADEMY OF TECHNOLOGY | AU8: 6 | AW8: 6
A9: 6016 | B9: SOMERSET VIRTUAL ACADEMY | E9: 1 | F9: 1 | I9: 2 | K9: 6052 | L9: MIAMI ARTS STUDIO 6-12 @ZELDA | M9: 5 | N9: 12 | O9: 24 | P9: 46 | Q9: 29 | R9: 1 | S9: 117 | U9: 0073 | V9: MANDARIN LAKES K-8 CENTER | Y9: 27 | Z9: 4 | AA9: 1 | AC9: 32 | AE9: 0091 | AF9: BOB GRAHAM EDUCATION CTR | AI9: 2 | AJ9: 3 | AK9: 7 | AM9: 12 | AO9: 5005 | AP9: DAVID LAWRENCE JR K-8 CENTER | AU9: 1 | AW9: 1
A10: 6017 | B10: INTERNATIONAL STUDIES VIRTUAL | F10: 1 | I10: 1 | K10: 6081 | L10: CUTLER BAY SENIOR HIGH | M10: 8 | N10: 16 | O10: 37 | P10: 39 | Q10: 9 | R10: 2 | S10: 111 | U10: 0091 | V10: BOB GRAHAM EDUCATION CTR | Y10: 9 | Z10: 34 | AA10: 46 | AB10: 1 | AC10: 90 | AE10: 0092 | AF10: NORMAN S. EDELCUP/SUNNY ISLES | AK10: 16 | AM10: 16 | AO10: 5007 | AP10: LINCOLN-MARTI CHARTER HIALEAH | AR10: 1 | AS10: 1 | AW10: 2
A11: 6040 | B11: DOCTORS CHARTER/MIAMI SHORES | C11: 3 | D11: 22 | E11: 22 | F11: 22 | G11: 7 | H11: 7 | I11: 83 | K11: 6997 | L11: MATER VIRTUAL ACADEMY MID/HIGH | M11: 5 | N11: 1 | O11: 2 | P11: 4 | Q11: 1 | R11: 1 | S11: 14 | U11: 0092 | V11: NORMAN S. EDELCUP/SUNNY ISLES | Y11: 3 | Z11: 55 | AA11: 87 | AB11: 2 | AC11: 147 | AE11: 0122 | AF11: DR ROLANDO ESPINOSA K-8 | AJ11: 1 | AK11: 17 | AL11: 1 | AM11: 19 | AO11: 6016 | AP11: SOMERSET VIRTUAL ACADEMY | AQ11: 1 | AR11: 2 | AW11: 3
A12: 6052 | B12: MIAMI ARTS STUDIO 6-12 @ZELDA | C12: 12 | D12: 13 | E12: 49 | F12: 53 | G12: 32 | H12: 12 | I12: 171 | K12: 7001 | L12: MIAMI-DADE ONLINE ACADEMY 7001 | N12: 3 | O12: 9 | P12: 11 | Q12: 5 | R12: 4 | S12: 32 | U12: 0122 | V12: DR ROLANDO ESPINOSA K-8 | X12: 1 | Y12: 11 | Z12: 43 | AA12: 29 | AB12: 6 | AC12: 90 | AE12: 0231 | AF12: AVENTURA WATERWAYS K-8 CENTER | AI12: 5 | AJ12: 9 | AK12: 19 | AL12: 1 | AM12: 34 | AO12: 6030 | AP12: DORAL ACADEMY CHARTER MIDDLE | AU12: 3 | AW12: 3
A13: 6081 | B13: CUTLER BAY SENIOR HIGH | C13: 2 | D13: 11 | E13: 36 | F13: 17 | G13: 32 | H13: 7 | I13: 105 | K13: 7005 | L13: ITECH @ THOMAS EDISON EDUC CTR | M13: 22 | N13: 13 | O13: 13 | P13: 9 | Q13: 3 | R13: 1 | S13: 61 | U13: 0231 | V13: AVENTURA WATERWAYS K-8 CENTER | X13: 4 | Y13: 26 | Z13: 43 | AA13: 38 | AB13: 5 | AC13: 116 | AE13: 0241 | AF13: RUTH K BROAD/BAY HARBOR K-8 | AI13: 1 | AJ13: 8 | AK13: 30 | AM13: 39 | AO13: 6040 | AP13: DOCTORS CHARTER/MIAMI SHORES | AQ13: 4 | AR13: 2 | AS13: 21 | AT13: 14 | AU13: 13 | AV13: 12 | AW13: 66
A14: 6997 | B14: MATER VIRTUAL ACADEMY MID/HIGH | C14: 2 | D14: 2 | E14: 3 | F14: 2 | G14: 3 | I14: 12 | K14: 7007 | L14: INTL. STUDIES CHARTER SENIOR | M14: 1 | N14: 21 | O14: 20 | P14: 38 | Q14: 23 | R14: 9 | S14: 112 | U14: 0241 | V14: RUTH K BROAD/BAY HARBOR K-8 | Y14: 3 | Z14: 18 | AA14: 52 | AB14: 1 | AC14: 74 | AE14: 0332 | AF14: SOMERSET ACADEMY(SILVER PALMS) | AH14: 1 | AI14: 21 | AJ14: 11 | AK14: 5 | AM14: 38 | AO14: 6052 | AP14: MIAMI ARTS STUDIO 6-12 @ZELDA | AQ14: 11 | AR14: 15 | AS14: 62 | AT14: 22 | AU14: 12 | AV14: 5 | AW14: 127
A15: 7001 | B15: MIAMI-DADE ONLINE ACADEMY 7001 | D15: 2 | E15: 7 | F15: 4 | G15: 6 | H15: 3 | I15: 22 | K15: 7008 | L15: BIOTECH @ RICHMOND HEIGHTS | M15: 5 | N15: 16 | O15: 44 | P15: 38 | Q15: 10 | R15: 1 | S15: 114 | U15: 0332 | V15: SOMERSET ACADEMY(SILVER PALMS) | Y15: 16 | Z15: 49 | AA15: 9 | AB15: 1 | AC15: 75 | AE15: 0761 | AF15: FIENBERG/FISHER K-8 CENTER | AI15: 1 | AJ15: 1 | AK15: 3 | AM15: 5 | AO15: 6081 | AP15: CUTLER BAY SENIOR HIGH | AQ15: 17 | AR15: 30 | AS15: 54 | AT15: 14 | AU15: 10 | AV15: 8 | AW15: 133
A16: 7005 | B16: ITECH @ THOMAS EDISON EDUC CTR | C16: 8 | D16: 17 | E16: 14 | F16: 7 | G16: 6 | H16: 3 | I16: 55 | K16: 7009 | L16: DORAL PERFORMING ARTS ACADEMY | M16: 1 | N16: 6 | O16: 19 | P16: 25 | Q16: 16 | R16: 1 | S16: 68 | U16: 0451 | V16: BOWMAN ASHE/DOOLIN K-8 ACAD | Y16: 18 | Z16: 16 | AA16: 13 | AB16: 2 | AC16: 49 | AE16: 0950 | AF16: AVENTURA CITY OF EXCELLENCE | AJ16: 2 | AK16: 12 | AM16: 14 | AO16: 6997 | AP16: MATER VIRTUAL ACADEMY MID/HIGH | AQ16: 3 | AR16: 3 | AS16: 5 | AT16: 2 | AU16: 2 | AW16: 15
A17: 7007 | B17: INTL. STUDIES CHARTER SENIOR | C17: 2 | D17: 9 | E17: 27 | F17: 24 | G17: 32 | H17: 13 | I17: 107 | K17: 7011 | L17: AMERICAN SENIOR | M17: 143 | N17: 118 | O17: 96 | P17: 71 | Q17: 3 | R17: 59 | S17: 490 | U17: 0651 | V17: CAMPBELL DRIVE K-8 CENTER | X17: 3 | Y17: 16 | Z17: 6 | AA17: 3 | AB17: 1 | AC17: 29 | AE17: 0961 | AF17: CORAL GABLES PREPARATORY ACAD | AI17: 2 | AJ17: 8 | AK17: 11 | AM17: 21 | AO17: 7001 | AP17: MIAMI-DADE ONLINE ACADEMY 7001 | AR17: 5 | AS17: 7 | AT17: 7 | AU17: 1 | AV17: 1 | AW17: 21
A18: 7008 | B18: BIOTECH @ RICHMOND HEIGHTS | C18: 13 | D18: 17 | E18: 34 | F18: 26 | G18: 14 | H18: 12 | I18: 116 | K18: 7014 | L18: MATER PERFORMING ARTS ACADEMY | M18: 6 | N18: 14 | O18: 23 | P18: 30 | Q18: 15 | R18: 1 | S18: 89 | U18: 0761 | V18: FIENBERG/FISHER K-8 CENTER | Y18: 13 | Z18: 6 | AA18: 6 | AB18: 1 | AC18: 26 | AE18: 1020 | AF18: YOUTH CO-OP CHARTER SCHOOL | AG18: 1 | AI18: 9 | AJ18: 3 | AK18: 2 | AM18: 15 | AO18: 7005 | AP18: ITECH @ THOMAS EDISON EDUC CTR | AQ18: 27 | AR18: 16 | AS18: 23 | AT18: 2 | AU18: 2 | AW18: 70
A19: 7009 | B19: DORAL PERFORMING ARTS ACADEMY | D19: 6 | E19: 13 | F19: 15 | G19: 10 | H19: 1 | I19: 45 | K19: 7015 | L19: STELLAR LEADERSHIP ACADEMY | M19: 36 | N19: 3 | O19: 3 | R19: 30 | S19: 72 | U19: 0950 | V19: AVENTURA CITY OF EXCELLENCE | Z19: 5 | AA19: 41 | AC19: 46 | AE19: 1331 | AF19: DEVON AIRE K-8 CENTER | AI19: 3 | AJ19: 6 | AK19: 7 | AM19: 16 | AO19: 7007 | AP19: INTL. STUDIES CHARTER SENIOR | AQ19: 4 | AR19: 2 | AS19: 32 | AT19: 25 | AU19: 27 | AV19: 9 | AW19: 99
A20: 7011 | B20: AMERICAN SENIOR | C20: 175 | D20: 125 | E20: 117 | F20: 50 | G20: 11 | H20: 67 | I20: 545 | K20: 7016 | L20: SPORTS LEADERSHIP OF MIAMI CHS | M20: 32 | N20: 42 | O20: 28 | P20: 18 | Q20: 5 | R20: 7 | S20: 132 | U20: 0961 | V20: CORAL GABLES PREPARATORY ACAD | X20: 4 | Y20: 12 | Z20: 24 | AA20: 14 | AC20: 54 | AE20: 1601 | AF20: EDISON PARK K-8 CENTER | AG20: 2 | AH20: 2 | AI20: 1 | AL20: 1 | AM20: 6 | AO20: 7008 | AP20: BIOTECH @ RICHMOND HEIGHTS | AQ20: 14 | AR20: 24 | AS20: 51 | AT20: 12 | AU20: 3 | AW20: 104
A21: 7014 | B21: MATER PERFORMING ARTS ACADEMY | D21: 8 | E21: 28 | F21: 26 | G21: 16 | H21: 2 | I21: 80 | K21: 7018 | L21: MATER ACADEMY LAKES HIGH SCH | M21: 27 | N21: 47 | O21: 101 | P21: 104 | Q21: 34 | R21: 6 | S21: 319 | U21: 1014 | V21: HIVE PREPARATORY SCHOOL | W21: 1 | X21: 1 | Y21: 5 | Z21: 6 | AA21: 5 | AC21: 18 | AE21: 1681 | AF21: LILLIE C. EVANS K-8 CENTER | AH21: 2 | AI21: 8 | AJ21: 3 | AM21: 13 | AO21: 7009 | AP21: DORAL PERFORMING ARTS ACADEMY | AR21: 8 | AS21: 30 | AT21: 27 | AU21: 35 | AV21: 1 | AW21: 101
A22: 7015 | B22: STELLAR LEADERSHIP ACADEMY | C22: 23 | D22: 2 | E22: 1 | F22: 1 | H22: 26 | I22: 53 | K22: 7020 | L22: DORAL ACADEMY HIGH SCHOOL | M22: 11 | N22: 60 | O22: 103 | P22: 131 | Q22: 67 | R22: 5 | S22: 377 | U22: 1020 | V22: YOUTH CO-OP CHARTER SCHOOL | W22: 1 | X22: 3 | Y22: 17 | Z22: 9 | AA22: 7 | AC22: 37 | AE22: 3029 | AF22: DORAL ACADEMY OF TECHNOLOGY | AI22: 4 | AJ22: 7 | AK22: 42 | AM22: 53 | AO22: 7011 | AP22: AMERICAN SENIOR | AQ22: 69 | AR22: 69 | AS22: 83 | AT22: 19 | AU22: 8 | AV22: 119 | AW22: 367
A23: 7016 | B23: SPORTS LEADERSHIP OF MIAMI CHS | C23: 33 | D23: 38 | E23: 54 | F23: 28 | G23: 9 | H23: 7 | I23: 169 | K23: 7021 | L23: CENTER FOR INTERNATIONAL EDUC | M23: 2 | N23: 17 | O23: 27 | P23: 22 | Q23: 18 | R23: 1 | S23: 87 | U23: 1121 | V23: CORAL WAY K-8 CENTER | X23: 2 | Y23: 7 | Z23: 13 | AA23: 20 | AC23: 42 | AE23: 3032 | AF23: PALM GLADES PREP ACADEMY | AI23: 4 | AM23: 4 | AO23: 7013 | AP23: METRO WEST DETENTION FACILITY | AQ23: 2 | AW23: 2
A24: 7018 | B24: MATER ACADEMY LAKES HIGH SCH | C24: 31 | D24: 67 | E24: 107 | F24: 86 | G24: 63 | H24: 10 | I24: 364 | K24: 7022 | L24: BRIDGEPREP ACAD ARTS & MINDS | M24: 27 | N24: 25 | O24: 22 | P24: 24 | Q24: 5 | R24: 7 | S24: 110 | U24: 1331 | V24: DEVON AIRE K-8 CENTER | X24: 4 | Y24: 9 | Z24: 30 | AA24: 22 | AC24: 65 | AE24: 3101 | AF24: FRANK C. MARTIN K-8 CENTER | AI24: 9 | AJ24: 10 | AK24: 4 | AM24: 23 | AO24: 7014 | AP24: MATER PERFORMING ARTS ACADEMY | AS24: 38 | AT24: 14 | AU24: 12 | AW24: 64
A25: 7020 | B25: DORAL ACADEMY HIGH SCHOOL | C25: 18 | D25: 36 | E25: 69 | F25: 48 | G25: 39 | H25: 6 | I25: 216 | K25: 7029 | L25: TERRA ENVIRONMENTAL RESEARCH | N25: 13 | O25: 78 | P25: 195 | Q25: 195 | R25: 2 | S25: 483 | U25: 1401 | V25: CHARLES R. DREW K-8 CENTER | X25: 3 | Y25: 12 | Z25: 5 | AA25: 2 | AB25: 1 | AC25: 23 | AE25: 3191 | AF25: ADA MERRITT K-8 CENTER | AI25: 11 | AJ25: 13 | AK25: 8 | AM25: 32 | AO25: 7015 | AP25: STELLAR LEADERSHIP ACADEMY | AQ25: 36 | AR25: 5 | AS25: 3 | AV25: 24 | AW25: 68
A26: 7021 | B26: CENTER FOR INTERNATIONAL EDUC | D26: 18 | E26: 25 | F26: 22 | G26: 18 | H26: 10 | I26: 93 | K26: 7031 | L26: MAST @ FIU BISCAYNE BAY CAMPUS | N26: 1 | O26: 11 | P26: 30 | Q26: 26 | R26: 8 | S26: 76 | U26: 1441 | V26: PAUL LAURENCE DUNBAR K-8 CTR | X26: 1 | Y26: 7 | Z26: 2 | AC26: 10 | AE26: 3581 | AF26: MYRTLE GROVE K-8 CENTER | AI26: 3 | AJ26: 1 | AM26: 4 | AO26: 7016 | AP26: SPORTS LEADERSHIP OF MIAMI CHS | AQ26: 5 | AR26: 5 | AS26: 6 | AT26: 1 | AU26: 1 | AV26: 3 | AW26: 21
A27: 7022 | B27: BRIDGEPREP ACAD ARTS & MINDS | C27: 20 | D27: 20 | E27: 5 | F27: 6 | G27: 7 | H27: 18 | I27: 76 | K27: 7032 | L27: PALM GLADES PREP HIGH SCHOOL | M27: 29 | N27: 30 | O27: 13 | P27: 9 | Q27: 4 | R27: 10 | S27: 95 | U27: 1601 | V27: EDISON PARK K-8 CENTER | Y27: 11 | Z27: 6 | AA27: 1 | AC27: 18 | AE27: 3610 | AF27: KEYS GATE CHARTER SCHOOL | AG27: 1 | AI27: 10 | AJ27: 8 | AK27: 10 | AL27: 1 | AM27: 30 | AO27: 7018 | AP27: MATER ACADEMY LAKES HIGH SCH | AQ27: 36 | AR27: 65 | AS27: 133 | AT27: 54 | AU27: 34 | AV27: 8 | AW27: 330
A28: 7024 | B28: MATER ACADEMY HIGH-INTL STUDIE | C28: 4 | E28: 7 | F28: 2 | G28: 2 | I28: 15 | K28: 7033 | L28: LAW ENFORCEMENT OFFICERS HS | M28: 6 | N28: 25 | O28: 37 | P28: 31 | Q28: 16 | R28: 3 | S28: 118 | U28: 1681 | V28: LILLIE C. EVANS K-8 CENTER | X28: 1 | Y28: 15 | Z28: 5 | AA28: 1 | AC28: 22 | AE28: 3621 | AF28: COCONUT PALM K-8 ACADEMY | AH28: 1 | AI28: 7 | AJ28: 8 | AK28: 4 | AM28: 20 | AO28: 7020 | AP28: DORAL ACADEMY HIGH SCHOOL | AQ28: 20 | AR28: 30 | AS28: 142 | AT28: 93 | AU28: 125 | AV28: 14 | AW28: 424
A29: 7029 | B29: TERRA ENVIRONMENTAL RESEARCH | C29: 2 | D29: 17 | E29: 94 | F29: 170 | G29: 179 | H29: 34 | I29: 496 | K29: 7034 | L29: SOMERSET ACAD HIGH SOUTH-HMSTD | M29: 24 | N29: 24 | O29: 13 | P29: 8 | Q29: 3 | R29: 6 | S29: 78 | U29: 1721 | V29: EVERGLADES K-8 CENTER | X29: 3 | Y29: 15 | Z29: 19 | AA29: 9 | AC29: 46 | AE29: 4031 | AF29: GATEWAY ENVIRONMENTAL K-8 | AG29: 1 | AH29: 3 | AI29: 1 | AJ29: 2 | AK29: 1 | AM29: 8 | AO29: 7021 | AP29: CENTER FOR INTERNATIONAL EDUC | AQ29: 2 | AR29: 12 | AS29: 34 | AT29: 16 | AU29: 15 | AV29: 3 | AW29: 82
A30: 7031 | B30: MAST @ FIU BISCAYNE BAY CAMPUS | D30: 2 | E30: 27 | F30: 31 | G30: 35 | H30: 10 | I30: 105 | K30: 7037 | L30: MATER ACADEMY EAST HIGH SCHOOL | M30: 11 | N30: 17 | O30: 19 | P30: 19 | Q30: 4 | S30: 70 | U30: 2003 | V30: BRIDGEPREP ACADEMY SOUTH | W30: 1 | X30: 2 | Y30: 7 | Z30: 8 | AA30: 5 | AC30: 23 | AE30: 5005 | AF30: DAVID LAWRENCE JR K-8 CENTER | AJ30: 1 | AK30: 15 | AM30: 16 | AO30: 7022 | AP30: BRIDGEPREP ACAD ARTS & MINDS | AQ30: 51 | AR30: 24 | AS30: 10 | AT30: 3 | AV30: 10 | AW30: 98
A31: 7032 | B31: PALM GLADES PREP HIGH SCHOOL | C31: 27 | D31: 33 | E31: 21 | F31: 11 | G31: 1 | H31: 17 | I31: 110 | K31: 7038 | L31: SOMERSET ACADEMY HIGH (SOUTH) | O31: 6 | P31: 5 | Q31: 5 | S31: 16 | U31: 2041 | V31: BENJAMIN FRANKLIN K-8 CENTER | X31: 7 | Y31: 5 | Z31: 2 | AC31: 14 | AE31: 5006 | AF31: EVERGLADES PREPARATORY ACADEMY | AI31: 1 | AM31: 1 | AO31: 7029 | AP31: TERRA ENVIRONMENTAL RESEARCH | AQ31: 1 | AR31: 21 | AS31: 147 | AT31: 158 | AU31: 192 | AV31: 5 | AW31: 524
A32: 7033 | B32: LAW ENFORCEMENT OFFICERS HS | C32: 7 | D32: 28 | E32: 36 | F32: 29 | G32: 21 | H32: 7 | I32: 128 | K32: 7042 | L32: SOMERSET ACADEMY CHARTER HIGH | M32: 4 | N32: 19 | O32: 30 | P32: 25 | Q32: 5 | R32: 1 | S32: 84 | U32: 2701 | V32: KENWOOD K-8 CENTER | X32: 3 | Y32: 23 | Z32: 33 | AA32: 13 | AC32: 72 | AE32: 5007 | AF32: LINCOLN-MARTI CHARTER HIALEAH | AG32: 7 | AH32: 1 | AI32: 1 | AL32: 6 | AM32: 15 | AO32: 7031 | AP32: MAST @ FIU BISCAYNE BAY CAMPUS | AQ32: 3 | AR32: 8 | AS32: 25 | AT32: 15 | AU32: 28 | AV32: 8 | AW32: 87
A33: 7034 | B33: SOMERSET ACAD HIGH SOUTH-HMSTD | C33: 12 | D33: 24 | E33: 24 | F33: 14 | H33: 11 | I33: 85 | K33: 7048 | L33: ALONZO & TRACY MOURNING SH | M33: 67 | N33: 94 | O33: 90 | P33: 77 | Q33: 37 | R33: 53 | S33: 418 | U33: 2741 | V33: KEY BISCAYNE K-8 CENTER | X33: 2 | Y33: 16 | Z33: 17 | AA33: 5 | AB33: 7 | AC33: 47 | AE33: 5047 | AF33: MATER ACADEMY MIAMI BEACH | AI33: 1 | AJ33: 4 | AK33: 1 | AM33: 6 | AO33: 7032 | AP33: PALM GLADES PREP HIGH SCHOOL | AQ33: 41 | AR33: 21 | AS33: 10 | AU33: 1 | AV33: 13 | AW33: 86
A34: 7037 | B34: MATER ACADEMY EAST HIGH SCHOOL | C34: 11 | D34: 12 | E34: 29 | F34: 12 | G34: 12 | H34: 2 | I34: 78 | K34: 7049 | L34: WESTLAND HIALEAH SENIOR HIGH | M34: 173 | N34: 103 | O34: 80 | P34: 92 | Q34: 32 | R34: 56 | S34: 536 | U34: 2881 | V34: LEEWOOD K-8 CENTER | X34: 3 | Y34: 6 | Z34: 22 | AA34: 20 | AC34: 51 | AE34: 5101 | AF34: JOHN I. SMITH K-8 CENTER | AI34: 1 | AJ34: 4 | AK34: 15 | AM34: 20 | AO34: 7033 | AP34: LAW ENFORCEMENT OFFICERS HS | AQ34: 10 | AR34: 11 | AS34: 26 | AT34: 15 | AU34: 5 | AV34: 2 | AW34: 69
A35: 7038 | B35: SOMERSET ACADEMY HIGH (SOUTH) | E35: 2 | F35: 8 | G35: 4 | I35: 14 | K35: 7050 | L35: KEYS GATE CHARTER HIGH SCHL | M35: 114 | N35: 64 | O35: 41 | P35: 22 | Q35: 3 | R35: 44 | S35: 288 | U35: 2901 | V35: LEISURE CITY K-8 CENTER | Y35: 2 | Z35: 8 | AA35: 8 | AC35: 18 | AE35: 5141 | AF35: HUBERT O. SIBLEY K-8 ACADEMY | AI35: 1 | AK35: 4 | AM35: 5 | AO35: 7034 | AP35: SOMERSET ACAD HIGH SOUTH-HMSTD | AQ35: 4 | AR35: 7 | AS35: 13 | AT35: 1 | AV35: 1 | AW35: 26
A36: 7042 | B36: SOMERSET ACADEMY CHARTER HIGH | C36: 5 | D36: 21 | E36: 35 | F36: 30 | G36: 10 | H36: 4 | I36: 105 | K36: 7051 | L36: G. HOLMES BRADDOCK SENIOR HIGH | M36: 180 | N36: 150 | O36: 163 | P36: 189 | Q36: 77 | R36: 64 | S36: 823 | U36: 2911 | V36: LINDA LENTIN K-8 CENTER | X36: 3 | Y36: 24 | Z36: 13 | AA36: 4 | AC36: 44 | AE36: 5961 | AF36: WINSTON PARK K-8 CENTER | AH36: 1 | AI36: 3 | AJ36: 11 | AK36: 8 | AM36: 23 | AO36: 7037 | AP36: MATER ACADEMY EAST HIGH SCHOOL | AQ36: 4 | AR36: 5 | AS36: 7 | AT36: 1 | AV36: 1 | AW36: 18
A37: 7048 | B37: ALONZO & TRACY MOURNING SH | C37: 53 | D37: 72 | E37: 106 | F37: 75 | G37: 46 | H37: 63 | I37: 415 | K37: 7053 | L37: PINECREST ACADEMY CHARTER HIGH | M37: 9 | N37: 26 | O37: 33 | P37: 46 | Q37: 20 | R37: 6 | S37: 140 | U37: 3029 | V37: DORAL ACADEMY OF TECHNOLOGY | X37: 1 | Y37: 2 | Z37: 8 | AA37: 23 | AB37: 1 | AC37: 35 | AE37: 6001 | AF37: HERBERT A. AMMONS MIDDLE | AH37: 2 | AI37: 18 | AJ37: 24 | AK37: 41 | AL37: 2 | AM37: 87 | AO37: 7038 | AP37: SOMERSET ACADEMY HIGH (SOUTH) | AR37: 1 | AS37: 3 | AT37: 6 | AU37: 3 | AW37: 13
A38: 7049 | B38: WESTLAND HIALEAH SENIOR HIGH | C38: 119 | D38: 78 | E38: 90 | F38: 53 | G38: 21 | H38: 48 | I38: 409 | K38: 7055 | L38: YOUNG WOMEN'S PREPARATORY ACAD | M38: 1 | N38: 1 | O38: 10 | P38: 19 | Q38: 6 | S38: 37 | U38: 3032 | V38: PALM GLADES PREP ACADEMY | X38: 4 | Y38: 1 | Z38: 3 | AB38: 1 | AC38: 9 | AE38: 6004 | AF38: SOMERSET ACADEMY MIDDLE | AH38: 1 | AI38: 8 | AJ38: 10 | AK38: 2 | AM38: 21 | AO38: 7042 | AP38: SOMERSET ACADEMY CHARTER HIGH | AQ38: 17 | AR38: 16 | AS38: 55 | AT38: 13 | AU38: 9 | AW38: 110
A39: 7050 | B39: KEYS GATE CHARTER HIGH SCHL | C39: 96 | D39: 60 | E39: 38 | F39: 16 | H39: 68 | I39: 278 | K39: 7056 | L39: YOUNG MENS PREPARATORY ACADEMY | M39: 3 | N39: 6 | O39: 4 | P39: 4 | Q39: 2 | R39: 2 | S39: 21 | U39: 3034 | V39: BRIDGEPREP ACAD VILLAGE GREEN | W39: 6 | X39: 4 | Y39: 3 | Z39: 1 | AB39: 3 | AC39: 17 | AE39: 6006 | AF39: ARCHIMEDEAN CONSERVATORY | AI39: 22 | AJ39: 16 | AK39: 47 | AM39: 85 | AO39: 7048 | AP39: ALONZO & TRACY MOURNING SH | AQ39: 5 | AR39: 16 | AS39: 75 | AT39: 47 | AU39: 48 | AV39: 24 | AW39: 215
A40: 7051 | B40: G. HOLMES BRADDOCK SENIOR HIGH | C40: 135 | D40: 147 | E40: 220 | F40: 142 | G40: 125 | H40: 44 | I40: 813 | K40: 7058 | L40: MIAMI COMMUNITY CH HIGH SCHOOL | M40: 29 | N40: 9 | O40: 13 | P40: 4 | R40: 4 | S40: 59 | U40: 3101 | V40: FRANK C. MARTIN K-8 CENTER | W40: 1 | X40: 6 | Y40: 24 | Z40: 40 | AA40: 12 | AB40: 4 | AC40: 87 | AE40: 6009 | AF40: MATER ACADEMY EAST MIDDLE | AI40: 7 | AJ40: 2 | AM40: 9 | AO40: 7049 | AP40: WESTLAND HIALEAH SENIOR HIGH | AQ40: 8 | AR40: 13 | AS40: 88 | AT40: 38 | AU40: 22 | AV40: 15 | AW40: 184
A41: 7053 | B41: PINECREST ACADEMY CHARTER HIGH | C41: 23 | D41: 29 | E41: 46 | F41: 33 | G41: 14 | H41: 8 | I41: 153 | K41: 7059 | L41: MIAMI ARTS CHARTER | M41: 16 | N41: 32 | O41: 57 | P41: 55 | Q41: 18 | R41: 20 | S41: 198 | U41: 3191 | V41: ADA MERRITT K-8 CENTER | Y41: 13 | Z41: 22 | AA41: 26 | AB41: 2 | AC41: 63 | AE41: 6010 | AF41: FLORIDA INTERNATIONAL ACADEMY | AH41: 4 | AI41: 6 | AJ41: 2 | AL41: 1 | AM41: 13 | AO41: 7050 | AP41: KEYS GATE CHARTER HIGH SCHL | AQ41: 114 | AR41: 65 | AS41: 58 | AT41: 2 | AU41: 2 | AV41: 42 | AW41: 283
A42: 7055 | B42: YOUNG WOMEN'S PREPARATORY ACAD | D42: 2 | E42: 11 | F42: 14 | G42: 20 | H42: 1 | I42: 48 | K42: 7060 | L42: EVERGLADES PREP ACADEMY HIGH | M42: 41 | N42: 24 | O42: 27 | P42: 23 | Q42: 16 | R42: 8 | S42: 139 | U42: 3281 | V42: MIAMI LAKES K-8 CENTER | W42: 3 | X42: 10 | Y42: 36 | Z42: 43 | AA42: 22 | AB42: 1 | AC42: 115 | AE42: 6012 | AF42: MATER ACADEMY CHARTER MIDDLE | AL42: 43 | AM42: 43 | AO42: 7051 | AP42: G. HOLMES BRADDOCK SENIOR HIGH | AQ42: 44 | AR42: 71 | AS42: 181 | AT42: 83 | AU42: 63 | AV42: 45 | AW42: 487
A43: 7056 | B43: YOUNG MENS PREPARATORY ACADEMY | C43: 7 | D43: 6 | E43: 7 | F43: 9 | H43: 5 | I43: 34 | K43: 7062 | L43: MAVERICKS HIGH OF NORTH M-DADE | M43: 17 | N43: 6 | O43: 1 | P43: 1 | R43: 43 | S43: 68 | U43: 3421 | V43: M.A. MILAM K-8 CENTER | X43: 1 | Y43: 5 | Z43: 11 | AA43: 6 | AB43: 1 | AC43: 24 | AE43: 6013 | AF43: SOMERSET ACADEMY MIDDLE-SOUTH | AI43: 9 | AJ43: 2 | AK43: 2 | AM43: 13 | AO43: 7053 | AP43: PINECREST ACADEMY CHARTER HIGH | AQ43: 11 | AR43: 26 | AS43: 64 | AT43: 22 | AU43: 7 | AV43: 2 | AW43: 132
A44: 7058 | B44: MIAMI COMMUNITY CH HIGH SCHOOL | C44: 26 | D44: 22 | E44: 9 | F44: 2 | H44: 6 | I44: 65 | K44: 7065 | L44: MAVERICKS HIGH OF SOUTH M-DADE | M44: 34 | N44: 18 | O44: 2 | P44: 1 | R44: 57 | S44: 112 | U44: 3501 | V44: MORNINGSIDE K-8 ACADEMY | Y44: 2 | Z44: 6 | AA44: 3 | AC44: 11 | AE44: 6014 | AF44: IMATER ACADEMY MIDDLE SCHOOL | AI44: 1 | AM44: 1 | AO44: 7055 | AP44: YOUNG WOMEN'S PREPARATORY ACAD | AQ44: 1 | AR44: 3 | AS44: 12 | AT44: 13 | AU44: 20 | AV44: 2 | AW44: 51
A45: 7059 | B45: MIAMI ARTS CHARTER | C45: 20 | D45: 41 | E45: 61 | F45: 57 | G45: 28 | H45: 19 | I45: 226 | K45: 7066 | L45: LBA CONSTR & BUS MGMT ACAD | M45: 19 | N45: 8 | O45: 6 | P45: 6 | Q45: 1 | R45: 3 | S45: 43 | U45: 3581 | V45: MYRTLE GROVE K-8 CENTER | X45: 1 | Y45: 8 | Z45: 6 | AA45: 3 | AC45: 18 | AE45: 6015 | AF45: SPORTS LEADERSHIP AND MGMT CMS | AG45: 4 | AH45: 4 | AI45: 8 | AJ45: 4 | AK45: 2 | AM45: 22 | AO45: 7056 | AP45: YOUNG MENS PREPARATORY ACADEMY | AQ45: 1 | AR45: 4 | AS45: 10 | AT45: 1 | AU45: 2 | AW45: 18
A46: 7060 | B46: EVERGLADES PREP ACADEMY HIGH | C46: 38 | D46: 34 | E46: 54 | F46: 13 | G46: 12 | H46: 19 | I46: 170 | K46: 7067 | L46: GREEN SPRINGS HIGH SCHOOL | M46: 13 | N46: 6 | O46: 1 | R46: 12 | S46: 32 | U46: 3610 | V46: KEYS GATE CHARTER SCHOOL | W46: 1 | X46: 3 | Y46: 14 | Z46: 15 | AA46: 14 | AB46: 6 | AC46: 53 | AE46: 6016 | AF46: SOMERSET VIRTUAL ACADEMY | AI46: 1 | AM46: 1 | AO46: 7058 | AP46: MIAMI COMMUNITY CH HIGH SCHOOL | AQ46: 5 | AR46: 11 | AS46: 18 | AT46: 3 | AU46: 1 | AV46: 5 | AW46: 43
A47: 7062 | B47: MAVERICKS HIGH OF NORTH M-DADE | C47: 6 | D47: 2 | H47: 10 | I47: 18 | K47: 7068 | L47: NORTH GARDENS HIGH SCHOOL | M47: 4 | Q47: 1 | R47: 16 | S47: 21 | U47: 3621 | V47: COCONUT PALM K-8 ACADEMY | Y47: 32 | Z47: 26 | AA47: 7 | AB47: 2 | AC47: 67 | AE47: 6021 | AF47: ARVIDA MIDDLE SCHOOL | AJ47: 6 | AK47: 30 | AL47: 1 | AM47: 37 | AO47: 7059 | AP47: MIAMI ARTS CHARTER | AQ47: 28 | AR47: 41 | AS47: 68 | AT47: 13 | AU47: 14 | AV47: 17 | AW47: 181
A48: 7065 | B48: MAVERICKS HIGH OF SOUTH M-DADE | C48: 24 | D48: 10 | E48: 1 | F48: 1 | H48: 31 | I48: 67 | K48: 7069 | L48: NORTH PARK HIGH SCHOOL | M48: 27 | N48: 7 | O48: 1 | R48: 31 | S48: 66 | U48: 3821 | V48: NORTH COUNTY K-8 CENTER | X48: 5 | Y48: 2 | Z48: 4 | AA48: 1 | AB48: 1 | AC48: 13 | AE48: 6022 | AF48: PINECREST ACADEMY CHARTER MIDD | AI48: 5 | AJ48: 4 | AK48: 5 | AM48: 14 | AO48: 7060 | AP48: EVERGLADES PREP ACADEMY HIGH | AQ48: 30 | AR48: 19 | AS48: 31 | AT48: 12 | AU48: 6 | AV48: 7 | AW48: 105
A49: 7066 | B49: LBA CONSTR & BUS MGMT ACAD | C49: 11 | D49: 4 | E49: 8 | F49: 3 | G49: 4 | H49: 5 | I49: 35 | K49: 7070 | L49: YOUTH CO-OP PREP HIGH SCHOOL | M49: 14 | N49: 9 | O49: 13 | P49: 8 | Q49: 2 | R49: 3 | S49: 49 | U49: 4031 | V49: GATEWAY ENVIRONMENTAL K-8 | W49: 3 | X49: 5 | Y49: 11 | Z49: 15 | AA49: 5 | AB49: 5 | AC49: 44 | AE49: 6023 | AF49: ANDOVER MIDDLE SCHOOL | AG49: 1 | AH49: 2 | AI49: 12 | AJ49: 5 | AK49: 1 | AL49: 1 | AM49: 22 | AO49: 7062 | AP49: MAVERICKS HIGH OF NORTH M-DADE | AQ49: 17 | AR49: 7 | AS49: 7 | AV49: 31 | AW49: 62
A50: 7067 | B50: GREEN SPRINGS HIGH SCHOOL | C50: 1 | H50: 4 | I50: 5 | K50: 7071 | L50: CORAL GABLES SENIOR HIGH | M50: 220 | N50: 147 | O50: 160 | P50: 176 | Q50: 97 | R50: 67 | S50: 867 | U50: 4391 | V50: IRVING & BEATRICE PESKOE K-8 | X50: 1 | Y50: 9 | Z50: 5 | AA50: 2 | AC50: 17 | AE50: 6030 | AF50: DORAL ACADEMY CHARTER MIDDLE | AI50: 2 | AJ50: 17 | AK50: 18 | AM50: 37 | AO50: 7065 | AP50: MAVERICKS HIGH OF SOUTH M-DADE | AQ50: 11 | AR50: 2 | AS50: 1 | AV50: 23 | AW50: 37
A51: 7068 | B51: NORTH GARDENS HIGH SCHOOL | C51: 1 | H51: 14 | I51: 15 | K51: 7080 | L51: CHARTER HS OF THE AMERICAS | M51: 12 | N51: 10 | O51: 5 | P51: 6 | Q51: 1 | R51: 4 | S51: 38 | U51: 4691 | V51: JANE ROBERTS K-8 CENTER | Y51: 5 | Z51: 17 | AA51: 18 | AC51: 40 | AE51: 6033 | AF51: MATER ACADEMY LAKES MIDDLE | AI51: 5 | AJ51: 8 | AK51: 7 | AL51: 3 | AM51: 23 | AO51: 7066 | AP51: LBA CONSTR & BUS MGMT ACAD | AQ51: 12 | AR51: 8 | AS51: 10 | AT51: 2 | AU51: 1 | AV51: 3 | AW51: 36
A52: 7069 | B52: NORTH PARK HIGH SCHOOL | C52: 3 | D52: 2 | H52: 9 | I52: 14 | K52: 7081 | L52: DESIGN & ARCHITECTURE SENIOR | N52: 4 | O52: 11 | P52: 53 | Q52: 61 | R52: 2 | S52: 131 | U52: 5003 | V52: SOUTH DADE MIDDLE SCHOOL | Y52: 48 | Z52: 18 | AA52: 3 | AC52: 69 | AE52: 6040 | AF52: DOCTORS CHARTER/MIAMI SHORES | AG52: 3 | AH52: 1 | AI52: 22 | AJ52: 23 | AK52: 16 | AL52: 12 | AM52: 77 | AO52: 7067 | AP52: GREEN SPRINGS HIGH SCHOOL | AQ52: 2 | AR52: 3 | AS52: 2 | AV52: 2 | AW52: 9
A53: 7070 | B53: YOUTH CO-OP PREP HIGH SCHOOL | C53: 12 | D53: 13 | E53: 10 | F53: 18 | G53: 7 | H53: 3 | I53: 63 | K53: 7090 | L53: IMATER PREP ACADEMY HIGH | M53: 30 | N53: 43 | O53: 46 | P53: 29 | Q53: 8 | R53: 2 | S53: 158 | U53: 5005 | V53: DAVID LAWRENCE JR K-8 CENTER | Y53: 1 | Z53: 17 | AA53: 23 | AB53: 1 | AC53: 42 | AE53: 6045 | AF53: INTL. STUDIES CHARTER MIDDLE | AH53: 1 | AI53: 4 | AJ53: 5 | AK53: 5 | AM53: 15 | AO53: 7068 | AP53: NORTH GARDENS HIGH SCHOOL | AQ53: 14 | AR53: 4 | AS53: 2 | AV53: 14 | AW53: 34
A54: 7071 | B54: CORAL GABLES SENIOR HIGH | C54: 178 | D54: 133 | E54: 161 | F54: 177 | G54: 128 | H54: 85 | I54: 862 | K54: 7101 | L54: CORAL REEF SENIOR HIGH | M54: 27 | N54: 96 | O54: 204 | P54: 326 | Q54: 287 | R54: 2 | S54: 942 | U54: 5006 | V54: EVERGLADES PREPARATORY ACADEMY | X54: 1 | Y54: 34 | Z54: 19 | AA54: 10 | AB54: 2 | AC54: 66 | AE54: 6048 | AF54: MIAMI COMMUNITY CHARTER MIDDLE | AH54: 5 | AI54: 7 | AJ54: 2 | AK54: 4 | AM54: 18 | AO54: 7069 | AP54: NORTH PARK HIGH SCHOOL | AQ54: 11 | AR54: 2 | AS54: 2 | AV54: 13 | AW54: 28
A55: 7080 | B55: CHARTER HS OF THE AMERICAS | C55: 22 | D55: 5 | E55: 6 | F55: 6 | G55: 7 | H55: 6 | I55: 52 | K55: 7111 | L55: HIALEAH SENIOR | M55: 212 | N55: 117 | O55: 111 | P55: 73 | Q55: 24 | R55: 43 | S55: 580 | U55: 5007 | V55: LINCOLN-MARTI CHARTER HIALEAH | W55: 5 | X55: 2 | Y55: 10 | Z55: 5 | AA55: 2 | AB55: 3 | AC55: 27 | AE55: 6052 | AF55: MIAMI ARTS STUDIO 6-12 @ZELDA | AG55: 8 | AH55: 15 | AI55: 71 | AJ55: 60 | AK55: 25 | AL55: 13 | AM55: 192 | AO55: 7070 | AP55: YOUTH CO-OP PREP HIGH SCHOOL | AQ55: 23 | AR55: 15 | AS55: 28 | AT55: 8 | AU55: 3 | AV55: 2 | AW55: 79
A56: 7081 | B56: DESIGN & ARCHITECTURE SENIOR | D56: 1 | E56: 23 | F56: 45 | G56: 50 | H56: 17 | I56: 136 | K56: 7121 | L56: JOHN A FERGUSON SENIOR HIGH | M56: 145 | N56: 214 | O56: 267 | P56: 270 | Q56: 114 | R56: 56 | S56: 1066 | U56: 5022 | V56: BEN GAMLA CHARTER SCHL | Y56: 2 | Z56: 1 | AA56: 1 | AB56: 1 | AC56: 5 | AE56: 6071 | AF56: GEORGE WASHINGTON CARVER | AI56: 1 | AJ56: 10 | AK56: 55 | AL56: 1 | AM56: 67 | AO56: 7071 | AP56: CORAL GABLES SENIOR HIGH | AQ56: 20 | AR56: 35 | AS56: 106 | AT56: 69 | AU56: 68 | AV56: 18 | AW56: 316
A57: 7090 | B57: IMATER PREP ACADEMY HIGH | C57: 53 | D57: 49 | E57: 73 | F57: 56 | G57: 11 | H57: 5 | I57: 247 | K57: 7131 | L57: HIALEAH-MIAMI LAKES SENIOR | M57: 144 | N57: 93 | O57: 58 | P57: 51 | Q57: 17 | R57: 39 | S57: 402 | U57: 5025 | V57: LINCOLN-MARTI CS LITTLE HAVANA | Y57: 2 | Z57: 6 | AA57: 13 | AC57: 21 | AE57: 6081 | AF57: CUTLER BAY SENIOR HIGH | AG57: 17 | AH57: 16 | AI57: 51 | AJ57: 9 | AK57: 11 | AL57: 9 | AM57: 113 | AO57: 7080 | AP57: CHARTER HS OF THE AMERICAS | AQ57: 2 | AR57: 2 | AS57: 9 | AU57: 3 | AV57: 3 | AW57: 19
A58: 7101 | B58: CORAL REEF SENIOR HIGH | C58: 15 | D58: 70 | E58: 204 | F58: 247 | G58: 259 | H58: 27 | I58: 822 | K58: 7141 | L58: DR MICHAEL M KROP SENIOR HIGH | M58: 112 | N58: 143 | O58: 158 | P58: 176 | Q58: 90 | R58: 58 | S58: 737 | U58: 5029 | V58: EXCELSIOR LANGUAGE ACADEMY K-8 | Z58: 4 | AA58: 2 | AC58: 6 | AE58: 6082 | AF58: ACADEMIR CHARTER SCHOOL MIDDLE | AH58: 1 | AI58: 7 | AJ58: 5 | AM58: 13 | AO58: 7081 | AP58: DESIGN & ARCHITECTURE SENIOR | AQ58: 2 | AR58: 3 | AS58: 26 | AT58: 27 | AU58: 53 | AV58: 5 | AW58: 116
A59: 7111 | B59: HIALEAH SENIOR | C59: 174 | D59: 110 | E59: 96 | F59: 55 | G59: 28 | H59: 57 | I59: 520 | K59: 7151 | L59: HOMESTEAD SENIOR HIGH | M59: 182 | N59: 111 | O59: 77 | P59: 41 | Q59: 4 | R59: 38 | S59: 453 | U59: 5044 | V59: ACADEMY FOR INT'L EDUCATION CH | X59: 2 | Y59: 17 | Z59: 7 | AA59: 8 | AB59: 1 | AC59: 35 | AE59: 6121 | AF59: RUBEN DARIO MIDDLE | AH59: 1 | AI59: 3 | AJ59: 1 | AM59: 5 | AO59: 7090 | AP59: IMATER PREP ACADEMY HIGH | AQ59: 27 | AR59: 28 | AS59: 41 | AT59: 9 | AU59: 7 | AW59: 112
A60: 7121 | B60: JOHN A FERGUSON SENIOR HIGH | C60: 139 | D60: 203 | E60: 330 | F60: 267 | G60: 168 | H60: 54 | I60: 1161 | K60: 7160 | L60: MATER ACADEMY CHARTER HIGH | M60: 58 | N60: 90 | O60: 100 | P60: 108 | Q60: 53 | R60: 10 | S60: 419 | U60: 5045 | V60: MATER GROVE ACADEMY | Y60: 6 | Z60: 4 | AB60: 1 | AC60: 11 | AE60: 6161 | AF60: LAWTON CHILES MIDDLE SCHOOL | AH60: 1 | AI60: 16 | AJ60: 13 | AK60: 2 | AM60: 32 | AO60: 7101 | AP60: CORAL REEF SENIOR HIGH | AQ60: 21 | AR60: 43 | AS60: 173 | AT60: 177 | AU60: 202 | AV60: 3 | AW60: 619
A61: 7131 | B61: HIALEAH-MIAMI LAKES SENIOR | C61: 127 | D61: 70 | E61: 89 | F61: 48 | G61: 17 | H61: 59 | I61: 410 | K61: 7161 | L61: MARITIME & SCIENCE TECH ACAD | M61: 3 | N61: 24 | O61: 55 | P61: 113 | Q61: 80 | R61: 3 | S61: 278 | U61: 5046 | V61: MATER BRICKELL PREP ACADEMY | Y61: 5 | Z61: 1 | AC61: 6 | AE61: 6211 | AF61: GLADES MIDDLE | AH61: 2 | AI61: 24 | AJ61: 20 | AK61: 7 | AM61: 53 | AO61: 7111 | AP61: HIALEAH SENIOR | AQ61: 12 | AR61: 21 | AS61: 84 | AT61: 21 | AU61: 10 | AV61: 6 | AW61: 154
A62: 7141 | B62: DR MICHAEL M KROP SENIOR HIGH | C62: 114 | D62: 141 | E62: 173 | F62: 129 | G62: 98 | H62: 122 | I62: 777 | K62: 7171 | L62: MED ACAD SCIENCE & TECHNOLOGY | M62: 1 | N62: 9 | O62: 43 | P62: 60 | Q62: 34 | R62: 2 | S62: 149 | U62: 5047 | V62: MATER ACADEMY MIAMI BEACH | W62: 2 | X62: 5 | Y62: 19 | Z62: 16 | AA62: 2 | AB62: 5 | AC62: 49 | AE62: 6221 | AF62: HAMMOCKS MIDDLE | AG62: 1 | AH62: 4 | AI62: 29 | AJ62: 7 | AK62: 6 | AM62: 47 | AO62: 7121 | AP62: JOHN A FERGUSON SENIOR HIGH | AQ62: 35 | AR62: 100 | AS62: 273 | AT62: 114 | AU62: 79 | AV62: 36 | AW62: 637
A63: 7151 | B63: HOMESTEAD SENIOR HIGH | C63: 194 | D63: 112 | E63: 71 | F63: 35 | G63: 3 | H63: 62 | I63: 477 | K63: 7191 | L63: HIALEAH GARDENS SENIOR | M63: 154 | N63: 157 | O63: 135 | P63: 158 | Q63: 58 | R63: 37 | S63: 699 | U63: 5049 | V63: PINECREST COVE ACADEMY | W63: 4 | X63: 3 | Y63: 8 | Z63: 17 | AA63: 15 | AB63: 1 | AC63: 48 | AE63: 6231 | AF63: HIALEAH MIDDLE | AL63: 1 | AM63: 1 | AO63: 7131 | AP63: HIALEAH-MIAMI LAKES SENIOR | AQ63: 5 | AR63: 14 | AS63: 46 | AT63: 24 | AU63: 18 | AV63: 5 | AW63: 112
A64: 7160 | B64: MATER ACADEMY CHARTER HIGH | C64: 68 | D64: 76 | E64: 102 | F64: 88 | G64: 68 | H64: 20 | I64: 422 | K64: 7201 | L64: MIAMI BEACH SENIOR HIGH | M64: 144 | N64: 111 | O64: 104 | P64: 145 | Q64: 79 | R64: 88 | S64: 671 | U64: 5051 | V64: ERNEST R GRAHAM K-8 ACADEMY | Y64: 16 | Z64: 22 | AA64: 11 | AC64: 49 | AE64: 6241 | AF64: HIGHLAND OAKS MIDDLE | AG64: 2 | AH64: 2 | AI64: 22 | AJ64: 20 | AK64: 19 | AL64: 1 | AM64: 66 | AO64: 7141 | AP64: DR MICHAEL M KROP SENIOR HIGH | AQ64: 69 | AR64: 91 | AS64: 147 | AT64: 61 | AU64: 66 | AV64: 65 | AW64: 499
A65: 7161 | B65: MARITIME & SCIENCE TECH ACAD | C65: 2 | D65: 12 | E65: 30 | F65: 105 | G65: 109 | H65: 15 | I65: 273 | K65: 7231 | L65: MIAMI CAROL CITY SENIOR HIGH | M65: 112 | N65: 68 | O65: 37 | P65: 22 | Q65: 7 | R65: 36 | S65: 282 | U65: 5101 | V65: JOHN I. SMITH K-8 CENTER | X65: 1 | Y65: 30 | Z65: 37 | AA65: 30 | AB65: 2 | AC65: 100 | AE65: 6301 | AF65: JOHN F. KENNEDY MIDDLE | AG65: 2 | AH65: 6 | AI65: 35 | AJ65: 24 | AK65: 15 | AM65: 82 | AO65: 7151 | AP65: HOMESTEAD SENIOR HIGH | AQ65: 2 | AR65: 4 | AS65: 29 | AT65: 13 | AU65: 3 | AV65: 4 | AW65: 55
A66: 7171 | B66: MED ACAD SCIENCE & TECHNOLOGY | C66: 2 | D66: 9 | E66: 58 | F66: 67 | G66: 53 | H66: 21 | I66: 210 | K66: 7241 | L66: RONALD W REAGAN/DORAL SENIOR | M66: 103 | N66: 90 | O66: 115 | P66: 109 | Q66: 69 | R66: 114 | S66: 600 | U66: 5141 | V66: HUBERT O. SIBLEY K-8 ACADEMY | X66: 1 | Y66: 15 | Z66: 14 | AA66: 9 | AC66: 39 | AE66: 6351 | AF66: LAKE STEVENS MIDDLE | AI66: 2 | AL66: 1 | AM66: 3 | AO66: 7160 | AP66: MATER ACADEMY CHARTER HIGH | AQ66: 11 | AR66: 8 | AS66: 144 | AT66: 44 | AU66: 56 | AV66: 8 | AW66: 271
A67: 7191 | B67: HIALEAH GARDENS SENIOR | C67: 111 | D67: 128 | E67: 159 | F67: 157 | G67: 99 | H67: 51 | I67: 705 | K67: 7251 | L67: MIAMI CENTRAL SENIOR HIGH | M67: 210 | N67: 104 | O67: 73 | P67: 18 | Q67: 4 | R67: 28 | S67: 437 | U67: 5241 | V67: SOUTH MIAMI K-8 CENTER | X67: 1 | Y67: 7 | Z67: 7 | AA67: 11 | AC67: 26 | AE67: 6411 | AF67: HORACE MANN MIDDLE | AI67: 3 | AJ67: 5 | AK67: 3 | AM67: 11 | AO67: 7161 | AP67: MARITIME & SCIENCE TECH ACAD | AQ67: 5 | AR67: 28 | AS67: 111 | AT67: 70 | AU67: 82 | AV67: 9 | AW67: 305
A68: 7201 | B68: MIAMI BEACH SENIOR HIGH | C68: 115 | D68: 104 | E68: 112 | F68: 104 | G68: 65 | H68: 106 | I68: 606 | K68: 7262 | L68: CITY OF HIALEAH EDUCATION ACAD | M68: 23 | N68: 29 | O68: 30 | P68: 29 | Q68: 6 | R68: 1 | S68: 118 | U68: 5671 | V68: VINELAND K-8 CENTER | Y68: 1 | Z68: 11 | AA68: 31 | AB68: 1 | AC68: 44 | AE68: 6441 | AF68: HOWARD D. MCMILLAN MIDDLE | AI68: 7 | AJ68: 20 | AK68: 62 | AL68: 1 | AM68: 90 | AO68: 7171 | AP68: MED ACAD SCIENCE & TECHNOLOGY | AQ68: 8 | AR68: 21 | AS68: 72 | AT68: 35 | AU68: 34 | AW68: 170
A69: 7231 | B69: MIAMI CAROL CITY SENIOR HIGH | C69: 117 | D69: 78 | E69: 57 | F69: 11 | G69: 5 | H69: 56 | I69: 324 | K69: 7265 | L69: ARCHIMEDEAN UPPER CONSERV CHAR | M69: 2 | N69: 3 | O69: 14 | P69: 26 | Q69: 31 | S69: 76 | U69: 5861 | V69: DR H W MACK/W LITTLE RIVER K8 | Y69: 16 | Z69: 3 | AC69: 19 | AE69: 6501 | AF69: MIAMI LAKES MIDDLE | AG69: 2 | AH69: 1 | AI69: 25 | AJ69: 28 | AK69: 18 | AL69: 1 | AM69: 75 | AO69: 7191 | AP69: HIALEAH GARDENS SENIOR | AR69: 1 | AS69: 140 | AT69: 90 | AU69: 109 | AV69: 1 | AW69: 341
A70: 7241 | B70: RONALD W REAGAN/DORAL SENIOR | C70: 8 | D70: 12 | E70: 20 | F70: 22 | G70: 30 | H70: 20 | I70: 112 | K70: 7271 | L70: MIAMI CORAL PARK SENIOR HIGH | M70: 182 | N70: 137 | O70: 115 | P70: 84 | Q70: 53 | R70: 61 | S70: 632 | U70: 5901 | V70: CARRIE P MEEK/WESTVIEW K-8 CTR | X70: 3 | Y70: 8 | Z70: 3 | AA70: 2 | AB70: 3 | AC70: 19 | AE70: 6521 | AF70: MIAMI SPRINGS MIDDLE | AH70: 1 | AI70: 13 | AJ70: 16 | AK70: 15 | AL70: 1 | AM70: 46 | AO70: 7201 | AP70: MIAMI BEACH SENIOR HIGH | AQ70: 44 | AR70: 46 | AS70: 109 | AT70: 69 | AU70: 47 | AV70: 30 | AW70: 345
A71: 7251 | B71: MIAMI CENTRAL SENIOR HIGH | C71: 201 | D71: 119 | E71: 73 | F71: 27 | G71: 3 | H71: 76 | I71: 499 | K71: 7291 | L71: JOSE MARTI MAST 6-12 ACADEMY | N71: 10 | O71: 36 | P71: 45 | Q71: 27 | R71: 2 | S71: 120 | U71: 5961 | V71: WINSTON PARK K-8 CENTER | X71: 8 | Y71: 35 | Z71: 41 | AA71: 26 | AC71: 110 | AE71: 6541 | AF71: NAUTILUS MIDDLE | AI71: 21 | AJ71: 22 | AK71: 6 | AL71: 1 | AM71: 50 | AO71: 7231 | AP71: MIAMI CAROL CITY SENIOR HIGH | AQ71: 18 | AR71: 28 | AS71: 36 | AT71: 7 | AU71: 2 | AV71: 8 | AW71: 99
A72: 7262 | B72: CITY OF HIALEAH EDUCATION ACAD | C72: 32 | D72: 48 | E72: 46 | F72: 16 | G72: 2 | H72: 5 | I72: 149 | K72: 7301 | L72: MIAMI EDISON SENIOR HIGH | M72: 99 | N72: 40 | O72: 17 | P72: 4 | Q72: 2 | R72: 37 | S72: 199 | U72: 6001 | V72: HERBERT A. AMMONS MIDDLE | W72: 4 | X72: 15 | Y72: 70 | Z72: 114 | AA72: 62 | AB72: 2 | AC72: 267 | AE72: 6571 | AF72: NORLAND MIDDLE | AK72: 1 | AM72: 1 | AO72: 7241 | AP72: RONALD W REAGAN/DORAL SENIOR | AQ72: 67 | AR72: 65 | AS72: 143 | AT72: 54 | AU72: 37 | AV72: 55 | AW72: 421
A73: 7265 | B73: ARCHIMEDEAN UPPER CONSERV CHAR | C73: 1 | D73: 6 | E73: 20 | F73: 33 | G73: 43 | H73: 6 | I73: 109 | K73: 7341 | L73: MIAMI JACKSON SENIOR HIGH | M73: 203 | N73: 79 | O73: 49 | P73: 23 | Q73: 4 | R73: 35 | S73: 393 | U73: 6004 | V73: SOMERSET ACADEMY MIDDLE | W73: 1 | X73: 13 | Y73: 17 | Z73: 25 | AA73: 11 | AB73: 1 | AC73: 68 | AE73: 6591 | AF73: NORTH DADE MIDDLE | AI73: 2 | AJ73: 1 | AM73: 3 | AO73: 7251 | AP73: MIAMI CENTRAL SENIOR HIGH | AQ73: 12 | AR73: 25 | AS73: 44 | AT73: 11 | AU73: 3 | AV73: 5 | AW73: 100
A74: 7271 | B74: MIAMI CORAL PARK SENIOR HIGH | C74: 153 | D74: 127 | E74: 156 | F74: 104 | G74: 44 | H74: 59 | I74: 643 | K74: 7351 | L74: ARTHUR AND POLLY MAYS CONSERVA | M74: 11 | N74: 15 | O74: 19 | P74: 17 | Q74: 13 | R74: 2 | S74: 77 | U74: 6006 | V74: ARCHIMEDEAN CONSERVATORY | W74: 3 | X74: 3 | Y74: 10 | Z74: 26 | AA74: 71 | AC74: 113 | AE74: 6631 | AF74: NORTH MIAMI MIDDLE | AI74: 13 | AJ74: 9 | AK74: 8 | AM74: 30 | AO74: 7262 | AP74: CITY OF HIALEAH EDUCATION ACAD | AQ74: 10 | AR74: 22 | AS74: 39 | AT74: 12 | AU74: 8 | AV74: 2 | AW74: 93
A75: 7291 | B75: JOSE MARTI MAST 6-12 ACADEMY | C75: 1 | D75: 6 | E75: 27 | F75: 41 | G75: 37 | I75: 112 | K75: 7361 | L75: MIAMI KILLIAN SENIOR HIGH | M75: 137 | N75: 110 | O75: 105 | P75: 86 | Q75: 30 | R75: 47 | S75: 515 | U75: 6009 | V75: MATER ACADEMY EAST MIDDLE | Z75: 9 | AA75: 1 | AC75: 10 | AE75: 6681 | AF75: PALM SPRINGS MIDDLE | AH75: 1 | AI75: 15 | AJ75: 9 | AK75: 2 | AM75: 27 | AO75: 7265 | AP75: ARCHIMEDEAN UPPER CONSERV CHAR | AQ75: 2 | AR75: 6 | AS75: 22 | AT75: 18 | AU75: 44 | AV75: 17 | AW75: 109
A76: 7301 | B76: MIAMI EDISON SENIOR HIGH | C76: 73 | D76: 39 | E76: 18 | F76: 8 | H76: 44 | I76: 182 | K76: 7371 | L76: ROBERT MORGAN EDUCATIONAL CTR | M76: 70 | N76: 146 | O76: 125 | P76: 122 | Q76: 49 | R76: 18 | S76: 530 | U76: 6010 | V76: FLORIDA INTERNATIONAL ACADEMY | X76: 1 | Y76: 11 | Z76: 11 | AA76: 1 | AC76: 24 | AE76: 6701 | AF76: PALMETTO MIDDLE | AI76: 3 | AJ76: 7 | AK76: 15 | AL76: 1 | AM76: 26 | AO76: 7271 | AP76: MIAMI CORAL PARK SENIOR HIGH | AQ76: 78 | AR76: 87 | AS76: 121 | AT76: 41 | AU76: 21 | AV76: 29 | AW76: 377
A77: 7341 | B77: MIAMI JACKSON SENIOR HIGH | C77: 170 | D77: 100 | E77: 61 | F77: 32 | G77: 4 | H77: 73 | I77: 440 | K77: 7381 | L77: MIAMI NORLAND SENIOR HIGH | M77: 165 | N77: 120 | O77: 65 | P77: 38 | Q77: 5 | R77: 66 | S77: 459 | U77: 6011 | V77: GEORGIA JONES-AYERS MIDDLE | Y77: 22 | Z77: 3 | AA77: 1 | AC77: 26 | AE77: 6741 | AF77: PONCE DE LEON MIDDLE | AI77: 18 | AJ77: 29 | AK77: 26 | AL77: 1 | AM77: 74 | AO77: 7291 | AP77: JOSE MARTI MAST 6-12 ACADEMY | AQ77: 4 | AR77: 11 | AS77: 44 | AT77: 36 | AU77: 40 | AV77: 6 | AW77: 141
A78: 7351 | B78: ARTHUR AND POLLY MAYS CONSERVA | C78: 11 | D78: 17 | E78: 33 | F78: 9 | G78: 4 | H78: 4 | I78: 78 | K78: 7391 | L78: MIAMI LAKES EDUCATIONAL CENTER | M78: 27 | N78: 64 | O78: 108 | P78: 124 | Q78: 54 | S78: 377 | U78: 6012 | V78: MATER ACADEMY CHARTER MIDDLE | X78: 1 | Y78: 126 | Z78: 96 | AA78: 56 | AB78: 2 | AC78: 281 | AE78: 6751 | AF78: HIALEAH GARDENS MIDDLE SCHOOL | AG78: 7 | AH78: 27 | AI78: 120 | AJ78: 94 | AK78: 59 | AL78: 7 | AM78: 314 | AO78: 7301 | AP78: MIAMI EDISON SENIOR HIGH | AQ78: 20 | AR78: 22 | AS78: 40 | AT78: 8 | AU78: 2 | AV78: 14 | AW78: 106
A79: 7361 | B79: MIAMI KILLIAN SENIOR HIGH | C79: 94 | D79: 91 | E79: 119 | F79: 58 | G79: 32 | H79: 37 | I79: 431 | K79: 7411 | L79: MIAMI NORTHWESTERN SENIOR HIGH | M79: 155 | N79: 107 | O79: 61 | P79: 22 | Q79: 3 | R79: 25 | S79: 373 | U79: 6013 | V79: SOMERSET ACADEMY MIDDLE-SOUTH | W79: 1 | X79: 1 | Y79: 33 | Z79: 32 | AA79: 14 | AB79: 2 | AC79: 83 | AE79: 6761 | AF79: REDLAND MIDDLE | AI79: 1 | AJ79: 2 | AK79: 4 | AM79: 7 | AO79: 7341 | AP79: MIAMI JACKSON SENIOR HIGH | AQ79: 67 | AR79: 39 | AS79: 73 | AT79: 8 | AU79: 5 | AV79: 9 | AW79: 201
A80: 7371 | B80: ROBERT MORGAN EDUCATIONAL CTR | C80: 44 | D80: 115 | E80: 170 | F80: 128 | G80: 54 | H80: 17 | I80: 528 | K80: 7431 | L80: MIAMI PALMETTO SENIOR HIGH | M80: 95 | N80: 113 | O80: 117 | P80: 125 | Q80: 87 | R80: 45 | S80: 582 | U80: 6014 | V80: IMATER ACADEMY MIDDLE SCHOOL | Y80: 27 | Z80: 58 | AA80: 45 | AB80: 2 | AC80: 132 | AE80: 6771 | AF80: JORGE MAS CANOSA MIDDLE | AG80: 1 | AH80: 2 | AI80: 23 | AJ80: 23 | AK80: 36 | AL80: 1 | AM80: 86 | AO80: 7351 | AP80: ARTHUR AND POLLY MAYS CONSERVA | AQ80: 2 | AR80: 9 | AS80: 20 | AT80: 6 | AU80: 1 | AV80: 2 | AW80: 40
A81: 7381 | B81: MIAMI NORLAND SENIOR HIGH | C81: 154 | D81: 115 | E81: 75 | F81: 28 | G81: 2 | H81: 65 | I81: 439 | K81: 7461 | L81: MIAMI SENIOR HIGH | M81: 235 | N81: 186 | O81: 124 | P81: 105 | Q81: 31 | R81: 65 | S81: 746 | U81: 6015 | V81: SPORTS LEADERSHIP AND MGMT CMS | Y81: 1 | Z81: 19 | AA81: 6 | AC81: 26 | AE81: 6781 | AF81: RICHMOND HEIGHTS MIDDLE | AG81: 8 | AH81: 5 | AI81: 9 | AJ81: 5 | AK81: 1 | AM81: 28 | AO81: 7361 | AP81: MIAMI KILLIAN SENIOR HIGH | AQ81: 22 | AR81: 58 | AS81: 103 | AT81: 30 | AU81: 33 | AV81: 48 | AW81: 294
A82: 7391 | B82: MIAMI LAKES EDUCATIONAL CENTER | C82: 35 | D82: 33 | E82: 71 | F82: 94 | G82: 62 | H82: 19 | I82: 314 | K82: 7511 | L82: MIAMI SPRINGS SENIOR HIGH | M82: 102 | N82: 94 | O82: 75 | P82: 67 | Q82: 35 | R82: 36 | S82: 409 | U82: 6016 | V82: SOMERSET VIRTUAL ACADEMY | Y82: 1 | Z82: 1 | AC82: 2 | AE82: 6801 | AF82: RIVIERA MIDDLE | AG82: 1 | AH82: 1 | AI82: 24 | AJ82: 4 | AK82: 2 | AM82: 32 | AO82: 7371 | AP82: ROBERT MORGAN EDUCATIONAL CTR | AQ82: 70 | AR82: 105 | AS82: 195 | AT82: 53 | AU82: 49 | AV82: 44 | AW82: 516
A83: 7411 | B83: MIAMI NORTHWESTERN SENIOR HIGH | C83: 102 | D83: 80 | E83: 59 | F83: 15 | G83: 2 | H83: 42 | I83: 300 | K83: 7531 | L83: MIAMI SUNSET SENIOR HIGH | M83: 90 | N83: 77 | O83: 69 | P83: 48 | Q83: 10 | R83: 47 | S83: 341 | U83: 6017 | V83: INTERNATIONAL STUDIES VIRTUAL | Y83: 1 | AC83: 1 | AE83: 6821 | AF83: ROCKWAY MIDDLE | AI83: 5 | AJ83: 9 | AK83: 20 | AL83: 2 | AM83: 36 | AO83: 7381 | AP83: MIAMI NORLAND SENIOR HIGH | AQ83: 75 | AR83: 58 | AS83: 68 | AT83: 9 | AU83: 6 | AV83: 21 | AW83: 237
A84: 7431 | B84: MIAMI PALMETTO SENIOR HIGH | C84: 70 | D84: 87 | E84: 145 | F84: 144 | G84: 103 | H84: 57 | I84: 606 | K84: 7541 | L84: NORTH MIAMI BEACH SENIOR HIGH | M84: 131 | N84: 89 | O84: 49 | P84: 51 | Q84: 10 | R84: 47 | S84: 377 | U84: 6020 | V84: ASPIRA RAUL A. MARTINEZ CHTR | X84: 2 | Y84: 27 | Z84: 10 | AA84: 2 | AC84: 41 | AE84: 6841 | AF84: SHENANDOAH MIDDLE | AI84: 7 | AJ84: 11 | AK84: 8 | AM84: 26 | AO84: 7391 | AP84: MIAMI LAKES EDUCATIONAL CENTER | AQ84: 74 | AR84: 69 | AS84: 140 | AT84: 46 | AU84: 47 | AV84: 2 | AW84: 378
A85: 7461 | B85: MIAMI SENIOR HIGH | C85: 215 | D85: 163 | E85: 135 | F85: 100 | G85: 38 | H85: 90 | I85: 741 | K85: 7571 | L85: INTL STUDIES PREP ACADEMY | M85: 4 | N85: 10 | O85: 24 | P85: 21 | Q85: 14 | R85: 5 | S85: 78 | U85: 6021 | V85: ARVIDA MIDDLE SCHOOL | X85: 3 | Y85: 10 | Z85: 63 | AA85: 80 | AC85: 156 | AE85: 6861 | AF85: SOUTHWOOD MIDDLE | AH85: 1 | AJ85: 4 | AK85: 12 | AL85: 1 | AM85: 18 | AO85: 7411 | AP85: MIAMI NORTHWESTERN SENIOR HIGH | AQ85: 8 | AR85: 21 | AS85: 64 | AT85: 5 | AU85: 2 | AV85: 6 | AW85: 106
A86: 7511 | B86: MIAMI SPRINGS SENIOR HIGH | C86: 110 | D86: 84 | E86: 77 | F86: 66 | G86: 39 | H86: 45 | I86: 421 | K86: 7581 | L86: IPREPARATORY ACADEMY | N86: 3 | O86: 3 | P86: 12 | Q86: 17 | R86: 1 | S86: 36 | U86: 6022 | V86: PINECREST ACADEMY CHARTER MIDD | Y86: 12 | Z86: 31 | AA86: 23 | AB86: 4 | AC86: 70 | AE86: 6881 | AF86: SOUTH MIAMI MIDDLE SCHOOL | AJ86: 2 | AK86: 12 | AM86: 14 | AO86: 7431 | AP86: MIAMI PALMETTO SENIOR HIGH | AQ86: 4 | AR86: 10 | AS86: 87 | AT86: 66 | AU86: 73 | AV86: 16 | AW86: 256
A87: 7531 | B87: MIAMI SUNSET SENIOR HIGH | C87: 72 | D87: 56 | E87: 70 | F87: 28 | G87: 21 | H87: 31 | I87: 278 | K87: 7591 | L87: NORTH MIAMI SENIOR HIGH | M87: 215 | N87: 141 | O87: 107 | P87: 70 | Q87: 15 | R87: 115 | S87: 663 | U87: 6023 | V87: ANDOVER MIDDLE SCHOOL | Y87: 67 | Z87: 12 | AA87: 4 | AB87: 3 | AC87: 86 | AE87: 6901 | AF87: W. R. THOMAS MIDDLE | AG87: 2 | AH87: 8 | AI87: 20 | AJ87: 22 | AK87: 113 | AM87: 165 | AO87: 7461 | AP87: MIAMI SENIOR HIGH | AQ87: 19 | AR87: 37 | AS87: 157 | AT87: 44 | AU87: 41 | AV87: 19 | AW87: 317
A88: 7541 | B88: NORTH MIAMI BEACH SENIOR HIGH | C88: 113 | D88: 79 | E88: 69 | F88: 32 | G88: 17 | H88: 46 | I88: 356 | K88: 7601 | L88: WILLIAM H. TURNER TECHNICAL | M88: 38 | N88: 81 | O88: 105 | P88: 70 | Q88: 18 | R88: 7 | S88: 319 | U88: 6028 | V88: RENAISSANCE MIDDLE CHARTER | X88: 1 | Y88: 38 | Z88: 24 | AA88: 18 | AB88: 1 | AC88: 82 | AE88: 6921 | AF88: LAMAR LOUISE CURRY MIDDLE SCH | AH88: 2 | AI88: 1 | AJ88: 9 | AK88: 14 | AM88: 26 | AO88: 7511 | AP88: MIAMI SPRINGS SENIOR HIGH | AQ88: 73 | AR88: 62 | AS88: 83 | AT88: 25 | AU88: 20 | AV88: 11 | AW88: 274
A89: 7571 | B89: INTL STUDIES PREP ACADEMY | C89: 2 | D89: 15 | E89: 19 | F89: 28 | G89: 22 | H89: 14 | I89: 100 | K89: 7631 | L89: MIAMI MACARTHUR SOUTH | M89: 8 | N89: 3 | O89: 1 | R89: 2 | S89: 14 | U89: 6030 | V89: DORAL ACADEMY CHARTER MIDDLE | X89: 2 | Y89: 29 | Z89: 45 | AA89: 51 | AB89: 2 | AC89: 129 | AE89: 6997 | AF89: MATER VIRTUAL ACADEMY MID/HIGH | AG89: 4 | AH89: 1 | AI89: 5 | AJ89: 1 | AL89: 2 | AM89: 13 | AO89: 7531 | AP89: MIAMI SUNSET SENIOR HIGH | AQ89: 65 | AR89: 58 | AS89: 113 | AT89: 33 | AU89: 13 | AV89: 45 | AW89: 327
A90: 7581 | B90: IPREPARATORY ACADEMY | D90: 4 | E90: 13 | F90: 19 | G90: 26 | H90: 5 | I90: 67 | K90: 7701 | L90: SOUTH DADE SENIOR HIGH | M90: 231 | N90: 198 | O90: 175 | P90: 91 | Q90: 25 | R90: 73 | S90: 793 | U90: 6031 | V90: BROWNSVILLE MIDDLE | Y90: 13 | Z90: 1 | AC90: 14 | AE90: 7001 | AF90: MIAMI-DADE ONLINE ACADEMY 7001 | AG90: 6 | AH90: 5 | AI90: 7 | AJ90: 1 | AK90: 4 | AM90: 23 | AO90: 7541 | AP90: NORTH MIAMI BEACH SENIOR HIGH | AQ90: 74 | AR90: 57 | AS90: 71 | AT90: 17 | AU90: 11 | AV90: 33 | AW90: 263
A91: 7591 | B91: NORTH MIAMI SENIOR HIGH | C91: 192 | D91: 145 | E91: 104 | F91: 40 | G91: 20 | H91: 96 | I91: 597 | K91: 7721 | L91: SOUTH MIAMI SENIOR HIGH | M91: 142 | N91: 123 | O91: 100 | P91: 85 | Q91: 35 | R91: 61 | S91: 546 | U91: 6033 | V91: MATER ACADEMY LAKES MIDDLE | W91: 1 | X91: 3 | Y91: 22 | Z91: 31 | AA91: 16 | AB91: 2 | AC91: 75 | AE91: 7005 | AF91: ITECH @ THOMAS EDISON EDUC CTR | AG91: 23 | AH91: 8 | AI91: 15 | AJ91: 6 | AK91: 1 | AL91: 3 | AM91: 56 | AO91: 7571 | AP91: INTL STUDIES PREP ACADEMY | AQ91: 8 | AR91: 14 | AS91: 34 | AT91: 8 | AU91: 9 | AV91: 5 | AW91: 78
A92: 7601 | B92: WILLIAM H. TURNER TECHNICAL | C92: 63 | D92: 118 | E92: 140 | F92: 80 | G92: 31 | H92: 33 | I92: 465 | K92: 7731 | L92: MIAMI SOUTHRIDGE SENIOR HIGH | M92: 219 | N92: 113 | O92: 58 | P92: 26 | Q92: 2 | R92: 65 | S92: 483 | U92: 6040 | V92: DOCTORS CHARTER/MIAMI SHORES | W92: 3 | X92: 9 | Y92: 24 | Z92: 35 | AA92: 19 | AB92: 8 | AC92: 98 | AE92: 7007 | AF92: INTL. STUDIES CHARTER SENIOR | AG92: 12 | AH92: 18 | AI92: 38 | AJ92: 14 | AK92: 8 | AL92: 13 | AM92: 103 | AO92: 7581 | AP92: IPREPARATORY ACADEMY | AQ92: 1 | AR92: 3 | AS92: 7 | AT92: 9 | AU92: 19 | AV92: 1 | AW92: 40
A93: 7631 | B93: MIAMI MACARTHUR SOUTH | C93: 11 | D93: 1 | H93: 5 | I93: 17 | K93: 7741 | L93: SOUTHWEST MIAMI SENIOR HIGH | M93: 175 | N93: 143 | O93: 149 | P93: 122 | Q93: 42 | R93: 49 | S93: 680 | U93: 6041 | V93: PAUL W. BELL MIDDLE | Y93: 4 | Z93: 11 | AA93: 4 | AB93: 1 | AC93: 20 | AE93: 7008 | AF93: BIOTECH @ RICHMOND HEIGHTS | AG93: 22 | AH93: 15 | AI93: 32 | AJ93: 9 | AK93: 6 | AL93: 4 | AM93: 88 | AO93: 7591 | AP93: NORTH MIAMI SENIOR HIGH | AQ93: 92 | AR93: 73 | AS93: 97 | AT93: 20 | AU93: 9 | AV93: 39 | AW93: 330
A94: 7701 | B94: SOUTH DADE SENIOR HIGH | C94: 263 | D94: 206 | E94: 173 | F94: 52 | G94: 15 | H94: 112 | I94: 821 | K94: 7751 | L94: BARBARA GOLEMAN SENIOR HIGH | M94: 75 | N94: 110 | O94: 99 | P94: 91 | Q94: 52 | R94: 31 | S94: 458 | U94: 6042 | V94: MATER GARDENS ACADEMY MIDDLE | X94: 1 | Y94: 3 | Z94: 14 | AA94: 13 | AC94: 31 | AE94: 7009 | AF94: DORAL PERFORMING ARTS ACADEMY | AG94: 1 | AH94: 3 | AI94: 27 | AJ94: 28 | AK94: 28 | AL94: 3 | AM94: 90 | AO94: 7601 | AP94: WILLIAM H. TURNER TECHNICAL | AQ94: 85 | AR94: 92 | AS94: 86 | AT94: 26 | AU94: 7 | AV94: 11 | AW94: 307
A95: 7721 | B95: SOUTH MIAMI SENIOR HIGH | C95: 176 | D95: 111 | E95: 118 | F95: 55 | G95: 22 | H95: 50 | I95: 532 | K95: 7781 | L95: FELIX VARELA SENIOR HIGH | M95: 135 | N95: 128 | O95: 166 | P95: 134 | Q95: 37 | R95: 60 | S95: 660 | U95: 6045 | V95: INTL. STUDIES CHARTER MIDDLE | X95: 1 | Y95: 17 | Z95: 10 | AA95: 20 | AB95: 6 | AC95: 54 | AE95: 7011 | AF95: AMERICAN SENIOR | AG95: 216 | AH95: 78 | AI95: 118 | AJ95: 23 | AK95: 9 | AL95: 67 | AM95: 511 | AO95: 7701 | AP95: SOUTH DADE SENIOR HIGH | AQ95: 14 | AR95: 33 | AS95: 96 | AT95: 30 | AU95: 22 | AV95: 13 | AW95: 208
A96: 7731 | B96: MIAMI SOUTHRIDGE SENIOR HIGH | C96: 172 | D96: 116 | E96: 52 | F96: 24 | G96: 5 | H96: 84 | I96: 453 | K96: 7791 | L96: BOOKER T. WASHINGTON SR. HIGH | M96: 120 | N96: 51 | O96: 28 | P96: 14 | Q96: 3 | R96: 40 | S96: 256 | U96: 6047 | V96: MATER ACADEMY MIDDLE-INTL STUD | Y96: 5 | Z96: 5 | AB96: 1 | AC96: 11 | AE96: 7014 | AF96: MATER PERFORMING ARTS ACADEMY | AH96: 8 | AI96: 20 | AJ96: 21 | AK96: 19 | AL96: 3 | AM96: 71 | AO96: 7721 | AP96: SOUTH MIAMI SENIOR HIGH | AQ96: 77 | AR96: 66 | AS96: 111 | AT96: 27 | AU96: 8 | AV96: 25 | AW96: 314
A97: 7741 | B97: SOUTHWEST MIAMI SENIOR HIGH | C97: 137 | D97: 139 | E97: 168 | F97: 106 | G97: 48 | H97: 52 | I97: 650 | K97: 7901 | L97: NEW WORLD SCHOOL OF THE ARTS | M97: 4 | N97: 16 | O97: 32 | P97: 42 | Q97: 29 | R97: 2 | S97: 125 | U97: 6048 | V97: MIAMI COMMUNITY CHARTER MIDDLE | X97: 3 | Y97: 15 | Z97: 11 | AA97: 1 | AB97: 1 | AC97: 31 | AE97: 7015 | AF97: STELLAR LEADERSHIP ACADEMY | AG97: 46 | AH97: 4 | AI97: 5 | AL97: 43 | AM97: 98 | AO97: 7731 | AP97: MIAMI SOUTHRIDGE SENIOR HIGH | AQ97: 50 | AR97: 46 | AS97: 51 | AT97: 7 | AU97: 2 | AV97: 9 | AW97: 165
A98: 7751 | B98: BARBARA GOLEMAN SENIOR HIGH | C98: 86 | D98: 109 | E98: 143 | F98: 93 | G98: 52 | H98: 35 | I98: 518 | K98: 8012 | L98: PACE CENTER FOR GIRLS | M98: 4 | N98: 2 | R98: 2 | S98: 8 | U98: 6051 | V98: CAROL CITY MIDDLE | Y98: 9 | Z98: 2 | AA98: 1 | AB98: 2 | AC98: 14 | AE98: 7016 | AF98: SPORTS LEADERSHIP OF MIAMI CHS | AG98: 83 | AH98: 37 | AI98: 48 | AJ98: 7 | AK98: 1 | AL98: 3 | AM98: 179 | AO98: 7741 | AP98: SOUTHWEST MIAMI SENIOR HIGH | AQ98: 41 | AR98: 57 | AS98: 164 | AT98: 82 | AU98: 46 | AV98: 33 | AW98: 423
A99: 7781 | B99: FELIX VARELA SENIOR HIGH | C99: 118 | D99: 125 | E99: 144 | F99: 107 | G99: 55 | H99: 62 | I99: 611 | K99: 8014 | L99: ALTERNATIVE OUTREACH-EXT. YR | M99: 9 | R99: 46 | S99: 55 | U99: 6052 | V99: MIAMI ARTS STUDIO 6-12 @ZELDA | W99: 7 | X99: 15 | Y99: 52 | Z99: 78 | AA99: 57 | AB99: 5 | AC99: 214 | AE99: 7018 | AF99: MATER ACADEMY LAKES HIGH SCH | AG99: 33 | AH99: 31 | AI99: 118 | AJ99: 56 | AK99: 35 | AL99: 11 | AM99: 284 | AO99: 7751 | AP99: BARBARA GOLEMAN SENIOR HIGH | AQ99: 26 | AR99: 41 | AS99: 105 | AT99: 54 | AU99: 47 | AV99: 7 | AW99: 280
A100: 7791 | B100: BOOKER T. WASHINGTON SR. HIGH | C100: 117 | D100: 36 | E100: 29 | F100: 12 | H100: 56 | I100: 250 | K100: 8017 | L100: ALTERNATIVE OUTREACH PROGRAM | M100: 16 | N100: 3 | O100: 2 | Q100: 2 | R100: 35 | S100: 58 | U100: 6053 | V100: SOMERSET ACAD MIDDLE (S-MIAMI) | X100: 4 | Y100: 20 | Z100: 21 | AA100: 23 | AC100: 68 | AE100: 7020 | AF100: DORAL ACADEMY HIGH SCHOOL | AG100: 13 | AH100: 19 | AI100: 141 | AJ100: 97 | AK100: 70 | AL100: 26 | AM100: 366 | AO100: 7781 | AP100: FELIX VARELA SENIOR HIGH | AQ100: 6 | AR100: 16 | AS100: 86 | AT100: 31 | AU100: 31 | AV100: 6 | AW100: 176
A101: 7901 | B101: NEW WORLD SCHOOL OF THE ARTS | C101: 5 | D101: 6 | E101: 29 | F101: 33 | G101: 38 | H101: 15 | I101: 126 | K101: 8019 | L101: ACADEMY FOR COMMUNITY ED | M101: 17 | N101: 6 | P101: 1 | R101: 1 | S101: 25 | U101: 6060 | V101: ASPIRA LEAD. & COLLEGE PREP | Y101: 8 | Z101: 4 | AA101: 3 | AC101: 15 | AE101: 7021 | AF101: CENTER FOR INTERNATIONAL EDUC | AG101: 12 | AH101: 14 | AI101: 27 | AJ101: 8 | AK101: 9 | AL101: 2 | AM101: 72 | AO101: 7791 | AP101: BOOKER T. WASHINGTON SR. HIGH | AQ101: 30 | AR101: 20 | AS101: 25 | AT101: 3 | AU101: 2 | AV101: 6 | AW101: 86
A102: 8012 | B102: PACE CENTER FOR GIRLS | C102: 3 | D102: 1 | E102: 1 | F102: 1 | H102: 3 | I102: 9 | K102: 8101 | L102: JAN MANN OPPORTUNITY SCHOOL | M102: 1 | O102: 1 | R102: 5 | S102: 7 | U102: 6070 | V102: ASPIRA ARTS DECO CHARTER | W102: 1 | X102: 4 | Y102: 16 | Z102: 4 | AB102: 2 | AC102: 27 | AE102: 7022 | AF102: BRIDGEPREP ACAD ARTS & MINDS | AG102: 41 | AH102: 14 | AI102: 23 | AJ102: 7 | AK102: 5 | AL102: 8 | AM102: 98 | AO102: 7901 | AP102: NEW WORLD SCHOOL OF THE ARTS | AQ102: 4 | AR102: 13 | AS102: 47 | AT102: 26 | AU102: 27 | AV102: 5 | AW102: 122
A103: 8014 | B103: ALTERNATIVE OUTREACH-EXT. YR | C103: 7 | H103: 44 | I103: 51 | K103: 8121 | L103: COPE CENTER NORTH | M103: 5 | N103: 4 | R103: 8 | S103: 17 | U103: 6071 | V103: GEORGE WASHINGTON CARVER | W103: 4 | X103: 18 | Y103: 55 | Z103: 134 | AA103: 127 | AB103: 3 | AC103: 341 | AE103: 7024 | AF103: MATER ACADEMY HIGH-INTL STUDIE | AI103: 2 | AK103: 1 | AM103: 3 | AO103: 8012 | AP103: PACE CENTER FOR GIRLS | AQ103: 6 | AR103: 4 | AS103: 2 | AV103: 3 | AW103: 15
A104: 8017 | B104: ALTERNATIVE OUTREACH PROGRAM | C104: 12 | D104: 1 | E104: 1 | H104: 53 | I104: 67 | K104: 8131 | L104: DOROTHY M WALLACE COPE CENTER | M104: 5 | N104: 1 | O104: 1 | P104: 1 | R104: 5 | S104: 13 | U104: 6081 | V104: CUTLER BAY SENIOR HIGH | W104: 2 | X104: 8 | Y104: 16 | Z104: 10 | AA104: 8 | AB104: 2 | AC104: 46 | AE104: 7029 | AF104: TERRA ENVIRONMENTAL RESEARCH | AG104: 5 | AH104: 6 | AI104: 87 | AJ104: 90 | AK104: 87 | AL104: 11 | AM104: 286 | AO104: 8014 | AP104: ALTERNATIVE OUTREACH-EXT. YR | AQ104: 6 | AR104: 3 | AV104: 7 | AW104: 16
A105: 8019 | B105: ACADEMY FOR COMMUNITY ED | C105: 3 | D105: 1 | E105: 1 | H105: 1 | I105: 6 | K105: 8141 | L105: JUVENILE JUSTICE CENTER | M105: 7 | R105: 18 | S105: 25 | U105: 6082 | V105: ACADEMIR CHARTER SCHOOL MIDDLE | X105: 1 | Y105: 5 | Z105: 18 | AA105: 4 | AB105: 1 | AC105: 29 | AE105: 7031 | AF105: MAST @ FIU BISCAYNE BAY CAMPUS | AG105: 2 | AH105: 7 | AI105: 17 | AJ105: 14 | AK105: 14 | AL105: 10 | AM105: 64 | AO105: 8017 | AP105: ALTERNATIVE OUTREACH PROGRAM | AQ105: 13 | AR105: 4 | AS105: 1 | AV105: 25 | AW105: 43
A106: 8101 | B106: JAN MANN OPPORTUNITY SCHOOL | C106: 4 | D106: 1 | E106: 1 | H106: 8 | I106: 14 | K106: 8151 | L106: ROBERT RENICK EDUCATION CTR | M106: 5 | R106: 2 | S106: 7 | U106: 6083 | V106: JUST ARTS AND MANAGEMENT CMS | X106: 1 | Y106: 3 | Z106: 9 | AA106: 13 | AC106: 26 | AE106: 7032 | AF106: PALM GLADES PREP HIGH SCHOOL | AG106: 55 | AH106: 9 | AI106: 18 | AJ106: 1 | AL106: 11 | AM106: 94 | AO106: 8019 | AP106: ACADEMY FOR COMMUNITY ED | AQ106: 3 | AR106: 6 | AV106: 2 | AW106: 11
A107: 8121 | B107: COPE CENTER NORTH | C107: 1 | D107: 2 | H107: 8 | I107: 11 | K107: 8181 | L107: RUTH OWENS KRUSE' EDUC CENTER | M107: 9 | N107: 2 | O107: 1 | R107: 3 | S107: 15 | U107: 6091 | V107: CITRUS GROVE MIDDLE SCHOOL | Y107: 50 | Z107: 9 | AA107: 2 | AC107: 61 | AE107: 7033 | AF107: LAW ENFORCEMENT OFFICERS HS | AG107: 28 | AH107: 17 | AI107: 43 | AJ107: 11 | AK107: 8 | AL107: 10 | AM107: 117 | AO107: 8101 | AP107: JAN MANN OPPORTUNITY SCHOOL | AQ107: 3 | AR107: 2 | AS107: 2 | AW107: 7
A108: 8131 | B108: DOROTHY M WALLACE COPE CENTER | C108: 2 | H108: 7 | I108: 9 | K108: 9732 | L108: BRUCIE BALL EDUCATIONAL CENTER | M108: 6 | N108: 2 | O108: 1 | P108: 1 | R108: 14 | S108: 24 | U108: 6111 | V108: CUTLER BAY MIDDLE | X108: 1 | Y108: 42 | Z108: 17 | AA108: 5 | AB108: 3 | AC108: 68 | AE108: 7034 | AF108: SOMERSET ACAD HIGH SOUTH-HMSTD | AG108: 28 | AH108: 9 | AI108: 17 | AJ108: 3 | AK108: 1 | AL108: 9 | AM108: 67 | AO108: 8121 | AP108: COPE CENTER NORTH | AQ108: 16 | AR108: 4 | AS108: 6 | AT108: 1 | AV108: 7 | AW108: 34
A109: 8141 | B109: JUVENILE JUSTICE CENTER | C109: 5 | D109: 1 | H109: 18 | I109: 24 | K109: 9999 | L109: District | M109: 6224 | N109: 5313 | O109: 5332 | P109: 5241 | Q109: 2560 | R109: 2409 | S109: 27079 | U109: 6121 | V109: RUBEN DARIO MIDDLE | Y109: 11 | Z109: 9 | AA109: 6 | AB109: 1 | AC109: 27 | AE109: 7037 | AF109: MATER ACADEMY EAST HIGH SCHOOL | AG109: 57 | AH109: 19 | AI109: 20 | AL109: 4 | AM109: 100 | AO109: 8131 | AP109: DOROTHY M WALLACE COPE CENTER | AQ109: 9 | AR109: 3 | AS109: 1 | AT109: 1 | AV109: 2 | AW109: 16
A110: 8151 | B110: ROBERT RENICK EDUCATION CTR | C110: 2 | H110: 2 | I110: 4 | U110: 6128 | V110: SOMERSET ACADEMY BAY MIDDLE | W110: 1 | X110: 4 | Y110: 1 | Z110: 4 | AA110: 1 | AB110: 2 | AC110: 13 | AE110: 7038 | AF110: SOMERSET ACADEMY HIGH (SOUTH) | AI110: 2 | AJ110: 1 | AK110: 2 | AM110: 5 | AO110: 8141 | AP110: JUVENILE JUSTICE CENTER | AR110: 1 | AV110: 3 | AW110: 4
A111: 8181 | B111: RUTH OWENS KRUSE' EDUC CENTER | C111: 3 | E111: 1 | H111: 2 | I111: 6 | U111: 6161 | V111: LAWTON CHILES MIDDLE SCHOOL | X111: 2 | Y111: 72 | Z111: 53 | AA111: 14 | AB111: 2 | AC111: 143 | AE111: 7042 | AF111: SOMERSET ACADEMY CHARTER HIGH | AG111: 18 | AH111: 12 | AI111: 52 | AJ111: 13 | AK111: 3 | AL111: 2 | AM111: 100 | AO111: 8181 | AP111: RUTH OWENS KRUSE' EDUC CENTER | AQ111: 1 | AW111: 1
A112: 9732 | B112: BRUCIE BALL EDUCATIONAL CENTER | C112: 1 | D112: 1 | E112: 1 | G112: 1 | H112: 8 | I112: 12 | U112: 6171 | V112: HENRY H. FILER MIDDLE | X112: 1 | Y112: 41 | Z112: 19 | AA112: 10 | AB112: 2 | AC112: 73 | AE112: 7048 | AF112: ALONZO & TRACY MOURNING SH | AG112: 97 | AH112: 42 | AI112: 88 | AJ112: 40 | AK112: 23 | AL112: 75 | AM112: 365 | AO112: 9732 | AP112: BRUCIE BALL EDUCATIONAL CENTER | AQ112: 3 | AR112: 2 | AS112: 2 | AV112: 7 | AW112: 14
A113: 9999 | B113: District | C113: 5469 | D113: 4899 | E113: 5880 | F113: 4416 | G113: 2889 | H113: 2923 | I113: 26476 | U113: 6211 | V113: GLADES MIDDLE | X113: 4 | Y113: 30 | Z113: 55 | AA113: 34 | AC113: 123 | AE113: 7049 | AF113: WESTLAND HIALEAH SENIOR HIGH | AG113: 142 | AH113: 52 | AI113: 118 | AJ113: 58 | AK113: 36 | AL113: 58 | AM113: 464 | AO113: 9999 | AP113: District | AQ113: 2240 | AR113: 2515 | AS113: 5774 | AT113: 2455 | AU113: 2263 | AV113: 1295 | AW113: 16542
U114: 6221 | V114: HAMMOCKS MIDDLE | W114: 7 | X114: 25 | Y114: 39 | Z114: 33 | AA114: 5 | AB114: 1 | AC114: 110 | AE114: 7050 | AF114: KEYS GATE CHARTER HIGH SCHL | AG114: 114 | AH114: 39 | AI114: 38 | AJ114: 7 | AK114: 2 | AL114: 46 | AM114: 246
U115: 6231 | V115: HIALEAH MIDDLE | Y115: 49 | Z115: 26 | AA115: 5 | AB115: 2 | AC115: 82 | AE115: 7051 | AF115: G. HOLMES BRADDOCK SENIOR HIGH | AG115: 282 | AH115: 85 | AI115: 143 | AJ115: 42 | AK115: 25 | AL115: 90 | AM115: 667
U116: 6241 | V116: HIGHLAND OAKS MIDDLE | W116: 2 | X116: 11 | Y116: 69 | Z116: 70 | AA116: 37 | AB116: 15 | AC116: 204 | AE116: 7053 | AF116: PINECREST ACADEMY CHARTER HIGH | AG116: 27 | AH116: 21 | AI116: 51 | AJ116: 12 | AK116: 5 | AL116: 8 | AM116: 124
U117: 6251 | V117: HOMESTEAD MIDDLE | Y117: 40 | Z117: 2 | AA117: 1 | AB117: 3 | AC117: 46 | AE117: 7055 | AF117: YOUNG WOMEN'S PREPARATORY ACAD | AG117: 2 | AH117: 1 | AI117: 15 | AJ117: 19 | AK117: 25 | AM117: 62
U118: 6281 | V118: THOMAS JEFFERSON MIDDLE | Y118: 14 | Z118: 4 | AA118: 1 | AC118: 19 | AE118: 7056 | AF118: YOUNG MENS PREPARATORY ACADEMY | AG118: 9 | AH118: 5 | AI118: 5 | AJ118: 1 | AK118: 2 | AL118: 3 | AM118: 25
U119: 6301 | V119: JOHN F. KENNEDY MIDDLE | W119: 1 | X119: 10 | Y119: 60 | Z119: 90 | AA119: 12 | AB119: 4 | AC119: 177 | AE119: 7058 | AF119: MIAMI COMMUNITY CH HIGH SCHOOL | AG119: 37 | AH119: 6 | AI119: 10 | AJ119: 1 | AL119: 6 | AM119: 60
U120: 6331 | V120: KINLOCH PARK MIDDLE | W120: 3 | X120: 15 | Y120: 40 | Z120: 37 | AA120: 4 | AB120: 1 | AC120: 100 | AE120: 7059 | AF120: MIAMI ARTS CHARTER | AG120: 35 | AH120: 29 | AI120: 56 | AJ120: 35 | AK120: 18 | AL120: 19 | AM120: 192
U121: 6351 | V121: LAKE STEVENS MIDDLE | Y121: 30 | Z121: 16 | AA121: 7 | AB121: 3 | AC121: 56 | AE121: 7060 | AF121: EVERGLADES PREP ACADEMY HIGH | AG121: 67 | AH121: 17 | AI121: 42 | AJ121: 12 | AK121: 10 | AL121: 11 | AM121: 159
U122: 6361 | V122: JOSE DE DIEGO MIDDLE SCHOOL | X122: 4 | Y122: 19 | Z122: 3 | AB122: 1 | AC122: 27 | AE122: 7062 | AF122: MAVERICKS HIGH OF NORTH M-DADE | AG122: 70 | AH122: 27 | AI122: 4 | AL122: 51 | AM122: 152
U123: 6391 | V123: MADISON MIDDLE SCHOOL | Y123: 27 | Z123: 7 | AB123: 1 | AC123: 35 | AE123: 7065 | AF123: MAVERICKS HIGH OF SOUTH M-DADE | AG123: 55 | AH123: 14 | AI123: 3 | AL123: 67 | AM123: 139
U124: 6411 | V124: HORACE MANN MIDDLE | X124: 1 | Y124: 25 | Z124: 21 | AA124: 4 | AB124: 2 | AC124: 53 | AE124: 7066 | AF124: LBA CONSTR & BUS MGMT ACAD | AG124: 15 | AH124: 6 | AI124: 7 | AJ124: 6 | AK124: 4 | AL124: 2 | AM124: 40
U125: 6441 | V125: HOWARD D. MCMILLAN MIDDLE | X125: 3 | Y125: 39 | Z125: 97 | AA125: 63 | AB125: 3 | AC125: 205 | AE125: 7067 | AF125: GREEN SPRINGS HIGH SCHOOL | AG125: 37 | AH125: 9 | AI125: 3 | AL125: 30 | AM125: 79
U126: 6501 | V126: MIAMI LAKES MIDDLE | X126: 3 | Y126: 55 | Z126: 91 | AA126: 62 | AB126: 4 | AC126: 215 | AE126: 7068 | AF126: NORTH GARDENS HIGH SCHOOL | AG126: 23 | AH126: 5 | AI126: 2 | AJ126: 2 | AL126: 18 | AM126: 50
U127: 6521 | V127: MIAMI SPRINGS MIDDLE | W127: 4 | X127: 1 | Y127: 11 | Z127: 35 | AA127: 8 | AB127: 2 | AC127: 61 | AE127: 7069 | AF127: NORTH PARK HIGH SCHOOL | AG127: 42 | AH127: 7 | AI127: 2 | AL127: 33 | AM127: 84
U128: 6541 | V128: NAUTILUS MIDDLE | X128: 2 | Y128: 28 | Z128: 80 | AA128: 60 | AB128: 7 | AC128: 177 | AE128: 7070 | AF128: YOUTH CO-OP PREP HIGH SCHOOL | AG128: 17 | AH128: 3 | AI128: 14 | AJ128: 1 | AK128: 1 | AL128: 3 | AM128: 39
U129: 6571 | V129: NORLAND MIDDLE | X129: 1 | Y129: 15 | Z129: 15 | AA129: 4 | AC129: 35 | AE129: 7071 | AF129: CORAL GABLES SENIOR HIGH | AG129: 274 | AH129: 95 | AI129: 204 | AJ129: 77 | AK129: 51 | AL129: 101 | AM129: 802
U130: 6591 | V130: NORTH DADE MIDDLE | Y130: 24 | Z130: 12 | AA130: 1 | AB130: 2 | AC130: 39 | AE130: 7080 | AF130: CHARTER HS OF THE AMERICAS | AG130: 7 | AH130: 4 | AI130: 14 | AJ130: 5 | AK130: 11 | AL130: 3 | AM130: 44
U131: 6611 | V131: COUNTRY CLUB MIDDLE SCHOOL | X131: 1 | Y131: 35 | Z131: 10 | AC131: 46 | AE131: 7081 | AF131: DESIGN & ARCHITECTURE SENIOR | AG131: 3 | AH131: 11 | AI131: 36 | AJ131: 30 | AK131: 31 | AL131: 10 | AM131: 121
U132: 6631 | V132: NORTH MIAMI MIDDLE | X132: 24 | Y132: 40 | Z132: 20 | AA132: 7 | AB132: 2 | AC132: 93 | AE132: 7090 | AF132: IMATER PREP ACADEMY HIGH | AG132: 47 | AH132: 23 | AI132: 58 | AJ132: 28 | AK132: 11 | AL132: 4 | AM132: 171
U133: 6681 | V133: PALM SPRINGS MIDDLE | W133: 2 | X133: 4 | Y133: 49 | Z133: 26 | AA133: 6 | AB133: 1 | AC133: 88 | AE133: 7101 | AF133: CORAL REEF SENIOR HIGH | AG133: 56 | AH133: 44 | AI133: 220 | AJ133: 178 | AK133: 146 | AL133: 29 | AM133: 673
U134: 6701 | V134: PALMETTO MIDDLE | X134: 2 | Y134: 18 | Z134: 52 | AA134: 62 | AB134: 8 | AC134: 142 | AE134: 7111 | AF134: HIALEAH SENIOR | AG134: 315 | AH134: 57 | AI134: 117 | AJ134: 23 | AK134: 20 | AL134: 64 | AM134: 596
U135: 6741 | V135: PONCE DE LEON MIDDLE | W135: 4 | X135: 40 | Y135: 83 | Z135: 104 | AA135: 37 | AB135: 15 | AC135: 283 | AE135: 7121 | AF135: JOHN A FERGUSON SENIOR HIGH | AG135: 256 | AH135: 134 | AI135: 290 | AJ135: 106 | AK135: 69 | AL135: 99 | AM135: 954
U136: 6751 | V136: HIALEAH GARDENS MIDDLE SCHOOL | W136: 5 | X136: 67 | Y136: 215 | Z136: 91 | AA136: 26 | AB136: 7 | AC136: 411 | AE136: 7131 | AF136: HIALEAH-MIAMI LAKES SENIOR | AG136: 178 | AH136: 59 | AI136: 79 | AJ136: 17 | AK136: 9 | AL136: 37 | AM136: 379
U137: 6761 | V137: REDLAND MIDDLE | Y137: 28 | Z137: 10 | AA137: 1 | AB137: 2 | AC137: 41 | AE137: 7141 | AF137: DR MICHAEL M KROP SENIOR HIGH | AG137: 194 | AH137: 85 | AI137: 149 | AJ137: 43 | AK137: 30 | AL137: 77 | AM137: 578
U138: 6771 | V138: JORGE MAS CANOSA MIDDLE | X138: 1 | Y138: 142 | Z138: 67 | AA138: 56 | AB138: 4 | AC138: 270 | AE138: 7151 | AF138: HOMESTEAD SENIOR HIGH | AG138: 225 | AH138: 67 | AI138: 62 | AJ138: 13 | AK138: 5 | AL138: 47 | AM138: 419
U139: 6781 | V139: RICHMOND HEIGHTS MIDDLE | Y139: 40 | Z139: 29 | AA139: 2 | AB139: 1 | AC139: 72 | AE139: 7160 | AF139: MATER ACADEMY CHARTER HIGH | AG139: 14 | AH139: 31 | AI139: 113 | AJ139: 72 | AK139: 39 | AL139: 11 | AM139: 280
U140: 6801 | V140: RIVIERA MIDDLE | W140: 2 | X140: 6 | Y140: 21 | Z140: 18 | AA140: 3 | AB140: 1 | AC140: 51 | AE140: 7161 | AF140: MARITIME & SCIENCE TECH ACAD | AG140: 4 | AH140: 7 | AI140: 68 | AJ140: 43 | AK140: 56 | AL140: 21 | AM140: 199
U141: 6821 | V141: ROCKWAY MIDDLE | W141: 2 | X141: 5 | Y141: 27 | Z141: 77 | AA141: 45 | AB141: 4 | AC141: 160 | AE141: 7171 | AF141: MED ACAD SCIENCE & TECHNOLOGY | AG141: 6 | AH141: 7 | AI141: 59 | AJ141: 37 | AK141: 26 | AL141: 29 | AM141: 164
U142: 6841 | V142: SHENANDOAH MIDDLE | X142: 5 | Y142: 36 | Z142: 40 | AA142: 10 | AC142: 91 | AE142: 7191 | AF142: HIALEAH GARDENS SENIOR | AG142: 161 | AH142: 71 | AI142: 148 | AJ142: 30 | AK142: 19 | AL142: 40 | AM142: 469
U143: 6861 | V143: SOUTHWOOD MIDDLE | W143: 3 | X143: 6 | Y143: 64 | Z143: 105 | AA143: 81 | AB143: 6 | AC143: 265 | AE143: 7201 | AF143: MIAMI BEACH SENIOR HIGH | AG143: 182 | AH143: 62 | AI143: 125 | AJ143: 45 | AK143: 32 | AL143: 109 | AM143: 555
U144: 6881 | V144: SOUTH MIAMI MIDDLE SCHOOL | X144: 2 | Y144: 29 | Z144: 56 | AA144: 74 | AB144: 3 | AC144: 164 | AE144: 7231 | AF144: MIAMI CAROL CITY SENIOR HIGH | AG144: 148 | AH144: 38 | AI144: 57 | AJ144: 8 | AK144: 1 | AL144: 31 | AM144: 283
U145: 6901 | V145: W. R. THOMAS MIDDLE | W145: 2 | X145: 9 | Y145: 28 | Z145: 44 | AA145: 113 | AB145: 1 | AC145: 197 | AE145: 7241 | AF145: RONALD W REAGAN/DORAL SENIOR | AG145: 147 | AH145: 72 | AI145: 136 | AJ145: 36 | AK145: 44 | AL145: 110 | AM145: 545
U146: 6921 | V146: LAMAR LOUISE CURRY MIDDLE SCH | W146: 2 | X146: 6 | Y146: 53 | Z146: 77 | AA146: 72 | AB146: 8 | AC146: 218 | AE146: 7251 | AF146: MIAMI CENTRAL SENIOR HIGH | AG146: 236 | AH146: 56 | AI146: 82 | AJ146: 14 | AK146: 3 | AL146: 31 | AM146: 422
U147: 6961 | V147: WEST MIAMI MIDDLE | W147: 3 | X147: 6 | Y147: 38 | Z147: 26 | AA147: 9 | AB147: 4 | AC147: 86 | AE147: 7262 | AF147: CITY OF HIALEAH EDUCATION ACAD | AG147: 26 | AH147: 20 | AI147: 36 | AJ147: 13 | AK147: 3 | AL147: 4 | AM147: 102
U148: 6997 | V148: MATER VIRTUAL ACADEMY MID/HIGH | Z148: 2 | AA148: 1 | AC148: 3 | AE148: 7265 | AF148: ARCHIMEDEAN UPPER CONSERV CHAR | AG148: 2 | AH148: 6 | AI148: 22 | AJ148: 18 | AK148: 34 | AL148: 17 | AM148: 99
U149: 7001 | V149: MIAMI-DADE ONLINE ACADEMY 7001 | W149: 2 | X149: 3 | Y149: 5 | Z149: 13 | AA149: 4 | AB149: 3 | AC149: 30 | AE149: 7271 | AF149: MIAMI CORAL PARK SENIOR HIGH | AG149: 232 | AH149: 79 | AI149: 140 | AJ149: 40 | AK149: 28 | AL149: 65 | AM149: 584
U150: 7005 | V150: ITECH @ THOMAS EDISON EDUC CTR | W150: 15 | X150: 6 | Y150: 10 | Z150: 4 | AA150: 2 | AB150: 1 | AC150: 38 | AE150: 7291 | AF150: JOSE MARTI MAST 6-12 ACADEMY | AG150: 1 | AH150: 1 | AI150: 21 | AJ150: 39 | AK150: 49 | AL150: 6 | AM150: 117
U151: 7007 | V151: INTL. STUDIES CHARTER SENIOR | W151: 1 | X151: 3 | Y151: 10 | Z151: 9 | AA151: 2 | AB151: 5 | AC151: 30 | AE151: 7301 | AF151: MIAMI EDISON SENIOR HIGH | AG151: 110 | AH151: 22 | AI151: 23 | AJ151: 4 | AK151: 3 | AL151: 38 | AM151: 200
U152: 7008 | V152: BIOTECH @ RICHMOND HEIGHTS | W152: 15 | X152: 9 | Y152: 24 | Z152: 11 | AA152: 6 | AB152: 10 | AC152: 75 | AE152: 7341 | AF152: MIAMI JACKSON SENIOR HIGH | AG152: 229 | AH152: 51 | AI152: 51 | AJ152: 19 | AK152: 10 | AL152: 44 | AM152: 404
U153: 7009 | V153: DORAL PERFORMING ARTS ACADEMY | W153: 2 | X153: 5 | Y153: 17 | Z153: 8 | AA153: 11 | AB153: 2 | AC153: 45 | AE153: 7351 | AF153: ARTHUR AND POLLY MAYS CONSERVA | AG153: 25 | AH153: 10 | AI153: 16 | AJ153: 4 | AK153: 2 | AL153: 3 | AM153: 60
U154: 7011 | V154: AMERICAN SENIOR | W154: 176 | X154: 96 | Y154: 80 | Z154: 16 | AA154: 6 | AB154: 71 | AC154: 445 | AE154: 7361 | AF154: MIAMI KILLIAN SENIOR HIGH | AG154: 33 | AH154: 14 | AI154: 94 | AJ154: 31 | AK154: 19 | AL154: 40 | AM154: 231
U155: 7014 | V155: MATER PERFORMING ARTS ACADEMY | X155: 8 | Y155: 6 | Z155: 3 | AA155: 1 | AB155: 2 | AC155: 20 | AE155: 7371 | AF155: ROBERT MORGAN EDUCATIONAL CTR | AG155: 134 | AH155: 62 | AI155: 130 | AJ155: 66 | AK155: 27 | AL155: 30 | AM155: 449
U156: 7015 | V156: STELLAR LEADERSHIP ACADEMY | W156: 31 | X156: 8 | Y156: 5 | AB156: 42 | AC156: 86 | AE156: 7381 | AF156: MIAMI NORLAND SENIOR HIGH | AG156: 214 | AH156: 62 | AI156: 89 | AJ156: 6 | AL156: 67 | AM156: 438
U157: 7016 | V157: SPORTS LEADERSHIP OF MIAMI CHS | W157: 17 | X157: 35 | Y157: 41 | Z157: 24 | AA157: 6 | AB157: 10 | AC157: 133 | AE157: 7391 | AF157: MIAMI LAKES EDUCATIONAL CENTER | AG157: 73 | AH157: 37 | AI157: 109 | AJ157: 32 | AK157: 24 | AL157: 8 | AM157: 283
U158: 7018 | V158: MATER ACADEMY LAKES HIGH SCH | W158: 20 | X158: 53 | Y158: 89 | Z158: 38 | AA158: 11 | AB158: 6 | AC158: 217 | AE158: 7411 | AF158: MIAMI NORTHWESTERN SENIOR HIGH | AG158: 169 | AH158: 52 | AI158: 73 | AJ158: 10 | AK158: 2 | AL158: 33 | AM158: 339
U159: 7020 | V159: DORAL ACADEMY HIGH SCHOOL | W159: 16 | X159: 39 | Y159: 95 | Z159: 68 | AA159: 54 | AB159: 8 | AC159: 280 | AE159: 7431 | AF159: MIAMI PALMETTO SENIOR HIGH | AG159: 172 | AH159: 65 | AI159: 141 | AJ159: 103 | AK159: 69 | AL159: 70 | AM159: 620
U160: 7021 | V160: CENTER FOR INTERNATIONAL EDUC | W160: 1 | X160: 5 | Y160: 10 | Z160: 3 | AA160: 5 | AB160: 7 | AC160: 31 | AE160: 7461 | AF160: MIAMI SENIOR HIGH | AG160: 312 | AH160: 103 | AI160: 189 | AJ160: 46 | AK160: 25 | AL160: 50 | AM160: 725
U161: 7022 | V161: BRIDGEPREP ACAD ARTS & MINDS | W161: 22 | X161: 14 | Y161: 8 | Z161: 4 | AA161: 4 | AB161: 16 | AC161: 68 | AE161: 7511 | AF161: MIAMI SPRINGS SENIOR HIGH | AG161: 173 | AH161: 63 | AI161: 103 | AJ161: 27 | AK161: 12 | AL161: 42 | AM161: 420
U162: 7024 | V162: MATER ACADEMY HIGH-INTL STUDIE | X162: 5 | Y162: 6 | Z162: 4 | AC162: 15 | AE162: 7531 | AF162: MIAMI SUNSET SENIOR HIGH | AG162: 147 | AH162: 40 | AI162: 61 | AJ162: 22 | AK162: 9 | AL162: 47 | AM162: 326
U163: 7027 | V163: PINECREST GLADES PREP ACADEMY | X163: 1 | Y163: 4 | Z163: 20 | AA163: 10 | AB163: 3 | AC163: 38 | AE163: 7541 | AF163: NORTH MIAMI BEACH SENIOR HIGH | AG163: 138 | AH163: 55 | AI163: 101 | AJ163: 23 | AK163: 8 | AL163: 46 | AM163: 371
U164: 7032 | V164: PALM GLADES PREP HIGH SCHOOL | W164: 40 | X164: 31 | Y164: 17 | Z164: 3 | AA164: 1 | AB164: 19 | AC164: 111 | AE164: 7571 | AF164: INTL STUDIES PREP ACADEMY | AG164: 11 | AH164: 16 | AI164: 41 | AJ164: 15 | AK164: 14 | AL164: 13 | AM164: 110
U165: 7033 | V165: LAW ENFORCEMENT OFFICERS HS | W165: 11 | X165: 10 | Y165: 16 | Z165: 12 | AA165: 4 | AB165: 3 | AC165: 56 | AE165: 7581 | AF165: IPREPARATORY ACADEMY | AG165: 1 | AH165: 5 | AI165: 14 | AJ165: 16 | AK165: 7 | AL165: 7 | AM165: 50
U166: 7034 | V166: SOMERSET ACAD HIGH SOUTH-HMSTD | W166: 18 | X166: 17 | Y166: 12 | Z166: 7 | AB166: 8 | AC166: 62 | AE166: 7591 | AF166: NORTH MIAMI SENIOR HIGH | AG166: 259 | AH166: 95 | AI166: 138 | AJ166: 39 | AK166: 15 | AL166: 112 | AM166: 658
U167: 7037 | V167: MATER ACADEMY EAST HIGH SCHOOL | W167: 10 | X167: 10 | Y167: 27 | Z167: 14 | AA167: 14 | AB167: 2 | AC167: 77 | AE167: 7601 | AF167: WILLIAM H. TURNER TECHNICAL | AG167: 57 | AH167: 50 | AI167: 129 | AJ167: 37 | AK167: 19 | AL167: 10 | AM167: 302
U168: 7038 | V168: SOMERSET ACADEMY HIGH (SOUTH) | Y168: 2 | Z168: 4 | AC168: 6 | AE168: 7631 | AF168: MIAMI MACARTHUR SOUTH | AG168: 13 | AL168: 2 | AM168: 15
U169: 7042 | V169: SOMERSET ACADEMY CHARTER HIGH | W169: 6 | X169: 10 | Y169: 21 | Z169: 5 | AA169: 3 | AB169: 3 | AC169: 48 | AE169: 7701 | AF169: SOUTH DADE SENIOR HIGH | AG169: 294 | AH169: 75 | AI169: 142 | AJ169: 26 | AK169: 9 | AL169: 81 | AM169: 627
U170: 7048 | V170: ALONZO & TRACY MOURNING SH | W170: 55 | X170: 81 | Y170: 78 | Z170: 33 | AA170: 50 | AB170: 48 | AC170: 345 | AE170: 7721 | AF170: SOUTH MIAMI SENIOR HIGH | AG170: 187 | AH170: 74 | AI170: 121 | AJ170: 44 | AK170: 14 | AL170: 54 | AM170: 494
U171: 7049 | V171: WESTLAND HIALEAH SENIOR HIGH | W171: 117 | X171: 71 | Y171: 45 | Z171: 20 | AA171: 10 | AB171: 41 | AC171: 304 | AE171: 7731 | AF171: MIAMI SOUTHRIDGE SENIOR HIGH | AG171: 244 | AH171: 67 | AI171: 78 | AJ171: 6 | AK171: 3 | AL171: 74 | AM171: 472
U172: 7050 | V172: KEYS GATE CHARTER HIGH SCHL | W172: 100 | X172: 45 | Y172: 23 | Z172: 4 | AA172: 1 | AB172: 64 | AC172: 237 | AE172: 7741 | AF172: SOUTHWEST MIAMI SENIOR HIGH | AG172: 214 | AH172: 67 | AI172: 173 | AJ172: 45 | AK172: 23 | AL172: 50 | AM172: 572
U173: 7051 | V173: G. HOLMES BRADDOCK SENIOR HIGH | W173: 132 | X173: 128 | Y173: 135 | Z173: 32 | AA173: 21 | AB173: 40 | AC173: 488 | AE173: 7751 | AF173: BARBARA GOLEMAN SENIOR HIGH | AG173: 138 | AH173: 61 | AI173: 134 | AJ173: 49 | AK173: 38 | AL173: 30 | AM173: 450
U174: 7053 | V174: PINECREST ACADEMY CHARTER HIGH | W174: 13 | X174: 22 | Y174: 40 | Z174: 17 | AA174: 10 | AB174: 11 | AC174: 113 | AE174: 7781 | AF174: FELIX VARELA SENIOR HIGH | AG174: 191 | AH174: 81 | AI174: 136 | AJ174: 57 | AK174: 22 | AL174: 69 | AM174: 556
U175: 7055 | V175: YOUNG WOMEN'S PREPARATORY ACAD | W175: 2 | X175: 4 | Y175: 18 | Z175: 27 | AA175: 26 | AB175: 1 | AC175: 78 | AE175: 7791 | AF175: BOOKER T. WASHINGTON SR. HIGH | AG175: 119 | AH175: 40 | AI175: 42 | AJ175: 9 | AK175: 1 | AL175: 43 | AM175: 254
U176: 7056 | V176: YOUNG MENS PREPARATORY ACADEMY | W176: 5 | X176: 5 | Y176: 8 | Z176: 3 | AA176: 1 | AB176: 5 | AC176: 27 | AE176: 7901 | AF176: NEW WORLD SCHOOL OF THE ARTS | AG176: 11 | AH176: 18 | AI176: 31 | AJ176: 18 | AK176: 25 | AL176: 10 | AM176: 113
U177: 7058 | V177: MIAMI COMMUNITY CH HIGH SCHOOL | W177: 17 | X177: 4 | Y177: 2 | Z177: 1 | AB177: 5 | AC177: 29 | AE177: 8012 | AF177: PACE CENTER FOR GIRLS | AG177: 5 | AI177: 1 | AL177: 1 | AM177: 7
U178: 7059 | V178: MIAMI ARTS CHARTER | W178: 25 | X178: 32 | Y178: 65 | Z178: 54 | AA178: 52 | AB178: 23 | AC178: 251 | AE178: 8014 | AF178: ALTERNATIVE OUTREACH-EXT. YR | AG178: 16 | AH178: 1 | AI178: 1 | AL178: 36 | AM178: 54
U179: 7060 | V179: EVERGLADES PREP ACADEMY HIGH | W179: 38 | X179: 39 | Y179: 34 | Z179: 6 | AA179: 4 | AB179: 19 | AC179: 140 | AE179: 8017 | AF179: ALTERNATIVE OUTREACH PROGRAM | AG179: 22 | AH179: 3 | AL179: 21 | AM179: 46
U180: 7062 | V180: MAVERICKS HIGH OF NORTH M-DADE | W180: 57 | X180: 12 | Y180: 1 | AB180: 80 | AC180: 150 | AE180: 8019 | AF180: ACADEMY FOR COMMUNITY ED | AG180: 21 | AH180: 2 | AI180: 1 | AL180: 5 | AM180: 29
U181: 7065 | V181: MAVERICKS HIGH OF SOUTH M-DADE | W181: 27 | X181: 12 | Y181: 2 | AA181: 1 | AB181: 37 | AC181: 79 | AE181: 8101 | AF181: JAN MANN OPPORTUNITY SCHOOL | AG181: 8 | AH181: 1 | AL181: 2 | AM181: 11
U182: 7066 | V182: LBA CONSTR & BUS MGMT ACAD | W182: 7 | X182: 6 | Y182: 3 | Z182: 2 | AA182: 2 | AB182: 4 | AC182: 24 | AE182: 8121 | AF182: COPE CENTER NORTH | AG182: 12 | AH182: 2 | AI182: 1 | AL182: 7 | AM182: 22
U183: 7067 | V183: GREEN SPRINGS HIGH SCHOOL | W183: 40 | X183: 14 | Y183: 2 | AB183: 40 | AC183: 96 | AE183: 8131 | AF183: DOROTHY M WALLACE COPE CENTER | AG183: 6 | AH183: 3 | AL183: 8 | AM183: 17
U184: 7068 | V184: NORTH GARDENS HIGH SCHOOL | W184: 11 | AB184: 15 | AC184: 26 | AE184: 8141 | AF184: JUVENILE JUSTICE CENTER | AG184: 11 | AI184: 1 | AL184: 11 | AM184: 23
U185: 7069 | V185: NORTH PARK HIGH SCHOOL | W185: 30 | X185: 1 | Y185: 1 | AB185: 35 | AC185: 67 | AE185: 8151 | AF185: ROBERT RENICK EDUCATION CTR | AG185: 6 | AL185: 1 | AM185: 7
U186: 7070 | V186: YOUTH CO-OP PREP HIGH SCHOOL | W186: 9 | X186: 12 | Y186: 19 | Z186: 4 | AA186: 1 | AB186: 4 | AC186: 49 | AE186: 8181 | AF186: RUTH OWENS KRUSE' EDUC CENTER | AG186: 10 | AH186: 1 | AI186: 1 | AL186: 6 | AM186: 18
U187: 7071 | V187: CORAL GABLES SENIOR HIGH | W187: 161 | X187: 107 | Y187: 95 | Z187: 35 | AA187: 25 | AB187: 69 | AC187: 492 | AE187: 9732 | AF187: BRUCIE BALL EDUCATIONAL CENTER | AG187: 14 | AH187: 3 | AI187: 5 | AJ187: 1 | AK187: 1 | AL187: 13 | AM187: 37
U188: 7080 | V188: CHARTER HS OF THE AMERICAS | W188: 6 | X188: 6 | Y188: 10 | Z188: 9 | AA188: 8 | AB188: 6 | AC188: 45 | AE188: 9999 | AF188: District | AG188: 8360 | AH188: 3160 | AI188: 6939 | AJ188: 3084 | AK188: 2593 | AL188: 3013 | AM188: 27149
U189: 7081 | V189: DESIGN & ARCHITECTURE SENIOR | X189: 6 | Y189: 4 | Z189: 9 | AA189: 7 | AB189: 7 | AC189: 33
U190: 7090 | V190: IMATER PREP ACADEMY HIGH | W190: 40 | X190: 42 | Y190: 43 | Z190: 34 | AA190: 10 | AB190: 8 | AC190: 177
U191: 7101 | V191: CORAL REEF SENIOR HIGH | W191: 12 | X191: 30 | Y191: 62 | Z191: 52 | AA191: 37 | AB191: 12 | AC191: 205
U192: 7111 | V192: HIALEAH SENIOR | W192: 214 | X192: 92 | Y192: 65 | Z192: 9 | AA192: 4 | AB192: 51 | AC192: 435
U193: 7121 | V193: JOHN A FERGUSON SENIOR HIGH | W193: 196 | X193: 147 | Y193: 192 | Z193: 85 | AA193: 78 | AB193: 53 | AC193: 751
U194: 7131 | V194: HIALEAH-MIAMI LAKES SENIOR | W194: 120 | X194: 68 | Y194: 64 | Z194: 13 | AA194: 4 | AB194: 56 | AC194: 325
U195: 7141 | V195: DR MICHAEL M KROP SENIOR HIGH | W195: 134 | X195: 103 | Y195: 97 | Z195: 35 | AA195: 31 | AB195: 84 | AC195: 484
U196: 7151 | V196: HOMESTEAD SENIOR HIGH | W196: 181 | X196: 96 | Y196: 59 | Z196: 14 | AA196: 1 | AB196: 70 | AC196: 421
U197: 7160 | V197: MATER ACADEMY CHARTER HIGH | W197: 61 | X197: 53 | Y197: 70 | Z197: 12 | AA197: 8 | AB197: 20 | AC197: 224
U198: 7161 | V198: MARITIME & SCIENCE TECH ACAD | X198: 5 | Y198: 28 | Z198: 50 | AA198: 41 | AB198: 10 | AC198: 134
U199: 7191 | V199: HIALEAH GARDENS SENIOR | W199: 91 | X199: 89 | Y199: 86 | Z199: 22 | AA199: 9 | AB199: 47 | AC199: 344
U200: 7201 | V200: MIAMI BEACH SENIOR HIGH | W200: 125 | X200: 76 | Y200: 65 | Z200: 38 | AA200: 11 | AB200: 88 | AC200: 403
U201: 7231 | V201: MIAMI CAROL CITY SENIOR HIGH | W201: 103 | X201: 66 | Y201: 48 | Z201: 10 | AA201: 4 | AB201: 46 | AC201: 277
... 44 more rows

Sheet 1617ELAG9 (hidden)
B1: =COLUMN()-1 -> 1 | C1: =COLUMN()-1 -> 2 | D1: 3 | E1: 4 | F1: 5 | G1: 6 | H1: 7 | I1: 8 | J1: 9 | K1: 10 | L1: 11 | M1: 12 | N1: 13 | O1: 14 | P1: 15 | Q1: 16 | R1: 17 | S1: 18 | T1: 19 | U1: 20 | V1: 21 | W1: 22 | X1: 23 | Y1: 24 | Z1: 25 | AA1: 26 | AB1: 27 | AC1: 28 | AD1: 29 | AE1: 30 | AF1: 31 | AG1: 32 | AH1: 33 | AI1: 34 | AJ1: 35 | AK1: 36 | AL1: 37 | AM1: 38 | AN1: 39 | AO1: 40 | AP1: 41 | AQ1: 42 | AR1: 43 | AS1: 44 | AT1: 45 | AU1: 46 | AV1: 47 | AW1: 48
A2: Assessment | B2: Location | C2: School Name | D2: N-Tested | E2: Max Score | F2: Avg % Correct | G2: Avg Raw Score | H2: MC Max Score | I2: MC Avg % Correct | J2: MC Avg Raw Score | K2: MU Max Score | L2: MU Avg % Correct | M2: MU Avg Raw Score | N2: # Insufficient | O2: # Limited | P2: # Satisfactory | Q2: % Insufficient | R2: % Limited | S2: % Satisfactory | T2: Domain1 | U2: Max of Domain1 Max Score | V2: Average of Domain1 %Correct | W2: Average of Domain1 RawScore | X2: Domain1 Item List | Y2: Domain2 | Z2: Max of Domain2 Max Score | AA2: Average of Domain2 %Correct | AB2: Average of Domain2 RawScore | AC2: Domain2 Item List | AD2: Domain3 | AE2: Max of Domain3 Max Score | AF2: Average of Domain3 %Correct | AG2: Average of Domain3 RawScore | AH2: Domain3 Item List | AI2: Domain4 | AJ2: Max of Domain4 Max Score | AK2: Average of Domain4 %Correct | AL2: Average of Domain4 RawScore | AM2: Domain4 Item List | AN2: Domain5 | AO2: Max of Domain5 Max Score | AP2: Average of Domain5 %Correct | AQ2: Average of Domain5 RawScore | AR2: Domain5 Item List | AS2: Domain6 | AT2: Max of Domain6 Max Score | AU2: Average of Domain6 %Correct | AV2: Average of Domain6 RawScore | AW2: Domain6 Item List
A3: 9_12 Reading MYA - Grade 9 ELA - CBT ONLY - 2016 - 2017 | B3: 9999 | C3: 9999 9999 District | D3: 24382 | E3: 40 | F3: 49.79267492 | G3: 19.91706997 | H3: 31 | I3: 0.5136166024 | J3: 15.92211467 | K3: 9 | L3: 0.4438839217 | M3: 3.994955295 | N3: 19693 | O3: 0 | P3: 4689 | Q3: 0.8076859979 | R3: 0 | S3: 0.1923140021 | T3: Key Ideas and Details | U3: 10 | V3: 0.5615084899 | W3: 5.615084899 | Y3: Craft and Structure | Z3: 14 | AA3: 0.5042742304 | AB3: 7.059839226 | AD3: Integration of Knowledge and Ideas | AE3: 8 | AF3: 0.4972520712 | AG3: 3.97801657 | AI3: Language and Editing | AJ3: 5 | AK3: 0.3958411943 | AL3: 1.979205972 | AN3: Text-Based Writing | AO3: 3 | AP3: 0.428307768 | AQ3: 1.284923304
A4: 9_12 Reading MYA - Grade 9 ELA - CBT ONLY - 2016 - 2017 | B4: 5007 | C4: 5007 5007 - Lincoln-Marti Charter Hialeah | D4: 17 | E4: 40 | F4: 42.79411765 | G4: 17.11764706 | H4: 31 | I4: 0.4516129032 | J4: 14 | K4: 9 | L4: 0.3464052288 | M4: 3.117647059 | N4: 14 | O4: 0 | P4: 3 | Q4: 0.8235294118 | R4: 0 | S4: 0.1764705882 | T4: Key Ideas and Details | U4: 10 | V4: 0.5235294118 | W4: 5.235294118 | Y4: Craft and Structure | Z4: 14 | AA4: 0.4285714286 | AB4: 6 | AD4: Integration of Knowledge and Ideas | AE4: 8 | AF4: 0.4264705882 | AG4: 3.411764706 | AI4: Language and Editing | AJ4: 5 | AK4: 0.2823529412 | AL4: 1.411764706 | AN4: Text-Based Writing | AO4: 3 | AP4: 0.3529411765 | AQ4: 1.058823529
A5: 9_12 Reading MYA - Grade 9 ELA - CBT ONLY - 2016 - 2017 | B5: 5047 | C5: 5047 5047 - Mater Academy (miami Beach) | D5: 16 | E5: 40 | F5: 52.03125 | G5: 20.8125 | H5: 31 | I5: 0.5080645161 | J5: 15.75 | K5: 9 | L5: 0.5625 | M5: 5.0625 | N5: 12 | O5: 0 | P5: 4 | Q5: 0.75 | R5: 0 | S5: 0.25 | T5: Key Ideas and Details | U5: 10 | V5: 0.5875 | W5: 5.875 | Y5: Craft and Structure | Z5: 14 | AA5: 0.4642857143 | AB5: 6.5 | AD5: Integration of Knowledge and Ideas | AE5: 8 | AF5: 0.5390625 | AG5: 4.3125 | AI5: Language and Editing | AJ5: 5 | AK5: 0.4625 | AL5: 2.3125 | AN5: Text-Based Writing | AO5: 3 | AP5: 0.6041666667 | AQ5: 1.8125
A6: 9_12 Reading MYA - Grade 9 ELA - CBT ONLY - 2016 - 2017 | B6: 6040 | C6: 6040 6040 - Doctors Charter/miami Shores | D6: 83 | E6: 40 | F6: 58.61445783 | G6: 23.44578313 | H6: 31 | I6: 0.5911387485 | J6: 18.3253012 | K6: 9 | L6: 0.5689424364 | M6: 5.120481928 | N6: 61 | O6: 0 | P6: 22 | Q6: 0.734939759 | R6: 0 | S6: 0.265060241 | T6: Key Ideas and Details | U6: 10 | V6: 0.6493975904 | W6: 6.493975904 | Y6: Craft and Structure | Z6: 14 | AA6: 0.599827883 | AB6: 8.397590361 | AD6: Integration of Knowledge and Ideas | AE6: 8 | AF6: 0.5707831325 | AG6: 4.56626506 | AI6: Language and Editing | AJ6: 5 | AK6: 0.4481927711 | AL6: 2.240963855 | AN6: Text-Based Writing | AO6: 3 | AP6: 0.5823293173 | AQ6: 1.746987952
A7: 9_12 Reading MYA - Grade 9 ELA - CBT ONLY - 2016 - 2017 | B7: 6052 | C7: 6052 6052 - Zelda Glazer Middle School | D7: 167 | E7: 40 | F7: 56.49700599 | G7: 22.5988024 | H7: 31 | I7: 0.5649990342 | J7: 17.51497006 | K7: 9 | L7: 0.5648702595 | M7: 5.083832335 | N7: 125 | O7: 0 | P7: 42 | Q7: 0.748502994 | R7: 0 | S7: 0.251497006 | T7: Key Ideas and Details | U7: 10 | V7: 0.6041916168 | W7: 6.041916168 | Y7: Craft and Structure | Z7: 14 | AA7: 0.5662959795 | AB7: 7.928143713 | AD7: Integration of Knowledge and Ideas | AE7: 8 | AF7: 0.5568862275 | AG7: 4.45508982 | AI7: Language and Editing | AJ7: 5 | AK7: 0.4886227545 | AL7: 2.443113772 | AN7: Text-Based Writing | AO7: 3 | AP7: 0.5768463074 | AQ7: 1.730538922
A8: 9_12 Reading MYA - Grade 9 ELA - CBT ONLY - 2016 - 2017 | B8: 6081 | C8: 6081 6081 - Cutler Bay Acad Of Adv Studies | D8: 104 | E8: 40 | F8: 61.80288462 | G8: 24.72115385 | H8: 31 | I8: 0.6268610422 | J8: 19.43269231 | K8: 9 | L8: 0.5876068376 | M8: 5.288461538 | N8: 69 | O8: 0 | P8: 35 | Q8: 0.6634615385 | R8: 0 | S8: 0.3365384615 | T8: Key Ideas and Details | U8: 10 | V8: 0.6538461538 | W8: 6.538461538 | Y8: Craft and Structure | Z8: 14 | AA8: 0.6366758242 | AB8: 8.913461538 | AD8: Integration of Knowledge and Ideas | AE8: 8 | AF8: 0.6105769231 | AG8: 4.884615385 | AI8: Language and Editing | AJ8: 5 | AK8: 0.5673076923 | AL8: 2.836538462 | AN8: Text-Based Writing | AO8: 3 | AP8: 0.516025641 | AQ8: 1.548076923
A9: 9_12 Reading MYA - Grade 9 ELA - CBT ONLY - 2016 - 2017 | B9: 6997 | C9: 6997 6997 - Mater Virtual Academy Charter | D9: 9 | N9: 8 | O9: 0 | P9: 1 | Q9: 0.8888888889 | R9: 0 | S9: 0.1111111111 | T9: Key Ideas and Details | U9: 10 | V9: 0.4666666667 | W9: 4.666666667 | Y9: Craft and Structure | Z9: 14 | AA9: 0.3888888889 | AB9: 5.444444444 | AD9: Integration of Knowledge and Ideas | AE9: 8 | AF9: 0.3611111111 | AG9: 2.888888889 | AI9: Language and Editing | AJ9: 5 | AK9: 0.3111111111 | AL9: 1.555555556 | AN9: Text-Based Writing | AO9: 3 | AP9: 0.4444444444 | AQ9: 1.333333333
A10: 9_12 Reading MYA - Grade 9 ELA - CBT ONLY - 2016 - 2017 | B10: 7005 | C10: 7005 7005 - iTECH at Thomas A. Edison | D10: 55 | E10: 40 | F10: 43.95454545 | G10: 17.58181818 | H10: 31 | I10: 0.4457478006 | J10: 13.81818182 | K10: 9 | L10: 0.4181818182 | M10: 3.763636364 | N10: 50 | O10: 0 | P10: 5 | Q10: 0.9090909091 | R10: 0 | S10: 0.09090909091 | T10: Key Ideas and Details | U10: 10 | V10: 0.5109090909 | W10: 5.109090909 | Y10: Craft and Structure | Z10: 14 | AA10: 0.461038961 | AB10: 6.454545455 | AD10: Integration of Knowledge and Ideas | AE10: 8 | AF10: 0.4022727273 | AG10: 3.218181818 | AI10: Language and Editing | AJ10: 5 | AK10: 0.3236363636 | AL10: 1.618181818 | AN10: Text-Based Writing | AO10: 3 | AP10: 0.3939393939 | AQ10: 1.181818182
A11: 9_12 Reading MYA - Grade 9 ELA - CBT ONLY - 2016 - 2017 | B11: 7007 | C11: 7007 7007 - Intl. Studies Charter Senior | D11: 104 | E11: 40 | F11: 68.84615385 | G11: 27.53846154 | H11: 31 | I11: 0.6950992556 | J11: 21.54807692 | K11: 9 | L11: 0.6655982906 | M11: 5.990384615 | N11: 49 | O11: 0 | P11: 55 | Q11: 0.4711538462 | R11: 0 | S11: 0.5288461538 | T11: Key Ideas and Details | U11: 10 | V11: 0.7528846154 | W11: 7.528846154 | Y11: Craft and Structure | Z11: 14 | AA11: 0.6778846154 | AB11: 9.490384615 | AD11: Integration of Knowledge and Ideas | AE11: 8 | AF11: 0.6971153846 | AG11: 5.576923077 | AI11: Language and Editing | AJ11: 5 | AK11: 0.6384615385 | AL11: 3.192307692 | AN11: Text-Based Writing | AO11: 3 | AP11: 0.5833333333 | AQ11: 1.75
A12: 9_12 Reading MYA - Grade 9 ELA - CBT ONLY - 2016 - 2017 | B12: 7008 | C12: 7008 7008 - BioTECH at Richmond Heights 9-12 | D12: 112 | E12: 40 | F12: 52.52232143 | G12: 21.00892857 | H12: 31 | I12: 0.5285138249 | J12: 16.38392857 | K12: 9 | L12: 0.5138888889 | M12: 4.625 | N12: 94 | O12: 0 | P12: 18 | Q12: 0.8392857143 | R12: 0 | S12: 0.1607142857 | T12: Key Ideas and Details | U12: 10 | V12: 0.5964285714 | W12: 5.964285714 | Y12: Craft and Structure | Z12: 14 | AA12: 0.5363520408 | AB12: 7.508928571 | AD12: Integration of Knowledge and Ideas | AE12: 8 | AF12: 0.5200892857 | AG12: 4.160714286 | AI12: Language and Editing | AJ12: 5 | AK12: 0.3928571429 | AL12: 1.964285714 | AN12: Text-Based Writing | AO12: 3 | AP12: 0.4702380952 | AQ12: 1.410714286
A13: 9_12 Reading MYA - Grade 9 ELA - CBT ONLY - 2016 - 2017 | B13: 7009 | C13: 7009 7009 - Doral Performing Arts Academy | D13: 39 | E13: 40 | F13: 55.8974359 | G13: 22.35897436 | H13: 31 | I13: 0.5748552523 | J13: 17.82051282 | K13: 9 | L13: 0.5042735043 | M13: 4.538461538 | N13: 27 | O13: 0 | P13: 12 | Q13: 0.6923076923 | R13: 0 | S13: 0.3076923077 | T13: Key Ideas and Details | U13: 10 | V13: 0.6051282051 | W13: 6.051282051 | Y13: Craft and Structure | Z13: 14 | AA13: 0.5457875458 | AB13: 7.641025641 | AD13: Integration of Knowledge and Ideas | AE13: 8 | AF13: 0.5897435897 | AG13: 4.717948718 | AI13: Language and Editing | AJ13: 5 | AK13: 0.5282051282 | AL13: 2.641025641 | AN13: Text-Based Writing | AO13: 3 | AP13: 0.4358974359 | AQ13: 1.307692308
A14: 9_12 Reading MYA - Grade 9 ELA - CBT ONLY - 2016 - 2017 | B14: 7011 | C14: 7011 7011 - American Senior | D14: 515 | E14: 40 | F14: 42.78640777 | G14: 17.11456311 | H14: 31 | I14: 0.4558095835 | J14: 14.13009709 | K14: 9 | L14: 0.3316073355 | M14: 2.984466019 | N14: 475 | O14: 0 | P14: 40 | Q14: 0.9223300971 | R14: 0 | S14: 0.07766990291 | T14: Key Ideas and Details | U14: 10 | V14: 0.4986407767 | W14: 4.986407767 | Y14: Craft and Structure | Z14: 14 | AA14: 0.4425797503 | AB14: 6.196116505 | AD14: Integration of Knowledge and Ideas | AE14: 8 | AF14: 0.4393203883 | AG14: 3.514563107 | AI14: Language and Editing | AJ14: 5 | AK14: 0.3114563107 | AL14: 1.557281553 | AN14: Text-Based Writing | AO14: 3 | AP14: 0.2867313916 | AQ14: 0.8601941748
A15: 9_12 Reading MYA - Grade 9 ELA - CBT ONLY - 2016 - 2017 | B15: 7014 | C15: 7014 7014 - Mater Performing Arts Academy | D15: 77 | E15: 40 | F15: 58.57142857 | G15: 23.42857143 | H15: 31 | I15: 0.5911185589 | J15: 18.32467532 | K15: 9 | L15: 0.5670995671 | M15: 5.103896104 | N15: 51 | O15: 0 | P15: 26 | Q15: 0.6623376623 | R15: 0 | S15: 0.3376623377 | T15: Key Ideas and Details | U15: 10 | V15: 0.6324675325 | W15: 6.324675325 | Y15: Craft and Structure | Z15: 14 | AA15: 0.5751391466 | AB15: 8.051948052 | AD15: Integration of Knowledge and Ideas | AE15: 8 | AF15: 0.5503246753 | AG15: 4.402597403 | AI15: Language and Editing | AJ15: 5 | AK15: 0.5766233766 | AL15: 2.883116883 | AN15: Text-Based Writing | AO15: 3 | AP15: 0.5887445887 | AQ15: 1.766233766
A16: 9_12 Reading MYA - Grade 9 ELA - CBT ONLY - 2016 - 2017 | B16: 7015 | C16: 7015 7015 - Stellar Leadership Academy | D16: 18 | E16: 40 | F16: 26.25 | G16: 10.5 | H16: 31 | I16: 0.2813620072 | J16: 8.722222222 | K16: 9 | L16: 0.1975308642 | M16: 1.777777778 | N16: 18 | O16: 0 | P16: 0 | Q16: 1 | R16: 0 | S16: 0 | T16: Key Ideas and Details | U16: 10 | V16: 0.3 | W16: 3 | Y16: Craft and Structure | Z16: 14 | AA16: 0.2619047619 | AB16: 3.666666667 | AD16: Integration of Knowledge and Ideas | AE16: 8 | AF16: 0.2638888889 | AG16: 2.111111111 | AI16: Language and Editing | AJ16: 5 | AK16: 0.2333333333 | AL16: 1.166666667 | AN16: Text-Based Writing | AO16: 3 | AP16: 0.1851851852 | AQ16: 0.5555555556
A17: 9_12 Reading MYA - Grade 9 ELA - CBT ONLY - 2016 - 2017 | B17: 7016 | C17: 7016 7016 - Sports Leadership Of Miami Chs | D17: 132 | E17: 40 | F17: 49.16666667 | G17: 19.66666667 | H17: 31 | I17: 0.511485826 | J17: 15.85606061 | K17: 9 | L17: 0.4234006734 | M17: 3.810606061 | N17: 115 | O17: 0 | P17: 17 | Q17: 0.8712121212 | R17: 0 | S17: 0.1287878788 | T17: Key Ideas and Details | U17: 10 | V17: 0.5924242424 | W17: 5.924242424 | Y17: Craft and Structure | Z17: 14 | AA17: 0.505952381 | AB17: 7.083333333 | AD17: Integration of Knowledge and Ideas | AE17: 8 | AF17: 0.4734848485 | AG17: 3.787878788 | AI17: Language and Editing | AJ17: 5 | AK17: 0.3560606061 | AL17: 1.78030303 | AN17: Text-Based Writing | AO17: 3 | AP17: 0.3636363636 | AQ17: 1.090909091
A18: 9_12 Reading MYA - Grade 9 ELA - CBT ONLY - 2016 - 2017 | B18: 7018 | C18: 7018 7018 - Mater Academy Lakes High Sch | D18: 341 | E18: 40 | F18: 54.77272727 | G18: 21.90909091 | H18: 31 | I18: 0.5621038691 | J18: 17.42521994 | K18: 9 | L18: 0.4982078853 | M18: 4.483870968 | N18: 259 | O18: 0 | P18: 82 | Q18: 0.7595307918 | R18: 0 | S18: 0.2404692082 | T18: Key Ideas and Details | U18: 10 | V18: 0.5950146628 | W18: 5.950146628 | Y18: Craft and Structure | Z18: 14 | AA18: 0.5322580645 | AB18: 7.451612903 | AD18: Integration of Knowledge and Ideas | AE18: 8 | AF18: 0.560483871 | AG18: 4.483870968 | AI18: Language and Editing | AJ18: 5 | AK18: 0.4873900293 | AL18: 2.436950147 | AN18: Text-Based Writing | AO18: 3 | AP18: 0.5288367546 | AQ18: 1.586510264
A19: 9_12 Reading MYA - Grade 9 ELA - CBT ONLY - 2016 - 2017 | B19: 7020 | C19: 7020 7020 - Doral Academy High School | D19: 175 | E19: 40 | F19: 51.44285714 | G19: 20.57714286 | H19: 31 | I19: 0.5341935484 | J19: 16.56 | K19: 9 | L19: 0.4463492063 | M19: 4.017142857 | N19: 138 | O19: 0 | P19: 37 | Q19: 0.7885714286 | R19: 0 | S19: 0.2114285714 | T19: Key Ideas and Details | U19: 10 | V19: 0.5617142857 | W19: 5.617142857 | Y19: Craft and Structure | Z19: 14 | AA19: 0.5289795918 | AB19: 7.405714286 | AD19: Integration of Knowledge and Ideas | AE19: 8 | AF19: 0.5164285714 | AG19: 4.131428571 | AI19: Language and Editing | AJ19: 5 | AK19: 0.464 | AL19: 2.32 | AN19: Text-Based Writing | AO19: 3 | AP19: 0.3676190476 | AQ19: 1.102857143
A20: 9_12 Reading MYA - Grade 9 ELA - CBT ONLY - 2016 - 2017 | B20: 7021 | C20: 7021 7021 - International Educational Academy | D20: 91 | E20: 40 | F20: 62.58241758 | G20: 25.03296703 | H20: 31 | I20: 0.6338177951 | J20: 19.64835165 | K20: 9 | L20: 0.5982905983 | M20: 5.384615385 | N20: 55 | O20: 0 | P20: 36 | Q20: 0.6043956044 | R20: 0 | S20: 0.3956043956 | T20: Key Ideas and Details | U20: 10 | V20: 0.6945054945 | W20: 6.945054945 | Y20: Craft and Structure | Z20: 14 | AA20: 0.6342229199 | AB20: 8.879120879 | AD20: Integration of Knowledge and Ideas | AE20: 8 | AF20: 0.6456043956 | AG20: 5.164835165 | AI20: Language and Editing | AJ20: 5 | AK20: 0.4637362637 | AL20: 2.318681319 | AN20: Text-Based Writing | AO20: 3 | AP20: 0.5750915751 | AQ20: 1.725274725
A21: 9_12 Reading MYA - Grade 9 ELA - CBT ONLY - 2016 - 2017 | B21: 7022 | C21: 7022 7022 - Academy Of Arts And Minds | D21: 51 | E21: 40 | F21: 41.76470588 | G21: 16.70588235 | H21: 31 | I21: 0.4503478811 | J21: 13.96078431 | K21: 9 | L21: 0.3050108932 | M21: 2.745098039 | N21: 45 | O21: 0 | P21: 6 | Q21: 0.8823529412 | R21: 0 | S21: 0.1176470588 | T21: Key Ideas and Details | U21: 10 | V21: 0.4784313725 | W21: 4.784313725 | Y21: Craft and Structure | Z21: 14 | AA21: 0.4257703081 | AB21: 5.960784314 | AD21: Integration of Knowledge and Ideas | AE21: 8 | AF21: 0.4338235294 | AG21: 3.470588235 | AI21: Language and Editing | AJ21: 5 | AK21: 0.3098039216 | AL21: 1.549019608 | AN21: Text-Based Writing | AO21: 3 | AP21: 0.3137254902 | AQ21: 0.9411764706
A22: 9_12 Reading MYA - Grade 9 ELA - CBT ONLY - 2016 - 2017 | B22: 7024 | C22: 7024 7024 - Mater Academy High-Intl Studie | D22: 12 | E22: 40 | F22: 56.25 | G22: 22.5 | H22: 31 | I22: 0.5833333333 | J22: 18.08333333 | K22: 9 | L22: 0.4907407407 | M22: 4.416666667 | N22: 9 | O22: 0 | P22: 3 | Q22: 0.75 | R22: 0 | S22: 0.25 | T22: Key Ideas and Details | U22: 10 | V22: 0.5166666667 | W22: 5.166666667 | Y22: Craft and Structure | Z22: 14 | AA22: 0.625 | AB22: 8.75 | AD22: Integration of Knowledge and Ideas | AE22: 8 | AF22: 0.6354166667 | AG22: 5.083333333 | AI22: Language and Editing | AJ22: 5 | AK22: 0.35 | AL22: 1.75 | AN22: Text-Based Writing | AO22: 3 | AP22: 0.5833333333 | AQ22: 1.75
A23: 9_12 Reading MYA - Grade 9 ELA - CBT ONLY - 2016 - 2017 | B23: 7029 | C23: 7029 7029 - Terra Environmental Research | D23: 498 | E23: 40 | F23: 67.4246988 | G23: 26.96987952 | H23: 31 | I23: 0.6759942998 | J23: 20.95582329 | K23: 9 | L23: 0.6682284694 | M23: 6.014056225 | N23: 260 | O23: 0 | P23: 238 | Q23: 0.5220883534 | R23: 0 | S23: 0.4779116466 | T23: Key Ideas and Details | U23: 10 | V23: 0.7106425703 | W23: 7.106425703 | Y23: Craft and Structure | Z23: 14 | AA23: 0.6742685026 | AB23: 9.439759036 | AD23: Integration of Knowledge and Ideas | AE23: 8 | AF23: 0.6812248996 | AG23: 5.449799197 | AI23: Language and Editing | AJ23: 5 | AK23: 0.5831325301 | AL23: 2.915662651 | AN23: Text-Based Writing | AO23: 3 | AP23: 0.6860776439 | AQ23: 2.058232932
A24: 9_12 Reading MYA - Grade 9 ELA - CBT ONLY - 2016 - 2017 | B24: 7031 | C24: 7031 7031 - MAST at FIU Biscayne Bay Campus | D24: 105 | E24: 40 | F24: 66.26190476 | G24: 26.5047619 | H24: 31 | I24: 0.667281106 | J24: 20.68571429 | K24: 9 | L24: 0.6465608466 | M24: 5.819047619 | N24: 54 | O24: 0 | P24: 51 | Q24: 0.5142857143 | R24: 0 | S24: 0.4857142857 | T24: Key Ideas and Details | U24: 10 | V24: 0.700952381 | W24: 7.00952381 | Y24: Craft and Structure | Z24: 14 | AA24: 0.6646258503 | AB24: 9.304761905 | AD24: Integration of Knowledge and Ideas | AE24: 8 | AF24: 0.6666666667 | AG24: 5.333333333 | AI24: Language and Editing | AJ24: 5 | AK24: 0.6076190476 | AL24: 3.038095238 | AN24: Text-Based Writing | AO24: 3 | AP24: 0.6063492063 | AQ24: 1.819047619
A25: 9_12 Reading MYA - Grade 9 ELA - CBT ONLY - 2016 - 2017 | B25: 7032 | C25: 7032 7032 - Palm Glades Prep High School | D25: 97 | E25: 40 | F25: 43.7628866 | G25: 17.50515464 | H25: 31 | I25: 0.45959428 | J25: 14.24742268 | K25: 9 | L25: 0.3619702176 | M25: 3.257731959 | N25: 90 | O25: 0 | P25: 7 | Q25: 0.9278350515 | R25: 0 | S25: 0.07216494845 | T25: Key Ideas and Details | U25: 10 | V25: 0.5216494845 | W25: 5.216494845 | Y25: Craft and Structure | Z25: 14 | AA25: 0.4381443299 | AB25: 6.134020619 | AD25: Integration of Knowledge and Ideas | AE25: 8 | AF25: 0.4407216495 | AG25: 3.525773196 | AI25: Language and Editing | AJ25: 5 | AK25: 0.3051546392 | AL25: 1.525773196 | AN25: Text-Based Writing | AO25: 3 | AP25: 0.3676975945 | AQ25: 1.103092784
A26: 9_12 Reading MYA - Grade 9 ELA - CBT ONLY - 2016 - 2017 | B26: 7033 | C26: 7033 7033 - Law Enforcement Officers Hs | D26: 126 | E26: 40 | F26: 54.94047619 | G26: 21.97619048 | H26: 31 | I26: 0.5627240143 | J26: 17.44444444 | K26: 9 | L26: 0.5035273369 | M26: 4.531746032 | N26: 97 | O26: 0 | P26: 29 | Q26: 0.7698412698 | R26: 0 | S26: 0.2301587302 | T26: Key Ideas and Details | U26: 10 | V26: 0.6341269841 | W26: 6.341269841 | Y26: Craft and Structure | Z26: 14 | AA26: 0.552154195 | AB26: 7.73015873 | AD26: Integration of Knowledge and Ideas | AE26: 8 | AF26: 0.5515873016 | AG26: 4.412698413 | AI26: Language and Editing | AJ26: 5 | AK26: 0.4015873016 | AL26: 2.007936508 | AN26: Text-Based Writing | AO26: 3 | AP26: 0.4947089947 | AQ26: 1.484126984
A27: 9_12 Reading MYA - Grade 9 ELA - CBT ONLY - 2016 - 2017 | B27: 7034 | C27: 7034 7034 - Somerset Acad High South-Hmstd | D27: 81 | E27: 40 | F27: 46.66666667 | G27: 18.66666667 | H27: 31 | I27: 0.4902429311 | J27: 15.19753086 | K27: 9 | L27: 0.3854595336 | M27: 3.469135802 | N27: 77 | O27: 0 | P27: 4 | Q27: 0.950617284 | R27: 0 | S27: 0.04938271605 | T27: Key Ideas and Details | U27: 10 | V27: 0.5160493827 | W27: 5.160493827 | Y27: Craft and Structure | Z27: 14 | AA27: 0.4832451499 | AB27: 6.765432099 | AD27: Integration of Knowledge and Ideas | AE27: 8 | AF27: 0.4583333333 | AG27: 3.666666667 | AI27: Language and Editing | AJ27: 5 | AK27: 0.3728395062 | AL27: 1.864197531 | AN27: Text-Based Writing | AO27: 3 | AP27: 0.4032921811 | AQ27: 1.209876543
A28: 9_12 Reading MYA - Grade 9 ELA - CBT ONLY - 2016 - 2017 | B28: 7037 | C28: 7037 7037 - Mater Academy East High School | D28: 78 | E28: 40 | F28: 50.70512821 | G28: 20.28205128 | H28: 31 | I28: 0.511993383 | J28: 15.87179487 | K28: 9 | L28: 0.49002849 | M28: 4.41025641 | N28: 61 | O28: 0 | P28: 17 | Q28: 0.7820512821 | R28: 0 | S28: 0.2179487179 | T28: Key Ideas and Details | U28: 10 | V28: 0.5833333333 | W28: 5.833333333 | Y28: Craft and Structure | Z28: 14 | AA28: 0.5054945055 | AB28: 7.076923077 | AD28: Integration of Knowledge and Ideas | AE28: 8 | AF28: 0.4871794872 | AG28: 3.897435897 | AI28: Language and Editing | AJ28: 5 | AK28: 0.3717948718 | AL28: 1.858974359 | AN28: Text-Based Writing | AO28: 3 | AP28: 0.5384615385 | AQ28: 1.615384615
A29: 9_12 Reading MYA - Grade 9 ELA - CBT ONLY - 2016 - 2017 | B29: 7038 | C29: 7038 7038 - Somerset Academy High (south) | D29: 14 | E29: 40 | F29: 75 | G29: 30 | H29: 31 | I29: 0.7511520737 | J29: 23.28571429 | K29: 9 | L29: 0.746031746 | M29: 6.714285714 | N29: 3 | O29: 0 | P29: 11 | Q29: 0.2142857143 | R29: 0 | S29: 0.7857142857 | T29: Key Ideas and Details | U29: 10 | V29: 0.8071428571 | W29: 8.071428571 | Y29: Craft and Structure | Z29: 14 | AA29: 0.7295918367 | AB29: 10.21428571 | AD29: Integration of Knowledge and Ideas | AE29: 8 | AF29: 0.7767857143 | AG29: 6.214285714 | AI29: Language and Editing | AJ29: 5 | AK29: 0.6571428571 | AL29: 3.285714286 | AN29: Text-Based Writing | AO29: 3 | AP29: 0.7380952381 | AQ29: 2.214285714
A30: 9_12 Reading MYA - Grade 9 ELA - CBT ONLY - 2016 - 2017 | B30: 7042 | C30: 7042 7042 - Somerset Academy Charter High | D30: 104 | E30: 40 | F30: 61.73076923 | G30: 24.69230769 | H30: 31 | I30: 0.6333746898 | J30: 19.63461538 | K30: 9 | L30: 0.561965812 | M30: 5.057692308 | N30: 66 | O30: 0 | P30: 38 | Q30: 0.6346153846 | R30: 0 | S30: 0.3653846154 | T30: Key Ideas and Details | U30: 10 | V30: 0.6615384615 | W30: 6.615384615 | Y30: Craft and Structure | Z30: 14 | AA30: 0.603021978 | AB30: 8.442307692 | AD30: Integration of Knowledge and Ideas | AE30: 8 | AF30: 0.6442307692 | AG30: 5.153846154 | AI30: Language and Editing | AJ30: 5 | AK30: 0.55 | AL30: 2.75 | AN30: Text-Based Writing | AO30: 3 | AP30: 0.5769230769 | AQ30: 1.730769231
A31: 9_12 Reading MYA - Grade 9 ELA - CBT ONLY - 2016 - 2017 | B31: 7048 | C31: 7048 7048 - Alonzo and Tracy Mourning Sh | D31: 406 | E31: 40 | F31: 52.43842365 | G31: 20.97536946 | H31: 31 | I31: 0.540521214 | J31: 16.75615764 | K31: 9 | L31: 0.4688013136 | M31: 4.219211823 | N31: 324 | O31: 0 | P31: 82 | Q31: 0.7980295567 | R31: 0 | S31: 0.2019704433 | T31: Key Ideas and Details | U31: 10 | V31: 0.5854679803 | W31: 5.854679803 | Y31: Craft and Structure | Z31: 14 | AA31: 0.5297325827 | AB31: 7.416256158 | AD31: Integration of Knowledge and Ideas | AE31: 8 | AF31: 0.5347906404 | AG31: 4.278325123 | AI31: Language and Editing | AJ31: 5 | AK31: 0.4093596059 | AL31: 2.04679803 | AN31: Text-Based Writing | AO31: 3 | AP31: 0.4597701149 | AQ31: 1.379310345
A32: 9_12 Reading MYA - Grade 9 ELA - CBT ONLY - 2016 - 2017 | B32: 7049 | C32: 7049 7049 - Westland Hialeah Senior High | D32: 387 | E32: 40 | F32: 42.82945736 | G32: 17.13178295 | H32: 31 | I32: 0.4454446945 | J32: 13.80878553 | K32: 9 | L32: 0.3692219351 | M32: 3.322997416 | N32: 353 | O32: 0 | P32: 34 | Q32: 0.9121447028 | R32: 0 | S32: 0.08785529716 | T32: Key Ideas and Details | U32: 10 | V32: 0.4976744186 | W32: 4.976744186 | Y32: Craft and Structure | Z32: 14 | AA32: 0.4126984127 | AB32: 5.777777778 | AD32: Integration of Knowledge and Ideas | AE32: 8 | AF32: 0.4182816537 | AG32: 3.34625323 | AI32: Language and Editing | AJ32: 5 | AK32: 0.3705426357 | AL32: 1.852713178 | AN32: Text-Based Writing | AO32: 3 | AP32: 0.3927648579 | AQ32: 1.178294574
A33: 9_12 Reading MYA - Grade 9 ELA - CBT ONLY - 2016 - 2017 | B33: 7050 | C33: 7050 7050 - Keys Gate Charter High Schl | D33: 1 | N33: 1 | O33: 0 | P33: 0 | Q33: 1 | R33: 0 | S33: 0 | T33: Key Ideas and Details | U33: 10 | V33: 0.5 | W33: 5 | Y33: Craft and Structure | Z33: 14 | AA33: 0.5714285714 | AB33: 8 | AD33: Integration of Knowledge and Ideas | AE33: 8 | AF33: 0.625 | AG33: 5 | AI33: Language and Editing | AJ33: 5 | AK33: 0.2 | AL33: 1 | AN33: Text-Based Writing | AO33: 3 | AP33: 0.3333333333 | AQ33: 1
A34: 9_12 Reading MYA - Grade 9 ELA - CBT ONLY - 2016 - 2017 | B34: 7051 | C34: 7051 7051 - G. Holmes Braddock Senior High | D34: 787 | E34: 40 | F34: 50.50825921 | G34: 20.20330368 | H34: 31 | I34: 0.5195310899 | J34: 16.10546379 | K34: 9 | L34: 0.4553155443 | M34: 4.097839898 | N34: 611 | O34: 0 | P34: 176 | Q34: 0.7763659466 | R34: 0 | S34: 0.2236340534 | T34: Key Ideas and Details | U34: 10 | V34: 0.5649301144 | W34: 5.649301144 | Y34: Craft and Structure | Z34: 14 | AA34: 0.5082592122 | AB34: 7.115628971 | AD34: Integration of Knowledge and Ideas | AE34: 8 | AF34: 0.5138182973 | AG34: 4.110546379 | AI34: Language and Editing | AJ34: 5 | AK34: 0.3949174079 | AL34: 1.974587039 | AN34: Text-Based Writing | AO34: 3 | AP34: 0.4510800508 | AQ34: 1.353240152
A35: 9_12 Reading MYA - Grade 9 ELA - CBT ONLY - 2016 - 2017 | B35: 7053 | C35: 7053 7053 - Pinecrest Academy Charter High | D35: 148 | E35: 40 | F35: 53.88513514 | G35: 21.55405405 | H35: 31 | I35: 0.5510026155 | J35: 17.08108108 | K35: 9 | L35: 0.496996997 | M35: 4.472972973 | N35: 121 | O35: 0 | P35: 27 | Q35: 0.8175675676 | R35: 0 | S35: 0.1824324324 | T35: Key Ideas and Details | U35: 10 | V35: 0.6027027027 | W35: 6.027027027 | Y35: Craft and Structure | Z35: 14 | AA35: 0.5299227799 | AB35: 7.418918919 | AD35: Integration of Knowledge and Ideas | AE35: 8 | AF35: 0.5515202703 | AG35: 4.412162162 | AI35: Language and Editing | AJ35: 5 | AK35: 0.4337837838 | AL35: 2.168918919 | AN35: Text-Based Writing | AO35: 3 | AP35: 0.509009009 | AQ35: 1.527027027
A36: 9_12 Reading MYA - Grade 9 ELA - CBT ONLY - 2016 - 2017 | B36: 7055 | C36: 7055 7055 - Young Women''s Preparatory Acad | D36: 48 | E36: 40 | F36: 73.85416667 | G36: 29.54166667 | H36: 31 | I36: 0.7352150538 | J36: 22.79166667 | K36: 9 | L36: 0.75 | M36: 6.75 | N36: 14 | O36: 0 | P36: 34 | Q36: 0.2916666667 | R36: 0 | S36: 0.7083333333 | T36: Key Ideas and Details | U36: 10 | V36: 0.7979166667 | W36: 7.979166667 | Y36: Craft and Structure | Z36: 14 | AA36: 0.7321428571 | AB36: 10.25 | AD36: Integration of Knowledge and Ideas | AE36: 8 | AF36: 0.7395833333 | AG36: 5.916666667 | AI36: Language and Editing | AJ36: 5 | AK36: 0.6375 | AL36: 3.1875 | AN36: Text-Based Writing | AO36: 3 | AP36: 0.7361111111 | AQ36: 2.208333333
A37: 9_12 Reading MYA - Grade 9 ELA - CBT ONLY - 2016 - 2017 | B37: 7056 | C37: 7056 7056 - Young Mens Preparatory Academy | D37: 33 | E37: 40 | F37: 51.51515152 | G37: 20.60606061 | H37: 31 | I37: 0.5200391007 | J37: 16.12121212 | K37: 9 | L37: 0.4983164983 | M37: 4.484848485 | N37: 29 | O37: 0 | P37: 4 | Q37: 0.8787878788 | R37: 0 | S37: 0.1212121212 | T37: Key Ideas and Details | U37: 10 | V37: 0.5757575758 | W37: 5.757575758 | Y37: Craft and Structure | Z37: 14 | AA37: 0.5346320346 | AB37: 7.484848485 | AD37: Integration of Knowledge and Ideas | AE37: 8 | AF37: 0.5378787879 | AG37: 4.303030303 | AI37: Language and Editing | AJ37: 5 | AK37: 0.3212121212 | AL37: 1.606060606 | AN37: Text-Based Writing | AO37: 3 | AP37: 0.4848484848 | AQ37: 1.454545455
A38: 9_12 Reading MYA - Grade 9 ELA - CBT ONLY - 2016 - 2017 | B38: 7058 | C38: 7058 7058 - Miami Community Ch High School | D38: 66 | E38: 40 | F38: 38.75 | G38: 15.5 | H38: 31 | I38: 0.4061583578 | J38: 12.59090909 | K38: 9 | L38: 0.3232323232 | M38: 2.909090909 | N38: 65 | O38: 0 | P38: 1 | Q38: 0.9848484848 | R38: 0 | S38: 0.01515151515 | T38: Key Ideas and Details | U38: 10 | V38: 0.4545454545 | W38: 4.545454545 | Y38: Craft and Structure | Z38: 14 | AA38: 0.3712121212 | AB38: 5.196969697 | AD38: Integration of Knowledge and Ideas | AE38: 8 | AF38: 0.3806818182 | AG38: 3.045454545 | AI38: Language and Editing | AJ38: 5 | AK38: 0.3424242424 | AL38: 1.712121212 | AN38: Text-Based Writing | AO38: 3 | AP38: 0.3333333333 | AQ38: 1
A39: 9_12 Reading MYA - Grade 9 ELA - CBT ONLY - 2016 - 2017 | B39: 7059 | C39: 7059 7059 - Miami Arts Charter | D39: 186 | E39: 40 | F39: 54.35483871 | G39: 21.74193548 | H39: 31 | I39: 0.5650364204 | J39: 17.51612903 | K39: 9 | L39: 0.4695340502 | M39: 4.225806452 | N39: 142 | O39: 0 | P39: 44 | Q39: 0.7634408602 | R39: 0 | S39: 0.2365591398 | T39: Key Ideas and Details | U39: 10 | V39: 0.6048387097 | W39: 6.048387097 | Y39: Craft and Structure | Z39: 14 | AA39: 0.5683563748 | AB39: 7.956989247 | AD39: Integration of Knowledge and Ideas | AE39: 8 | AF39: 0.5477150538 | AG39: 4.38172043 | AI39: Language and Editing | AJ39: 5 | AK39: 0.447311828 | AL39: 2.23655914 | AN39: Text-Based Writing | AO39: 3 | AP39: 0.3727598566 | AQ39: 1.11827957
A40: 9_12 Reading MYA - Grade 9 ELA - CBT ONLY - 2016 - 2017 | B40: 7060 | C40: 7060 7060 - Everglades Prep Academy High | D40: 159 | E40: 40 | F40: 46.46226415 | G40: 18.58490566 | H40: 31 | I40: 0.4808277541 | J40: 14.90566038 | K40: 9 | L40: 0.4088050314 | M40: 3.679245283 | N40: 142 | O40: 0 | P40: 17 | Q40: 0.893081761 | R40: 0 | S40: 0.106918239 | T40: Key Ideas and Details | U40: 10 | V40: 0.5396226415 | W40: 5.396226415 | Y40: Craft and Structure | Z40: 14 | AA40: 0.4672057502 | AB40: 6.540880503 | AD40: Integration of Knowledge and Ideas | AE40: 8 | AF40: 0.4551886792 | AG40: 3.641509434 | AI40: Language and Editing | AJ40: 5 | AK40: 0.3698113208 | AL40: 1.849056604 | AN40: Text-Based Writing | AO40: 3 | AP40: 0.3857442348 | AQ40: 1.157232704
A41: 9_12 Reading MYA - Grade 9 ELA - CBT ONLY - 2016 - 2017 | B41: 7066 | C41: 7066 7066 - Lba Constr and Bus Mgmt Acad | D41: 34 | E41: 40 | F41: 49.92647059 | G41: 19.97058824 | H41: 31 | I41: 0.5180265655 | J41: 16.05882353 | K41: 9 | L41: 0.4346405229 | M41: 3.911764706 | N41: 26 | O41: 0 | P41: 8 | Q41: 0.7647058824 | R41: 0 | S41: 0.2352941176 | T41: Key Ideas and Details | U41: 10 | V41: 0.5970588235 | W41: 5.970588235 | Y41: Craft and Structure | Z41: 14 | AA41: 0.481092437 | AB41: 6.735294118 | AD41: Integration of Knowledge and Ideas | AE41: 8 | AF41: 0.5036764706 | AG41: 4.029411765 | AI41: Language and Editing | AJ41: 5 | AK41: 0.4235294118 | AL41: 2.117647059 | AN41: Text-Based Writing | AO41: 3 | AP41: 0.3725490196 | AQ41: 1.117647059
A42: 9_12 Reading MYA - Grade 9 ELA - CBT ONLY - 2016 - 2017 | B42: 7070 | C42: 7070 7070 - Youth Co-Op Prep High School | D42: 62 | E42: 40 | F42: 55.28225806 | G42: 22.11290323 | H42: 31 | I42: 0.5718002081 | J42: 17.72580645 | K42: 9 | L42: 0.4874551971 | M42: 4.387096774 | N42: 43 | O42: 0 | P42: 19 | Q42: 0.6935483871 | R42: 0 | S42: 0.3064516129 | T42: Key Ideas and Details | U42: 10 | V42: 0.6387096774 | W42: 6.387096774 | Y42: Craft and Structure | Z42: 14 | AA42: 0.547235023 | AB42: 7.661290323 | AD42: Integration of Knowledge and Ideas | AE42: 8 | AF42: 0.5725806452 | AG42: 4.580645161 | AI42: Language and Editing | AJ42: 5 | AK42: 0.4193548387 | AL42: 2.096774194 | AN42: Text-Based Writing | AO42: 3 | AP42: 0.4623655914 | AQ42: 1.387096774
A43: 9_12 Reading MYA - Grade 9 ELA - CBT ONLY - 2016 - 2017 | B43: 7071 | C43: 7071 7071 - Coral Gables Senior High | D43: 793 | E43: 40 | F43: 50.7408575 | G43: 20.296343 | H43: 31 | I43: 0.5236952365 | J43: 16.23455233 | K43: 9 | L43: 0.4513100743 | M43: 4.061790668 | N43: 638 | O43: 0 | P43: 155 | Q43: 0.8045397226 | R43: 0 | S43: 0.1954602774 | T43: Key Ideas and Details | U43: 10 | V43: 0.5547288777 | W43: 5.547288777 | Y43: Craft and Structure | Z43: 14 | AA43: 0.5140515222 | AB43: 7.196721311 | AD43: Integration of Knowledge and Ideas | AE43: 8 | AF43: 0.520964691 | AG43: 4.167717528 | AI43: Language and Editing | AJ43: 5 | AK43: 0.425220681 | AL43: 2.126103405 | AN43: Text-Based Writing | AO43: 3 | AP43: 0.4195039933 | AQ43: 1.25851198
A44: 9_12 Reading MYA - Grade 9 ELA - CBT ONLY - 2016 - 2017 | B44: 7080 | C44: 7080 7080 - Charter Hs Of The Americas | D44: 51 | E44: 40 | F44: 38.08823529 | G44: 15.23529412 | H44: 31 | I44: 0.3984819734 | J44: 12.35294118 | K44: 9 | L44: 0.3202614379 | M44: 2.882352941 | N44: 49 | O44: 0 | P44: 2 | Q44: 0.9607843137 | R44: 0 | S44: 0.03921568627 | T44: Key Ideas and Details | U44: 10 | V44: 0.4843137255 | W44: 4.843137255 | Y44: Craft and Structure | Z44: 14 | AA44: 0.3669467787 | AB44: 5.137254902 | AD44: Integration of Knowledge and Ideas | AE44: 8 | AF44: 0.3480392157 | AG44: 2.784313725 | AI44: Language and Editing | AJ44: 5 | AK44: 0.3294117647 | AL44: 1.647058824 | AN44: Text-Based Writing | AO44: 3 | AP44: 0.2745098039 | AQ44: 0.8235294118
A45: 9_12 Reading MYA - Grade 9 ELA - CBT ONLY - 2016 - 2017 | B45: 7081 | C45: 7081 7081 - Design and Architecture Senior | D45: 136 | E45: 40 | F45: 72.57352941 | G45: 29.02941176 | H45: 31 | I45: 0.7329222011 | J45: 22.72058824 | K45: 9 | L45: 0.7009803922 | M45: 6.308823529 | N45: 50 | O45: 0 | P45: 86 | Q45: 0.3676470588 | R45: 0 | S45: 0.6323529412 | T45: Key Ideas and Details | U45: 10 | V45: 0.7838235294 | W45: 7.838235294 | Y45: Craft and Structure | Z45: 14 | AA45: 0.7279411765 | AB45: 10.19117647 | AD45: Integration of Knowledge and Ideas | AE45: 8 | AF45: 0.7215073529 | AG45: 5.772058824 | AI45: Language and Editing | AJ45: 5 | AK45: 0.6558823529 | AL45: 3.279411765 | AN45: Text-Based Writing | AO45: 3 | AP45: 0.6495098039 | AQ45: 1.948529412
A46: 9_12 Reading MYA - Grade 9 ELA - CBT ONLY - 2016 - 2017 | B46: 7090 | C46: 7090 7090 - Imater Prep Academy High | D46: 237 | E46: 40 | F46: 47.09915612 | G46: 18.83966245 | H46: 31 | I46: 0.4875459371 | J46: 15.11392405 | K46: 9 | L46: 0.413970933 | M46: 3.725738397 | N46: 203 | O46: 0 | P46: 34 | Q46: 0.8565400844 | R46: 0 | S46: 0.1434599156 | T46: Key Ideas and Details | U46: 10 | V46: 0.5405063291 | W46: 5.405063291 | Y46: Craft and Structure | Z46: 14 | AA46: 0.4879445449 | AB46: 6.831223629 | AD46: Integration of Knowledge and Ideas | AE46: 8 | AF46: 0.4699367089 | AG46: 3.759493671 | AI46: Language and Editing | AJ46: 5 | AK46: 0.3282700422 | AL46: 1.641350211 | AN46: Text-Based Writing | AO46: 3 | AP46: 0.4008438819 | AQ46: 1.202531646
A47: 9_12 Reading MYA - Grade 9 ELA - CBT ONLY - 2016 - 2017 | B47: 7101 | C47: 7101 7101 - Coral Reef Senior High | D47: 820 | E47: 40 | F47: 64.6554878 | G47: 25.86219512 | H47: 31 | I47: 0.6544453186 | J47: 20.28780488 | K47: 9 | L47: 0.6193766938 | M47: 5.574390244 | N47: 464 | O47: 0 | P47: 356 | Q47: 0.5658536585 | R47: 0 | S47: 0.4341463415 | T47: Key Ideas and Details | U47: 10 | V47: 0.692195122 | W47: 6.92195122 | Y47: Craft and Structure | Z47: 14 | AA47: 0.6400696864 | AB47: 8.96097561 | AD47: Integration of Knowledge and Ideas | AE47: 8 | AF47: 0.656097561 | AG47: 5.248780488 | AI47: Language and Editing | AJ47: 5 | AK47: 0.5795121951 | AL47: 2.897560976 | AN47: Text-Based Writing | AO47: 3 | AP47: 0.6109756098 | AQ47: 1.832926829
A48: 9_12 Reading MYA - Grade 9 ELA - CBT ONLY - 2016 - 2017 | B48: 7111 | C48: 7111 7111 - Hialeah Senior | D48: 498 | E48: 40 | F48: 44.0060241 | G48: 17.60240964 | H48: 31 | I48: 0.4599041327 | J48: 14.25702811 | K48: 9 | L48: 0.3717090585 | M48: 3.345381526 | N48: 429 | O48: 0 | P48: 69 | Q48: 0.8614457831 | R48: 0 | S48: 0.1385542169 | T48: Key Ideas and Details | U48: 10 | V48: 0.5116465863 | W48: 5.116465863 | Y48: Craft and Structure | Z48: 14 | AA48: 0.4450659782 | AB48: 6.230923695 | AD48: Integration of Knowledge and Ideas | AE48: 8 | AF48: 0.4457831325 | AG48: 3.56626506 | AI48: Language and Editing | AJ48: 5 | AK48: 0.3473895582 | AL48: 1.736947791 | AN48: Text-Based Writing | AO48: 3 | AP48: 0.3172690763 | AQ48: 0.9518072289
A49: 9_12 Reading MYA - Grade 9 ELA - CBT ONLY - 2016 - 2017 | B49: 7121 | C49: 7121 7121 - John A Ferguson Senior High | D49: 1108 | E49: 40 | F49: 51.64936823 | G49: 20.65974729 | H49: 31 | I49: 0.5314428788 | J49: 16.47472924 | K49: 9 | L49: 0.4650020056 | M49: 4.185018051 | N49: 856 | O49: 0 | P49: 252 | Q49: 0.7725631769 | R49: 0 | S49: 0.2274368231 | T49: Key Ideas and Details | U49: 10 | V49: 0.5723826715 | W49: 5.723826715 | Y49: Craft and Structure | Z49: 14 | AA49: 0.5230144404 | AB49: 7.322202166 | AD49: Integration of Knowledge and Ideas | AE49: 8 | AF49: 0.5244810469 | AG49: 4.195848375 | AI49: Language and Editing | AJ49: 5 | AK49: 0.4200361011 | AL49: 2.100180505 | AN49: Text-Based Writing | AO49: 3 | AP49: 0.4392298436 | AQ49: 1.317689531
A50: 9_12 Reading MYA - Grade 9 ELA - CBT ONLY - 2016 - 2017 | B50: 7131 | C50: 7131 7131 - Hialeah-Miami Lakes Senior | D50: 395 | E50: 40 | F50: 45.43670886 | G50: 18.17468354 | H50: 31 | I50: 0.4718660678 | J50: 14.6278481 | K50: 9 | L50: 0.394092827 | M50: 3.546835443 | N50: 341 | O50: 0 | P50: 54 | Q50: 0.8632911392 | R50: 0 | S50: 0.1367088608 | T50: Key Ideas and Details | U50: 10 | V50: 0.5311392405 | W50: 5.311392405 | Y50: Craft and Structure | Z50: 14 | AA50: 0.4533453888 | AB50: 6.346835443 | AD50: Integration of Knowledge and Ideas | AE50: 8 | AF50: 0.4582278481 | AG50: 3.665822785 | AI50: Language and Editing | AJ50: 5 | AK50: 0.3402531646 | AL50: 1.701265823 | AN50: Text-Based Writing | AO50: 3 | AP50: 0.3831223629 | AQ50: 1.149367089
A51: 9_12 Reading MYA - Grade 9 ELA - CBT ONLY - 2016 - 2017 | B51: 7141 | C51: 7141 7141 - Dr Michael M Krop Senior High | D51: 682 | E51: 40 | F51: 54.07258065 | G51: 21.62903226 | H51: 31 | I51: 0.5568536562 | J51: 17.26246334 | K51: 9 | L51: 0.4851743239 | M51: 4.366568915 | N51: 508 | O51: 0 | P51: 174 | Q51: 0.7448680352 | R51: 0 | S51: 0.2551319648 | T51: Key Ideas and Details | U51: 10 | V51: 0.6080645161 | W51: 6.080645161 | Y51: Craft and Structure | Z51: 14 | AA51: 0.5481776288 | AB51: 7.674486804 | AD51: Integration of Knowledge and Ideas | AE51: 8 | AF51: 0.5498533724 | AG51: 4.398826979 | AI51: Language and Editing | AJ51: 5 | AK51: 0.4240469208 | AL51: 2.120234604 | AN51: Text-Based Writing | AO51: 3 | AP51: 0.4516129032 | AQ51: 1.35483871
A52: 9_12 Reading MYA - Grade 9 ELA - CBT ONLY - 2016 - 2017 | B52: 7151 | C52: 7151 7151 - Homestead Senior High | D52: 459 | E52: 40 | F52: 40.28867102 | G52: 16.11546841 | H52: 31 | I52: 0.4225173941 | J52: 13.09803922 | K52: 9 | L52: 0.3352699104 | M52: 3.017429194 | N52: 431 | O52: 0 | P52: 28 | Q52: 0.9389978214 | R52: 0 | S52: 0.06100217865 | T52: Key Ideas and Details | U52: 10 | V52: 0.4843137255 | W52: 4.843137255 | Y52: Craft and Structure | Z52: 14 | AA52: 0.4215686275 | AB52: 5.901960784 | AD52: Integration of Knowledge and Ideas | AE52: 8 | AF52: 0.3758169935 | AG52: 3.006535948 | AI52: Language and Editing | AJ52: 5 | AK52: 0.2928104575 | AL52: 1.464052288 | AN52: Text-Based Writing | AO52: 3 | AP52: 0.2999273784 | AQ52: 0.8997821351
A53: 9_12 Reading MYA - Grade 9 ELA - CBT ONLY - 2016 - 2017 | B53: 7160 | C53: 7160 7160 - Mater Academy Charter High | D53: 413 | E53: 40 | F53: 50.33292978 | G53: 20.13317191 | H53: 31 | I53: 0.5204249004 | J53: 16.13317191 | K53: 9 | L53: 0.4444444444 | M53: 4 | N53: 336 | O53: 0 | P53: 77 | Q53: 0.813559322 | R53: 0 | S53: 0.186440678 | T53: Key Ideas and Details | U53: 10 | V53: 0.5411622276 | W53: 5.411622276 | Y53: Craft and Structure | Z53: 14 | AA53: 0.4984434452 | AB53: 6.978208232 | AD53: Integration of Knowledge and Ideas | AE53: 8 | AF53: 0.5202784504 | AG53: 4.162227603 | AI53: Language and Editing | AJ53: 5 | AK53: 0.4430992736 | AL53: 2.215496368 | AN53: Text-Based Writing | AO53: 3 | AP53: 0.4552058111 | AQ53: 1.365617433
A54: 9_12 Reading MYA - Grade 9 ELA - CBT ONLY - 2016 - 2017 | B54: 7161 | C54: 7161 7161 - Maritime and Science Tech Acad | D54: 232 | E54: 40 | F54: 69.39655172 | G54: 27.75862069 | H54: 31 | I54: 0.7024471635 | J54: 21.77586207 | K54: 9 | L54: 0.6647509579 | M54: 5.982758621 | N54: 101 | O54: 0 | P54: 131 | Q54: 0.4353448276 | R54: 0 | S54: 0.5646551724 | T54: Key Ideas and Details | U54: 10 | V54: 0.7435344828 | W54: 7.435344828 | Y54: Craft and Structure | Z54: 14 | AA54: 0.680726601 | AB54: 9.530172414 | AD54: Integration of Knowledge and Ideas | AE54: 8 | AF54: 0.7144396552 | AG54: 5.715517241 | AI54: Language and Editing | AJ54: 5 | AK54: 0.6344827586 | AL54: 3.172413793 | AN54: Text-Based Writing | AO54: 3 | AP54: 0.6350574713 | AQ54: 1.905172414
A55: 9_12 Reading MYA - Grade 9 ELA - CBT ONLY - 2016 - 2017 | B55: 7171 | C55: 7171 7171 - Med Acad Science and Technology | D55: 210 | E55: 40 | F55: 66.79761905 | G55: 26.71904762 | H55: 31 | I55: 0.6720430108 | J55: 20.83333333 | K55: 9 | L55: 0.653968254 | M55: 5.885714286 | N55: 100 | O55: 0 | P55: 110 | Q55: 0.4761904762 | R55: 0 | S55: 0.5238095238 | T55: Key Ideas and Details | U55: 10 | V55: 0.7233333333 | W55: 7.233333333 | Y55: Craft and Structure | Z55: 14 | AA55: 0.6523809524 | AB55: 9.133333333 | AD55: Integration of Knowledge and Ideas | AE55: 8 | AF55: 0.6505952381 | AG55: 5.204761905 | AI55: Language and Editing | AJ55: 5 | AK55: 0.639047619 | AL55: 3.195238095 | AN55: Text-Based Writing | AO55: 3 | AP55: 0.6507936508 | AQ55: 1.952380952
A56: 9_12 Reading MYA - Grade 9 ELA - CBT ONLY - 2016 - 2017 | B56: 7191 | C56: 7191 7191 - Hialeah Gardens Senior | D56: 669 | E56: 40 | F56: 52.22720478 | G56: 20.89088191 | H56: 31 | I56: 0.535078837 | J56: 16.58744395 | K56: 9 | L56: 0.4781597741 | M56: 4.303437967 | N56: 510 | O56: 0 | P56: 159 | Q56: 0.7623318386 | R56: 0 | S56: 0.2376681614 | T56: Key Ideas and Details | U56: 10 | V56: 0.5886397608 | W56: 5.886397608 | Y56: Craft and Structure | Z56: 14 | AA56: 0.5261584454 | AB56: 7.366218236 | AD56: Integration of Knowledge and Ideas | AE56: 8 | AF56: 0.5278400598 | AG56: 4.222720478 | AI56: Language and Editing | AJ56: 5 | AK56: 0.3988041854 | AL56: 1.994020927 | AN56: Text-Based Writing | AO56: 3 | AP56: 0.4738415546 | AQ56: 1.421524664
A57: 9_12 Reading MYA - Grade 9 ELA - CBT ONLY - 2016 - 2017 | B57: 7201 | C57: 7201 7201 - Miami Beach Senior High | D57: 418 | E57: 40 | F57: 51.90789474 | G57: 20.76315789 | H57: 31 | I57: 0.5401296496 | J57: 16.74401914 | K57: 9 | L57: 0.4465709729 | M57: 4.019138756 | N57: 311 | O57: 0 | P57: 107 | Q57: 0.7440191388 | R57: 0 | S57: 0.2559808612 | T57: Key Ideas and Details | U57: 10 | V57: 0.571291866 | W57: 5.71291866 | Y57: Craft and Structure | Z57: 14 | AA57: 0.5340054682 | AB57: 7.476076555 | AD57: Integration of Knowledge and Ideas | AE57: 8 | AF57: 0.5119617225 | AG57: 4.09569378 | AI57: Language and Editing | AJ57: 5 | AK57: 0.4488038278 | AL57: 2.244019139 | AN57: Text-Based Writing | AO57: 3 | AP57: 0.4114832536 | AQ57: 1.234449761
A58: 9_12 Reading MYA - Grade 9 ELA - CBT ONLY - 2016 - 2017 | B58: 7231 | C58: 7231 7231 - Miami Carol City Senior High | D58: 288 | E58: 40 | F58: 42.12673611 | G58: 16.85069444 | H58: 31 | I58: 0.4419802867 | J58: 13.70138889 | K58: 9 | L58: 0.3499228395 | M58: 3.149305556 | N58: 272 | O58: 0 | P58: 16 | Q58: 0.9444444444 | R58: 0 | S58: 0.05555555556 | T58: Key Ideas and Details | U58: 10 | V58: 0.5020833333 | W58: 5.020833333 | Y58: Craft and Structure | Z58: 14 | AA58: 0.4437003968 | AB58: 6.211805556 | AD58: Integration of Knowledge and Ideas | AE58: 8 | AF58: 0.3923611111 | AG58: 3.138888889 | AI58: Language and Editing | AJ58: 5 | AK58: 0.2840277778 | AL58: 1.420138889 | AN58: Text-Based Writing | AO58: 3 | AP58: 0.3530092593 | AQ58: 1.059027778
A59: 9_12 Reading MYA - Grade 9 ELA - CBT ONLY - 2016 - 2017 | B59: 7241 | C59: 7241 7241 - Ronald W Reagan/doral Senior | D59: 69 | E59: 40 | F59: 69.96376812 | G59: 27.98550725 | H59: 31 | I59: 0.7115474521 | J59: 22.05797101 | K59: 9 | L59: 0.6586151369 | M59: 5.927536232 | N59: 30 | O59: 0 | P59: 39 | Q59: 0.4347826087 | R59: 0 | S59: 0.5652173913 | T59: Key Ideas and Details | U59: 10 | V59: 0.7579710145 | W59: 7.579710145 | Y59: Craft and Structure | Z59: 14 | AA59: 0.6728778468 | AB59: 9.420289855 | AD59: Integration of Knowledge and Ideas | AE59: 8 | AF59: 0.7010869565 | AG59: 5.608695652 | AI59: Language and Editing | AJ59: 5 | AK59: 0.6869565217 | AL59: 3.434782609 | AN59: Text-Based Writing | AO59: 3 | AP59: 0.6473429952 | AQ59: 1.942028986
A60: 9_12 Reading MYA - Grade 9 ELA - CBT ONLY - 2016 - 2017 | B60: 7251 | C60: 7251 7251 - Miami Central Senior High | D60: 432 | E60: 40 | F60: 39.71643519 | G60: 15.88657407 | H60: 31 | I60: 0.4170400239 | J60: 12.92824074 | K60: 9 | L60: 0.3287037037 | M60: 2.958333333 | N60: 417 | O60: 0 | P60: 15 | Q60: 0.9652777778 | R60: 0 | S60: 0.03472222222 | T60: Key Ideas and Details | U60: 10 | V60: 0.4909722222 | W60: 4.909722222 | Y60: Craft and Structure | Z60: 14 | AA60: 0.4143518519 | AB60: 5.800925926 | AD60: Integration of Knowledge and Ideas | AE60: 8 | AF60: 0.3738425926 | AG60: 2.990740741 | AI60: Language and Editing | AJ60: 5 | AK60: 0.2666666667 | AL60: 1.333333333 | AN60: Text-Based Writing | AO60: 3 | AP60: 0.2839506173 | AQ60: 0.8518518519
A61: 9_12 Reading MYA - Grade 9 ELA - CBT ONLY - 2016 - 2017 | B61: 7262 | C61: 7262 7262 - City Of Hialeah Education Acad | D61: 147 | E61: 40 | F61: 46.19047619 | G61: 18.47619048 | H61: 31 | I61: 0.4772876893 | J61: 14.79591837 | K61: 9 | L61: 0.4089191232 | M61: 3.680272109 | N61: 138 | O61: 0 | P61: 9 | Q61: 0.9387755102 | R61: 0 | S61: 0.0612244898 | T61: Key Ideas and Details | U61: 10 | V61: 0.5401360544 | W61: 5.401360544 | Y61: Craft and Structure | Z61: 14 | AA61: 0.4713313897 | AB61: 6.598639456 | AD61: Integration of Knowledge and Ideas | AE61: 8 | AF61: 0.4608843537 | AG61: 3.68707483 | AI61: Language and Editing | AJ61: 5 | AK61: 0.3619047619 | AL61: 1.80952381 | AN61: Text-Based Writing | AO61: 3 | AP61: 0.3265306122 | AQ61: 0.9795918367
A62: 9_12 Reading MYA - Grade 9 ELA - CBT ONLY - 2016 - 2017 | B62: 7265 | C62: 7265 7265 - Archimedean Upper Conserv Char | D62: 105 | E62: 40 | F62: 63.28571429 | G62: 25.31428571 | H62: 31 | I62: 0.6433179724 | J62: 19.94285714 | K62: 9 | L62: 0.5968253968 | M62: 5.371428571 | N62: 59 | O62: 0 | P62: 46 | Q62: 0.5619047619 | R62: 0 | S62: 0.4380952381 | T62: Key Ideas and Details | U62: 10 | V62: 0.6704761905 | W62: 6.704761905 | Y62: Craft and Structure | Z62: 14 | AA62: 0.631292517 | AB62: 8.838095238 | AD62: Integration of Knowledge and Ideas | AE62: 8 | AF62: 0.6583333333 | AG62: 5.266666667 | AI62: Language and Editing | AJ62: 5 | AK62: 0.579047619 | AL62: 2.895238095 | AN62: Text-Based Writing | AO62: 3 | AP62: 0.5365079365 | AQ62: 1.60952381
A63: 9_12 Reading MYA - Grade 9 ELA - CBT ONLY - 2016 - 2017 | B63: 7271 | C63: 7271 7271 - Miami Coral Park Senior High | D63: 629 | E63: 40 | F63: 40.51669316 | G63: 16.20667727 | H63: 31 | I63: 0.4262782707 | J63: 13.21462639 | K63: 9 | L63: 0.3324500972 | M63: 2.992050874 | N63: 574 | O63: 0 | P63: 55 | Q63: 0.9125596184 | R63: 0 | S63: 0.08744038156 | T63: Key Ideas and Details | U63: 10 | V63: 0.4492845787 | W63: 4.492845787 | Y63: Craft and Structure | Z63: 14 | AA63: 0.4093799682 | AB63: 5.731319555 | AD63: Integration of Knowledge and Ideas | AE63: 8 | AF63: 0.4067965024 | AG63: 3.254372019 | AI63: Language and Editing | AJ63: 5 | AK63: 0.3287758347 | AL63: 1.643879173 | AN63: Text-Based Writing | AO63: 3 | AP63: 0.3614202438 | AQ63: 1.084260731
A64: 9_12 Reading MYA - Grade 9 ELA - CBT ONLY - 2016 - 2017 | B64: 7291 | C64: 7291 7291 - Jose Marti Mast 6-12 Academy | D64: 112 | E64: 40 | F64: 66.13839286 | G64: 26.45535714 | H64: 31 | I64: 0.6716589862 | J64: 20.82142857 | K64: 9 | L64: 0.6259920635 | M64: 5.633928571 | N64: 63 | O64: 0 | P64: 49 | Q64: 0.5625 | R64: 0 | S64: 0.4375 | T64: Key Ideas and Details | U64: 10 | V64: 0.73125 | W64: 7.3125 | Y64: Craft and Structure | Z64: 14 | AA64: 0.6524234694 | AB64: 9.133928571 | AD64: Integration of Knowledge and Ideas | AE64: 8 | AF64: 0.671875 | AG64: 5.375 | AI64: Language and Editing | AJ64: 5 | AK64: 0.5642857143 | AL64: 2.821428571 | AN64: Text-Based Writing | AO64: 3 | AP64: 0.6041666667 | AQ64: 1.8125
A65: 9_12 Reading MYA - Grade 9 ELA - CBT ONLY - 2016 - 2017 | B65: 7301 | C65: 7301 7301 - Miami Edison Senior High | D65: 174 | E65: 40 | F65: 36.70977011 | G65: 14.68390805 | H65: 31 | I65: 0.3934000742 | J65: 12.1954023 | K65: 9 | L65: 0.2765006386 | M65: 2.488505747 | N65: 170 | O65: 0 | P65: 4 | Q65: 0.9770114943 | R65: 0 | S65: 0.02298850575 | T65: Key Ideas and Details | U65: 10 | V65: 0.4494252874 | W65: 4.494252874 | Y65: Craft and Structure | Z65: 14 | AA65: 0.3846469622 | AB65: 5.385057471 | AD65: Integration of Knowledge and Ideas | AE65: 8 | AF65: 0.3433908046 | AG65: 2.747126437 | AI65: Language and Editing | AJ65: 5 | AK65: 0.2620689655 | AL65: 1.310344828 | AN65: Text-Based Writing | AO65: 3 | AP65: 0.2490421456 | AQ65: 0.7471264368
A66: 9_12 Reading MYA - Grade 9 ELA - CBT ONLY - 2016 - 2017 | B66: 7341 | C66: 7341 7341 - Miami Jackson Senior High | D66: 416 | E66: 40 | F66: 35.75120192 | G66: 14.30048077 | H66: 31 | I66: 0.3776364764 | J66: 11.70673077 | K66: 9 | L66: 0.2881944444 | M66: 2.59375 | N66: 402 | O66: 0 | P66: 14 | Q66: 0.9663461538 | R66: 0 | S66: 0.03365384615 | T66: Key Ideas and Details | U66: 10 | V66: 0.4355769231 | W66: 4.355769231 | Y66: Craft and Structure | Z66: 14 | AA66: 0.3607486264 | AB66: 5.050480769 | AD66: Integration of Knowledge and Ideas | AE66: 8 | AF66: 0.3551682692 | AG66: 2.841346154 | AI66: Language and Editing | AJ66: 5 | AK66: 0.2490384615 | AL66: 1.245192308 | AN66: Text-Based Writing | AO66: 3 | AP66: 0.2692307692 | AQ66: 0.8076923077
A67: 9_12 Reading MYA - Grade 9 ELA - CBT ONLY - 2016 - 2017 | B67: 7351 | C67: 7351 7351 - Arthur And Polly Mays Conserva | D67: 76 | E67: 40 | F67: 52.96052632 | G67: 21.18421053 | H67: 31 | I67: 0.5394736842 | J67: 16.72368421 | K67: 9 | L67: 0.4956140351 | M67: 4.460526316 | N67: 63 | O67: 0 | P67: 13 | Q67: 0.8289473684 | R67: 0 | S67: 0.1710526316 | T67: Key Ideas and Details | U67: 10 | V67: 0.5855263158 | W67: 5.855263158 | Y67: Craft and Structure | Z67: 14 | AA67: 0.5507518797 | AB67: 7.710526316 | AD67: Integration of Knowledge and Ideas | AE67: 8 | AF67: 0.5082236842 | AG67: 4.065789474 | AI67: Language and Editing | AJ67: 5 | AK67: 0.3842105263 | AL67: 1.921052632 | AN67: Text-Based Writing | AO67: 3 | AP67: 0.5438596491 | AQ67: 1.631578947
A68: 9_12 Reading MYA - Grade 9 ELA - CBT ONLY - 2016 - 2017 | B68: 7361 | C68: 7361 7361 - Miami Killian Senior High | D68: 421 | E68: 40 | F68: 47.84441805 | G68: 19.13776722 | H68: 31 | I68: 0.4900007662 | J68: 15.19002375 | K68: 9 | L68: 0.4386381631 | M68: 3.947743468 | N68: 355 | O68: 0 | P68: 66 | Q68: 0.8432304038 | R68: 0 | S68: 0.1567695962 | T68: Key Ideas and Details | U68: 10 | V68: 0.5586698337 | W68: 5.586698337 | Y68: Craft and Structure | Z68: 14 | AA68: 0.4828639294 | AB68: 6.760095012 | AD68: Integration of Knowledge and Ideas | AE68: 8 | AF68: 0.4625890736 | AG68: 3.700712589 | AI68: Language and Editing | AJ68: 5 | AK68: 0.3596199525 | AL68: 1.798099762 | AN68: Text-Based Writing | AO68: 3 | AP68: 0.4307205067 | AQ68: 1.29216152
A69: 9_12 Reading MYA - Grade 9 ELA - CBT ONLY - 2016 - 2017 | B69: 7371 | C69: 7371 7371 - Robert Morgan Educational Ctr | D69: 516 | E69: 40 | F69: 53.31395349 | G69: 21.3255814 | H69: 31 | I69: 0.5462615654 | J69: 16.93410853 | K69: 9 | L69: 0.4879414298 | M69: 4.391472868 | N69: 421 | O69: 0 | P69: 95 | Q69: 0.8158914729 | R69: 0 | S69: 0.1841085271 | T69: Key Ideas and Details | U69: 10 | V69: 0.5957364341 | W69: 5.957364341 | Y69: Craft and Structure | Z69: 14 | AA69: 0.5456810631 | AB69: 7.639534884 | AD69: Integration of Knowledge and Ideas | AE69: 8 | AF69: 0.523498062 | AG69: 4.187984496 | AI69: Language and Editing | AJ69: 5 | AK69: 0.4096899225 | AL69: 2.048449612 | AN69: Text-Based Writing | AO69: 3 | AP69: 0.4974160207 | AQ69: 1.492248062
A70: 9_12 Reading MYA - Grade 9 ELA - CBT ONLY - 2016 - 2017 | B70: 7381 | C70: 7381 7381 - Miami Norland Senior High | D70: 424 | E70: 40 | F70: 40.34198113 | G70: 16.13679245 | H70: 31 | I70: 0.4264303104 | J70: 13.21933962 | K70: 9 | L70: 0.3241614256 | M70: 2.91745283 | N70: 398 | O70: 0 | P70: 26 | Q70: 0.9386792453 | R70: 0 | S70: 0.06132075472 | T70: Key Ideas and Details | U70: 10 | V70: 0.4634433962 | W70: 4.634433962 | Y70: Craft and Structure | Z70: 14 | AA70: 0.4267183288 | AB70: 5.974056604 | AD70: Integration of Knowledge and Ideas | AE70: 8 | AF70: 0.4006485849 | AG70: 3.205188679 | AI70: Language and Editing | AJ70: 5 | AK70: 0.2891509434 | AL70: 1.445754717 | AN70: Text-Based Writing | AO70: 3 | AP70: 0.2924528302 | AQ70: 0.8773584906
A71: 9_12 Reading MYA - Grade 9 ELA - CBT ONLY - 2016 - 2017 | B71: 7391 | C71: 7391 7391 - Miami Lakes Educational Center | D71: 310 | E71: 40 | F71: 59.27419355 | G71: 23.70967742 | H71: 31 | I71: 0.5991675338 | J71: 18.57419355 | K71: 9 | L71: 0.570609319 | M71: 5.135483871 | N71: 209 | O71: 0 | P71: 101 | Q71: 0.6741935484 | R71: 0 | S71: 0.3258064516 | T71: Key Ideas and Details | U71: 10 | V71: 0.6383870968 | W71: 6.383870968 | Y71: Craft and Structure | Z71: 14 | AA71: 0.5974654378 | AB71: 8.364516129 | AD71: Integration of Knowledge and Ideas | AE71: 8 | AF71: 0.5939516129 | AG71: 4.751612903 | AI71: Language and Editing | AJ71: 5 | AK71: 0.4922580645 | AL71: 2.461290323 | AN71: Text-Based Writing | AO71: 3 | AP71: 0.5827956989 | AQ71: 1.748387097
A72: 9_12 Reading MYA - Grade 9 ELA - CBT ONLY - 2016 - 2017 | B72: 7411 | C72: 7411 7411 - Miami Northwestern Senior High | D72: 284 | E72: 40 | F72: 41.85739437 | G72: 16.74295775 | H72: 31 | I72: 0.4413902771 | J72: 13.68309859 | K72: 9 | L72: 0.3399843505 | M72: 3.059859155 | N72: 277 | O72: 0 | P72: 7 | Q72: 0.9753521127 | R72: 0 | S72: 0.02464788732 | T72: Key Ideas and Details | U72: 10 | V72: 0.523943662 | W72: 5.23943662 | Y72: Craft and Structure | Z72: 14 | AA72: 0.4333501006 | AB72: 6.066901408 | AD72: Integration of Knowledge and Ideas | AE72: 8 | AF72: 0.4027288732 | AG72: 3.221830986 | AI72: Language and Editing | AJ72: 5 | AK72: 0.2690140845 | AL72: 1.345070423 | AN72: Text-Based Writing | AO72: 3 | AP72: 0.2899061033 | AQ72: 0.8697183099
A73: 9_12 Reading MYA - Grade 9 ELA - CBT ONLY - 2016 - 2017 | B73: 7431 | C73: 7431 7431 - Miami Palmetto Senior High | D73: 587 | E73: 40 | F73: 55.08091993 | G73: 22.03236797 | H73: 31 | I73: 0.5631697533 | J73: 17.45826235 | K73: 9 | L73: 0.508233958 | M73: 4.574105622 | N73: 417 | O73: 0 | P73: 170 | Q73: 0.7103918228 | R73: 0 | S73: 0.2896081772 | T73: Key Ideas and Details | U73: 10 | V73: 0.5885860307 | W73: 5.885860307 | Y73: Craft and Structure | Z73: 14 | AA73: 0.5569481626 | AB73: 7.797274276 | AD73: Integration of Knowledge and Ideas | AE73: 8 | AF73: 0.5632453152 | AG73: 4.505962521 | AI73: Language and Editing | AJ73: 5 | AK73: 0.4555366269 | AL73: 2.277683135 | AN73: Text-Based Writing | AO73: 3 | AP73: 0.5218625781 | AQ73: 1.565587734
A74: 9_12 Reading MYA - Grade 9 ELA - CBT ONLY - 2016 - 2017 | B74: 7461 | C74: 7461 7461 - Miami Senior High | D74: 724 | E74: 40 | F74: 46.48825967 | G74: 18.59530387 | H74: 31 | I74: 0.4817768669 | J74: 14.93508287 | K74: 9 | L74: 0.4066912216 | M74: 3.660220994 | N74: 632 | O74: 0 | P74: 92 | Q74: 0.8729281768 | R74: 0 | S74: 0.1270718232 | T74: Key Ideas and Details | U74: 10 | V74: 0.5383977901 | W74: 5.383977901 | Y74: Craft and Structure | Z74: 14 | AA74: 0.4750394633 | AB74: 6.650552486 | AD74: Integration of Knowledge and Ideas | AE74: 8 | AF74: 0.4535566298 | AG74: 3.628453039 | AI74: Language and Editing | AJ74: 5 | AK74: 0.3450276243 | AL74: 1.725138122 | AN74: Text-Based Writing | AO74: 3 | AP74: 0.4023941068 | AQ74: 1.20718232
A75: 9_12 Reading MYA - Grade 9 ELA - CBT ONLY - 2016 - 2017 | B75: 7511 | C75: 7511 7511 - Miami Springs Senior High | D75: 320 | E75: 40 | F75: 47.484375 | G75: 18.99375 | H75: 31 | I75: 0.4946572581 | J75: 15.334375 | K75: 9 | L75: 0.4065972222 | M75: 3.659375 | N75: 275 | O75: 0 | P75: 45 | Q75: 0.859375 | R75: 0 | S75: 0.140625 | T75: Key Ideas and Details | U75: 10 | V75: 0.535 | W75: 5.35 | Y75: Craft and Structure | Z75: 14 | AA75: 0.4944196429 | AB75: 6.921875 | AD75: Integration of Knowledge and Ideas | AE75: 8 | AF75: 0.4640625 | AG75: 3.7125 | AI75: Language and Editing | AJ75: 5 | AK75: 0.379375 | AL75: 1.896875 | AN75: Text-Based Writing | AO75: 3 | AP75: 0.3708333333 | AQ75: 1.1125
A76: 9_12 Reading MYA - Grade 9 ELA - CBT ONLY - 2016 - 2017 | B76: 7531 | C76: 7531 7531 - Miami Sunset Senior High | D76: 249 | E76: 40 | F76: 41.20481928 | G76: 16.48192771 | H76: 31 | I76: 0.4306257287 | J76: 13.34939759 | K76: 9 | L76: 0.3480589023 | M76: 3.13253012 | N76: 230 | O76: 0 | P76: 19 | Q76: 0.9236947791 | R76: 0 | S76: 0.07630522088 | T76: Key Ideas and Details | U76: 10 | V76: 0.4678714859 | W76: 4.678714859 | Y76: Craft and Structure | Z76: 14 | AA76: 0.4168100975 | AB76: 5.835341365 | AD76: Integration of Knowledge and Ideas | AE76: 8 | AF76: 0.4241967871 | AG76: 3.393574297 | AI76: Language and Editing | AJ76: 5 | AK76: 0.3285140562 | AL76: 1.642570281 | AN76: Text-Based Writing | AO76: 3 | AP76: 0.3105756359 | AQ76: 0.9317269076
A77: 9_12 Reading MYA - Grade 9 ELA - CBT ONLY - 2016 - 2017 | B77: 7541 | C77: 7541 7541 - North Miami Beach Senior High | D77: 342 | E77: 40 | F77: 43.21637427 | G77: 17.28654971 | H77: 31 | I77: 0.4514242596 | J77: 13.99415205 | K77: 9 | L77: 0.3658219623 | M77: 3.292397661 | N77: 306 | O77: 0 | P77: 36 | Q77: 0.8947368421 | R77: 0 | S77: 0.1052631579 | T77: Key Ideas and Details | U77: 10 | V77: 0.5093567251 | W77: 5.093567251 | Y77: Craft and Structure | Z77: 14 | AA77: 0.4427736007 | AB77: 6.198830409 | AD77: Integration of Knowledge and Ideas | AE77: 8 | AF77: 0.4236111111 | AG77: 3.388888889 | AI77: Language and Editing | AJ77: 5 | AK77: 0.3087719298 | AL77: 1.543859649 | AN77: Text-Based Writing | AO77: 3 | AP77: 0.3538011696 | AQ77: 1.061403509
A78: 9_12 Reading MYA - Grade 9 ELA - CBT ONLY - 2016 - 2017 | B78: 7571 | C78: 7571 7571 - Intl Studies Prep Academy | D78: 100 | E78: 40 | F78: 60.85 | G78: 24.34 | H78: 31 | I78: 0.6109677419 | J78: 18.94 | K78: 9 | L78: 0.6 | M78: 5.4 | N78: 69 | O78: 0 | P78: 31 | Q78: 0.69 | R78: 0 | S78: 0.31 | T78: Key Ideas and Details | U78: 10 | V78: 0.678 | W78: 6.78 | Y78: Craft and Structure | Z78: 14 | AA78: 0.5871428571 | AB78: 8.22 | AD78: Integration of Knowledge and Ideas | AE78: 8 | AF78: 0.60875 | AG78: 4.87 | AI78: Language and Editing | AJ78: 5 | AK78: 0.546 | AL78: 2.73 | AN78: Text-Based Writing | AO78: 3 | AP78: 0.58 | AQ78: 1.74
A79: 9_12 Reading MYA - Grade 9 ELA - CBT ONLY - 2016 - 2017 | B79: 7581 | C79: 7581 7581 - Ipreparatory Academy | D79: 65 | E79: 40 | F79: 67.15384615 | G79: 26.86153846 | H79: 31 | I79: 0.6779156328 | J79: 21.01538462 | K79: 9 | L79: 0.6495726496 | M79: 5.846153846 | N79: 36 | O79: 0 | P79: 29 | Q79: 0.5538461538 | R79: 0 | S79: 0.4461538462 | T79: Key Ideas and Details | U79: 10 | V79: 0.7476923077 | W79: 7.476923077 | Y79: Craft and Structure | Z79: 14 | AA79: 0.656043956 | AB79: 9.184615385 | AD79: Integration of Knowledge and Ideas | AE79: 8 | AF79: 0.6692307692 | AG79: 5.353846154 | AI79: Language and Editing | AJ79: 5 | AK79: 0.5723076923 | AL79: 2.861538462 | AN79: Text-Based Writing | AO79: 3 | AP79: 0.6615384615 | AQ79: 1.984615385
A80: 9_12 Reading MYA - Grade 9 ELA - CBT ONLY - 2016 - 2017 | B80: 7591 | C80: 7591 7591 - North Miami Senior High | D80: 576 | E80: 40 | F80: 43.30295139 | G80: 17.32118056 | H80: 31 | I80: 0.4501008065 | J80: 13.953125 | K80: 9 | L80: 0.3742283951 | M80: 3.368055556 | N80: 526 | O80: 0 | P80: 50 | Q80: 0.9131944444 | R80: 0 | S80: 0.08680555556 | T80: Key Ideas and Details | U80: 10 | V80: 0.5144097222 | W80: 5.144097222 | Y80: Craft and Structure | Z80: 14 | AA80: 0.4408482143 | AB80: 6.171875 | AD80: Integration of Knowledge and Ideas | AE80: 8 | AF80: 0.4205729167 | AG80: 3.364583333 | AI80: Language and Editing | AJ80: 5 | AK80: 0.3052083333 | AL80: 1.526041667 | AN80: Text-Based Writing | AO80: 3 | AP80: 0.3715277778 | AQ80: 1.114583333
A81: 9_12 Reading MYA - Grade 9 ELA - CBT ONLY - 2016 - 2017 | B81: 7601 | C81: 7601 7601 - William H. Turner Technical | D81: 445 | E81: 40 | F81: 52.57865169 | G81: 21.03146067 | H81: 31 | I81: 0.5409206234 | J81: 16.76853933 | K81: 9 | L81: 0.4736579276 | M81: 4.262921348 | N81: 374 | O81: 0 | P81: 71 | Q81: 0.8404494382 | R81: 0 | S81: 0.1595505618 | T81: Key Ideas and Details | U81: 10 | V81: 0.6148314607 | W81: 6.148314607 | Y81: Craft and Structure | Z81: 14 | AA81: 0.5415730337 | AB81: 7.582022472 | AD81: Integration of Knowledge and Ideas | AE81: 8 | AF81: 0.506741573 | AG81: 4.053932584 | AI81: Language and Editing | AJ81: 5 | AK81: 0.3734831461 | AL81: 1.86741573 | AN81: Text-Based Writing | AO81: 3 | AP81: 0.4599250936 | AQ81: 1.379775281
A82: 9_12 Reading MYA - Grade 9 ELA - CBT ONLY - 2016 - 2017 | B82: 7631 | C82: 7631 7631 - Miami Macarthur South | D82: 14 | E82: 40 | F82: 25.35714286 | G82: 10.14285714 | H82: 31 | I82: 0.2834101382 | J82: 8.785714286 | K82: 9 | L82: 0.1507936508 | M82: 1.357142857 | N82: 14 | O82: 0 | P82: 0 | Q82: 1 | R82: 0 | S82: 0 | T82: Key Ideas and Details | U82: 10 | V82: 0.3428571429 | W82: 3.428571429 | Y82: Craft and Structure | Z82: 14 | AA82: 0.2448979592 | AB82: 3.428571429 | AD82: Integration of Knowledge and Ideas | AE82: 8 | AF82: 0.25 | AG82: 2 | AI82: Language and Editing | AJ82: 5 | AK82: 0.2142857143 | AL82: 1.071428571 | AN82: Text-Based Writing | AO82: 3 | AP82: 0.07142857143 | AQ82: 0.2142857143
A83: 9_12 Reading MYA - Grade 9 ELA - CBT ONLY - 2016 - 2017 | B83: 7701 | C83: 7701 7701 - South Dade Senior High | D83: 794 | E83: 40 | F83: 42.69206549 | G83: 17.0768262 | H83: 31 | I83: 0.4437718372 | J83: 13.75692695 | K83: 9 | L83: 0.3688776938 | M83: 3.319899244 | N83: 717 | O83: 0 | P83: 77 | Q83: 0.90302267 | R83: 0 | S83: 0.09697732997 | T83: Key Ideas and Details | U83: 10 | V83: 0.514861461 | W83: 5.14861461 | Y83: Craft and Structure | Z83: 14 | AA83: 0.4381072328 | AB83: 6.133501259 | AD83: Integration of Knowledge and Ideas | AE83: 8 | AF83: 0.4138853904 | AG83: 3.311083123 | AI83: Language and Editing | AJ83: 5 | AK83: 0.2833753149 | AL83: 1.416876574 | AN83: Text-Based Writing | AO83: 3 | AP83: 0.3555835432 | AQ83: 1.06675063
A84: 9_12 Reading MYA - Grade 9 ELA - CBT ONLY - 2016 - 2017 | B84: 7721 | C84: 7721 7721 - South Miami Senior High | D84: 507 | E84: 40 | F84: 42.26331361 | G84: 16.90532544 | H84: 31 | I84: 0.4414328434 | J84: 13.68441815 | K84: 9 | L84: 0.3578785886 | M84: 3.220907298 | N84: 460 | O84: 0 | P84: 47 | Q84: 0.9072978304 | R84: 0 | S84: 0.09270216963 | T84: Key Ideas and Details | U84: 10 | V84: 0.474556213 | W84: 4.74556213 | Y84: Craft and Structure | Z84: 14 | AA84: 0.4346294731 | AB84: 6.084812623 | AD84: Integration of Knowledge and Ideas | AE84: 8 | AF84: 0.4149408284 | AG84: 3.319526627 | AI84: Language and Editing | AJ84: 5 | AK84: 0.3506903353 | AL84: 1.753451677 | AN84: Text-Based Writing | AO84: 3 | AP84: 0.3339907955 | AQ84: 1.001972387
A85: 9_12 Reading MYA - Grade 9 ELA - CBT ONLY - 2016 - 2017 | B85: 7731 | C85: 7731 7731 - Miami Southridge Senior High | D85: 443 | E85: 40 | F85: 35.50225734 | G85: 14.20090293 | H85: 31 | I85: 0.3780674288 | J85: 11.72009029 | K85: 9 | L85: 0.275645849 | M85: 2.480812641 | N85: 433 | O85: 0 | P85: 10 | Q85: 0.9774266366 | R85: 0 | S85: 0.02257336343 | T85: Key Ideas and Details | U85: 10 | V85: 0.414221219 | W85: 4.14221219 | Y85: Craft and Structure | Z85: 14 | AA85: 0.3663334408 | AB85: 5.128668172 | AD85: Integration of Knowledge and Ideas | AE85: 8 | AF85: 0.3560948081 | AG85: 2.848758465 | AI85: Language and Editing | AJ85: 5 | AK85: 0.2690744921 | AL85: 1.34537246 | AN85: Text-Based Writing | AO85: 3 | AP85: 0.245297216 | AQ85: 0.7358916479
A86: 9_12 Reading MYA - Grade 9 ELA - CBT ONLY - 2016 - 2017 | B86: 7741 | C86: 7741 7741 - Southwest Miami Senior High | D86: 647 | E86: 40 | F86: 50.15842349 | G86: 20.0633694 | H86: 31 | I86: 0.5191703645 | J86: 16.0942813 | K86: 9 | L86: 0.4410097888 | M86: 3.969088099 | N86: 547 | O86: 0 | P86: 100 | Q86: 0.8454404946 | R86: 0 | S86: 0.1545595054 | T86: Key Ideas and Details | U86: 10 | V86: 0.5746522411 | W86: 5.746522411 | Y86: Craft and Structure | Z86: 14 | AA86: 0.5113711636 | AB86: 7.159196291 | AD86: Integration of Knowledge and Ideas | AE86: 8 | AF86: 0.4986476043 | AG86: 3.989180835 | AI86: Language and Editing | AJ86: 5 | AK86: 0.3882534776 | AL86: 1.941267388 | AN86: Text-Based Writing | AO86: 3 | AP86: 0.409067491 | AQ86: 1.227202473
A87: 9_12 Reading MYA - Grade 9 ELA - CBT ONLY - 2016 - 2017 | B87: 7751 | C87: 7751 7751 - Barbara Goleman Senior High | D87: 487 | E87: 40 | F87: 52.04312115 | G87: 20.81724846 | H87: 31 | I87: 0.5322249454 | J87: 16.49897331 | K87: 9 | L87: 0.4798083504 | M87: 4.318275154 | N87: 384 | O87: 0 | P87: 103 | Q87: 0.7885010267 | R87: 0 | S87: 0.2114989733 | T87: Key Ideas and Details | U87: 10 | V87: 0.5858316222 | W87: 5.858316222 | Y87: Craft and Structure | Z87: 14 | AA87: 0.5299207979 | AB87: 7.41889117 | AD87: Integration of Knowledge and Ideas | AE87: 8 | AF87: 0.522073922 | AG87: 4.176591376 | AI87: Language and Editing | AJ87: 5 | AK87: 0.3963039014 | AL87: 1.981519507 | AN87: Text-Based Writing | AO87: 3 | AP87: 0.4606433949 | AQ87: 1.381930185
A88: 9_12 Reading MYA - Grade 9 ELA - CBT ONLY - 2016 - 2017 | B88: 7781 | C88: 7781 7781 - Felix Varela Senior High | D88: 606 | E88: 40 | F88: 50.84158416 | G88: 20.33663366 | H88: 31 | I88: 0.5216118386 | J88: 16.169967 | K88: 9 | L88: 0.462962963 | M88: 4.166666667 | N88: 497 | O88: 0 | P88: 109 | Q88: 0.8201320132 | R88: 0 | S88: 0.1798679868 | T88: Key Ideas and Details | U88: 10 | V88: 0.5698019802 | W88: 5.698019802 | Y88: Craft and Structure | Z88: 14 | AA88: 0.5133191891 | AB88: 7.186468647 | AD88: Integration of Knowledge and Ideas | AE88: 8 | AF88: 0.4979372937 | AG88: 3.98349835 | AI88: Language and Editing | AJ88: 5 | AK88: 0.402310231 | AL88: 2.011551155 | AN88: Text-Based Writing | AO88: 3 | AP88: 0.4856985699 | AQ88: 1.45709571
A89: 9_12 Reading MYA - Grade 9 ELA - CBT ONLY - 2016 - 2017 | B89: 7791 | C89: 7791 7791 - Booker T. Washington Sr. High | D89: 211 | E89: 40 | F89: 41.20853081 | G89: 16.48341232 | H89: 31 | I89: 0.4373948937 | J89: 13.55924171 | K89: 9 | L89: 0.3249078462 | M89: 2.924170616 | N89: 202 | O89: 0 | P89: 9 | Q89: 0.9573459716 | R89: 0 | S89: 0.04265402844 | T89: Key Ideas and Details | U89: 10 | V89: 0.4696682464 | W89: 4.696682464 | Y89: Craft and Structure | Z89: 14 | AA89: 0.4316181449 | AB89: 6.042654028 | AD89: Integration of Knowledge and Ideas | AE89: 8 | AF89: 0.4360189573 | AG89: 3.488151659 | AI89: Language and Editing | AJ89: 5 | AK89: 0.282464455 | AL89: 1.412322275 | AN89: Text-Based Writing | AO89: 3 | AP89: 0.2812006319 | AQ89: 0.8436018957
A90: 9_12 Reading MYA - Grade 9 ELA - CBT ONLY - 2016 - 2017 | B90: 7901 | C90: 7901 7901 - New World School Of The Arts | D90: 126 | E90: 40 | F90: 66.34920635 | G90: 26.53968254 | H90: 31 | I90: 0.6769073221 | J90: 20.98412698 | K90: 9 | L90: 0.6172839506 | M90: 5.555555556 | N90: 69 | O90: 0 | P90: 57 | Q90: 0.5476190476 | R90: 0 | S90: 0.4523809524 | T90: Key Ideas and Details | U90: 10 | V90: 0.7015873016 | W90: 7.015873016 | Y90: Craft and Structure | Z90: 14 | AA90: 0.6785714286 | AB90: 9.5 | AD90: Integration of Knowledge and Ideas | AE90: 8 | AF90: 0.6795634921 | AG90: 5.436507937 | AI90: Language and Editing | AJ90: 5 | AK90: 0.5682539683 | AL90: 2.841269841 | AN90: Text-Based Writing | AO90: 3 | AP90: 0.582010582 | AQ90: 1.746031746
A91: 9_12 Reading MYA - Grade 9 ELA - CBT ONLY - 2016 - 2017 | B91: 8012 | C91: 8012 8012 PACE Center for Girls | D91: 2 | N91: 2 | O91: 0 | P91: 0 | Q91: 1 | R91: 0 | S91: 0 | T91: Key Ideas and Details | U91: 10 | V91: 0.2 | W91: 2 | Y91: Craft and Structure | Z91: 14 | AA91: 0.25 | AB91: 3.5 | AD91: Integration of Knowledge and Ideas | AE91: 8 | AF91: 0.25 | AG91: 2 | AI91: Language and Editing | AJ91: 5 | AK91: 0.1 | AL91: 0.5 | AN91: Text-Based Writing | AO91: 3 | AP91: 0.1666666667 | AQ91: 0.5
A92: 9_12 Reading MYA - Grade 9 ELA - CBT ONLY - 2016 - 2017 | B92: 8014 | C92: 8014 8014 - Alternative Outreach-Ext. Yr | D92: 23 | E92: 40 | F92: 21.73913043 | G92: 8.695652174 | H92: 31 | I92: 0.2496493689 | J92: 7.739130435 | K92: 9 | L92: 0.1062801932 | M92: 0.9565217391 | N92: 23 | O92: 0 | P92: 0 | Q92: 1 | R92: 0 | S92: 0 | T92: Key Ideas and Details | U92: 10 | V92: 0.2434782609 | W92: 2.434782609 | Y92: Craft and Structure | Z92: 14 | AA92: 0.2267080745 | AB92: 3.173913043 | AD92: Integration of Knowledge and Ideas | AE92: 8 | AF92: 0.2282608696 | AG92: 1.826086957 | AI92: Language and Editing | AJ92: 5 | AK92: 0.2086956522 | AL92: 1.043478261 | AN92: Text-Based Writing | AO92: 3 | AP92: 0.07246376812 | AQ92: 0.2173913043
A93: 9_12 Reading MYA - Grade 9 ELA - CBT ONLY - 2016 - 2017 | B93: 8017 | C93: 8017 8017 - Alternative Outreach Program | D93: 25 | E93: 40 | F93: 24.9 | G93: 9.96 | H93: 31 | I93: 0.28 | J93: 8.68 | K93: 9 | L93: 0.1422222222 | M93: 1.28 | N93: 25 | O93: 0 | P93: 0 | Q93: 1 | R93: 0 | S93: 0 | T93: Key Ideas and Details | U93: 10 | V93: 0.284 | W93: 2.84 | Y93: Craft and Structure | Z93: 14 | AA93: 0.2571428571 | AB93: 3.6 | AD93: Integration of Knowledge and Ideas | AE93: 8 | AF93: 0.285 | AG93: 2.28 | AI93: Language and Editing | AJ93: 5 | AK93: 0.208 | AL93: 1.04 | AN93: Text-Based Writing | AO93: 3 | AP93: 0.06666666667 | AQ93: 0.2
A94: 9_12 Reading MYA - Grade 9 ELA - CBT ONLY - 2016 - 2017 | B94: 8019 | C94: 8019 8019 - Academy For Community Ed | D94: 8 | N94: 8 | O94: 0 | P94: 0 | Q94: 1 | R94: 0 | S94: 0 | T94: Key Ideas and Details | U94: 10 | V94: 0.4375 | W94: 4.375 | Y94: Craft and Structure | Z94: 14 | AA94: 0.4017857143 | AB94: 5.625 | AD94: Integration of Knowledge and Ideas | AE94: 8 | AF94: 0.453125 | AG94: 3.625 | AI94: Language and Editing | AJ94: 5 | AK94: 0.275 | AL94: 1.375 | AN94: Text-Based Writing | AO94: 3 | AP94: 0.375 | AQ94: 1.125
A95: 9_12 Reading MYA - Grade 9 ELA - CBT ONLY - 2016 - 2017 | B95: 8101 | C95: 8101 8101 - Jan Mann Opportunity School | D95: 5 | N95: 5 | O95: 0 | P95: 0 | Q95: 1 | R95: 0 | S95: 0 | T95: Key Ideas and Details | U95: 10 | V95: 0.2 | W95: 2 | Y95: Craft and Structure | Z95: 14 | AA95: 0.3 | AB95: 4.2 | AD95: Integration of Knowledge and Ideas | AE95: 8 | AF95: 0.3 | AG95: 2.4 | AI95: Language and Editing | AJ95: 5 | AK95: 0.2 | AL95: 1 | AN95: Text-Based Writing | AO95: 3 | AP95: 0.1333333333 | AQ95: 0.4
A96: 9_12 Reading MYA - Grade 9 ELA - CBT ONLY - 2016 - 2017 | B96: 8121 | C96: 8121 8121 - Cope Center North | D96: 6 | N96: 6 | O96: 0 | P96: 0 | Q96: 1 | R96: 0 | S96: 0 | T96: Key Ideas and Details | U96: 10 | V96: 0.2333333333 | W96: 2.333333333 | Y96: Craft and Structure | Z96: 14 | AA96: 0.2619047619 | AB96: 3.666666667 | AD96: Integration of Knowledge and Ideas | AE96: 8 | AF96: 0.3333333333 | AG96: 2.666666667 | AI96: Language and Editing | AJ96: 5 | AK96: 0.1333333333 | AL96: 0.6666666667 | AN96: Text-Based Writing | AO96: 3 | AP96: 0 | AQ96: 0
A97: 9_12 Reading MYA - Grade 9 ELA - CBT ONLY - 2016 - 2017 | B97: 8131 | C97: 8131 8131 - Dorothy M Wallace Cope Center | D97: 4 | N97: 4 | O97: 0 | P97: 0 | Q97: 1 | R97: 0 | S97: 0 | T97: Key Ideas and Details | U97: 10 | V97: 0.475 | W97: 4.75 | Y97: Craft and Structure | Z97: 14 | AA97: 0.4107142857 | AB97: 5.75 | AD97: Integration of Knowledge and Ideas | AE97: 8 | AF97: 0.3125 | AG97: 2.5 | AI97: Language and Editing | AJ97: 5 | AK97: 0.3 | AL97: 1.5 | AN97: Text-Based Writing | AO97: 3 | AP97: 0.3333333333 | AQ97: 1
A98: 9_12 Reading MYA - Grade 9 ELA - CBT ONLY - 2016 - 2017 | B98: 8141 | C98: 8141 8141 - Juvenile Justice Center | D98: 1 | N98: 1 | O98: 0 | P98: 0 | Q98: 1 | R98: 0 | S98: 0 | T98: Key Ideas and Details | U98: 10 | V98: 0.1 | W98: 1 | Y98: Craft and Structure | Z98: 14 | AA98: 0.2857142857 | AB98: 4 | AD98: Integration of Knowledge and Ideas | AE98: 8 | AF98: 0.125 | AG98: 1 | AI98: Language and Editing | AJ98: 5 | AK98: 0.4 | AL98: 2 | AN98: Text-Based Writing | AO98: 3 | AP98: 0 | AQ98: 0
A99: 9_12 Reading MYA - Grade 9 ELA - CBT ONLY - 2016 - 2017 | B99: 8151 | C99: 8151 8151 - Robert Renick Education Ctr | D99: 1 | N99: 1 | O99: 0 | P99: 0 | Q99: 1 | R99: 0 | S99: 0 | T99: Key Ideas and Details | U99: 10 | V99: 0.1 | W99: 1 | Y99: Craft and Structure | Z99: 14 | AA99: 0.07142857143 | AB99: 1 | AD99: Integration of Knowledge and Ideas | AE99: 8 | AF99: 0.5 | AG99: 4 | AI99: Language and Editing | AJ99: 5 | AK99: 0.2 | AL99: 1 | AN99: Text-Based Writing | AO99: 3 | AP99: 0.3333333333 | AQ99: 1
A100: 9_12 Reading MYA - Grade 9 ELA - CBT ONLY - 2016 - 2017 | B100: 8181 | C100: 8181 8181 - Ruth Owens Kruse Educ Center | D100: 2 | N100: 2 | O100: 0 | P100: 0 | Q100: 1 | R100: 0 | S100: 0 | T100: Key Ideas and Details | U100: 10 | V100: 0.3 | W100: 3 | Y100: Craft and Structure | Z100: 14 | AA100: 0.3928571429 | AB100: 5.5 | AD100: Integration of Knowledge and Ideas | AE100: 8 | AF100: 0.375 | AG100: 3 | AI100: Language and Editing | AJ100: 5 | AK100: 0.3 | AL100: 1.5 | AN100: Text-Based Writing | AO100: 3 | AP100: 0.6666666667 | AQ100: 2

Sheet 1617ELAG9L1 (hidden)
B1: =COLUMN()-1 -> 1 | C1: =COLUMN()-1 -> 2 | D1: 3 | E1: 4 | F1: 5 | G1: 6 | H1: 7 | I1: 8 | J1: 9 | K1: 10 | L1: 11 | M1: 12 | N1: 13 | O1: 14 | P1: 15 | Q1: 16 | R1: 17 | S1: 18 | T1: 19 | U1: 20 | V1: 21 | W1: 22 | X1: 23 | Y1: 24 | Z1: 25 | AA1: 26 | AB1: 27 | AC1: 28 | AD1: 29 | AE1: 30 | AF1: 31 | AG1: 32 | AH1: 33 | AI1: 34 | AJ1: 35 | AK1: 36 | AL1: 37 | AM1: 38 | AN1: 39 | AO1: 40 | AP1: 41 | AQ1: 42 | AR1: 43 | AS1: 44 | AT1: 45 | AU1: 46 | AV1: 47 | AW1: 48
A2: Assessment | B2: Location | C2: School Name | D2: N-Tested | E2: Max Score | F2: Avg % Correct | G2: Avg Raw Score | H2: MC Max Score | I2: MC Avg % Correct | J2: MC Avg Raw Score | K2: MU Max Score | L2: MU Avg % Correct | M2: MU Avg Raw Score | N2: # Insufficient | O2: # Limited | P2: # Satisfactory | Q2: % Insufficient | R2: % Limited | S2: % Satisfactory | T2: Domain1 | U2: Max of Domain1 Max Score | V2: Average of Domain1 %Correct | W2: Average of Domain1 RawScore | X2: Domain1 Item List | Y2: Domain2 | Z2: Max of Domain2 Max Score | AA2: Average of Domain2 %Correct | AB2: Average of Domain2 RawScore | AC2: Domain2 Item List | AD2: Domain3 | AE2: Max of Domain3 Max Score | AF2: Average of Domain3 %Correct | AG2: Average of Domain3 RawScore | AH2: Domain3 Item List | AI2: Domain4 | AJ2: Max of Domain4 Max Score | AK2: Average of Domain4 %Correct | AL2: Average of Domain4 RawScore | AM2: Domain4 Item List | AN2: Domain5 | AO2: Max of Domain5 Max Score | AP2: Average of Domain5 %Correct | AQ2: Average of Domain5 RawScore | AR2: Domain5 Item List | AS2: Domain6 | AT2: Max of Domain6 Max Score | AU2: Average of Domain6 %Correct | AV2: Average of Domain6 RawScore | AW2: Domain6 Item List
A3: 9_12 Reading MYA - Grade 9 ELA - CBT ONLY - 2016 - 2017 | B3: 9999 | C3: 9999 9999 District | D3: 4823 | E3: 40 | F3: 30.35299606 | G3: 12.14119842 | H3: 31 | I3: 0.3305398193 | J3: 10.2467344 | K3: 9 | L3: 0.2104960029 | M3: 1.894464027 | N3: 4730 | O3: 0 | P3: 11 | Q3: 0.9807173958 | R3: 0 | S3: 0.00228073813 | T3: Key Ideas and Details | U3: 10 | V3: 0.3601700187 | W3: 3.601700187 | Y3: Craft and Structure | Z3: 14 | AA3: 0.3088622967 | AB3: 4.324072154 | AD3: Integration of Knowledge and Ideas | AE3: 8 | AF3: 0.3075886378 | AG3: 2.460709102 | AI3: Language and Editing | AJ3: 5 | AK3: 0.2374041053 | AL3: 1.187020527 | AN3: Text-Based Writing | AO3: 3 | AP3: 0.1892321515 | AQ3: 0.5676964545
A4: 9_12 Reading MYA - Grade 9 ELA - CBT ONLY - 2016 - 2017 | B4: 5007 | C4: 5007 5007 - Lincoln-Marti Charter Hialeah | D4: 5 | T4: Key Ideas and Details | Y4: Craft and Structure | AD4: Integration of Knowledge and Ideas | AI4: Language and Editing | AN4: Text-Based Writing
A5: 9_12 Reading MYA - Grade 9 ELA - CBT ONLY - 2016 - 2017 | B5: 5047 | C5: 5047 5047 - Mater Academy (miami Beach) | D5: 4 | T5: Key Ideas and Details | Y5: Craft and Structure | AD5: Integration of Knowledge and Ideas | AI5: Language and Editing | AN5: Text-Based Writing
A6: 9_12 Reading MYA - Grade 9 ELA - CBT ONLY - 2016 - 2017 | B6: 6040 | C6: 6040 6040 - Doctors Charter/miami Shores | D6: 3 | T6: Key Ideas and Details | Y6: Craft and Structure | AD6: Integration of Knowledge and Ideas | AI6: Language and Editing | AN6: Text-Based Writing
A7: 9_12 Reading MYA - Grade 9 ELA - CBT ONLY - 2016 - 2017 | B7: 6052 | C7: 6052 6052 - Zelda Glazer Middle School | D7: 12 | E7: 40 | F7: 40.41666667 | G7: 16.16666667 | H7: 31 | I7: 0.4032258065 | J7: 12.5 | K7: 9 | L7: 0.4074074074 | M7: 3.666666667 | N7: 12 | O7: 0 | P7: 0 | Q7: 1 | R7: 0 | S7: 0 | T7: Key Ideas and Details | U7: 10 | V7: 0.4916666667 | W7: 4.916666667 | Y7: Craft and Structure | Z7: 14 | AA7: 0.3571428571 | AB7: 5 | AD7: Integration of Knowledge and Ideas | AE7: 8 | AF7: 0.4166666667 | AG7: 3.333333333 | AI7: Language and Editing | AJ7: 5 | AK7: 0.3333333333 | AL7: 1.666666667 | AN7: Text-Based Writing | AO7: 3 | AP7: 0.4166666667 | AQ7: 1.25
A8: 9_12 Reading MYA - Grade 9 ELA - CBT ONLY - 2016 - 2017 | B8: 6081 | C8: 6081 6081 - Cutler Bay Acad Of Adv Studies | D8: 2 | T8: Key Ideas and Details | Y8: Craft and Structure | AD8: Integration of Knowledge and Ideas | AI8: Language and Editing | AN8: Text-Based Writing
A9: 9_12 Reading MYA - Grade 9 ELA - CBT ONLY - 2016 - 2017 | B9: 6997 | C9: 6997 6997 - Mater Virtual Academy Charter | D9: 3 | T9: Key Ideas and Details | Y9: Craft and Structure | AD9: Integration of Knowledge and Ideas | AI9: Language and Editing | AN9: Text-Based Writing
A10: 9_12 Reading MYA - Grade 9 ELA - CBT ONLY - 2016 - 2017 | B10: 7005 | C10: 7005 7005 - iTECH at Thomas A. Edison | D10: 8 | T10: Key Ideas and Details | Y10: Craft and Structure | AD10: Integration of Knowledge and Ideas | AI10: Language and Editing | AN10: Text-Based Writing
A11: 9_12 Reading MYA - Grade 9 ELA - CBT ONLY - 2016 - 2017 | B11: 7007 | C11: 7007 7007 - Intl. Studies Charter Senior | D11: 1 | T11: Key Ideas and Details | Y11: Craft and Structure | AD11: Integration of Knowledge and Ideas | AI11: Language and Editing | AN11: Text-Based Writing
A12: 9_12 Reading MYA - Grade 9 ELA - CBT ONLY - 2016 - 2017 | B12: 7008 | C12: 7008 7008 - BioTECH at Richmond Heights 9-12 | D12: 12 | E12: 40 | F12: 31.66666667 | G12: 12.66666667 | H12: 31 | I12: 0.3333333333 | J12: 10.33333333 | K12: 9 | L12: 0.2592592593 | M12: 2.333333333 | N12: 12 | O12: 0 | P12: 0 | Q12: 1 | R12: 0 | S12: 0 | T12: Key Ideas and Details | U12: 10 | V12: 0.4 | W12: 4 | Y12: Craft and Structure | Z12: 14 | AA12: 0.3273809524 | AB12: 4.583333333 | AD12: Integration of Knowledge and Ideas | AE12: 8 | AF12: 0.3125 | AG12: 2.5 | AI12: Language and Editing | AJ12: 5 | AK12: 0.2 | AL12: 1 | AN12: Text-Based Writing | AO12: 3 | AP12: 0.1944444444 | AQ12: 0.5833333333
A13: 9_12 Reading MYA - Grade 9 ELA - CBT ONLY - 2016 - 2017 | B13: 7009 | C13: 7009 7009 - Doral Performing Arts Academy | D13: 0 | T13: Key Ideas and Details | Y13: Craft and Structure | AD13: Integration of Knowledge and Ideas | AI13: Language and Editing | AN13: Text-Based Writing
A14: 9_12 Reading MYA - Grade 9 ELA - CBT ONLY - 2016 - 2017 | B14: 7011 | C14: 7011 7011 - American Senior | D14: 161 | E14: 40 | F14: 30.94720497 | G14: 12.37888199 | H14: 31 | I14: 0.343818874 | J14: 10.65838509 | K14: 9 | L14: 0.1911663216 | M14: 1.720496894 | N14: 161 | O14: 0 | P14: 0 | Q14: 1 | R14: 0 | S14: 0 | T14: Key Ideas and Details | U14: 10 | V14: 0.3590062112 | W14: 3.590062112 | Y14: Craft and Structure | Z14: 14 | AA14: 0.314108252 | AB14: 4.397515528 | AD14: Integration of Knowledge and Ideas | AE14: 8 | AF14: 0.3315217391 | AG14: 2.652173913 | AI14: Language and Editing | AJ14: 5 | AK14: 0.2385093168 | AL14: 1.192546584 | AN14: Text-Based Writing | AO14: 3 | AP14: 0.182194617 | AQ14: 0.5465838509
A15: 9_12 Reading MYA - Grade 9 ELA - CBT ONLY - 2016 - 2017 | B15: 7014 | C15: 7014 7014 - Mater Performing Arts Academy | D15: 0 | T15: Key Ideas and Details | Y15: Craft and Structure | AD15: Integration of Knowledge and Ideas | AI15: Language and Editing | AN15: Text-Based Writing
A16: 9_12 Reading MYA - Grade 9 ELA - CBT ONLY - 2016 - 2017 | B16: 7015 | C16: 7015 7015 - Stellar Leadership Academy | D16: 11 | E16: 40 | F16: 25.22727273 | G16: 10.09090909 | H16: 31 | I16: 0.2727272727 | J16: 8.454545455 | K16: 9 | L16: 0.1818181818 | M16: 1.636363636 | N16: 11 | O16: 0 | P16: 0 | Q16: 1 | R16: 0 | S16: 0 | T16: Key Ideas and Details | U16: 10 | V16: 0.2909090909 | W16: 2.909090909 | Y16: Craft and Structure | Z16: 14 | AA16: 0.2402597403 | AB16: 3.363636364 | AD16: Integration of Knowledge and Ideas | AE16: 8 | AF16: 0.2727272727 | AG16: 2.181818182 | AI16: Language and Editing | AJ16: 5 | AK16: 0.2545454545 | AL16: 1.272727273 | AN16: Text-Based Writing | AO16: 3 | AP16: 0.1212121212 | AQ16: 0.3636363636
A17: 9_12 Reading MYA - Grade 9 ELA - CBT ONLY - 2016 - 2017 | B17: 7016 | C17: 7016 7016 - Sports Leadership Of Miami Chs | D17: 20 | E17: 40 | F17: 26.25 | G17: 10.5 | H17: 31 | I17: 0.2983870968 | J17: 9.25 | K17: 9 | L17: 0.1388888889 | M17: 1.25 | N17: 20 | O17: 0 | P17: 0 | Q17: 1 | R17: 0 | S17: 0 | T17: Key Ideas and Details | U17: 10 | V17: 0.33 | W17: 3.3 | Y17: Craft and Structure | Z17: 14 | AA17: 0.275 | AB17: 3.85 | AD17: Integration of Knowledge and Ideas | AE17: 8 | AF17: 0.29375 | AG17: 2.35 | AI17: Language and Editing | AJ17: 5 | AK17: 0.16 | AL17: 0.8 | AN17: Text-Based Writing | AO17: 3 | AP17: 0.06666666667 | AQ17: 0.2
A18: 9_12 Reading MYA - Grade 9 ELA - CBT ONLY - 2016 - 2017 | B18: 7018 | C18: 7018 7018 - Mater Academy Lakes High Sch | D18: 29 | E18: 40 | F18: 33.53448276 | G18: 13.4137931 | H18: 31 | I18: 0.3515016685 | J18: 10.89655172 | K18: 9 | L18: 0.2796934866 | M18: 2.517241379 | N18: 29 | O18: 0 | P18: 0 | Q18: 1 | R18: 0 | S18: 0 | T18: Key Ideas and Details | U18: 10 | V18: 0.3689655172 | W18: 3.689655172 | Y18: Craft and Structure | Z18: 14 | AA18: 0.3128078818 | AB18: 4.379310345 | AD18: Integration of Knowledge and Ideas | AE18: 8 | AF18: 0.3534482759 | AG18: 2.827586207 | AI18: Language and Editing | AJ18: 5 | AK18: 0.2827586207 | AL18: 1.413793103 | AN18: Text-Based Writing | AO18: 3 | AP18: 0.367816092 | AQ18: 1.103448276
A19: 9_12 Reading MYA - Grade 9 ELA - CBT ONLY - 2016 - 2017 | B19: 7020 | C19: 7020 7020 - Doral Academy High School | D19: 10 | E19: 40 | F19: 31.25 | G19: 12.5 | H19: 31 | I19: 0.3419354839 | J19: 10.6 | K19: 9 | L19: 0.2111111111 | M19: 1.9 | N19: 10 | O19: 0 | P19: 0 | Q19: 1 | R19: 0 | S19: 0 | T19: Key Ideas and Details | U19: 10 | V19: 0.41 | W19: 4.1 | Y19: Craft and Structure | Z19: 14 | AA19: 0.3214285714 | AB19: 4.5 | AD19: Integration of Knowledge and Ideas | AE19: 8 | AF19: 0.325 | AG19: 2.6 | AI19: Language and Editing | AJ19: 5 | AK19: 0.18 | AL19: 0.9 | AN19: Text-Based Writing | AO19: 3 | AP19: 0.1333333333 | AQ19: 0.4
A20: 9_12 Reading MYA - Grade 9 ELA - CBT ONLY - 2016 - 2017 | B20: 7021 | C20: 7021 7021 - International Educational Academy | D20: 0 | T20: Key Ideas and Details | Y20: Craft and Structure | AD20: Integration of Knowledge and Ideas | AI20: Language and Editing | AN20: Text-Based Writing
A21: 9_12 Reading MYA - Grade 9 ELA - CBT ONLY - 2016 - 2017 | B21: 7022 | C21: 7022 7022 - Academy Of Arts And Minds | D21: 11 | E21: 40 | F21: 29.09090909 | G21: 11.63636364 | H21: 31 | I21: 0.3225806452 | J21: 10 | K21: 9 | L21: 0.1818181818 | M21: 1.636363636 | N21: 11 | O21: 0 | P21: 0 | Q21: 1 | R21: 0 | S21: 0 | T21: Key Ideas and Details | U21: 10 | V21: 0.3363636364 | W21: 3.363636364 | Y21: Craft and Structure | Z21: 14 | AA21: 0.2662337662 | AB21: 3.727272727 | AD21: Integration of Knowledge and Ideas | AE21: 8 | AF21: 0.3409090909 | AG21: 2.727272727 | AI21: Language and Editing | AJ21: 5 | AK21: 0.2727272727 | AL21: 1.363636364 | AN21: Text-Based Writing | AO21: 3 | AP21: 0.1515151515 | AQ21: 0.4545454545
A22: 9_12 Reading MYA - Grade 9 ELA - CBT ONLY - 2016 - 2017 | B22: 7024 | C22: 7024 7024 - Mater Academy High-Intl Studie | D22: 3 | T22: Key Ideas and Details | Y22: Craft and Structure | AD22: Integration of Knowledge and Ideas | AI22: Language and Editing | AN22: Text-Based Writing
A23: 9_12 Reading MYA - Grade 9 ELA - CBT ONLY - 2016 - 2017 | B23: 7029 | C23: 7029 7029 - Terra Environmental Research | D23: 2 | T23: Key Ideas and Details | Y23: Craft and Structure | AD23: Integration of Knowledge and Ideas | AI23: Language and Editing | AN23: Text-Based Writing
A24: 9_12 Reading MYA - Grade 9 ELA - CBT ONLY - 2016 - 2017 | B24: 7031 | C24: 7031 7031 - MAST at FIU Biscayne Bay Campus | D24: 0 | T24: Key Ideas and Details | Y24: Craft and Structure | AD24: Integration of Knowledge and Ideas | AI24: Language and Editing | AN24: Text-Based Writing
A25: 9_12 Reading MYA - Grade 9 ELA - CBT ONLY - 2016 - 2017 | B25: 7032 | C25: 7032 7032 - Palm Glades Prep High School | D25: 26 | E25: 40 | F25: 33.26923077 | G25: 13.30769231 | H25: 31 | I25: 0.364764268 | J25: 11.30769231 | K25: 9 | L25: 0.2222222222 | M25: 2 | N25: 26 | O25: 0 | P25: 0 | Q25: 1 | R25: 0 | S25: 0 | T25: Key Ideas and Details | U25: 10 | V25: 0.3807692308 | W25: 3.807692308 | Y25: Craft and Structure | Z25: 14 | AA25: 0.3324175824 | AB25: 4.653846154 | AD25: Integration of Knowledge and Ideas | AE25: 8 | AF25: 0.3509615385 | AG25: 2.807692308 | AI25: Language and Editing | AJ25: 5 | AK25: 0.2461538462 | AL25: 1.230769231 | AN25: Text-Based Writing | AO25: 3 | AP25: 0.2692307692 | AQ25: 0.8076923077
A26: 9_12 Reading MYA - Grade 9 ELA - CBT ONLY - 2016 - 2017 | B26: 7033 | C26: 7033 7033 - Law Enforcement Officers Hs | D26: 7 | T26: Key Ideas and Details | Y26: Craft and Structure | AD26: Integration of Knowledge and Ideas | AI26: Language and Editing | AN26: Text-Based Writing
A27: 9_12 Reading MYA - Grade 9 ELA - CBT ONLY - 2016 - 2017 | B27: 7034 | C27: 7034 7034 - Somerset Acad High South-Hmstd | D27: 12 | E27: 40 | F27: 34.58333333 | G27: 13.83333333 | H27: 31 | I27: 0.376344086 | J27: 11.66666667 | K27: 9 | L27: 0.2407407407 | M27: 2.166666667 | N27: 12 | O27: 0 | P27: 0 | Q27: 1 | R27: 0 | S27: 0 | T27: Key Ideas and Details | U27: 10 | V27: 0.4 | W27: 4 | Y27: Craft and Structure | Z27: 14 | AA27: 0.3928571429 | AB27: 5.5 | AD27: Integration of Knowledge and Ideas | AE27: 8 | AF27: 0.3020833333 | AG27: 2.416666667 | AI27: Language and Editing | AJ27: 5 | AK27: 0.2666666667 | AL27: 1.333333333 | AN27: Text-Based Writing | AO27: 3 | AP27: 0.1944444444 | AQ27: 0.5833333333
A28: 9_12 Reading MYA - Grade 9 ELA - CBT ONLY - 2016 - 2017 | B28: 7037 | C28: 7037 7037 - Mater Academy East High School | D28: 11 | E28: 40 | F28: 27.27272727 | G28: 10.90909091 | H28: 31 | I28: 0.2991202346 | J28: 9.272727273 | K28: 9 | L28: 0.1818181818 | M28: 1.636363636 | N28: 11 | O28: 0 | P28: 0 | Q28: 1 | R28: 0 | S28: 0 | T28: Key Ideas and Details | U28: 10 | V28: 0.3545454545 | W28: 3.545454545 | Y28: Craft and Structure | Z28: 14 | AA28: 0.2532467532 | AB28: 3.545454545 | AD28: Integration of Knowledge and Ideas | AE28: 8 | AF28: 0.25 | AG28: 2 | AI28: Language and Editing | AJ28: 5 | AK28: 0.2727272727 | AL28: 1.363636364 | AN28: Text-Based Writing | AO28: 3 | AP28: 0.1515151515 | AQ28: 0.4545454545
A29: 9_12 Reading MYA - Grade 9 ELA - CBT ONLY - 2016 - 2017 | B29: 7038 | C29: 7038 7038 - Somerset Academy High (south) | D29: 0 | T29: Key Ideas and Details | Y29: Craft and Structure | AD29: Integration of Knowledge and Ideas | AI29: Language and Editing | AN29: Text-Based Writing
A30: 9_12 Reading MYA - Grade 9 ELA - CBT ONLY - 2016 - 2017 | B30: 7042 | C30: 7042 7042 - Somerset Academy Charter High | D30: 5 | T30: Key Ideas and Details | Y30: Craft and Structure | AD30: Integration of Knowledge and Ideas | AI30: Language and Editing | AN30: Text-Based Writing
A31: 9_12 Reading MYA - Grade 9 ELA - CBT ONLY - 2016 - 2017 | B31: 7048 | C31: 7048 7048 - Alonzo and Tracy Mourning Sh | D31: 51 | E31: 40 | F31: 33.57843137 | G31: 13.43137255 | H31: 31 | I31: 0.3605313093 | J31: 11.17647059 | K31: 9 | L31: 0.2505446623 | M31: 2.254901961 | N31: 50 | O31: 0 | P31: 1 | Q31: 0.9803921569 | R31: 0 | S31: 0.01960784314 | T31: Key Ideas and Details | U31: 10 | V31: 0.3803921569 | W31: 3.803921569 | Y31: Craft and Structure | Z31: 14 | AA31: 0.3529411765 | AB31: 4.941176471 | AD31: Integration of Knowledge and Ideas | AE31: 8 | AF31: 0.3431372549 | AG31: 2.745098039 | AI31: Language and Editing | AJ31: 5 | AK31: 0.2588235294 | AL31: 1.294117647 | AN31: Text-Based Writing | AO31: 3 | AP31: 0.2156862745 | AQ31: 0.6470588235
A32: 9_12 Reading MYA - Grade 9 ELA - CBT ONLY - 2016 - 2017 | B32: 7049 | C32: 7049 7049 - Westland Hialeah Senior High | D32: 116 | E32: 40 | F32: 27.97413793 | G32: 11.18965517 | H32: 31 | I32: 0.3020022247 | J32: 9.362068966 | K32: 9 | L32: 0.2030651341 | M32: 1.827586207 | N32: 116 | O32: 0 | P32: 0 | Q32: 1 | R32: 0 | S32: 0 | T32: Key Ideas and Details | U32: 10 | V32: 0.325 | W32: 3.25 | Y32: Craft and Structure | Z32: 14 | AA32: 0.2678571429 | AB32: 3.75 | AD32: Integration of Knowledge and Ideas | AE32: 8 | AF32: 0.2650862069 | AG32: 2.120689655 | AI32: Language and Editing | AJ32: 5 | AK32: 0.2862068966 | AL32: 1.431034483 | AN32: Text-Based Writing | AO32: 3 | AP32: 0.2126436782 | AQ32: 0.6379310345
A33: 9_12 Reading MYA - Grade 9 ELA - CBT ONLY - 2016 - 2017 | B33: 7050 | C33: 7050 7050 - Keys Gate Charter High Schl | D33: 1 | T33: Key Ideas and Details | Y33: Craft and Structure | AD33: Integration of Knowledge and Ideas | AI33: Language and Editing | AN33: Text-Based Writing
A34: 9_12 Reading MYA - Grade 9 ELA - CBT ONLY - 2016 - 2017 | B34: 7051 | C34: 7051 7051 - G. Holmes Braddock Senior High | D34: 130 | E34: 40 | F34: 27.73076923 | G34: 11.09230769 | H34: 31 | I34: 0.3069478908 | J34: 9.515384615 | K34: 9 | L34: 0.1752136752 | M34: 1.576923077 | N34: 130 | O34: 0 | P34: 0 | Q34: 1 | R34: 0 | S34: 0 | T34: Key Ideas and Details | U34: 10 | V34: 0.3238461538 | W34: 3.238461538 | Y34: Craft and Structure | Z34: 14 | AA34: 0.2692307692 | AB34: 3.769230769 | AD34: Integration of Knowledge and Ideas | AE34: 8 | AF34: 0.3201923077 | AG34: 2.561538462 | AI34: Language and Editing | AJ34: 5 | AK34: 0.2153846154 | AL34: 1.076923077 | AN34: Text-Based Writing | AO34: 3 | AP34: 0.1487179487 | AQ34: 0.4461538462
A35: 9_12 Reading MYA - Grade 9 ELA - CBT ONLY - 2016 - 2017 | B35: 7053 | C35: 7053 7053 - Pinecrest Academy Charter High | D35: 20 | E35: 40 | F35: 32.5 | G35: 13 | H35: 31 | I35: 0.3451612903 | J35: 10.7 | K35: 9 | L35: 0.2555555556 | M35: 2.3 | N35: 20 | O35: 0 | P35: 0 | Q35: 1 | R35: 0 | S35: 0 | T35: Key Ideas and Details | U35: 10 | V35: 0.37 | W35: 3.7 | Y35: Craft and Structure | Z35: 14 | AA35: 0.3214285714 | AB35: 4.5 | AD35: Integration of Knowledge and Ideas | AE35: 8 | AF35: 0.3375 | AG35: 2.7 | AI35: Language and Editing | AJ35: 5 | AK35: 0.29 | AL35: 1.45 | AN35: Text-Based Writing | AO35: 3 | AP35: 0.2166666667 | AQ35: 0.65
A36: 9_12 Reading MYA - Grade 9 ELA - CBT ONLY - 2016 - 2017 | B36: 7055 | C36: 7055 7055 - Young Women''s Preparatory Acad | D36: 0 | T36: Key Ideas and Details | Y36: Craft and Structure | AD36: Integration of Knowledge and Ideas | AI36: Language and Editing | AN36: Text-Based Writing
A37: 9_12 Reading MYA - Grade 9 ELA - CBT ONLY - 2016 - 2017 | B37: 7056 | C37: 7056 7056 - Young Mens Preparatory Academy | D37: 7 | T37: Key Ideas and Details | Y37: Craft and Structure | AD37: Integration of Knowledge and Ideas | AI37: Language and Editing | AN37: Text-Based Writing
A38: 9_12 Reading MYA - Grade 9 ELA - CBT ONLY - 2016 - 2017 | B38: 7058 | C38: 7058 7058 - Miami Community Ch High School | D38: 26 | E38: 40 | F38: 33.07692308 | G38: 13.23076923 | H38: 31 | I38: 0.3523573201 | J38: 10.92307692 | K38: 9 | L38: 0.2564102564 | M38: 2.307692308 | N38: 26 | O38: 0 | P38: 0 | Q38: 1 | R38: 0 | S38: 0 | T38: Key Ideas and Details | U38: 10 | V38: 0.4115384615 | W38: 4.115384615 | Y38: Craft and Structure | Z38: 14 | AA38: 0.3241758242 | AB38: 4.538461538 | AD38: Integration of Knowledge and Ideas | AE38: 8 | AF38: 0.3125 | AG38: 2.5 | AI38: Language and Editing | AJ38: 5 | AK38: 0.3 | AL38: 1.5 | AN38: Text-Based Writing | AO38: 3 | AP38: 0.1923076923 | AQ38: 0.5769230769
A39: 9_12 Reading MYA - Grade 9 ELA - CBT ONLY - 2016 - 2017 | B39: 7059 | C39: 7059 7059 - Miami Arts Charter | D39: 12 | E39: 40 | F39: 33.75 | G39: 13.5 | H39: 31 | I39: 0.3682795699 | J39: 11.41666667 | K39: 9 | L39: 0.2314814815 | M39: 2.083333333 | N39: 12 | O39: 0 | P39: 0 | Q39: 1 | R39: 0 | S39: 0 | T39: Key Ideas and Details | U39: 10 | V39: 0.3833333333 | W39: 3.833333333 | Y39: Craft and Structure | Z39: 14 | AA39: 0.375 | AB39: 5.25 | AD39: Integration of Knowledge and Ideas | AE39: 8 | AF39: 0.3125 | AG39: 2.5 | AI39: Language and Editing | AJ39: 5 | AK39: 0.2833333333 | AL39: 1.416666667 | AN39: Text-Based Writing | AO39: 3 | AP39: 0.1666666667 | AQ39: 0.5
A40: 9_12 Reading MYA - Grade 9 ELA - CBT ONLY - 2016 - 2017 | B40: 7060 | C40: 7060 7060 - Everglades Prep Academy High | D40: 37 | E40: 40 | F40: 34.7972973 | G40: 13.91891892 | H40: 31 | I40: 0.3696599826 | J40: 11.45945946 | K40: 9 | L40: 0.2732732733 | M40: 2.459459459 | N40: 37 | O40: 0 | P40: 0 | Q40: 1 | R40: 0 | S40: 0 | T40: Key Ideas and Details | U40: 10 | V40: 0.4297297297 | W40: 4.297297297 | Y40: Craft and Structure | Z40: 14 | AA40: 0.3436293436 | AB40: 4.810810811 | AD40: Integration of Knowledge and Ideas | AE40: 8 | AF40: 0.3074324324 | AG40: 2.459459459 | AI40: Language and Editing | AJ40: 5 | AK40: 0.3243243243 | AL40: 1.621621622 | AN40: Text-Based Writing | AO40: 3 | AP40: 0.2432432432 | AQ40: 0.7297297297
A41: 9_12 Reading MYA - Grade 9 ELA - CBT ONLY - 2016 - 2017 | B41: 7066 | C41: 7066 7066 - Lba Constr and Bus Mgmt Acad | D41: 11 | E41: 40 | F41: 30.22727273 | G41: 12.09090909 | H41: 31 | I41: 0.3196480938 | J41: 9.909090909 | K41: 9 | L41: 0.2424242424 | M41: 2.181818182 | N41: 11 | O41: 0 | P41: 0 | Q41: 1 | R41: 0 | S41: 0 | T41: Key Ideas and Details | U41: 10 | V41: 0.3727272727 | W41: 3.727272727 | Y41: Craft and Structure | Z41: 14 | AA41: 0.2857142857 | AB41: 4 | AD41: Integration of Knowledge and Ideas | AE41: 8 | AF41: 0.3181818182 | AG41: 2.545454545 | AI41: Language and Editing | AJ41: 5 | AK41: 0.2363636364 | AL41: 1.181818182 | AN41: Text-Based Writing | AO41: 3 | AP41: 0.2121212121 | AQ41: 0.6363636364
A42: 9_12 Reading MYA - Grade 9 ELA - CBT ONLY - 2016 - 2017 | B42: 7070 | C42: 7070 7070 - Youth Co-Op Prep High School | D42: 12 | E42: 40 | F42: 26.66666667 | G42: 10.66666667 | H42: 31 | I42: 0.2849462366 | J42: 8.833333333 | K42: 9 | L42: 0.2037037037 | M42: 1.833333333 | N42: 12 | O42: 0 | P42: 0 | Q42: 1 | R42: 0 | S42: 0 | T42: Key Ideas and Details | U42: 10 | V42: 0.3333333333 | W42: 3.333333333 | Y42: Craft and Structure | Z42: 14 | AA42: 0.2380952381 | AB42: 3.333333333 | AD42: Integration of Knowledge and Ideas | AE42: 8 | AF42: 0.2604166667 | AG42: 2.083333333 | AI42: Language and Editing | AJ42: 5 | AK42: 0.2333333333 | AL42: 1.166666667 | AN42: Text-Based Writing | AO42: 3 | AP42: 0.25 | AQ42: 0.75
A43: 9_12 Reading MYA - Grade 9 ELA - CBT ONLY - 2016 - 2017 | B43: 7071 | C43: 7071 7071 - Coral Gables Senior High | D43: 151 | E43: 40 | F43: 29.86754967 | G43: 11.94701987 | H43: 31 | I43: 0.3283486435 | J43: 10.17880795 | K43: 9 | L43: 0.1964679912 | M43: 1.768211921 | N43: 150 | O43: 0 | P43: 1 | Q43: 0.9933774834 | R43: 0 | S43: 0.006622516556 | T43: Key Ideas and Details | U43: 10 | V43: 0.3437086093 | W43: 3.437086093 | Y43: Craft and Structure | Z43: 14 | AA43: 0.2947019868 | AB43: 4.125827815 | AD43: Integration of Knowledge and Ideas | AE43: 8 | AF43: 0.3236754967 | AG43: 2.589403974 | AI43: Language and Editing | AJ43: 5 | AK43: 0.2635761589 | AL43: 1.317880795 | AN43: Text-Based Writing | AO43: 3 | AP43: 0.1589403974 | AQ43: 0.4768211921
A44: 9_12 Reading MYA - Grade 9 ELA - CBT ONLY - 2016 - 2017 | B44: 7080 | C44: 7080 7080 - Charter Hs Of The Americas | D44: 22 | E44: 40 | F44: 27.04545455 | G44: 10.81818182 | H44: 31 | I44: 0.2961876833 | J44: 9.181818182 | K44: 9 | L44: 0.1818181818 | M44: 1.636363636 | N44: 22 | O44: 0 | P44: 0 | Q44: 1 | R44: 0 | S44: 0 | T44: Key Ideas and Details | U44: 10 | V44: 0.3590909091 | W44: 3.590909091 | Y44: Craft and Structure | Z44: 14 | AA44: 0.2824675325 | AB44: 3.954545455 | AD44: Integration of Knowledge and Ideas | AE44: 8 | AF44: 0.2386363636 | AG44: 1.909090909 | AI44: Language and Editing | AJ44: 5 | AK44: 0.2272727273 | AL44: 1.136363636 | AN44: Text-Based Writing | AO44: 3 | AP44: 0.07575757576 | AQ44: 0.2272727273
A45: 9_12 Reading MYA - Grade 9 ELA - CBT ONLY - 2016 - 2017 | B45: 7081 | C45: 7081 7081 - Design and Architecture Senior | D45: 0 | T45: Key Ideas and Details | Y45: Craft and Structure | AD45: Integration of Knowledge and Ideas | AI45: Language and Editing | AN45: Text-Based Writing
A46: 9_12 Reading MYA - Grade 9 ELA - CBT ONLY - 2016 - 2017 | B46: 7090 | C46: 7090 7090 - Imater Prep Academy High | D46: 49 | E46: 40 | F46: 26.47959184 | G46: 10.59183673 | H46: 31 | I46: 0.2876892693 | J46: 8.918367347 | K46: 9 | L46: 0.1859410431 | M46: 1.673469388 | N46: 49 | O46: 0 | P46: 0 | Q46: 1 | R46: 0 | S46: 0 | T46: Key Ideas and Details | U46: 10 | V46: 0.2959183673 | W46: 2.959183673 | Y46: Craft and Structure | Z46: 14 | AA46: 0.27696793 | AB46: 3.87755102 | AD46: Integration of Knowledge and Ideas | AE46: 8 | AF46: 0.2933673469 | AG46: 2.346938776 | AI46: Language and Editing | AJ46: 5 | AK46: 0.1795918367 | AL46: 0.8979591837 | AN46: Text-Based Writing | AO46: 3 | AP46: 0.1700680272 | AQ46: 0.5102040816
A47: 9_12 Reading MYA - Grade 9 ELA - CBT ONLY - 2016 - 2017 | B47: 7101 | C47: 7101 7101 - Coral Reef Senior High | D47: 15 | E47: 40 | F47: 36.83333333 | G47: 14.73333333 | H47: 31 | I47: 0.3806451613 | J47: 11.8 | K47: 9 | L47: 0.3259259259 | M47: 2.933333333 | N47: 15 | O47: 0 | P47: 0 | Q47: 1 | R47: 0 | S47: 0 | T47: Key Ideas and Details | U47: 10 | V47: 0.4533333333 | W47: 4.533333333 | Y47: Craft and Structure | Z47: 14 | AA47: 0.380952381 | AB47: 5.333333333 | AD47: Integration of Knowledge and Ideas | AE47: 8 | AF47: 0.3166666667 | AG47: 2.533333333 | AI47: Language and Editing | AJ47: 5 | AK47: 0.2933333333 | AL47: 1.466666667 | AN47: Text-Based Writing | AO47: 3 | AP47: 0.2888888889 | AQ47: 0.8666666667
A48: 9_12 Reading MYA - Grade 9 ELA - CBT ONLY - 2016 - 2017 | B48: 7111 | C48: 7111 7111 - Hialeah Senior | D48: 160 | E48: 40 | F48: 29.21875 | G48: 11.6875 | H48: 31 | I48: 0.3157258065 | J48: 9.7875 | K48: 9 | L48: 0.2111111111 | M48: 1.9 | N48: 159 | O48: 0 | P48: 1 | Q48: 0.99375 | R48: 0 | S48: 0.00625 | T48: Key Ideas and Details | U48: 10 | V48: 0.34875 | W48: 3.4875 | Y48: Craft and Structure | Z48: 14 | AA48: 0.2946428571 | AB48: 4.125 | AD48: Integration of Knowledge and Ideas | AE48: 8 | AF48: 0.3015625 | AG48: 2.4125 | AI48: Language and Editing | AJ48: 5 | AK48: 0.22125 | AL48: 1.10625 | AN48: Text-Based Writing | AO48: 3 | AP48: 0.1854166667 | AQ48: 0.55625
A49: 9_12 Reading MYA - Grade 9 ELA - CBT ONLY - 2016 - 2017 | B49: 7121 | C49: 7121 7121 - John A Ferguson Senior High | D49: 122 | E49: 40 | F49: 27.82786885 | G49: 11.13114754 | H49: 31 | I49: 0.3016922263 | J49: 9.352459016 | K49: 9 | L49: 0.1976320583 | M49: 1.778688525 | N49: 122 | O49: 0 | P49: 0 | Q49: 1 | R49: 0 | S49: 0 | T49: Key Ideas and Details | U49: 10 | V49: 0.3147540984 | W49: 3.147540984 | Y49: Craft and Structure | Z49: 14 | AA49: 0.2933255269 | AB49: 4.106557377 | AD49: Integration of Knowledge and Ideas | AE49: 8 | AF49: 0.2807377049 | AG49: 2.245901639 | AI49: Language and Editing | AJ49: 5 | AK49: 0.2229508197 | AL49: 1.114754098 | AN49: Text-Based Writing | AO49: 3 | AP49: 0.1721311475 | AQ49: 0.5163934426
A50: 9_12 Reading MYA - Grade 9 ELA - CBT ONLY - 2016 - 2017 | B50: 7131 | C50: 7131 7131 - Hialeah-Miami Lakes Senior | D50: 122 | E50: 40 | F50: 30.08196721 | G50: 12.03278689 | H50: 31 | I50: 0.3286620836 | J50: 10.18852459 | K50: 9 | L50: 0.2049180328 | M50: 1.844262295 | N50: 122 | O50: 0 | P50: 0 | Q50: 1 | R50: 0 | S50: 0 | T50: Key Ideas and Details | U50: 10 | V50: 0.3663934426 | W50: 3.663934426 | Y50: Craft and Structure | Z50: 14 | AA50: 0.2956674473 | AB50: 4.139344262 | AD50: Integration of Knowledge and Ideas | AE50: 8 | AF50: 0.3073770492 | AG50: 2.459016393 | AI50: Language and Editing | AJ50: 5 | AK50: 0.2491803279 | AL50: 1.245901639 | AN50: Text-Based Writing | AO50: 3 | AP50: 0.174863388 | AQ50: 0.5245901639
A51: 9_12 Reading MYA - Grade 9 ELA - CBT ONLY - 2016 - 2017 | B51: 7141 | C51: 7141 7141 - Dr Michael M Krop Senior High | D51: 81 | E51: 40 | F51: 30.70987654 | G51: 12.28395062 | H51: 31 | I51: 0.3377140581 | J51: 10.4691358 | K51: 9 | L51: 0.2016460905 | M51: 1.814814815 | N51: 81 | O51: 0 | P51: 0 | Q51: 1 | R51: 0 | S51: 0 | T51: Key Ideas and Details | U51: 10 | V51: 0.3641975309 | W51: 3.641975309 | Y51: Craft and Structure | Z51: 14 | AA51: 0.3271604938 | AB51: 4.580246914 | AD51: Integration of Knowledge and Ideas | AE51: 8 | AF51: 0.3163580247 | AG51: 2.530864198 | AI51: Language and Editing | AJ51: 5 | AK51: 0.2024691358 | AL51: 1.012345679 | AN51: Text-Based Writing | AO51: 3 | AP51: 0.1728395062 | AQ51: 0.5185185185
A52: 9_12 Reading MYA - Grade 9 ELA - CBT ONLY - 2016 - 2017 | B52: 7151 | C52: 7151 7151 - Homestead Senior High | D52: 184 | E52: 40 | F52: 30.69293478 | G52: 12.27717391 | H52: 31 | I52: 0.3336255259 | J52: 10.3423913 | K52: 9 | L52: 0.2149758454 | M52: 1.934782609 | N52: 184 | O52: 0 | P52: 0 | Q52: 1 | R52: 0 | S52: 0 | T52: Key Ideas and Details | U52: 10 | V52: 0.3684782609 | W52: 3.684782609 | Y52: Craft and Structure | Z52: 14 | AA52: 0.3132763975 | AB52: 4.385869565 | AD52: Integration of Knowledge and Ideas | AE52: 8 | AF52: 0.3023097826 | AG52: 2.418478261 | AI52: Language and Editing | AJ52: 5 | AK52: 0.2467391304 | AL52: 1.233695652 | AN52: Text-Based Writing | AO52: 3 | AP52: 0.1847826087 | AQ52: 0.5543478261
A53: 9_12 Reading MYA - Grade 9 ELA - CBT ONLY - 2016 - 2017 | B53: 7160 | C53: 7160 7160 - Mater Academy Charter High | D53: 65 | E53: 40 | F53: 31.42307692 | G53: 12.56923077 | H53: 31 | I53: 0.3444168734 | J53: 10.67692308 | K53: 9 | L53: 0.2102564103 | M53: 1.892307692 | N53: 65 | O53: 0 | P53: 0 | Q53: 1 | R53: 0 | S53: 0 | T53: Key Ideas and Details | U53: 10 | V53: 0.3492307692 | W53: 3.492307692 | Y53: Craft and Structure | Z53: 14 | AA53: 0.3241758242 | AB53: 4.538461538 | AD53: Integration of Knowledge and Ideas | AE53: 8 | AF53: 0.3307692308 | AG53: 2.646153846 | AI53: Language and Editing | AJ53: 5 | AK53: 0.2523076923 | AL53: 1.261538462 | AN53: Text-Based Writing | AO53: 3 | AP53: 0.2102564103 | AQ53: 0.6307692308
A54: 9_12 Reading MYA - Grade 9 ELA - CBT ONLY - 2016 - 2017 | B54: 7161 | C54: 7161 7161 - Maritime and Science Tech Acad | D54: 1 | T54: Key Ideas and Details | Y54: Craft and Structure | AD54: Integration of Knowledge and Ideas | AI54: Language and Editing | AN54: Text-Based Writing
A55: 9_12 Reading MYA - Grade 9 ELA - CBT ONLY - 2016 - 2017 | B55: 7171 | C55: 7171 7171 - Med Acad Science and Technology | D55: 2 | T55: Key Ideas and Details | Y55: Craft and Structure | AD55: Integration of Knowledge and Ideas | AI55: Language and Editing | AN55: Text-Based Writing
A56: 9_12 Reading MYA - Grade 9 ELA - CBT ONLY - 2016 - 2017 | B56: 7191 | C56: 7191 7191 - Hialeah Gardens Senior | D56: 98 | E56: 40 | F56: 27.72959184 | G56: 11.09183673 | H56: 31 | I56: 0.297235023 | J56: 9.214285714 | K56: 9 | L56: 0.20861678 | M56: 1.87755102 | N56: 98 | O56: 0 | P56: 0 | Q56: 1 | R56: 0 | S56: 0 | T56: Key Ideas and Details | U56: 10 | V56: 0.3265306122 | W56: 3.265306122 | Y56: Craft and Structure | Z56: 14 | AA56: 0.2871720117 | AB56: 4.020408163 | AD56: Integration of Knowledge and Ideas | AE56: 8 | AF56: 0.2704081633 | AG56: 2.163265306 | AI56: Language and Editing | AJ56: 5 | AK56: 0.2163265306 | AL56: 1.081632653 | AN56: Text-Based Writing | AO56: 3 | AP56: 0.1870748299 | AQ56: 0.5612244898
A57: 9_12 Reading MYA - Grade 9 ELA - CBT ONLY - 2016 - 2017 | B57: 7201 | C57: 7201 7201 - Miami Beach Senior High | D57: 53 | E57: 40 | F57: 27.26415094 | G57: 10.90566038 | H57: 31 | I57: 0.3055386488 | J57: 9.471698113 | K57: 9 | L57: 0.1593291405 | M57: 1.433962264 | N57: 53 | O57: 0 | P57: 0 | Q57: 1 | R57: 0 | S57: 0 | T57: Key Ideas and Details | U57: 10 | V57: 0.3113207547 | W57: 3.113207547 | Y57: Craft and Structure | Z57: 14 | AA57: 0.2978436658 | AB57: 4.169811321 | AD57: Integration of Knowledge and Ideas | AE57: 8 | AF57: 0.2783018868 | AG57: 2.226415094 | AI57: Language and Editing | AJ57: 5 | AK57: 0.2226415094 | AL57: 1.113207547 | AN57: Text-Based Writing | AO57: 3 | AP57: 0.09433962264 | AQ57: 0.2830188679
A58: 9_12 Reading MYA - Grade 9 ELA - CBT ONLY - 2016 - 2017 | B58: 7231 | C58: 7231 7231 - Miami Carol City Senior High | D58: 100 | E58: 40 | F58: 31.4 | G58: 12.56 | H58: 31 | I58: 0.3390322581 | J58: 10.51 | K58: 9 | L58: 0.2277777778 | M58: 2.05 | N58: 100 | O58: 0 | P58: 0 | Q58: 1 | R58: 0 | S58: 0 | T58: Key Ideas and Details | U58: 10 | V58: 0.366 | W58: 3.66 | Y58: Craft and Structure | Z58: 14 | AA58: 0.3392857143 | AB58: 4.75 | AD58: Integration of Knowledge and Ideas | AE58: 8 | AF58: 0.285 | AG58: 2.28 | AI58: Language and Editing | AJ58: 5 | AK58: 0.216 | AL58: 1.08 | AN58: Text-Based Writing | AO58: 3 | AP58: 0.2633333333 | AQ58: 0.79
A59: 9_12 Reading MYA - Grade 9 ELA - CBT ONLY - 2016 - 2017 | B59: 7241 | C59: 7241 7241 - Ronald W Reagan/doral Senior | D59: 1 | T59: Key Ideas and Details | Y59: Craft and Structure | AD59: Integration of Knowledge and Ideas | AI59: Language and Editing | AN59: Text-Based Writing
A60: 9_12 Reading MYA - Grade 9 ELA - CBT ONLY - 2016 - 2017 | B60: 7251 | C60: 7251 7251 - Miami Central Senior High | D60: 172 | E60: 40 | F60: 30.4505814 | G60: 12.18023256 | H60: 31 | I60: 0.32951988 | J60: 10.21511628 | K60: 9 | L60: 0.2183462532 | M60: 1.965116279 | N60: 172 | O60: 0 | P60: 0 | Q60: 1 | R60: 0 | S60: 0 | T60: Key Ideas and Details | U60: 10 | V60: 0.3819767442 | W60: 3.819767442 | Y60: Craft and Structure | Z60: 14 | AA60: 0.3147840532 | AB60: 4.406976744 | AD60: Integration of Knowledge and Ideas | AE60: 8 | AF60: 0.2899709302 | AG60: 2.319767442 | AI60: Language and Editing | AJ60: 5 | AK60: 0.2186046512 | AL60: 1.093023256 | AN60: Text-Based Writing | AO60: 3 | AP60: 0.1802325581 | AQ60: 0.5406976744
A61: 9_12 Reading MYA - Grade 9 ELA - CBT ONLY - 2016 - 2017 | B61: 7262 | C61: 7262 7262 - City Of Hialeah Education Acad | D61: 32 | E61: 40 | F61: 33.046875 | G61: 13.21875 | H61: 31 | I61: 0.3508064516 | J61: 10.875 | K61: 9 | L61: 0.2604166667 | M61: 2.34375 | N61: 32 | O61: 0 | P61: 0 | Q61: 1 | R61: 0 | S61: 0 | T61: Key Ideas and Details | U61: 10 | V61: 0.396875 | W61: 3.96875 | Y61: Craft and Structure | Z61: 14 | AA61: 0.3258928571 | AB61: 4.5625 | AD61: Integration of Knowledge and Ideas | AE61: 8 | AF61: 0.32421875 | AG61: 2.59375 | AI61: Language and Editing | AJ61: 5 | AK61: 0.30625 | AL61: 1.53125 | AN61: Text-Based Writing | AO61: 3 | AP61: 0.1875 | AQ61: 0.5625
A62: 9_12 Reading MYA - Grade 9 ELA - CBT ONLY - 2016 - 2017 | B62: 7265 | C62: 7265 7265 - Archimedean Upper Conserv Char | D62: 1 | T62: Key Ideas and Details | Y62: Craft and Structure | AD62: Integration of Knowledge and Ideas | AI62: Language and Editing | AN62: Text-Based Writing
A63: 9_12 Reading MYA - Grade 9 ELA - CBT ONLY - 2016 - 2017 | B63: 7271 | C63: 7271 7271 - Miami Coral Park Senior High | D63: 145 | E63: 40 | F63: 27.46551724 | G63: 10.9862069 | H63: 31 | I63: 0.3050055617 | J63: 9.455172414 | K63: 9 | L63: 0.1701149425 | M63: 1.531034483 | N63: 145 | O63: 0 | P63: 0 | Q63: 1 | R63: 0 | S63: 0 | T63: Key Ideas and Details | U63: 10 | V63: 0.324137931 | W63: 3.24137931 | Y63: Craft and Structure | Z63: 14 | AA63: 0.2857142857 | AB63: 4 | AD63: Integration of Knowledge and Ideas | AE63: 8 | AF63: 0.2706896552 | AG63: 2.165517241 | AI63: Language and Editing | AJ63: 5 | AK63: 0.2096551724 | AL63: 1.048275862 | AN63: Text-Based Writing | AO63: 3 | AP63: 0.1770114943 | AQ63: 0.5310344828
A64: 9_12 Reading MYA - Grade 9 ELA - CBT ONLY - 2016 - 2017 | B64: 7291 | C64: 7291 7291 - Jose Marti Mast 6-12 Academy | D64: 1 | T64: Key Ideas and Details | Y64: Craft and Structure | AD64: Integration of Knowledge and Ideas | AI64: Language and Editing | AN64: Text-Based Writing
A65: 9_12 Reading MYA - Grade 9 ELA - CBT ONLY - 2016 - 2017 | B65: 7301 | C65: 7301 7301 - Miami Edison Senior High | D65: 71 | E65: 40 | F65: 29.82394366 | G65: 11.92957746 | H65: 31 | I65: 0.331213085 | J65: 10.26760563 | K65: 9 | L65: 0.1846635368 | M65: 1.661971831 | N65: 71 | O65: 0 | P65: 0 | Q65: 1 | R65: 0 | S65: 0 | T65: Key Ideas and Details | U65: 10 | V65: 0.376056338 | W65: 3.76056338 | Y65: Craft and Structure | Z65: 14 | AA65: 0.3158953722 | AB65: 4.422535211 | AD65: Integration of Knowledge and Ideas | AE65: 8 | AF65: 0.286971831 | AG65: 2.295774648 | AI65: Language and Editing | AJ65: 5 | AK65: 0.1971830986 | AL65: 0.985915493 | AN65: Text-Based Writing | AO65: 3 | AP65: 0.1549295775 | AQ65: 0.4647887324
A66: 9_12 Reading MYA - Grade 9 ELA - CBT ONLY - 2016 - 2017 | B66: 7341 | C66: 7341 7341 - Miami Jackson Senior High | D66: 160 | E66: 40 | F66: 26.640625 | G66: 10.65625 | H66: 31 | I66: 0.2925403226 | J66: 9.06875 | K66: 9 | L66: 0.1763888889 | M66: 1.5875 | N66: 160 | O66: 0 | P66: 0 | Q66: 1 | R66: 0 | S66: 0 | T66: Key Ideas and Details | U66: 10 | V66: 0.32625 | W66: 3.2625 | Y66: Craft and Structure | Z66: 14 | AA66: 0.2651785714 | AB66: 3.7125 | AD66: Integration of Knowledge and Ideas | AE66: 8 | AF66: 0.28046875 | AG66: 2.24375 | AI66: Language and Editing | AJ66: 5 | AK66: 0.2025 | AL66: 1.0125 | AN66: Text-Based Writing | AO66: 3 | AP66: 0.1416666667 | AQ66: 0.425
A67: 9_12 Reading MYA - Grade 9 ELA - CBT ONLY - 2016 - 2017 | B67: 7351 | C67: 7351 7351 - Arthur And Polly Mays Conserva | D67: 11 | E67: 40 | F67: 36.36363636 | G67: 14.54545455 | H67: 31 | I67: 0.3870967742 | J67: 12 | K67: 9 | L67: 0.2828282828 | M67: 2.545454545 | N67: 11 | O67: 0 | P67: 0 | Q67: 1 | R67: 0 | S67: 0 | T67: Key Ideas and Details | U67: 10 | V67: 0.3818181818 | W67: 3.818181818 | Y67: Craft and Structure | Z67: 14 | AA67: 0.4155844156 | AB67: 5.818181818 | AD67: Integration of Knowledge and Ideas | AE67: 8 | AF67: 0.3068181818 | AG67: 2.454545455 | AI67: Language and Editing | AJ67: 5 | AK67: 0.2181818182 | AL67: 1.090909091 | AN67: Text-Based Writing | AO67: 3 | AP67: 0.4545454545 | AQ67: 1.363636364
A68: 9_12 Reading MYA - Grade 9 ELA - CBT ONLY - 2016 - 2017 | B68: 7361 | C68: 7361 7361 - Miami Killian Senior High | D68: 88 | E68: 40 | F68: 28.21022727 | G68: 11.28409091 | H68: 31 | I68: 0.3082844575 | J68: 9.556818182 | K68: 9 | L68: 0.1919191919 | M68: 1.727272727 | N68: 88 | O68: 0 | P68: 0 | Q68: 1 | R68: 0 | S68: 0 | T68: Key Ideas and Details | U68: 10 | V68: 0.3238636364 | W68: 3.238636364 | Y68: Craft and Structure | Z68: 14 | AA68: 0.2727272727 | AB68: 3.818181818 | AD68: Integration of Knowledge and Ideas | AE68: 8 | AF68: 0.3125 | AG68: 2.5 | AI68: Language and Editing | AJ68: 5 | AK68: 0.2409090909 | AL68: 1.204545455 | AN68: Text-Based Writing | AO68: 3 | AP68: 0.1742424242 | AQ68: 0.5227272727
A69: 9_12 Reading MYA - Grade 9 ELA - CBT ONLY - 2016 - 2017 | B69: 7371 | C69: 7371 7371 - Robert Morgan Educational Ctr | D69: 44 | E69: 40 | F69: 33.23863636 | G69: 13.29545455 | H69: 31 | I69: 0.357771261 | J69: 11.09090909 | K69: 9 | L69: 0.2449494949 | M69: 2.204545455 | N69: 44 | O69: 0 | P69: 0 | Q69: 1 | R69: 0 | S69: 0 | T69: Key Ideas and Details | U69: 10 | V69: 0.3863636364 | W69: 3.863636364 | Y69: Craft and Structure | Z69: 14 | AA69: 0.3538961039 | AB69: 4.954545455 | AD69: Integration of Knowledge and Ideas | AE69: 8 | AF69: 0.3295454545 | AG69: 2.636363636 | AI69: Language and Editing | AJ69: 5 | AK69: 0.2318181818 | AL69: 1.159090909 | AN69: Text-Based Writing | AO69: 3 | AP69: 0.2272727273 | AQ69: 0.6818181818
A70: 9_12 Reading MYA - Grade 9 ELA - CBT ONLY - 2016 - 2017 | B70: 7381 | C70: 7381 7381 - Miami Norland Senior High | D70: 149 | E70: 40 | F70: 28.30536913 | G70: 11.32214765 | H70: 31 | I70: 0.313704265 | J70: 9.724832215 | K70: 9 | L70: 0.1774794929 | M70: 1.597315436 | N70: 148 | O70: 0 | P70: 1 | Q70: 0.9932885906 | R70: 0 | S70: 0.006711409396 | T70: Key Ideas and Details | U70: 10 | V70: 0.322147651 | W70: 3.22147651 | Y70: Craft and Structure | Z70: 14 | AA70: 0.2905081496 | AB70: 4.067114094 | AD70: Integration of Knowledge and Ideas | AE70: 8 | AF70: 0.3104026846 | AG70: 2.483221477 | AI70: Language and Editing | AJ70: 5 | AK70: 0.2255033557 | AL70: 1.127516779 | AN70: Text-Based Writing | AO70: 3 | AP70: 0.1409395973 | AQ70: 0.4228187919
A71: 9_12 Reading MYA - Grade 9 ELA - CBT ONLY - 2016 - 2017 | B71: 7391 | C71: 7391 7391 - Miami Lakes Educational Center | D71: 34 | E71: 40 | F71: 33.16176471 | G71: 13.26470588 | H71: 31 | I71: 0.3538899431 | J71: 10.97058824 | K71: 9 | L71: 0.2549019608 | M71: 2.294117647 | N71: 34 | O71: 0 | P71: 0 | Q71: 1 | R71: 0 | S71: 0 | T71: Key Ideas and Details | U71: 10 | V71: 0.3970588235 | W71: 3.970588235 | Y71: Craft and Structure | Z71: 14 | AA71: 0.3025210084 | AB71: 4.235294118 | AD71: Integration of Knowledge and Ideas | AE71: 8 | AF71: 0.3345588235 | AG71: 2.676470588 | AI71: Language and Editing | AJ71: 5 | AK71: 0.3117647059 | AL71: 1.558823529 | AN71: Text-Based Writing | AO71: 3 | AP71: 0.2745098039 | AQ71: 0.8235294118
A72: 9_12 Reading MYA - Grade 9 ELA - CBT ONLY - 2016 - 2017 | B72: 7411 | C72: 7411 7411 - Miami Northwestern Senior High | D72: 94 | E72: 40 | F72: 32.47340426 | G72: 12.9893617 | H72: 31 | I72: 0.3517501716 | J72: 10.90425532 | K72: 9 | L72: 0.231678487 | M72: 2.085106383 | N72: 93 | O72: 0 | P72: 1 | Q72: 0.9893617021 | R72: 0 | S72: 0.01063829787 | T72: Key Ideas and Details | U72: 10 | V72: 0.4127659574 | W72: 4.127659574 | Y72: Craft and Structure | Z72: 14 | AA72: 0.3328267477 | AB72: 4.659574468 | AD72: Integration of Knowledge and Ideas | AE72: 8 | AF72: 0.3390957447 | AG72: 2.712765957 | AI72: Language and Editing | AJ72: 5 | AK72: 0.1872340426 | AL72: 0.9361702128 | AN72: Text-Based Writing | AO72: 3 | AP72: 0.1843971631 | AQ72: 0.5531914894
A73: 9_12 Reading MYA - Grade 9 ELA - CBT ONLY - 2016 - 2017 | B73: 7431 | C73: 7431 7431 - Miami Palmetto Senior High | D73: 67 | E73: 40 | F73: 30.07462687 | G73: 12.02985075 | H73: 31 | I73: 0.3312469909 | J73: 10.26865672 | K73: 9 | L73: 0.1956882255 | M73: 1.76119403 | N73: 66 | O73: 0 | P73: 1 | Q73: 0.9850746269 | R73: 0 | S73: 0.01492537313 | T73: Key Ideas and Details | U73: 10 | V73: 0.3567164179 | W73: 3.567164179 | Y73: Craft and Structure | Z73: 14 | AA73: 0.3070362473 | AB73: 4.298507463 | AD73: Integration of Knowledge and Ideas | AE73: 8 | AF73: 0.3134328358 | AG73: 2.507462687 | AI73: Language and Editing | AJ73: 5 | AK73: 0.2388059701 | AL73: 1.194029851 | AN73: Text-Based Writing | AO73: 3 | AP73: 0.1542288557 | AQ73: 0.4626865672
A74: 9_12 Reading MYA - Grade 9 ELA - CBT ONLY - 2016 - 2017 | B74: 7461 | C74: 7461 7461 - Miami Senior High | D74: 212 | E74: 40 | F74: 32.35849057 | G74: 12.94339623 | H74: 31 | I74: 0.3469263542 | J74: 10.75471698 | K74: 9 | L74: 0.2431865828 | M74: 2.188679245 | N74: 211 | O74: 0 | P74: 1 | Q74: 0.9952830189 | R74: 0 | S74: 0.004716981132 | T74: Key Ideas and Details | U74: 10 | V74: 0.3971698113 | W74: 3.971698113 | Y74: Craft and Structure | Z74: 14 | AA74: 0.3210916442 | AB74: 4.495283019 | AD74: Integration of Knowledge and Ideas | AE74: 8 | AF74: 0.3101415094 | AG74: 2.481132075 | AI74: Language and Editing | AJ74: 5 | AK74: 0.2490566038 | AL74: 1.245283019 | AN74: Text-Based Writing | AO74: 3 | AP74: 0.25 | AQ74: 0.75
A75: 9_12 Reading MYA - Grade 9 ELA - CBT ONLY - 2016 - 2017 | B75: 7511 | C75: 7511 7511 - Miami Springs Senior High | D75: 77 | E75: 40 | F75: 31.42857143 | G75: 12.57142857 | H75: 31 | I75: 0.3443653121 | J75: 10.67532468 | K75: 9 | L75: 0.2106782107 | M75: 1.896103896 | N75: 77 | O75: 0 | P75: 0 | Q75: 1 | R75: 0 | S75: 0 | T75: Key Ideas and Details | U75: 10 | V75: 0.3883116883 | W75: 3.883116883 | Y75: Craft and Structure | Z75: 14 | AA75: 0.3107606679 | AB75: 4.350649351 | AD75: Integration of Knowledge and Ideas | AE75: 8 | AF75: 0.2922077922 | AG75: 2.337662338 | AI75: Language and Editing | AJ75: 5 | AK75: 0.2675324675 | AL75: 1.337662338 | AN75: Text-Based Writing | AO75: 3 | AP75: 0.2207792208 | AQ75: 0.6623376623
A76: 9_12 Reading MYA - Grade 9 ELA - CBT ONLY - 2016 - 2017 | B76: 7531 | C76: 7531 7531 - Miami Sunset Senior High | D76: 65 | E76: 40 | F76: 28.34615385 | G76: 11.33846154 | H76: 31 | I76: 0.3047146402 | J76: 9.446153846 | K76: 9 | L76: 0.2102564103 | M76: 1.892307692 | N76: 65 | O76: 0 | P76: 0 | Q76: 1 | R76: 0 | S76: 0 | T76: Key Ideas and Details | U76: 10 | V76: 0.32 | W76: 3.2 | Y76: Craft and Structure | Z76: 14 | AA76: 0.2758241758 | AB76: 3.861538462 | AD76: Integration of Knowledge and Ideas | AE76: 8 | AF76: 0.2980769231 | AG76: 2.384615385 | AI76: Language and Editing | AJ76: 5 | AK76: 0.2769230769 | AL76: 1.384615385 | AN76: Text-Based Writing | AO76: 3 | AP76: 0.1692307692 | AQ76: 0.5076923077
A77: 9_12 Reading MYA - Grade 9 ELA - CBT ONLY - 2016 - 2017 | B77: 7541 | C77: 7541 7541 - North Miami Beach Senior High | D77: 106 | E77: 40 | F77: 29.90566038 | G77: 11.96226415 | H77: 31 | I77: 0.3262325015 | J77: 10.11320755 | K77: 9 | L77: 0.2054507338 | M77: 1.849056604 | N77: 106 | O77: 0 | P77: 0 | Q77: 1 | R77: 0 | S77: 0 | T77: Key Ideas and Details | U77: 10 | V77: 0.3575471698 | W77: 3.575471698 | Y77: Craft and Structure | Z77: 14 | AA77: 0.3079514825 | AB77: 4.311320755 | AD77: Integration of Knowledge and Ideas | AE77: 8 | AF77: 0.2936320755 | AG77: 2.349056604 | AI77: Language and Editing | AJ77: 5 | AK77: 0.2547169811 | AL77: 1.273584906 | AN77: Text-Based Writing | AO77: 3 | AP77: 0.1509433962 | AQ77: 0.4528301887
A78: 9_12 Reading MYA - Grade 9 ELA - CBT ONLY - 2016 - 2017 | B78: 7571 | C78: 7571 7571 - Intl Studies Prep Academy | D78: 2 | T78: Key Ideas and Details | Y78: Craft and Structure | AD78: Integration of Knowledge and Ideas | AI78: Language and Editing | AN78: Text-Based Writing
A79: 9_12 Reading MYA - Grade 9 ELA - CBT ONLY - 2016 - 2017 | B79: 7581 | C79: 7581 7581 - Ipreparatory Academy | D79: 0 | T79: Key Ideas and Details | Y79: Craft and Structure | AD79: Integration of Knowledge and Ideas | AI79: Language and Editing | AN79: Text-Based Writing
A80: 9_12 Reading MYA - Grade 9 ELA - CBT ONLY - 2016 - 2017 | B80: 7591 | C80: 7591 7591 - North Miami Senior High | D80: 183 | E80: 40 | F80: 31.99453552 | G80: 12.79781421 | H80: 31 | I80: 0.3442622951 | J80: 10.67213115 | K80: 9 | L80: 0.2361870067 | M80: 2.12568306 | N80: 182 | O80: 0 | P80: 1 | Q80: 0.9945355191 | R80: 0 | S80: 0.005464480874 | T80: Key Ideas and Details | U80: 10 | V80: 0.3961748634 | W80: 3.961748634 | Y80: Craft and Structure | Z80: 14 | AA80: 0.3290398126 | AB80: 4.606557377 | AD80: Integration of Knowledge and Ideas | AE80: 8 | AF80: 0.3053278689 | AG80: 2.442622951 | AI80: Language and Editing | AJ80: 5 | AK80: 0.225136612 | AL80: 1.12568306 | AN80: Text-Based Writing | AO80: 3 | AP80: 0.2204007286 | AQ80: 0.6612021858
A81: 9_12 Reading MYA - Grade 9 ELA - CBT ONLY - 2016 - 2017 | B81: 7601 | C81: 7601 7601 - William H. Turner Technical | D81: 62 | E81: 40 | F81: 37.45967742 | G81: 14.98387097 | H81: 31 | I81: 0.4058272633 | J81: 12.58064516 | K81: 9 | L81: 0.2670250896 | M81: 2.403225806 | N81: 62 | O81: 0 | P81: 0 | Q81: 1 | R81: 0 | S81: 0 | T81: Key Ideas and Details | U81: 10 | V81: 0.4483870968 | W81: 4.483870968 | Y81: Craft and Structure | Z81: 14 | AA81: 0.4147465438 | AB81: 5.806451613 | AD81: Integration of Knowledge and Ideas | AE81: 8 | AF81: 0.3669354839 | AG81: 2.935483871 | AI81: Language and Editing | AJ81: 5 | AK81: 0.2064516129 | AL81: 1.032258065 | AN81: Text-Based Writing | AO81: 3 | AP81: 0.2419354839 | AQ81: 0.7258064516
A82: 9_12 Reading MYA - Grade 9 ELA - CBT ONLY - 2016 - 2017 | B82: 7631 | C82: 7631 7631 - Miami Macarthur South | D82: 11 | E82: 40 | F82: 24.31818182 | G82: 9.727272727 | H82: 31 | I82: 0.2727272727 | J82: 8.454545455 | K82: 9 | L82: 0.1414141414 | M82: 1.272727273 | N82: 11 | O82: 0 | P82: 0 | Q82: 1 | R82: 0 | S82: 0 | T82: Key Ideas and Details | U82: 10 | V82: 0.3272727273 | W82: 3.272727273 | Y82: Craft and Structure | Z82: 14 | AA82: 0.2207792208 | AB82: 3.090909091 | AD82: Integration of Knowledge and Ideas | AE82: 8 | AF82: 0.25 | AG82: 2 | AI82: Language and Editing | AJ82: 5 | AK82: 0.2181818182 | AL82: 1.090909091 | AN82: Text-Based Writing | AO82: 3 | AP82: 0.09090909091 | AQ82: 0.2727272727
A83: 9_12 Reading MYA - Grade 9 ELA - CBT ONLY - 2016 - 2017 | B83: 7701 | C83: 7701 7701 - South Dade Senior High | D83: 253 | E83: 40 | F83: 29.86166008 | G83: 11.94466403 | H83: 31 | I83: 0.3238556675 | J83: 10.03952569 | K83: 9 | L83: 0.2116820378 | M83: 1.90513834 | N83: 253 | O83: 0 | P83: 0 | Q83: 1 | R83: 0 | S83: 0 | T83: Key Ideas and Details | U83: 10 | V83: 0.3731225296 | W83: 3.731225296 | Y83: Craft and Structure | Z83: 14 | AA83: 0.2936194241 | AB83: 4.110671937 | AD83: Integration of Knowledge and Ideas | AE83: 8 | AF83: 0.2984189723 | AG83: 2.387351779 | AI83: Language and Editing | AJ83: 5 | AK83: 0.2197628458 | AL83: 1.098814229 | AN83: Text-Based Writing | AO83: 3 | AP83: 0.2055335968 | AQ83: 0.6166007905
A84: 9_12 Reading MYA - Grade 9 ELA - CBT ONLY - 2016 - 2017 | B84: 7721 | C84: 7721 7721 - South Miami Senior High | D84: 166 | E84: 40 | F84: 28.07228916 | G84: 11.22891566 | H84: 31 | I84: 0.3118927322 | J84: 9.668674699 | K84: 9 | L84: 0.1733601071 | M84: 1.560240964 | N84: 166 | O84: 0 | P84: 0 | Q84: 1 | R84: 0 | S84: 0 | T84: Key Ideas and Details | U84: 10 | V84: 0.3192771084 | W84: 3.192771084 | Y84: Craft and Structure | Z84: 14 | AA84: 0.2969018933 | AB84: 4.156626506 | AD84: Integration of Knowledge and Ideas | AE84: 8 | AF84: 0.2756024096 | AG84: 2.204819277 | AI84: Language and Editing | AJ84: 5 | AK84: 0.2397590361 | AL84: 1.198795181 | AN84: Text-Based Writing | AO84: 3 | AP84: 0.1586345382 | AQ84: 0.4759036145
A85: 9_12 Reading MYA - Grade 9 ELA - CBT ONLY - 2016 - 2017 | B85: 7731 | C85: 7731 7731 - Miami Southridge Senior High | D85: 168 | E85: 40 | F85: 27.70833333 | G85: 11.08333333 | H85: 31 | I85: 0.3049155146 | J85: 9.452380952 | K85: 9 | L85: 0.1812169312 | M85: 1.630952381 | N85: 168 | O85: 0 | P85: 0 | Q85: 1 | R85: 0 | S85: 0 | T85: Key Ideas and Details | U85: 10 | V85: 0.3255952381 | W85: 3.255952381 | Y85: Craft and Structure | Z85: 14 | AA85: 0.287414966 | AB85: 4.023809524 | AD85: Integration of Knowledge and Ideas | AE85: 8 | AF85: 0.2894345238 | AG85: 2.31547619 | AI85: Language and Editing | AJ85: 5 | AK85: 0.2107142857 | AL85: 1.053571429 | AN85: Text-Based Writing | AO85: 3 | AP85: 0.1448412698 | AQ85: 0.4345238095
A86: 9_12 Reading MYA - Grade 9 ELA - CBT ONLY - 2016 - 2017 | B86: 7741 | C86: 7741 7741 - Southwest Miami Senior High | D86: 132 | E86: 40 | F86: 36.00378788 | G86: 14.40151515 | H86: 31 | I86: 0.3941837732 | J86: 12.21969697 | K86: 9 | L86: 0.2424242424 | M86: 2.181818182 | N86: 129 | O86: 0 | P86: 3 | Q86: 0.9772727273 | R86: 0 | S86: 0.02272727273 | T86: Key Ideas and Details | U86: 10 | V86: 0.4174242424 | W86: 4.174242424 | Y86: Craft and Structure | Z86: 14 | AA86: 0.362012987 | AB86: 5.068181818 | AD86: Integration of Knowledge and Ideas | AE86: 8 | AF86: 0.3759469697 | AG86: 3.007575758 | AI86: Language and Editing | AJ86: 5 | AK86: 0.3090909091 | AL86: 1.545454545 | AN86: Text-Based Writing | AO86: 3 | AP86: 0.202020202 | AQ86: 0.6060606061
A87: 9_12 Reading MYA - Grade 9 ELA - CBT ONLY - 2016 - 2017 | B87: 7751 | C87: 7751 7751 - Barbara Goleman Senior High | D87: 73 | E87: 40 | F87: 32.29452055 | G87: 12.91780822 | H87: 31 | I87: 0.347768449 | J87: 10.78082192 | K87: 9 | L87: 0.2374429224 | M87: 2.136986301 | N87: 73 | O87: 0 | P87: 0 | Q87: 1 | R87: 0 | S87: 0 | T87: Key Ideas and Details | U87: 10 | V87: 0.3547945205 | W87: 3.547945205 | Y87: Craft and Structure | Z87: 14 | AA87: 0.3356164384 | AB87: 4.698630137 | AD87: Integration of Knowledge and Ideas | AE87: 8 | AF87: 0.3287671233 | AG87: 2.630136986 | AI87: Language and Editing | AJ87: 5 | AK87: 0.2821917808 | AL87: 1.410958904 | AN87: Text-Based Writing | AO87: 3 | AP87: 0.2100456621 | AQ87: 0.6301369863
A88: 9_12 Reading MYA - Grade 9 ELA - CBT ONLY - 2016 - 2017 | B88: 7781 | C88: 7781 7781 - Felix Varela Senior High | D88: 118 | E88: 40 | F88: 31.94915254 | G88: 12.77966102 | H88: 31 | I88: 0.3469108803 | J88: 10.75423729 | K88: 9 | L88: 0.225047081 | M88: 2.025423729 | N88: 118 | O88: 0 | P88: 0 | Q88: 1 | R88: 0 | S88: 0 | T88: Key Ideas and Details | U88: 10 | V88: 0.3711864407 | W88: 3.711864407 | Y88: Craft and Structure | Z88: 14 | AA88: 0.3256658596 | AB88: 4.559322034 | AD88: Integration of Knowledge and Ideas | AE88: 8 | AF88: 0.3103813559 | AG88: 2.483050847 | AI88: Language and Editing | AJ88: 5 | AK88: 0.2542372881 | AL88: 1.271186441 | AN88: Text-Based Writing | AO88: 3 | AP88: 0.2514124294 | AQ88: 0.7542372881
A89: 9_12 Reading MYA - Grade 9 ELA - CBT ONLY - 2016 - 2017 | B89: 7791 | C89: 7791 7791 - Booker T. Washington Sr. High | D89: 96 | E89: 40 | F89: 34.89583333 | G89: 13.95833333 | H89: 31 | I89: 0.3810483871 | J89: 11.8125 | K89: 9 | L89: 0.2384259259 | M89: 2.145833333 | N89: 96 | O89: 0 | P89: 0 | Q89: 1 | R89: 0 | S89: 0 | T89: Key Ideas and Details | U89: 10 | V89: 0.3947916667 | W89: 3.947916667 | Y89: Craft and Structure | Z89: 14 | AA89: 0.3571428571 | AB89: 5 | AD89: Integration of Knowledge and Ideas | AE89: 8 | AF89: 0.40234375 | AG89: 3.21875 | AI89: Language and Editing | AJ89: 5 | AK89: 0.25 | AL89: 1.25 | AN89: Text-Based Writing | AO89: 3 | AP89: 0.1805555556 | AQ89: 0.5416666667
A90: 9_12 Reading MYA - Grade 9 ELA - CBT ONLY - 2016 - 2017 | B90: 7901 | C90: 7901 7901 - New World School Of The Arts | D90: 5 | T90: Key Ideas and Details | Y90: Craft and Structure | AD90: Integration of Knowledge and Ideas | AI90: Language and Editing | AN90: Text-Based Writing
A91: 9_12 Reading MYA - Grade 9 ELA - CBT ONLY - 2016 - 2017 | B91: 8012 | C91: 8012 8012 PACE Center for Girls | D91: 1 | T91: Key Ideas and Details | Y91: Craft and Structure | AD91: Integration of Knowledge and Ideas | AI91: Language and Editing | AN91: Text-Based Writing
A92: 9_12 Reading MYA - Grade 9 ELA - CBT ONLY - 2016 - 2017 | B92: 8014 | C92: 8014 8014 - Alternative Outreach-Ext. Yr | D92: 2 | T92: Key Ideas and Details | Y92: Craft and Structure | AD92: Integration of Knowledge and Ideas | AI92: Language and Editing | AN92: Text-Based Writing
A93: 9_12 Reading MYA - Grade 9 ELA - CBT ONLY - 2016 - 2017 | B93: 8017 | C93: 8017 8017 - Alternative Outreach Program | D93: 7 | T93: Key Ideas and Details | Y93: Craft and Structure | AD93: Integration of Knowledge and Ideas | AI93: Language and Editing | AN93: Text-Based Writing
A94: 9_12 Reading MYA - Grade 9 ELA - CBT ONLY - 2016 - 2017 | B94: 8019 | C94: 8019 8019 - Academy For Community Ed | D94: 2 | T94: Key Ideas and Details | Y94: Craft and Structure | AD94: Integration of Knowledge and Ideas | AI94: Language and Editing | AN94: Text-Based Writing
A95: 9_12 Reading MYA - Grade 9 ELA - CBT ONLY - 2016 - 2017 | B95: 8101 | C95: 8101 8101 - Jan Mann Opportunity School | D95: 2 | T95: Key Ideas and Details | Y95: Craft and Structure | AD95: Integration of Knowledge and Ideas | AI95: Language and Editing | AN95: Text-Based Writing
A96: 9_12 Reading MYA - Grade 9 ELA - CBT ONLY - 2016 - 2017 | B96: 8121 | C96: 8121 8121 - Cope Center North | D96: 1 | T96: Key Ideas and Details | Y96: Craft and Structure | AD96: Integration of Knowledge and Ideas | AI96: Language and Editing | AN96: Text-Based Writing
A97: 9_12 Reading MYA - Grade 9 ELA - CBT ONLY - 2016 - 2017 | B97: 8131 | C97: 8131 8131 - Dorothy M Wallace Cope Center | D97: 1 | T97: Key Ideas and Details | Y97: Craft and Structure | AD97: Integration of Knowledge and Ideas | AI97: Language and Editing | AN97: Text-Based Writing
A98: 9_12 Reading MYA - Grade 9 ELA - CBT ONLY - 2016 - 2017 | B98: 8141 | C98: 8141 8141 - Juvenile Justice Center | D98: 0 | T98: Key Ideas and Details | Y98: Craft and Structure | AD98: Integration of Knowledge and Ideas | AI98: Language and Editing | AN98: Text-Based Writing
A99: 9_12 Reading MYA - Grade 9 ELA - CBT ONLY - 2016 - 2017 | B99: 8151 | C99: 8151 8151 - Robert Renick Education Ctr | D99: 1 | T99: Key Ideas and Details | Y99: Craft and Structure | AD99: Integration of Knowledge and Ideas | AI99: Language and Editing | AN99: Text-Based Writing
A100: 9_12 Reading MYA - Grade 9 ELA - CBT ONLY - 2016 - 2017 | B100: 8181 | C100: 8181 8181 - Ruth Owens Kruse Educ Center | D100: 1 | T100: Key Ideas and Details | Y100: Craft and Structure | AD100: Integration of Knowledge and Ideas | AI100: Language and Editing | AN100: Text-Based Writing

Sheet 1617ELAG9L2 (hidden)
B1: =COLUMN()-1 -> 1 | C1: =COLUMN()-1 -> 2 | D1: 3 | E1: 4 | F1: 5 | G1: 6 | H1: 7 | I1: 8 | J1: 9 | K1: 10 | L1: 11 | M1: 12 | N1: 13 | O1: 14 | P1: 15 | Q1: 16 | R1: 17 | S1: 18 | T1: 19 | U1: 20 | V1: 21 | W1: 22 | X1: 23 | Y1: 24 | Z1: 25 | AA1: 26 | AB1: 27 | AC1: 28 | AD1: 29 | AE1: 30 | AF1: 31 | AG1: 32 | AH1: 33 | AI1: 34 | AJ1: 35 | AK1: 36 | AL1: 37 | AM1: 38 | AN1: 39 | AO1: 40 | AP1: 41 | AQ1: 42 | AR1: 43 | AS1: 44 | AT1: 45 | AU1: 46 | AV1: 47 | AW1: 48
A2: Assessment | B2: Location | C2: School Name | D2: N-Tested | E2: Max Score | F2: Avg % Correct | G2: Avg Raw Score | H2: MC Max Score | I2: MC Avg % Correct | J2: MC Avg Raw Score | K2: MU Max Score | L2: MU Avg % Correct | M2: MU Avg Raw Score | N2: # Insufficient | O2: # Limited | P2: # Satisfactory | Q2: % Insufficient | R2: % Limited | S2: % Satisfactory | T2: Domain1 | U2: Max of Domain1 Max Score | V2: Average of Domain1 %Correct | W2: Average of Domain1 RawScore | X2: Domain1 Item List | Y2: Domain2 | Z2: Max of Domain2 Max Score | AA2: Average of Domain2 %Correct | AB2: Average of Domain2 RawScore | AC2: Domain2 Item List | AD2: Domain3 | AE2: Max of Domain3 Max Score | AF2: Average of Domain3 %Correct | AG2: Average of Domain3 RawScore | AH2: Domain3 Item List | AI2: Domain4 | AJ2: Max of Domain4 Max Score | AK2: Average of Domain4 %Correct | AL2: Average of Domain4 RawScore | AM2: Domain4 Item List | AN2: Domain5 | AO2: Max of Domain5 Max Score | AP2: Average of Domain5 %Correct | AQ2: Average of Domain5 RawScore | AR2: Domain5 Item List | AS2: Domain6 | AT2: Max of Domain6 Max Score | AU2: Average of Domain6 %Correct | AV2: Average of Domain6 RawScore | AW2: Domain6 Item List
A3: 9_12 Reading MYA - Grade 9 ELA - CBT ONLY - 2016 - 2017 | B3: 9999 | C3: 9999 9999 District | D3: 4537 | E3: 40 | F3: 41.86907648 | G3: 16.74763059 | H3: 31 | I3: 0.4389499954 | J3: 13.60744986 | K3: 9 | L3: 0.3489089707 | M3: 3.140180736 | N3: 4393 | O3: 0 | P3: 49 | Q3: 0.9682609654 | R3: 0 | S3: 0.01080008816 | T3: Key Ideas and Details | U3: 10 | V3: 0.4977518184 | W3: 4.977518184 | Y3: Craft and Structure | Z3: 14 | AA3: 0.4331055764 | AB3: 6.063478069 | AD3: Integration of Knowledge and Ideas | AE3: 8 | AF3: 0.3997685695 | AG3: 3.198148556 | AI3: Language and Editing | AJ3: 5 | AK3: 0.2979501873 | AL3: 1.489750937 | AN3: Text-Based Writing | AO3: 3 | AP3: 0.3395782823 | AQ3: 1.018734847
A4: 9_12 Reading MYA - Grade 9 ELA - CBT ONLY - 2016 - 2017 | B4: 5007 | C4: 5007 5007 - Lincoln-Marti Charter Hialeah | D4: 4 | T4: Key Ideas and Details | Y4: Craft and Structure | AD4: Integration of Knowledge and Ideas | AI4: Language and Editing | AN4: Text-Based Writing
A5: 9_12 Reading MYA - Grade 9 ELA - CBT ONLY - 2016 - 2017 | B5: 5047 | C5: 5047 5047 - Mater Academy (miami Beach) | D5: 5 | T5: Key Ideas and Details | Y5: Craft and Structure | AD5: Integration of Knowledge and Ideas | AI5: Language and Editing | AN5: Text-Based Writing
A6: 9_12 Reading MYA - Grade 9 ELA - CBT ONLY - 2016 - 2017 | B6: 6040 | C6: 6040 6040 - Doctors Charter/miami Shores | D6: 22 | E6: 40 | F6: 45.68181818 | G6: 18.27272727 | H6: 31 | I6: 0.4721407625 | J6: 14.63636364 | K6: 9 | L6: 0.404040404 | M6: 3.636363636 | N6: 20 | O6: 0 | P6: 2 | Q6: 0.9090909091 | R6: 0 | S6: 0.09090909091 | T6: Key Ideas and Details | U6: 10 | V6: 0.4909090909 | W6: 4.909090909 | Y6: Craft and Structure | Z6: 14 | AA6: 0.4772727273 | AB6: 6.681818182 | AD6: Integration of Knowledge and Ideas | AE6: 8 | AF6: 0.4431818182 | AG6: 3.545454545 | AI6: Language and Editing | AJ6: 5 | AK6: 0.3636363636 | AL6: 1.818181818 | AN6: Text-Based Writing | AO6: 3 | AP6: 0.4393939394 | AQ6: 1.318181818
A7: 9_12 Reading MYA - Grade 9 ELA - CBT ONLY - 2016 - 2017 | B7: 6052 | C7: 6052 6052 - Zelda Glazer Middle School | D7: 13 | E7: 40 | F7: 50.76923077 | G7: 20.30769231 | H7: 31 | I7: 0.5186104218 | J7: 16.07692308 | K7: 9 | L7: 0.4700854701 | M7: 4.230769231 | N7: 12 | O7: 0 | P7: 1 | Q7: 0.9230769231 | R7: 0 | S7: 0.07692307692 | T7: Key Ideas and Details | U7: 10 | V7: 0.4769230769 | W7: 4.769230769 | Y7: Craft and Structure | Z7: 14 | AA7: 0.521978022 | AB7: 7.307692308 | AD7: Integration of Knowledge and Ideas | AE7: 8 | AF7: 0.5769230769 | AG7: 4.615384615 | AI7: Language and Editing | AJ7: 5 | AK7: 0.3538461538 | AL7: 1.769230769 | AN7: Text-Based Writing | AO7: 3 | AP7: 0.6153846154 | AQ7: 1.846153846
A8: 9_12 Reading MYA - Grade 9 ELA - CBT ONLY - 2016 - 2017 | B8: 6081 | C8: 6081 6081 - Cutler Bay Acad Of Adv Studies | D8: 11 | E8: 40 | F8: 45 | G8: 18 | H8: 31 | I8: 0.4721407625 | J8: 14.63636364 | K8: 9 | L8: 0.3737373737 | M8: 3.363636364 | N8: 11 | O8: 0 | P8: 0 | Q8: 1 | R8: 0 | S8: 0 | T8: Key Ideas and Details | U8: 10 | V8: 0.5454545455 | W8: 5.454545455 | Y8: Craft and Structure | Z8: 14 | AA8: 0.4285714286 | AB8: 6 | AD8: Integration of Knowledge and Ideas | AE8: 8 | AF8: 0.4090909091 | AG8: 3.272727273 | AI8: Language and Editing | AJ8: 5 | AK8: 0.4181818182 | AL8: 2.090909091 | AN8: Text-Based Writing | AO8: 3 | AP8: 0.3939393939 | AQ8: 1.181818182
A9: 9_12 Reading MYA - Grade 9 ELA - CBT ONLY - 2016 - 2017 | B9: 6997 | C9: 6997 6997 - Mater Virtual Academy Charter | D9: 2 | T9: Key Ideas and Details | Y9: Craft and Structure | AD9: Integration of Knowledge and Ideas | AI9: Language and Editing | AN9: Text-Based Writing
A10: 9_12 Reading MYA - Grade 9 ELA - CBT ONLY - 2016 - 2017 | B10: 7005 | C10: 7005 7005 - iTECH at Thomas A. Edison | D10: 17 | E10: 40 | F10: 37.94117647 | G10: 15.17647059 | H10: 31 | I10: 0.3795066414 | J10: 11.76470588 | K10: 9 | L10: 0.3790849673 | M10: 3.411764706 | N10: 17 | O10: 0 | P10: 0 | Q10: 1 | R10: 0 | S10: 0 | T10: Key Ideas and Details | U10: 10 | V10: 0.4764705882 | W10: 4.764705882 | Y10: Craft and Structure | Z10: 14 | AA10: 0.3361344538 | AB10: 4.705882353 | AD10: Integration of Knowledge and Ideas | AE10: 8 | AF10: 0.3602941176 | AG10: 2.882352941 | AI10: Language and Editing | AJ10: 5 | AK10: 0.3176470588 | AL10: 1.588235294 | AN10: Text-Based Writing | AO10: 3 | AP10: 0.4117647059 | AQ10: 1.235294118
A11: 9_12 Reading MYA - Grade 9 ELA - CBT ONLY - 2016 - 2017 | B11: 7007 | C11: 7007 7007 - Intl. Studies Charter Senior | D11: 8 | T11: Key Ideas and Details | Y11: Craft and Structure | AD11: Integration of Knowledge and Ideas | AI11: Language and Editing | AN11: Text-Based Writing
A12: 9_12 Reading MYA - Grade 9 ELA - CBT ONLY - 2016 - 2017 | B12: 7008 | C12: 7008 7008 - BioTECH at Richmond Heights 9-12 | D12: 16 | E12: 40 | F12: 37.1875 | G12: 14.875 | H12: 31 | I12: 0.3850806452 | J12: 11.9375 | K12: 9 | L12: 0.3263888889 | M12: 2.9375 | N12: 16 | O12: 0 | P12: 0 | Q12: 1 | R12: 0 | S12: 0 | T12: Key Ideas and Details | U12: 10 | V12: 0.45 | W12: 4.5 | Y12: Craft and Structure | Z12: 14 | AA12: 0.3705357143 | AB12: 5.1875 | AD12: Integration of Knowledge and Ideas | AE12: 8 | AF12: 0.34375 | AG12: 2.75 | AI12: Language and Editing | AJ12: 5 | AK12: 0.2875 | AL12: 1.4375 | AN12: Text-Based Writing | AO12: 3 | AP12: 0.3333333333 | AQ12: 1
A13: 9_12 Reading MYA - Grade 9 ELA - CBT ONLY - 2016 - 2017 | B13: 7009 | C13: 7009 7009 - Doral Performing Arts Academy | D13: 4 | T13: Key Ideas and Details | Y13: Craft and Structure | AD13: Integration of Knowledge and Ideas | AI13: Language and Editing | AN13: Text-Based Writing
A14: 9_12 Reading MYA - Grade 9 ELA - CBT ONLY - 2016 - 2017 | B14: 7011 | C14: 7011 7011 - American Senior | D14: 123 | E14: 40 | F14: 43.04878049 | G14: 17.2195122 | H14: 31 | I14: 0.4589562025 | J14: 14.22764228 | K14: 9 | L14: 0.332429991 | M14: 2.991869919 | N14: 123 | O14: 0 | P14: 0 | Q14: 1 | R14: 0 | S14: 0 | T14: Key Ideas and Details | U14: 10 | V14: 0.5089430894 | W14: 5.089430894 | Y14: Craft and Structure | Z14: 14 | AA14: 0.4419279907 | AB14: 6.18699187 | AD14: Integration of Knowledge and Ideas | AE14: 8 | AF14: 0.4390243902 | AG14: 3.512195122 | AI14: Language and Editing | AJ14: 5 | AK14: 0.3008130081 | AL14: 1.504065041 | AN14: Text-Based Writing | AO14: 3 | AP14: 0.3089430894 | AQ14: 0.9268292683
A15: 9_12 Reading MYA - Grade 9 ELA - CBT ONLY - 2016 - 2017 | B15: 7014 | C15: 7014 7014 - Mater Performing Arts Academy | D15: 7 | T15: Key Ideas and Details | Y15: Craft and Structure | AD15: Integration of Knowledge and Ideas | AI15: Language and Editing | AN15: Text-Based Writing
A16: 9_12 Reading MYA - Grade 9 ELA - CBT ONLY - 2016 - 2017 | B16: 7015 | C16: 7015 7015 - Stellar Leadership Academy | D16: 2 | T16: Key Ideas and Details | Y16: Craft and Structure | AD16: Integration of Knowledge and Ideas | AI16: Language and Editing | AN16: Text-Based Writing
A17: 9_12 Reading MYA - Grade 9 ELA - CBT ONLY - 2016 - 2017 | B17: 7016 | C17: 7016 7016 - Sports Leadership Of Miami Chs | D17: 29 | E17: 40 | F17: 45 | G17: 18 | H17: 31 | I17: 0.4771968854 | J17: 14.79310345 | K17: 9 | L17: 0.3563218391 | M17: 3.206896552 | N17: 28 | O17: 0 | P17: 1 | Q17: 0.9655172414 | R17: 0 | S17: 0.03448275862 | T17: Key Ideas and Details | U17: 10 | V17: 0.5724137931 | W17: 5.724137931 | Y17: Craft and Structure | Z17: 14 | AA17: 0.4679802956 | AB17: 6.551724138 | AD17: Integration of Knowledge and Ideas | AE17: 8 | AF17: 0.400862069 | AG17: 3.206896552 | AI17: Language and Editing | AJ17: 5 | AK17: 0.3172413793 | AL17: 1.586206897 | AN17: Text-Based Writing | AO17: 3 | AP17: 0.3103448276 | AQ17: 0.9310344828
A18: 9_12 Reading MYA - Grade 9 ELA - CBT ONLY - 2016 - 2017 | B18: 7018 | C18: 7018 7018 - Mater Academy Lakes High Sch | D18: 59 | E18: 40 | F18: 39.57627119 | G18: 15.83050847 | H18: 31 | I18: 0.4127938764 | J18: 12.79661017 | K18: 9 | L18: 0.3370998117 | M18: 3.033898305 | N18: 59 | O18: 0 | P18: 0 | Q18: 1 | R18: 0 | S18: 0 | T18: Key Ideas and Details | U18: 10 | V18: 0.4525423729 | W18: 4.525423729 | Y18: Craft and Structure | Z18: 14 | AA18: 0.3680387409 | AB18: 5.152542373 | AD18: Integration of Knowledge and Ideas | AE18: 8 | AF18: 0.4088983051 | AG18: 3.271186441 | AI18: Language and Editing | AJ18: 5 | AK18: 0.3322033898 | AL18: 1.661016949 | AN18: Text-Based Writing | AO18: 3 | AP18: 0.406779661 | AQ18: 1.220338983
A19: 9_12 Reading MYA - Grade 9 ELA - CBT ONLY - 2016 - 2017 | B19: 7020 | C19: 7020 7020 - Doral Academy High School | D19: 29 | E19: 40 | F19: 34.82758621 | G19: 13.93103448 | H19: 31 | I19: 0.383759733 | J19: 11.89655172 | K19: 9 | L19: 0.2260536398 | M19: 2.034482759 | N19: 29 | O19: 0 | P19: 0 | Q19: 1 | R19: 0 | S19: 0 | T19: Key Ideas and Details | U19: 10 | V19: 0.4310344828 | W19: 4.310344828 | Y19: Craft and Structure | Z19: 14 | AA19: 0.3743842365 | AB19: 5.24137931 | AD19: Integration of Knowledge and Ideas | AE19: 8 | AF19: 0.3405172414 | AG19: 2.724137931 | AI19: Language and Editing | AJ19: 5 | AK19: 0.275862069 | AL19: 1.379310345 | AN19: Text-Based Writing | AO19: 3 | AP19: 0.09195402299 | AQ19: 0.275862069
A20: 9_12 Reading MYA - Grade 9 ELA - CBT ONLY - 2016 - 2017 | B20: 7021 | C20: 7021 7021 - International Educational Academy | D20: 18 | E20: 40 | F20: 49.58333333 | G20: 19.83333333 | H20: 31 | I20: 0.517921147 | J20: 16.05555556 | K20: 9 | L20: 0.4197530864 | M20: 3.777777778 | N20: 17 | O20: 0 | P20: 1 | Q20: 0.9444444444 | R20: 0 | S20: 0.05555555556 | T20: Key Ideas and Details | U20: 10 | V20: 0.6 | W20: 6 | Y20: Craft and Structure | Z20: 14 | AA20: 0.5317460317 | AB20: 7.444444444 | AD20: Integration of Knowledge and Ideas | AE20: 8 | AF20: 0.4861111111 | AG20: 3.888888889 | AI20: Language and Editing | AJ20: 5 | AK20: 0.3111111111 | AL20: 1.555555556 | AN20: Text-Based Writing | AO20: 3 | AP20: 0.3148148148 | AQ20: 0.9444444444
A21: 9_12 Reading MYA - Grade 9 ELA - CBT ONLY - 2016 - 2017 | B21: 7022 | C21: 7022 7022 - Academy Of Arts And Minds | D21: 12 | E21: 40 | F21: 41.45833333 | G21: 16.58333333 | H21: 31 | I21: 0.4489247312 | J21: 13.91666667 | K21: 9 | L21: 0.2962962963 | M21: 2.666666667 | N21: 12 | O21: 0 | P21: 0 | Q21: 1 | R21: 0 | S21: 0 | T21: Key Ideas and Details | U21: 10 | V21: 0.4916666667 | W21: 4.916666667 | Y21: Craft and Structure | Z21: 14 | AA21: 0.4285714286 | AB21: 6 | AD21: Integration of Knowledge and Ideas | AE21: 8 | AF21: 0.3958333333 | AG21: 3.166666667 | AI21: Language and Editing | AJ21: 5 | AK21: 0.3333333333 | AL21: 1.666666667 | AN21: Text-Based Writing | AO21: 3 | AP21: 0.2777777778 | AQ21: 0.8333333333
A22: 9_12 Reading MYA - Grade 9 ELA - CBT ONLY - 2016 - 2017 | B22: 7024 | C22: 7024 7024 - Mater Academy High-Intl Studie | D22: 0 | T22: Key Ideas and Details | Y22: Craft and Structure | AD22: Integration of Knowledge and Ideas | AI22: Language and Editing | AN22: Text-Based Writing
A23: 9_12 Reading MYA - Grade 9 ELA - CBT ONLY - 2016 - 2017 | B23: 7029 | C23: 7029 7029 - Terra Environmental Research | D23: 17 | E23: 40 | F23: 51.91176471 | G23: 20.76470588 | H23: 31 | I23: 0.5332068311 | J23: 16.52941176 | K23: 9 | L23: 0.4705882353 | M23: 4.235294118 | N23: 17 | O23: 0 | P23: 0 | Q23: 1 | R23: 0 | S23: 0 | T23: Key Ideas and Details | U23: 10 | V23: 0.5529411765 | W23: 5.529411765 | Y23: Craft and Structure | Z23: 14 | AA23: 0.5084033613 | AB23: 7.117647059 | AD23: Integration of Knowledge and Ideas | AE23: 8 | AF23: 0.5514705882 | AG23: 4.411764706 | AI23: Language and Editing | AJ23: 5 | AK23: 0.4235294118 | AL23: 2.117647059 | AN23: Text-Based Writing | AO23: 3 | AP23: 0.5294117647 | AQ23: 1.588235294
A24: 9_12 Reading MYA - Grade 9 ELA - CBT ONLY - 2016 - 2017 | B24: 7031 | C24: 7031 7031 - MAST at FIU Biscayne Bay Campus | D24: 2 | T24: Key Ideas and Details | Y24: Craft and Structure | AD24: Integration of Knowledge and Ideas | AI24: Language and Editing | AN24: Text-Based Writing
A25: 9_12 Reading MYA - Grade 9 ELA - CBT ONLY - 2016 - 2017 | B25: 7032 | C25: 7032 7032 - Palm Glades Prep High School | D25: 31 | E25: 40 | F25: 42.5 | G25: 17 | H25: 31 | I25: 0.4568158169 | J25: 14.16129032 | K25: 9 | L25: 0.3154121864 | M25: 2.838709677 | N25: 30 | O25: 0 | P25: 1 | Q25: 0.9677419355 | R25: 0 | S25: 0.03225806452 | T25: Key Ideas and Details | U25: 10 | V25: 0.5 | W25: 5 | Y25: Craft and Structure | Z25: 14 | AA25: 0.430875576 | AB25: 6.032258065 | AD25: Integration of Knowledge and Ideas | AE25: 8 | AF25: 0.4233870968 | AG25: 3.387096774 | AI25: Language and Editing | AJ25: 5 | AK25: 0.335483871 | AL25: 1.677419355 | AN25: Text-Based Writing | AO25: 3 | AP25: 0.3010752688 | AQ25: 0.9032258065
A26: 9_12 Reading MYA - Grade 9 ELA - CBT ONLY - 2016 - 2017 | B26: 7033 | C26: 7033 7033 - Law Enforcement Officers Hs | D26: 28 | E26: 40 | F26: 41.875 | G26: 16.75 | H26: 31 | I26: 0.448156682 | J26: 13.89285714 | K26: 9 | L26: 0.3174603175 | M26: 2.857142857 | N26: 28 | O26: 0 | P26: 0 | Q26: 1 | R26: 0 | S26: 0 | T26: Key Ideas and Details | U26: 10 | V26: 0.5071428571 | W26: 5.071428571 | Y26: Craft and Structure | Z26: 14 | AA26: 0.4107142857 | AB26: 5.75 | AD26: Integration of Knowledge and Ideas | AE26: 8 | AF26: 0.4375 | AG26: 3.5 | AI26: Language and Editing | AJ26: 5 | AK26: 0.3142857143 | AL26: 1.571428571 | AN26: Text-Based Writing | AO26: 3 | AP26: 0.2857142857 | AQ26: 0.8571428571
A27: 9_12 Reading MYA - Grade 9 ELA - CBT ONLY - 2016 - 2017 | B27: 7034 | C27: 7034 7034 - Somerset Acad High South-Hmstd | D27: 22 | E27: 40 | F27: 37.5 | G27: 15 | H27: 31 | I27: 0.4046920821 | J27: 12.54545455 | K27: 9 | L27: 0.2727272727 | M27: 2.454545455 | N27: 22 | O27: 0 | P27: 0 | Q27: 1 | R27: 0 | S27: 0 | T27: Key Ideas and Details | U27: 10 | V27: 0.4409090909 | W27: 4.409090909 | Y27: Craft and Structure | Z27: 14 | AA27: 0.3798701299 | AB27: 5.318181818 | AD27: Integration of Knowledge and Ideas | AE27: 8 | AF27: 0.375 | AG27: 3 | AI27: Language and Editing | AJ27: 5 | AK27: 0.2454545455 | AL27: 1.227272727 | AN27: Text-Based Writing | AO27: 3 | AP27: 0.3484848485 | AQ27: 1.045454545
A28: 9_12 Reading MYA - Grade 9 ELA - CBT ONLY - 2016 - 2017 | B28: 7037 | C28: 7037 7037 - Mater Academy East High School | D28: 12 | E28: 40 | F28: 37.5 | G28: 15 | H28: 31 | I28: 0.3844086022 | J28: 11.91666667 | K28: 9 | L28: 0.3425925926 | M28: 3.083333333 | N28: 12 | O28: 0 | P28: 0 | Q28: 1 | R28: 0 | S28: 0 | T28: Key Ideas and Details | U28: 10 | V28: 0.5 | W28: 5 | Y28: Craft and Structure | Z28: 14 | AA28: 0.3333333333 | AB28: 4.666666667 | AD28: Integration of Knowledge and Ideas | AE28: 8 | AF28: 0.3854166667 | AG28: 3.083333333 | AI28: Language and Editing | AJ28: 5 | AK28: 0.2333333333 | AL28: 1.166666667 | AN28: Text-Based Writing | AO28: 3 | AP28: 0.3611111111 | AQ28: 1.083333333
A29: 9_12 Reading MYA - Grade 9 ELA - CBT ONLY - 2016 - 2017 | B29: 7038 | C29: 7038 7038 - Somerset Academy High (south) | D29: 0 | T29: Key Ideas and Details | Y29: Craft and Structure | AD29: Integration of Knowledge and Ideas | AI29: Language and Editing | AN29: Text-Based Writing
A30: 9_12 Reading MYA - Grade 9 ELA - CBT ONLY - 2016 - 2017 | B30: 7042 | C30: 7042 7042 - Somerset Academy Charter High | D30: 21 | E30: 40 | F30: 51.78571429 | G30: 20.71428571 | H30: 31 | I30: 0.5253456221 | J30: 16.28571429 | K30: 9 | L30: 0.4920634921 | M30: 4.428571429 | N30: 18 | O30: 0 | P30: 3 | Q30: 0.8571428571 | R30: 0 | S30: 0.1428571429 | T30: Key Ideas and Details | U30: 10 | V30: 0.5476190476 | W30: 5.476190476 | Y30: Craft and Structure | Z30: 14 | AA30: 0.5102040816 | AB30: 7.142857143 | AD30: Integration of Knowledge and Ideas | AE30: 8 | AF30: 0.494047619 | AG30: 3.952380952 | AI30: Language and Editing | AJ30: 5 | AK30: 0.5238095238 | AL30: 2.619047619 | AN30: Text-Based Writing | AO30: 3 | AP30: 0.5079365079 | AQ30: 1.523809524
A31: 9_12 Reading MYA - Grade 9 ELA - CBT ONLY - 2016 - 2017 | B31: 7048 | C31: 7048 7048 - Alonzo and Tracy Mourning Sh | D31: 72 | E31: 40 | F31: 43.71527778 | G31: 17.48611111 | H31: 31 | I31: 0.4610215054 | J31: 14.29166667 | K31: 9 | L31: 0.3549382716 | M31: 3.194444444 | N31: 71 | O31: 0 | P31: 1 | Q31: 0.9861111111 | R31: 0 | S31: 0.01388888889 | T31: Key Ideas and Details | U31: 10 | V31: 0.5138888889 | W31: 5.138888889 | Y31: Craft and Structure | Z31: 14 | AA31: 0.439484127 | AB31: 6.152777778 | AD31: Integration of Knowledge and Ideas | AE31: 8 | AF31: 0.4496527778 | AG31: 3.597222222 | AI31: Language and Editing | AJ31: 5 | AK31: 0.3055555556 | AL31: 1.527777778 | AN31: Text-Based Writing | AO31: 3 | AP31: 0.3564814815 | AQ31: 1.069444444
A32: 9_12 Reading MYA - Grade 9 ELA - CBT ONLY - 2016 - 2017 | B32: 7049 | C32: 7049 7049 - Westland Hialeah Senior High | D32: 75 | E32: 40 | F32: 42.03333333 | G32: 16.81333333 | H32: 31 | I32: 0.4387096774 | J32: 13.6 | K32: 9 | L32: 0.357037037 | M32: 3.213333333 | N32: 75 | O32: 0 | P32: 0 | Q32: 1 | R32: 0 | S32: 0 | T32: Key Ideas and Details | U32: 10 | V32: 0.516 | W32: 5.16 | Y32: Craft and Structure | Z32: 14 | AA32: 0.4095238095 | AB32: 5.733333333 | AD32: Integration of Knowledge and Ideas | AE32: 8 | AF32: 0.3833333333 | AG32: 3.066666667 | AI32: Language and Editing | AJ32: 5 | AK32: 0.312 | AL32: 1.56 | AN32: Text-Based Writing | AO32: 3 | AP32: 0.4311111111 | AQ32: 1.293333333
A33: 9_12 Reading MYA - Grade 9 ELA - CBT ONLY - 2016 - 2017 | B33: 7050 | C33: 7050 7050 - Keys Gate Charter High Schl | D33: 0 | T33: Key Ideas and Details | Y33: Craft and Structure | AD33: Integration of Knowledge and Ideas | AI33: Language and Editing | AN33: Text-Based Writing
A34: 9_12 Reading MYA - Grade 9 ELA - CBT ONLY - 2016 - 2017 | B34: 7051 | C34: 7051 7051 - G. Holmes Braddock Senior High | D34: 141 | E34: 40 | F34: 40.05319149 | G34: 16.0212766 | H34: 31 | I34: 0.4248455731 | J34: 13.17021277 | K34: 9 | L34: 0.31678487 | M34: 2.85106383 | N34: 140 | O34: 0 | P34: 1 | Q34: 0.9929078014 | R34: 0 | S34: 0.007092198582 | T34: Key Ideas and Details | U34: 10 | V34: 0.4602836879 | W34: 4.602836879 | Y34: Craft and Structure | Z34: 14 | AA34: 0.4062816616 | AB34: 5.687943262 | AD34: Integration of Knowledge and Ideas | AE34: 8 | AF34: 0.3962765957 | AG34: 3.170212766 | AI34: Language and Editing | AJ34: 5 | AK34: 0.3035460993 | AL34: 1.517730496 | AN34: Text-Based Writing | AO34: 3 | AP34: 0.3475177305 | AQ34: 1.042553191
A35: 9_12 Reading MYA - Grade 9 ELA - CBT ONLY - 2016 - 2017 | B35: 7053 | C35: 7053 7053 - Pinecrest Academy Charter High | D35: 28 | E35: 40 | F35: 45 | G35: 18 | H35: 31 | I35: 0.4619815668 | J35: 14.32142857 | K35: 9 | L35: 0.4087301587 | M35: 3.678571429 | N35: 28 | O35: 0 | P35: 0 | Q35: 1 | R35: 0 | S35: 0 | T35: Key Ideas and Details | U35: 10 | V35: 0.5607142857 | W35: 5.607142857 | Y35: Craft and Structure | Z35: 14 | AA35: 0.4285714286 | AB35: 6 | AD35: Integration of Knowledge and Ideas | AE35: 8 | AF35: 0.4196428571 | AG35: 3.357142857 | AI35: Language and Editing | AJ35: 5 | AK35: 0.3785714286 | AL35: 1.892857143 | AN35: Text-Based Writing | AO35: 3 | AP35: 0.380952381 | AQ35: 1.142857143
A36: 9_12 Reading MYA - Grade 9 ELA - CBT ONLY - 2016 - 2017 | B36: 7055 | C36: 7055 7055 - Young Women''s Preparatory Acad | D36: 2 | T36: Key Ideas and Details | Y36: Craft and Structure | AD36: Integration of Knowledge and Ideas | AI36: Language and Editing | AN36: Text-Based Writing
A37: 9_12 Reading MYA - Grade 9 ELA - CBT ONLY - 2016 - 2017 | B37: 7056 | C37: 7056 7056 - Young Mens Preparatory Academy | D37: 6 | T37: Key Ideas and Details | Y37: Craft and Structure | AD37: Integration of Knowledge and Ideas | AI37: Language and Editing | AN37: Text-Based Writing
A38: 9_12 Reading MYA - Grade 9 ELA - CBT ONLY - 2016 - 2017 | B38: 7058 | C38: 7058 7058 - Miami Community Ch High School | D38: 21 | E38: 40 | F38: 37.61904762 | G38: 15.04761905 | H38: 31 | I38: 0.3963133641 | J38: 12.28571429 | K38: 9 | L38: 0.3068783069 | M38: 2.761904762 | N38: 21 | O38: 0 | P38: 0 | Q38: 1 | R38: 0 | S38: 0 | T38: Key Ideas and Details | U38: 10 | V38: 0.4142857143 | W38: 4.142857143 | Y38: Craft and Structure | Z38: 14 | AA38: 0.3469387755 | AB38: 4.857142857 | AD38: Integration of Knowledge and Ideas | AE38: 8 | AF38: 0.3928571429 | AG38: 3.142857143 | AI38: Language and Editing | AJ38: 5 | AK38: 0.3523809524 | AL38: 1.761904762 | AN38: Text-Based Writing | AO38: 3 | AP38: 0.380952381 | AQ38: 1.142857143
A39: 9_12 Reading MYA - Grade 9 ELA - CBT ONLY - 2016 - 2017 | B39: 7059 | C39: 7059 7059 - Miami Arts Charter | D39: 35 | E39: 40 | F39: 39.07142857 | G39: 15.62857143 | H39: 31 | I39: 0.4175115207 | J39: 12.94285714 | K39: 9 | L39: 0.2984126984 | M39: 2.685714286 | N39: 35 | O39: 0 | P39: 0 | Q39: 1 | R39: 0 | S39: 0 | T39: Key Ideas and Details | U39: 10 | V39: 0.4371428571 | W39: 4.371428571 | Y39: Craft and Structure | Z39: 14 | AA39: 0.4387755102 | AB39: 6.142857143 | AD39: Integration of Knowledge and Ideas | AE39: 8 | AF39: 0.375 | AG39: 3 | AI39: Language and Editing | AJ39: 5 | AK39: 0.2857142857 | AL39: 1.428571429 | AN39: Text-Based Writing | AO39: 3 | AP39: 0.2285714286 | AQ39: 0.6857142857
A40: 9_12 Reading MYA - Grade 9 ELA - CBT ONLY - 2016 - 2017 | B40: 7060 | C40: 7060 7060 - Everglades Prep Academy High | D40: 32 | E40: 40 | F40: 40.15625 | G40: 16.0625 | H40: 31 | I40: 0.4183467742 | J40: 12.96875 | K40: 9 | L40: 0.34375 | M40: 3.09375 | N40: 32 | O40: 0 | P40: 0 | Q40: 1 | R40: 0 | S40: 0 | T40: Key Ideas and Details | U40: 10 | V40: 0.471875 | W40: 4.71875 | Y40: Craft and Structure | Z40: 14 | AA40: 0.4151785714 | AB40: 5.8125 | AD40: Integration of Knowledge and Ideas | AE40: 8 | AF40: 0.38671875 | AG40: 3.09375 | AI40: Language and Editing | AJ40: 5 | AK40: 0.29375 | AL40: 1.46875 | AN40: Text-Based Writing | AO40: 3 | AP40: 0.3229166667 | AQ40: 0.96875
A41: 9_12 Reading MYA - Grade 9 ELA - CBT ONLY - 2016 - 2017 | B41: 7066 | C41: 7066 7066 - Lba Constr and Bus Mgmt Acad | D41: 4 | T41: Key Ideas and Details | Y41: Craft and Structure | AD41: Integration of Knowledge and Ideas | AI41: Language and Editing | AN41: Text-Based Writing
A42: 9_12 Reading MYA - Grade 9 ELA - CBT ONLY - 2016 - 2017 | B42: 7070 | C42: 7070 7070 - Youth Co-Op Prep High School | D42: 13 | E42: 40 | F42: 45.76923077 | G42: 18.30769231 | H42: 31 | I42: 0.4937965261 | J42: 15.30769231 | K42: 9 | L42: 0.3333333333 | M42: 3 | N42: 13 | O42: 0 | P42: 0 | Q42: 1 | R42: 0 | S42: 0 | T42: Key Ideas and Details | U42: 10 | V42: 0.5538461538 | W42: 5.538461538 | Y42: Craft and Structure | Z42: 14 | AA42: 0.489010989 | AB42: 6.846153846 | AD42: Integration of Knowledge and Ideas | AE42: 8 | AF42: 0.4519230769 | AG42: 3.615384615 | AI42: Language and Editing | AJ42: 5 | AK42: 0.2923076923 | AL42: 1.461538462 | AN42: Text-Based Writing | AO42: 3 | AP42: 0.2820512821 | AQ42: 0.8461538462
A43: 9_12 Reading MYA - Grade 9 ELA - CBT ONLY - 2016 - 2017 | B43: 7071 | C43: 7071 7071 - Coral Gables Senior High | D43: 117 | E43: 40 | F43: 38.8034188 | G43: 15.52136752 | H43: 31 | I43: 0.4094292804 | J43: 12.69230769 | K43: 9 | L43: 0.314339981 | M43: 2.829059829 | N43: 116 | O43: 0 | P43: 1 | Q43: 0.9914529915 | R43: 0 | S43: 0.008547008547 | T43: Key Ideas and Details | U43: 10 | V43: 0.4478632479 | W43: 4.478632479 | Y43: Craft and Structure | Z43: 14 | AA43: 0.4035409035 | AB43: 5.64957265 | AD43: Integration of Knowledge and Ideas | AE43: 8 | AF43: 0.3814102564 | AG43: 3.051282051 | AI43: Language and Editing | AJ43: 5 | AK43: 0.2888888889 | AL43: 1.444444444 | AN43: Text-Based Writing | AO43: 3 | AP43: 0.2991452991 | AQ43: 0.8974358974
A44: 9_12 Reading MYA - Grade 9 ELA - CBT ONLY - 2016 - 2017 | B44: 7080 | C44: 7080 7080 - Charter Hs Of The Americas | D44: 5 | T44: Key Ideas and Details | Y44: Craft and Structure | AD44: Integration of Knowledge and Ideas | AI44: Language and Editing | AN44: Text-Based Writing
A45: 9_12 Reading MYA - Grade 9 ELA - CBT ONLY - 2016 - 2017 | B45: 7081 | C45: 7081 7081 - Design and Architecture Senior | D45: 1 | T45: Key Ideas and Details | Y45: Craft and Structure | AD45: Integration of Knowledge and Ideas | AI45: Language and Editing | AN45: Text-Based Writing
A46: 9_12 Reading MYA - Grade 9 ELA - CBT ONLY - 2016 - 2017 | B46: 7090 | C46: 7090 7090 - Imater Prep Academy High | D46: 44 | E46: 40 | F46: 39.20454545 | G46: 15.68181818 | H46: 31 | I46: 0.42228739 | J46: 13.09090909 | K46: 9 | L46: 0.2878787879 | M46: 2.590909091 | N46: 44 | O46: 0 | P46: 0 | Q46: 1 | R46: 0 | S46: 0 | T46: Key Ideas and Details | U46: 10 | V46: 0.4727272727 | W46: 4.727272727 | Y46: Craft and Structure | Z46: 14 | AA46: 0.4058441558 | AB46: 5.681818182 | AD46: Integration of Knowledge and Ideas | AE46: 8 | AF46: 0.40625 | AG46: 3.25 | AI46: Language and Editing | AJ46: 5 | AK46: 0.2681818182 | AL46: 1.340909091 | AN46: Text-Based Writing | AO46: 3 | AP46: 0.2272727273 | AQ46: 0.6818181818
A47: 9_12 Reading MYA - Grade 9 ELA - CBT ONLY - 2016 - 2017 | B47: 7101 | C47: 7101 7101 - Coral Reef Senior High | D47: 70 | E47: 40 | F47: 46.42857143 | G47: 18.57142857 | H47: 31 | I47: 0.4829493088 | J47: 14.97142857 | K47: 9 | L47: 0.4 | M47: 3.6 | N47: 69 | O47: 0 | P47: 1 | Q47: 0.9857142857 | R47: 0 | S47: 0.01428571429 | T47: Key Ideas and Details | U47: 10 | V47: 0.5228571429 | W47: 5.228571429 | Y47: Craft and Structure | Z47: 14 | AA47: 0.4826530612 | AB47: 6.757142857 | AD47: Integration of Knowledge and Ideas | AE47: 8 | AF47: 0.4267857143 | AG47: 3.414285714 | AI47: Language and Editing | AJ47: 5 | AK47: 0.3857142857 | AL47: 1.928571429 | AN47: Text-Based Writing | AO47: 3 | AP47: 0.4142857143 | AQ47: 1.242857143
A48: 9_12 Reading MYA - Grade 9 ELA - CBT ONLY - 2016 - 2017 | B48: 7111 | C48: 7111 7111 - Hialeah Senior | D48: 105 | E48: 40 | F48: 39.80952381 | G48: 15.92380952 | H48: 31 | I48: 0.4193548387 | J48: 13 | K48: 9 | L48: 0.3248677249 | M48: 2.923809524 | N48: 105 | O48: 0 | P48: 0 | Q48: 1 | R48: 0 | S48: 0 | T48: Key Ideas and Details | U48: 10 | V48: 0.4980952381 | W48: 4.980952381 | Y48: Craft and Structure | Z48: 14 | AA48: 0.419047619 | AB48: 5.866666667 | AD48: Integration of Knowledge and Ideas | AE48: 8 | AF48: 0.3583333333 | AG48: 2.866666667 | AI48: Language and Editing | AJ48: 5 | AK48: 0.28 | AL48: 1.4 | AN48: Text-Based Writing | AO48: 3 | AP48: 0.2698412698 | AQ48: 0.8095238095
A49: 9_12 Reading MYA - Grade 9 ELA - CBT ONLY - 2016 - 2017 | B49: 7121 | C49: 7121 7121 - John A Ferguson Senior High | D49: 191 | E49: 40 | F49: 39.10994764 | G49: 15.64397906 | H49: 31 | I49: 0.4141192366 | J49: 12.83769634 | K49: 9 | L49: 0.3118091914 | M49: 2.806282723 | N49: 188 | O49: 0 | P49: 3 | Q49: 0.9842931937 | R49: 0 | S49: 0.01570680628 | T49: Key Ideas and Details | U49: 10 | V49: 0.4544502618 | W49: 4.544502618 | Y49: Craft and Structure | Z49: 14 | AA49: 0.4046372476 | AB49: 5.664921466 | AD49: Integration of Knowledge and Ideas | AE49: 8 | AF49: 0.3959424084 | AG49: 3.167539267 | AI49: Language and Editing | AJ49: 5 | AK49: 0.2921465969 | AL49: 1.460732984 | AN49: Text-Based Writing | AO49: 3 | AP49: 0.2687609075 | AQ49: 0.8062827225
A50: 9_12 Reading MYA - Grade 9 ELA - CBT ONLY - 2016 - 2017 | B50: 7131 | C50: 7131 7131 - Hialeah-Miami Lakes Senior | D50: 70 | E50: 40 | F50: 44.21428571 | G50: 17.68571429 | H50: 31 | I50: 0.4539170507 | J50: 14.07142857 | K50: 9 | L50: 0.4015873016 | M50: 3.614285714 | N50: 69 | O50: 0 | P50: 1 | Q50: 0.9857142857 | R50: 0 | S50: 0.01428571429 | T50: Key Ideas and Details | U50: 10 | V50: 0.5171428571 | W50: 5.171428571 | Y50: Craft and Structure | Z50: 14 | AA50: 0.4571428571 | AB50: 6.4 | AD50: Integration of Knowledge and Ideas | AE50: 8 | AF50: 0.4142857143 | AG50: 3.314285714 | AI50: Language and Editing | AJ50: 5 | AK50: 0.3142857143 | AL50: 1.571428571 | AN50: Text-Based Writing | AO50: 3 | AP50: 0.4095238095 | AQ50: 1.228571429
A51: 9_12 Reading MYA - Grade 9 ELA - CBT ONLY - 2016 - 2017 | B51: 7141 | C51: 7141 7141 - Dr Michael M Krop Senior High | D51: 119 | E51: 40 | F51: 44.3487395 | G51: 17.7394958 | H51: 31 | I51: 0.4686907021 | J51: 14.52941176 | K51: 9 | L51: 0.3566760037 | M51: 3.210084034 | N51: 118 | O51: 0 | P51: 1 | Q51: 0.9915966387 | R51: 0 | S51: 0.008403361345 | T51: Key Ideas and Details | U51: 10 | V51: 0.5218487395 | W51: 5.218487395 | Y51: Craft and Structure | Z51: 14 | AA51: 0.4645858343 | AB51: 6.504201681 | AD51: Integration of Knowledge and Ideas | AE51: 8 | AF51: 0.4401260504 | AG51: 3.521008403 | AI51: Language and Editing | AJ51: 5 | AK51: 0.3075630252 | AL51: 1.537815126 | AN51: Text-Based Writing | AO51: 3 | AP51: 0.3193277311 | AQ51: 0.9579831933
A52: 9_12 Reading MYA - Grade 9 ELA - CBT ONLY - 2016 - 2017 | B52: 7151 | C52: 7151 7151 - Homestead Senior High | D52: 111 | E52: 40 | F52: 40.2027027 | G52: 16.08108108 | H52: 31 | I52: 0.4190642255 | J52: 12.99099099 | K52: 9 | L52: 0.3433433433 | M52: 3.09009009 | N52: 110 | O52: 0 | P52: 1 | Q52: 0.990990991 | R52: 0 | S52: 0.009009009009 | T52: Key Ideas and Details | U52: 10 | V52: 0.5027027027 | W52: 5.027027027 | Y52: Craft and Structure | Z52: 14 | AA52: 0.4388674389 | AB52: 6.144144144 | AD52: Integration of Knowledge and Ideas | AE52: 8 | AF52: 0.3457207207 | AG52: 2.765765766 | AI52: Language and Editing | AJ52: 5 | AK52: 0.2486486486 | AL52: 1.243243243 | AN52: Text-Based Writing | AO52: 3 | AP52: 0.3003003003 | AQ52: 0.9009009009
A53: 9_12 Reading MYA - Grade 9 ELA - CBT ONLY - 2016 - 2017 | B53: 7160 | C53: 7160 7160 - Mater Academy Charter High | D53: 73 | E53: 40 | F53: 38.32191781 | G53: 15.32876712 | H53: 31 | I53: 0.4012372956 | J53: 12.43835616 | K53: 9 | L53: 0.3211567732 | M53: 2.890410959 | N53: 73 | O53: 0 | P53: 0 | Q53: 1 | R53: 0 | S53: 0 | T53: Key Ideas and Details | U53: 10 | V53: 0.4232876712 | W53: 4.232876712 | Y53: Craft and Structure | Z53: 14 | AA53: 0.3982387476 | AB53: 5.575342466 | AD53: Integration of Knowledge and Ideas | AE53: 8 | AF53: 0.3578767123 | AG53: 2.863013699 | AI53: Language and Editing | AJ53: 5 | AK53: 0.3205479452 | AL53: 1.602739726 | AN53: Text-Based Writing | AO53: 3 | AP53: 0.3515981735 | AQ53: 1.054794521
A54: 9_12 Reading MYA - Grade 9 ELA - CBT ONLY - 2016 - 2017 | B54: 7161 | C54: 7161 7161 - Maritime and Science Tech Acad | D54: 8 | T54: Key Ideas and Details | Y54: Craft and Structure | AD54: Integration of Knowledge and Ideas | AI54: Language and Editing | AN54: Text-Based Writing
A55: 9_12 Reading MYA - Grade 9 ELA - CBT ONLY - 2016 - 2017 | B55: 7171 | C55: 7171 7171 - Med Acad Science and Technology | D55: 9 | T55: Key Ideas and Details | Y55: Craft and Structure | AD55: Integration of Knowledge and Ideas | AI55: Language and Editing | AN55: Text-Based Writing
A56: 9_12 Reading MYA - Grade 9 ELA - CBT ONLY - 2016 - 2017 | B56: 7191 | C56: 7191 7191 - Hialeah Gardens Senior | D56: 120 | E56: 40 | F56: 41.3125 | G56: 16.525 | H56: 31 | I56: 0.4397849462 | J56: 13.63333333 | K56: 9 | L56: 0.3212962963 | M56: 2.891666667 | N56: 120 | O56: 0 | P56: 0 | Q56: 1 | R56: 0 | S56: 0 | T56: Key Ideas and Details | U56: 10 | V56: 0.4866666667 | W56: 4.866666667 | Y56: Craft and Structure | Z56: 14 | AA56: 0.4363095238 | AB56: 6.108333333 | AD56: Integration of Knowledge and Ideas | AE56: 8 | AF56: 0.409375 | AG56: 3.275 | AI56: Language and Editing | AJ56: 5 | AK56: 0.2766666667 | AL56: 1.383333333 | AN56: Text-Based Writing | AO56: 3 | AP56: 0.2972222222 | AQ56: 0.8916666667
A57: 9_12 Reading MYA - Grade 9 ELA - CBT ONLY - 2016 - 2017 | B57: 7201 | C57: 7201 7201 - Miami Beach Senior High | D57: 78 | E57: 40 | F57: 37.88461538 | G57: 15.15384615 | H57: 31 | I57: 0.41191067 | J57: 12.76923077 | K57: 9 | L57: 0.264957265 | M57: 2.384615385 | N57: 77 | O57: 0 | P57: 1 | Q57: 0.9871794872 | R57: 0 | S57: 0.01282051282 | T57: Key Ideas and Details | U57: 10 | V57: 0.4371794872 | W57: 4.371794872 | Y57: Craft and Structure | Z57: 14 | AA57: 0.4065934066 | AB57: 5.692307692 | AD57: Integration of Knowledge and Ideas | AE57: 8 | AF57: 0.3685897436 | AG57: 2.948717949 | AI57: Language and Editing | AJ57: 5 | AK57: 0.2769230769 | AL57: 1.384615385 | AN57: Text-Based Writing | AO57: 3 | AP57: 0.2521367521 | AQ57: 0.7564102564
A58: 9_12 Reading MYA - Grade 9 ELA - CBT ONLY - 2016 - 2017 | B58: 7231 | C58: 7231 7231 - Miami Carol City Senior High | D58: 75 | E58: 40 | F58: 44.6 | G58: 17.84 | H58: 31 | I58: 0.471827957 | J58: 14.62666667 | K58: 9 | L58: 0.357037037 | M58: 3.213333333 | N58: 72 | O58: 0 | P58: 3 | Q58: 0.96 | R58: 0 | S58: 0.04 | T58: Key Ideas and Details | U58: 10 | V58: 0.5506666667 | W58: 5.506666667 | Y58: Craft and Structure | Z58: 14 | AA58: 0.4733333333 | AB58: 6.626666667 | AD58: Integration of Knowledge and Ideas | AE58: 8 | AF58: 0.425 | AG58: 3.4 | AI58: Language and Editing | AJ58: 5 | AK58: 0.264 | AL58: 1.32 | AN58: Text-Based Writing | AO58: 3 | AP58: 0.3288888889 | AQ58: 0.9866666667
A59: 9_12 Reading MYA - Grade 9 ELA - CBT ONLY - 2016 - 2017 | B59: 7241 | C59: 7241 7241 - Ronald W Reagan/doral Senior | D59: 0 | T59: Key Ideas and Details | Y59: Craft and Structure | AD59: Integration of Knowledge and Ideas | AI59: Language and Editing | AN59: Text-Based Writing
A60: 9_12 Reading MYA - Grade 9 ELA - CBT ONLY - 2016 - 2017 | B60: 7251 | C60: 7251 7251 - Miami Central Senior High | D60: 99 | E60: 40 | F60: 42.1969697 | G60: 16.87878788 | H60: 31 | I60: 0.4336917563 | J60: 13.44444444 | K60: 9 | L60: 0.3815937149 | M60: 3.434343434 | N60: 99 | O60: 0 | P60: 0 | Q60: 1 | R60: 0 | S60: 0 | T60: Key Ideas and Details | U60: 10 | V60: 0.5323232323 | W60: 5.323232323 | Y60: Craft and Structure | Z60: 14 | AA60: 0.4531024531 | AB60: 6.343434343 | AD60: Integration of Knowledge and Ideas | AE60: 8 | AF60: 0.3560606061 | AG60: 2.848484848 | AI60: Language and Editing | AJ60: 5 | AK60: 0.2646464646 | AL60: 1.323232323 | AN60: Text-Based Writing | AO60: 3 | AP60: 0.3468013468 | AQ60: 1.04040404
A61: 9_12 Reading MYA - Grade 9 ELA - CBT ONLY - 2016 - 2017 | B61: 7262 | C61: 7262 7262 - City Of Hialeah Education Acad | D61: 47 | E61: 40 | F61: 43.24468085 | G61: 17.29787234 | H61: 31 | I61: 0.4509265614 | J61: 13.9787234 | K61: 9 | L61: 0.3687943262 | M61: 3.319148936 | N61: 47 | O61: 0 | P61: 0 | Q61: 1 | R61: 0 | S61: 0 | T61: Key Ideas and Details | U61: 10 | V61: 0.5510638298 | W61: 5.510638298 | Y61: Craft and Structure | Z61: 14 | AA61: 0.4240121581 | AB61: 5.936170213 | AD61: Integration of Knowledge and Ideas | AE61: 8 | AF61: 0.4069148936 | AG61: 3.255319149 | AI61: Language and Editing | AJ61: 5 | AK61: 0.3361702128 | AL61: 1.680851064 | AN61: Text-Based Writing | AO61: 3 | AP61: 0.304964539 | AQ61: 0.914893617
A62: 9_12 Reading MYA - Grade 9 ELA - CBT ONLY - 2016 - 2017 | B62: 7265 | C62: 7265 7265 - Archimedean Upper Conserv Char | D62: 6 | T62: Key Ideas and Details | Y62: Craft and Structure | AD62: Integration of Knowledge and Ideas | AI62: Language and Editing | AN62: Text-Based Writing
A63: 9_12 Reading MYA - Grade 9 ELA - CBT ONLY - 2016 - 2017 | B63: 7271 | C63: 7271 7271 - Miami Coral Park Senior High | D63: 125 | E63: 40 | F63: 34.14 | G63: 13.656 | H63: 31 | I63: 0.3641290323 | J63: 11.288 | K63: 9 | L63: 0.2631111111 | M63: 2.368 | N63: 124 | O63: 0 | P63: 1 | Q63: 0.992 | R63: 0 | S63: 0.008 | T63: Key Ideas and Details | U63: 10 | V63: 0.3784 | W63: 3.784 | Y63: Craft and Structure | Z63: 14 | AA63: 0.3502857143 | AB63: 4.904 | AD63: Integration of Knowledge and Ideas | AE63: 8 | AF63: 0.34 | AG63: 2.72 | AI63: Language and Editing | AJ63: 5 | AK63: 0.2656 | AL63: 1.328 | AN63: Text-Based Writing | AO63: 3 | AP63: 0.3066666667 | AQ63: 0.92
A64: 9_12 Reading MYA - Grade 9 ELA - CBT ONLY - 2016 - 2017 | B64: 7291 | C64: 7291 7291 - Jose Marti Mast 6-12 Academy | D64: 6 | T64: Key Ideas and Details | Y64: Craft and Structure | AD64: Integration of Knowledge and Ideas | AI64: Language and Editing | AN64: Text-Based Writing
A65: 9_12 Reading MYA - Grade 9 ELA - CBT ONLY - 2016 - 2017 | B65: 7301 | C65: 7301 7301 - Miami Edison Senior High | D65: 38 | E65: 40 | F65: 43.02631579 | G65: 17.21052632 | H65: 31 | I65: 0.4575551783 | J65: 14.18421053 | K65: 9 | L65: 0.3362573099 | M65: 3.026315789 | N65: 37 | O65: 0 | P65: 1 | Q65: 0.9736842105 | R65: 0 | S65: 0.02631578947 | T65: Key Ideas and Details | U65: 10 | V65: 0.55 | W65: 5.5 | Y65: Craft and Structure | Z65: 14 | AA65: 0.4492481203 | AB65: 6.289473684 | AD65: Integration of Knowledge and Ideas | AE65: 8 | AF65: 0.3651315789 | AG65: 2.921052632 | AI65: Language and Editing | AJ65: 5 | AK65: 0.3105263158 | AL65: 1.552631579 | AN65: Text-Based Writing | AO65: 3 | AP65: 0.3157894737 | AQ65: 0.9473684211
A66: 9_12 Reading MYA - Grade 9 ELA - CBT ONLY - 2016 - 2017 | B66: 7341 | C66: 7341 7341 - Miami Jackson Senior High | D66: 95 | E66: 40 | F66: 40.15789474 | G66: 16.06315789 | H66: 31 | I66: 0.418336163 | J66: 12.96842105 | K66: 9 | L66: 0.3438596491 | M66: 3.094736842 | N66: 95 | O66: 0 | P66: 0 | Q66: 1 | R66: 0 | S66: 0 | T66: Key Ideas and Details | U66: 10 | V66: 0.5010526316 | W66: 5.010526316 | Y66: Craft and Structure | Z66: 14 | AA66: 0.4067669173 | AB66: 5.694736842 | AD66: Integration of Knowledge and Ideas | AE66: 8 | AF66: 0.3815789474 | AG66: 3.052631579 | AI66: Language and Editing | AJ66: 5 | AK66: 0.2547368421 | AL66: 1.273684211 | AN66: Text-Based Writing | AO66: 3 | AP66: 0.3438596491 | AQ66: 1.031578947
A67: 9_12 Reading MYA - Grade 9 ELA - CBT ONLY - 2016 - 2017 | B67: 7351 | C67: 7351 7351 - Arthur And Polly Mays Conserva | D67: 17 | E67: 40 | F67: 43.38235294 | G67: 17.35294118 | H67: 31 | I67: 0.4478178368 | J67: 13.88235294 | K67: 9 | L67: 0.385620915 | M67: 3.470588235 | N67: 17 | O67: 0 | P67: 0 | Q67: 1 | R67: 0 | S67: 0 | T67: Key Ideas and Details | U67: 10 | V67: 0.4823529412 | W67: 4.823529412 | Y67: Craft and Structure | Z67: 14 | AA67: 0.4789915966 | AB67: 6.705882353 | AD67: Integration of Knowledge and Ideas | AE67: 8 | AF67: 0.4338235294 | AG67: 3.470588235 | AI67: Language and Editing | AJ67: 5 | AK67: 0.2235294118 | AL67: 1.117647059 | AN67: Text-Based Writing | AO67: 3 | AP67: 0.4117647059 | AQ67: 1.235294118
A68: 9_12 Reading MYA - Grade 9 ELA - CBT ONLY - 2016 - 2017 | B68: 7361 | C68: 7361 7361 - Miami Killian Senior High | D68: 91 | E68: 40 | F68: 41.92307692 | G68: 16.76923077 | H68: 31 | I68: 0.4349521446 | J68: 13.48351648 | K68: 9 | L68: 0.3650793651 | M68: 3.285714286 | N68: 90 | O68: 0 | P68: 1 | Q68: 0.989010989 | R68: 0 | S68: 0.01098901099 | T68: Key Ideas and Details | U68: 10 | V68: 0.5285714286 | W68: 5.285714286 | Y68: Craft and Structure | Z68: 14 | AA68: 0.420722135 | AB68: 5.89010989 | AD68: Integration of Knowledge and Ideas | AE68: 8 | AF68: 0.3846153846 | AG68: 3.076923077 | AI68: Language and Editing | AJ68: 5 | AK68: 0.2989010989 | AL68: 1.494505495 | AN68: Text-Based Writing | AO68: 3 | AP68: 0.3406593407 | AQ68: 1.021978022
A69: 9_12 Reading MYA - Grade 9 ELA - CBT ONLY - 2016 - 2017 | B69: 7371 | C69: 7371 7371 - Robert Morgan Educational Ctr | D69: 113 | E69: 40 | F69: 43.67256637 | G69: 17.46902655 | H69: 31 | I69: 0.4521838424 | J69: 14.01769912 | K69: 9 | L69: 0.383480826 | M69: 3.451327434 | N69: 112 | O69: 0 | P69: 1 | Q69: 0.9911504425 | R69: 0 | S69: 0.008849557522 | T69: Key Ideas and Details | U69: 10 | V69: 0.4982300885 | W69: 4.982300885 | Y69: Craft and Structure | Z69: 14 | AA69: 0.4595448799 | AB69: 6.433628319 | AD69: Integration of Knowledge and Ideas | AE69: 8 | AF69: 0.3982300885 | AG69: 3.185840708 | AI69: Language and Editing | AJ69: 5 | AK69: 0.3150442478 | AL69: 1.575221239 | AN69: Text-Based Writing | AO69: 3 | AP69: 0.4306784661 | AQ69: 1.292035398
A70: 9_12 Reading MYA - Grade 9 ELA - CBT ONLY - 2016 - 2017 | B70: 7381 | C70: 7381 7381 - Miami Norland Senior High | D70: 115 | E70: 40 | F70: 38.86956522 | G70: 15.54782609 | H70: 31 | I70: 0.412342216 | J70: 12.7826087 | K70: 9 | L70: 0.3072463768 | M70: 2.765217391 | N70: 114 | O70: 0 | P70: 1 | Q70: 0.9913043478 | R70: 0 | S70: 0.008695652174 | T70: Key Ideas and Details | U70: 10 | V70: 0.4686956522 | W70: 4.686956522 | Y70: Craft and Structure | Z70: 14 | AA70: 0.4248447205 | AB70: 5.947826087 | AD70: Integration of Knowledge and Ideas | AE70: 8 | AF70: 0.3597826087 | AG70: 2.87826087 | AI70: Language and Editing | AJ70: 5 | AK70: 0.2382608696 | AL70: 1.191304348 | AN70: Text-Based Writing | AO70: 3 | AP70: 0.2811594203 | AQ70: 0.8434782609
A71: 9_12 Reading MYA - Grade 9 ELA - CBT ONLY - 2016 - 2017 | B71: 7391 | C71: 7391 7391 - Miami Lakes Educational Center | D71: 30 | E71: 40 | F71: 44.5 | G71: 17.8 | H71: 31 | I71: 0.4569892473 | J71: 14.16666667 | K71: 9 | L71: 0.4037037037 | M71: 3.633333333 | N71: 29 | O71: 0 | P71: 1 | Q71: 0.9666666667 | R71: 0 | S71: 0.03333333333 | T71: Key Ideas and Details | U71: 10 | V71: 0.5133333333 | W71: 5.133333333 | Y71: Craft and Structure | Z71: 14 | AA71: 0.4166666667 | AB71: 5.833333333 | AD71: Integration of Knowledge and Ideas | AE71: 8 | AF71: 0.475 | AG71: 3.8 | AI71: Language and Editing | AJ71: 5 | AK71: 0.3333333333 | AL71: 1.666666667 | AN71: Text-Based Writing | AO71: 3 | AP71: 0.4555555556 | AQ71: 1.366666667
A72: 9_12 Reading MYA - Grade 9 ELA - CBT ONLY - 2016 - 2017 | B72: 7411 | C72: 7411 7411 - Miami Northwestern Senior High | D72: 80 | E72: 40 | F72: 44.46875 | G72: 17.7875 | H72: 31 | I72: 0.4713709677 | J72: 14.6125 | K72: 9 | L72: 0.3527777778 | M72: 3.175 | N72: 80 | O72: 0 | P72: 0 | Q72: 1 | R72: 0 | S72: 0 | T72: Key Ideas and Details | U72: 10 | V72: 0.56125 | W72: 5.6125 | Y72: Craft and Structure | Z72: 14 | AA72: 0.4669642857 | AB72: 6.5375 | AD72: Integration of Knowledge and Ideas | AE72: 8 | AF72: 0.403125 | AG72: 3.225 | AI72: Language and Editing | AJ72: 5 | AK72: 0.31 | AL72: 1.55 | AN72: Text-Based Writing | AO72: 3 | AP72: 0.2875 | AQ72: 0.8625
A73: 9_12 Reading MYA - Grade 9 ELA - CBT ONLY - 2016 - 2017 | B73: 7431 | C73: 7431 7431 - Miami Palmetto Senior High | D73: 82 | E73: 40 | F73: 39.23780488 | G73: 15.69512195 | H73: 31 | I73: 0.4158143194 | J73: 12.8902439 | K73: 9 | L73: 0.3116531165 | M73: 2.804878049 | N73: 80 | O73: 0 | P73: 2 | Q73: 0.9756097561 | R73: 0 | S73: 0.0243902439 | T73: Key Ideas and Details | U73: 10 | V73: 0.437804878 | W73: 4.37804878 | Y73: Craft and Structure | Z73: 14 | AA73: 0.4137630662 | AB73: 5.792682927 | AD73: Integration of Knowledge and Ideas | AE73: 8 | AF73: 0.3902439024 | AG73: 3.12195122 | AI73: Language and Editing | AJ73: 5 | AK73: 0.2536585366 | AL73: 1.268292683 | AN73: Text-Based Writing | AO73: 3 | AP73: 0.3780487805 | AQ73: 1.134146341
A74: 9_12 Reading MYA - Grade 9 ELA - CBT ONLY - 2016 - 2017 | B74: 7461 | C74: 7461 7461 - Miami Senior High | D74: 160 | E74: 40 | F74: 45.53125 | G74: 18.2125 | H74: 31 | I74: 0.4752016129 | J74: 14.73125 | K74: 9 | L74: 0.3868055556 | M74: 3.48125 | N74: 156 | O74: 0 | P74: 4 | Q74: 0.975 | R74: 0 | S74: 0.025 | T74: Key Ideas and Details | U74: 10 | V74: 0.5475 | W74: 5.475 | Y74: Craft and Structure | Z74: 14 | AA74: 0.4674107143 | AB74: 6.54375 | AD74: Integration of Knowledge and Ideas | AE74: 8 | AF74: 0.434375 | AG74: 3.475 | AI74: Language and Editing | AJ74: 5 | AK74: 0.31125 | AL74: 1.55625 | AN74: Text-Based Writing | AO74: 3 | AP74: 0.3875 | AQ74: 1.1625
A75: 9_12 Reading MYA - Grade 9 ELA - CBT ONLY - 2016 - 2017 | B75: 7511 | C75: 7511 7511 - Miami Springs Senior High | D75: 67 | E75: 40 | F75: 40.74626866 | G75: 16.29850746 | H75: 31 | I75: 0.4304285026 | J75: 13.34328358 | K75: 9 | L75: 0.328358209 | M75: 2.955223881 | N75: 67 | O75: 0 | P75: 0 | Q75: 1 | R75: 0 | S75: 0 | T75: Key Ideas and Details | U75: 10 | V75: 0.4626865672 | W75: 4.626865672 | Y75: Craft and Structure | Z75: 14 | AA75: 0.4488272921 | AB75: 6.28358209 | AD75: Integration of Knowledge and Ideas | AE75: 8 | AF75: 0.4048507463 | AG75: 3.23880597 | AI75: Language and Editing | AJ75: 5 | AK75: 0.2447761194 | AL75: 1.223880597 | AN75: Text-Based Writing | AO75: 3 | AP75: 0.3084577114 | AQ75: 0.9253731343
A76: 9_12 Reading MYA - Grade 9 ELA - CBT ONLY - 2016 - 2017 | B76: 7531 | C76: 7531 7531 - Miami Sunset Senior High | D76: 48 | E76: 40 | F76: 36.25 | G76: 14.5 | H76: 31 | I76: 0.3837365591 | J76: 11.89583333 | K76: 9 | L76: 0.2893518519 | M76: 2.604166667 | N76: 48 | O76: 0 | P76: 0 | Q76: 1 | R76: 0 | S76: 0 | T76: Key Ideas and Details | U76: 10 | V76: 0.4458333333 | W76: 4.458333333 | Y76: Craft and Structure | Z76: 14 | AA76: 0.3571428571 | AB76: 5 | AD76: Integration of Knowledge and Ideas | AE76: 8 | AF76: 0.3697916667 | AG76: 2.958333333 | AI76: Language and Editing | AJ76: 5 | AK76: 0.2833333333 | AL76: 1.416666667 | AN76: Text-Based Writing | AO76: 3 | AP76: 0.2222222222 | AQ76: 0.6666666667
A77: 9_12 Reading MYA - Grade 9 ELA - CBT ONLY - 2016 - 2017 | B77: 7541 | C77: 7541 7541 - North Miami Beach Senior High | D77: 79 | E77: 40 | F77: 41.10759494 | G77: 16.44303797 | H77: 31 | I77: 0.4299714169 | J77: 13.32911392 | K77: 9 | L77: 0.3459915612 | M77: 3.113924051 | N77: 77 | O77: 0 | P77: 2 | Q77: 0.9746835443 | R77: 0 | S77: 0.0253164557 | T77: Key Ideas and Details | U77: 10 | V77: 0.4949367089 | W77: 4.949367089 | Y77: Craft and Structure | Z77: 14 | AA77: 0.4186256781 | AB77: 5.860759494 | AD77: Integration of Knowledge and Ideas | AE77: 8 | AF77: 0.4098101266 | AG77: 3.278481013 | AI77: Language and Editing | AJ77: 5 | AK77: 0.2607594937 | AL77: 1.303797468 | AN77: Text-Based Writing | AO77: 3 | AP77: 0.3502109705 | AQ77: 1.050632911
A78: 9_12 Reading MYA - Grade 9 ELA - CBT ONLY - 2016 - 2017 | B78: 7571 | C78: 7571 7571 - Intl Studies Prep Academy | D78: 15 | E78: 40 | F78: 42 | G78: 16.8 | H78: 31 | I78: 0.4301075269 | J78: 13.33333333 | K78: 9 | L78: 0.3851851852 | M78: 3.466666667 | N78: 14 | O78: 0 | P78: 1 | Q78: 0.9333333333 | R78: 0 | S78: 0.06666666667 | T78: Key Ideas and Details | U78: 10 | V78: 0.5133333333 | W78: 5.133333333 | Y78: Craft and Structure | Z78: 14 | AA78: 0.3952380952 | AB78: 5.533333333 | AD78: Integration of Knowledge and Ideas | AE78: 8 | AF78: 0.375 | AG78: 3 | AI78: Language and Editing | AJ78: 5 | AK78: 0.4133333333 | AL78: 2.066666667 | AN78: Text-Based Writing | AO78: 3 | AP78: 0.3555555556 | AQ78: 1.066666667
A79: 9_12 Reading MYA - Grade 9 ELA - CBT ONLY - 2016 - 2017 | B79: 7581 | C79: 7581 7581 - Ipreparatory Academy | D79: 4 | T79: Key Ideas and Details | Y79: Craft and Structure | AD79: Integration of Knowledge and Ideas | AI79: Language and Editing | AN79: Text-Based Writing
A80: 9_12 Reading MYA - Grade 9 ELA - CBT ONLY - 2016 - 2017 | B80: 7591 | C80: 7591 7591 - North Miami Senior High | D80: 140 | E80: 40 | F80: 43.91071429 | G80: 17.56428571 | H80: 31 | I80: 0.4582949309 | J80: 14.20714286 | K80: 9 | L80: 0.373015873 | M80: 3.357142857 | N80: 138 | O80: 0 | P80: 2 | Q80: 0.9857142857 | R80: 0 | S80: 0.01428571429 | T80: Key Ideas and Details | U80: 10 | V80: 0.5364285714 | W80: 5.364285714 | Y80: Craft and Structure | Z80: 14 | AA80: 0.4387755102 | AB80: 6.142857143 | AD80: Integration of Knowledge and Ideas | AE80: 8 | AF80: 0.4375 | AG80: 3.5 | AI80: Language and Editing | AJ80: 5 | AK80: 0.2928571429 | AL80: 1.464285714 | AN80: Text-Based Writing | AO80: 3 | AP80: 0.3642857143 | AQ80: 1.092857143
A81: 9_12 Reading MYA - Grade 9 ELA - CBT ONLY - 2016 - 2017 | B81: 7601 | C81: 7601 7601 - William H. Turner Technical | D81: 109 | E81: 40 | F81: 45.52752294 | G81: 18.21100917 | H81: 31 | I81: 0.4767682746 | J81: 14.77981651 | K81: 9 | L81: 0.381243629 | M81: 3.431192661 | N81: 109 | O81: 0 | P81: 0 | Q81: 1 | R81: 0 | S81: 0 | T81: Key Ideas and Details | U81: 10 | V81: 0.5596330275 | W81: 5.596330275 | Y81: Craft and Structure | Z81: 14 | AA81: 0.4731323722 | AB81: 6.623853211 | AD81: Integration of Knowledge and Ideas | AE81: 8 | AF81: 0.4151376147 | AG81: 3.321100917 | AI81: Language and Editing | AJ81: 5 | AK81: 0.3027522936 | AL81: 1.513761468 | AN81: Text-Based Writing | AO81: 3 | AP81: 0.3853211009 | AQ81: 1.155963303
A82: 9_12 Reading MYA - Grade 9 ELA - CBT ONLY - 2016 - 2017 | B82: 7631 | C82: 7631 7631 - Miami Macarthur South | D82: 0 | T82: Key Ideas and Details | Y82: Craft and Structure | AD82: Integration of Knowledge and Ideas | AI82: Language and Editing | AN82: Text-Based Writing
A83: 9_12 Reading MYA - Grade 9 ELA - CBT ONLY - 2016 - 2017 | B83: 7701 | C83: 7701 7701 - South Dade Senior High | D83: 200 | E83: 40 | F83: 43.825 | G83: 17.53 | H83: 31 | I83: 0.4551612903 | J83: 14.11 | K83: 9 | L83: 0.38 | M83: 3.42 | N83: 196 | O83: 0 | P83: 4 | Q83: 0.98 | R83: 0 | S83: 0.02 | T83: Key Ideas and Details | U83: 10 | V83: 0.5455 | W83: 5.455 | Y83: Craft and Structure | Z83: 14 | AA83: 0.4553571429 | AB83: 6.375 | AD83: Integration of Knowledge and Ideas | AE83: 8 | AF83: 0.39625 | AG83: 3.17 | AI83: Language and Editing | AJ83: 5 | AK83: 0.279 | AL83: 1.395 | AN83: Text-Based Writing | AO83: 3 | AP83: 0.3783333333 | AQ83: 1.135
A84: 9_12 Reading MYA - Grade 9 ELA - CBT ONLY - 2016 - 2017 | B84: 7721 | C84: 7721 7721 - South Miami Senior High | D84: 109 | E84: 40 | F84: 39.95412844 | G84: 15.98165138 | H84: 31 | I84: 0.4143237644 | J84: 12.8440367 | K84: 9 | L84: 0.3486238532 | M84: 3.137614679 | N84: 108 | O84: 0 | P84: 1 | Q84: 0.9908256881 | R84: 0 | S84: 0.009174311927 | T84: Key Ideas and Details | U84: 10 | V84: 0.4596330275 | W84: 4.596330275 | Y84: Craft and Structure | Z84: 14 | AA84: 0.4089121887 | AB84: 5.724770642 | AD84: Integration of Knowledge and Ideas | AE84: 8 | AF84: 0.3830275229 | AG84: 3.064220183 | AI84: Language and Editing | AJ84: 5 | AK84: 0.3229357798 | AL84: 1.614678899 | AN84: Text-Based Writing | AO84: 3 | AP84: 0.3272171254 | AQ84: 0.9816513761
